{"text_format":"1","workbook":"xlsx","n_sheets":11,"sheets":["BOM","MMS","CRS230","ECS411","PDS021 Article","PDS021 Opérations","PDS021 Composants","Modèles+listes","Poste de charge","Tôles","Paramètres"],"not_rendered":{"charts":0,"images":0,"macros":1,"external_links":3,"defined_names":2,"comments":2,"pivot_tables":0},"unopened":[],"bounds":{"document_bytes":16777216,"sheet_cells":100000,"rows_first":2000,"rows_last":500,"rows_between":2000,"halvings":0,"cell_chars":16384,"cell_head_chars":4096},"cells_cut":0,"cells_raw":0,"read":"whole","date_system":"1900"}

{"sheet":"BOM","index":0,"n_rows":99,"n_cols":57,"rows_kept":99,"cut":false,"hidden":false,"merged":[[98,29,98,30],[97,29,97,30],[96,28,96,30],[95,28,95,30],[94,28,94,30],[93,28,93,30],[92,28,92,30],[91,28,91,30],[7,1,18,1],[19,1,28,1],[52,1,61,1],[29,1,51,1],[1,11,2,11],[1,12,2,12],[1,1,4,8],[1,54,1,55],[1,15,1,16],[2,15,2,16],[3,15,3,16],[4,15,4,16],[5,11,5,14],[5,9,5,10],[5,2,5,8],[5,45,5,53],[5,39,5,44],[5,26,5,37],[5,23,5,25],[5,15,5,22]]}
[]
[null,"NOM PRODUIT",null,null,null,null,null,null,null,null,null,"Date  de MAJ",null,null,null,"Resp. article ach",null,"JACOB",null,null,null,null,null,null,null,null,null,null,null,null,null,null,null,null,null,null,null,null,null,null,null,null,null,null,null,null,null,null,null,null,null,null,null,"Modèle","Modèle A"]
[null,null,null,null,null,null,null,null,null,null,null,null,null,null,null,"Resp. article fab",null,"SALPETIER",null,null,null,null,null,null,null,null,null,null,null,null,null,null,null,null,null,null,null,null,null,null,null,null,null,null,null,null,null,null,null,null,null,null,null,"Taille"]
[null,null,null,null,null,null,null,null,null,null,null,"TP Factor","1.6218 ",null,null,"Groupe article",null,1506,null,null,null,null,null,null,null,null,null,null,null,null,null,null,null,null,null,null,null,null,null,null,null,null,null,null,null,null,null,null,null,null,null,null,null,"Classe"]
[null,null,null,null,null,null,null,null,null,null,null,"Taux horaire",39.360799999999998,null,null,"Groupe produit",null,"04090",null,null,null,null,null,null,null,null,null,null,null,null,null,null,null,null,null,null,null,null,null,null,null,null,null,null,null,null,null,null,null,null,null,null,null,"Code Movex pdt"]
[null,null,"PÈRE/FILS",null,null,null,null,null,null,"PDS021 COMPOSANTS",null,"MMS001 / 002 / 003 / CRS230",null,null,null,"Données Movex (MMS001 / 002 / 003 / CRS230)",null,null,null,null,null,null,null,"                                          Volume annuel",null,null,"Description pièce primaire",null,null,null,null,null,null,null,null,null,null,null,null,"Decomposition prix pièce primaire",null,null,null,null,null,"Formules de calcul pièce primaire",null,null,null,null,null,null,null,null,null,null,{"$f":"SUM(BC6:BD6)","v":0}]
[null,null,"Niveau 1","Niveau 2","Niveau 3","Niveau 4","Niveau 5","Niveau","Niveau père","N° SEQ","N° OP","Numéro EPDM","Article produit/ Poste de charge","Catégorie pièce","Nom ","Modèle de création MMS","U/M de base","Poids brut","Poids net","PLAN","Matricule O/N","Type plan","Série économique","Type de pièce","VCOGS unitaire","Qté / an","Série Economique proposée","Forcer série Economique ","Type Tôle","Epaisseur mm","Dimention X (mm)","Dimention Y (mm)","Laser","Nb trous","Nb plis","Nb goujons","peinture","Interdire cisaillage","VCOGS pièce primaire","VCOGS  Tôle","VCOGS cisaillage","VCOGS découpe (poinçonage ou laser) ","VCOGS Pliage","VCOGS goujons","VCOGS peinture","surface de la tôle (m²)","Surface de la pièce (m²)","Nb Pièces possible dans tole 11115015 ","Nb Pièces possible dans tole cisaillée","Série économique2","Cisaillage nécessaire","Taux peinture ?","Simulation de coût découpe laser CVP","Simulation de coût poinçonnage CVP","Modèle A","Modèle B"]
[null,"PORTE ET CAISSE",1,null,null,null,null,{"$f":"SUBSTITUTE(TRIM(CONCATENATE(Tableau3[[#This Row],[Niveau 1]],\" \",Tableau3[[#This Row],[Niveau 2]],\" \",Tableau3[[#This Row],[Niveau 3]],\" \",Tableau3[[#This Row],[Niveau 4]],\" \",Tableau3[[#This Row],[Niveau 5]])),\" \",\".\")","v":"1"},{"$f":"IF(COUNTBLANK(Tableau3[[#This Row],[Niveau 1]:[Niveau 5]])=4,\"0\",LEFT(Tableau3[[#This Row],[Niveau]],(LEN(Tableau3[[#This Row],[Niveau]])-LEN(OFFSET(Tableau3[[#This Row],[Niveau 5]],0,(-COUNTBLANK(Tableau3[[#This Row],[Niveau 1]:[Niveau 5]]))))-1)))","v":"0"},null,null,null,94098701,"Nouveau",{"$f":"IF(Tableau3[[#This Row],[Catégorie pièce]]=\"Opérations\",VLOOKUP(M8,'Poste de charge'!A:C,2,FALSE),VLOOKUP(CONCATENATE(M8),[1]ARTRDCL!$A$1:$U$25000,2,FALSE))","v":"P/C CR4 700 SENS A"},"MODEL09","PI",10,20,{"$f":"IF(N8=\"Nouveau\",MID(Tableau3[[#This Row],[Article produit/ Poste de charge]],2,15),\"\")","v":"4098701"},"N","PL",1,"Assemblage",{"$f":"IF(Tableau3[[#This Row],[Catégorie pièce]]=\"Opérations\",$M$5/100,VLOOKUP(CONCATENATE(Tableau3[[#This Row],[Article produit/ Poste de charge]]),[1]ARTRDCL!$A$1:$U$65536,15,FALSE))","v":601.22699999999998},{"$f":"SUMPRODUCT($BC$6:$BD$6)","v":0},null,null,null,null,null,null,null,null,null,null,null,null,{"$f":"SUM(AN8:AS8)","v":0},{"$f":"IFERROR(VLOOKUP(CONCATENATE(AC8),Tôles!A:W,10,FALSE)/AA8*(IF(AY8=TRUE,BOM!B8,Tableau3[[#This Row],[surface de la tôle (m²)]])),0)","v":0},{"$f":"IF(AY8=TRUE,Paramètres!$B$13/AX8,0)","v":0},{"$f":"IF(AG8= \"Oui\",$BA8,BB8)","v":0},{"$f":"IF(AI8>0, (40/AX8 +0.4*AI8)*Paramètres!$B$2/100,0)","v":0},{"$f":"IF(AJ8>0,(0.15/$AX8+$AJ8)*Paramètres!$B$2/100,0)","v":0},{"$f":"IF(AK8=\"Oui\",(13/AX8 +AZ8)*Paramètres!$B$2/100,0)","v":0},{"$f":"IFERROR(VLOOKUP(CONCATENATE(AC8),Tôles!A:W,9,FALSE),0)","v":0},{"$f":"AE8/1000*AF8/1000","v":0},{"$f":"IFERROR(AT8/AU8/Paramètres!$B$9,0)","v":0},{"$f":"IFERROR(Paramètres!$B$8/Tableau3[[#This Row],[Surface de la pièce (m²)]]/Paramètres!$B$9,0)","v":0},{"$f":"IF(AB8>0,AB8,AA8)","v":0},{"$f":"AND(IF(AV8>50,TRUE,FALSE),AL8<>\"Oui\")","v":false},{"$f":"MAX(AE8,AF8)/1000 + 0.5","v":0.5},{"$f":"IF(OR(ISERROR((5/$AN8 +$X8*0.08*$T8+ ($U8+$V8) * 0.001)*Paramètres!$B$2/100),AD8 = \"\"),0,(5/$AN8 +$X8*0.08*$T8+ ($U8+$V8) * 0.001)*Paramètres!$B$2/100)","v":0},{"$f":"IF(OR(ISERROR((10/$AN8+$X8*0.007 + ($U8+$V8) * 0.0005)*Paramètres!$B$2/100),AD8= \"\"),0,(10/$AN8+$X8*0.007 + ($U8+$V8) * 0.0005)*Paramètres!$B$2/100)","v":0},1]
[null,null,1,null,null,null,null,{"$f":"SUBSTITUTE(TRIM(CONCATENATE(Tableau3[[#This Row],[Niveau 1]],\" \",Tableau3[[#This Row],[Niveau 2]],\" \",Tableau3[[#This Row],[Niveau 3]],\" \",Tableau3[[#This Row],[Niveau 4]],\" \",Tableau3[[#This Row],[Niveau 5]])),\" \",\".\")","v":"1"},{"$f":"IF(COUNTBLANK(Tableau3[[#This Row],[Niveau 1]:[Niveau 5]])=4,\"0\",LEFT(Tableau3[[#This Row],[Niveau]],(LEN(Tableau3[[#This Row],[Niveau]])-LEN(OFFSET(Tableau3[[#This Row],[Niveau 5]],0,(-COUNTBLANK(Tableau3[[#This Row],[Niveau 1]:[Niveau 5]]))))-1)))","v":"0"},null,null,null,94098702,"Nouveau",{"$f":"IF(Tableau3[[#This Row],[Catégorie pièce]]=\"Opérations\",VLOOKUP(M9,'Poste de charge'!A:C,2,FALSE),VLOOKUP(CONCATENATE(M9),[1]ARTRDCL!$A$1:$U$25000,2,FALSE))","v":"P/C CR4 700 SENS D"},"MODEL03","PI",0,0,{"$f":"IF(N9=\"Nouveau\",MID(Tableau3[[#This Row],[Article produit/ Poste de charge]],2,15),\"\")","v":"4098702"},"N","PL",1,"Assemblage",{"$f":"IF(Tableau3[[#This Row],[Catégorie pièce]]=\"Opérations\",$M$5/100,VLOOKUP(CONCATENATE(Tableau3[[#This Row],[Article produit/ Poste de charge]]),[1]ARTRDCL!$A$1:$U$65536,15,FALSE))","v":601.22699999999998},{"$f":"SUMPRODUCT($BC$6:$BD$6)","v":0},{"$f":"ROUNDDOWN(IF($AO9= TRUE,$AM9,$AL9),0)","v":0},{"$f":"Z9*2/25","v":0},null,null,null,null,null,null,null,null,null,null,{"$f":"SUM(AN9:AS9)","v":0},{"$f":"IFERROR(VLOOKUP(CONCATENATE(AC9),Tôles!A:W,10,FALSE)/AA9*(IF(AY9=TRUE,BOM!B9,Tableau3[[#This Row],[surface de la tôle (m²)]])),0)","v":0},{"$f":"IF(AY9=TRUE,Paramètres!$B$13/AX9,0)","v":0},{"$f":"IF(AG9= \"Oui\",$BA9,BB9)","v":0},{"$f":"IF(AI9>0, (40/AX9 +0.4*AI9)*Paramètres!$B$2/100,0)","v":0},{"$f":"IF(AJ9>0,(0.15/$AX9+$AJ9)*Paramètres!$B$2/100,0)","v":0},{"$f":"IF(AK9=\"Oui\",(13/AX9 +AZ9)*Paramètres!$B$2/100,0)","v":0},{"$f":"IFERROR(VLOOKUP(CONCATENATE(AC9),Tôles!A:W,9,FALSE),0)","v":0},{"$f":"AE9/1000*AF9/1000","v":0},{"$f":"IFERROR(AT9/AU9/Paramètres!$B$9,0)","v":0},{"$f":"IFERROR(Paramètres!$B$8/Tableau3[[#This Row],[Surface de la pièce (m²)]]/Paramètres!$B$9,0)","v":0},{"$f":"IF(AB9>0,AB9,AA9)","v":0},{"$f":"AND(IF(AV9>50,TRUE,FALSE),AL9<>\"Oui\")","v":false},{"$f":"MAX(AE9,AF9)/1000 + 0.5","v":0.5},{"$f":"IF(OR(ISERROR((5/$AN9 +$X9*0.08*$T9+ ($U9+$V9) * 0.001)*Paramètres!$B$2/100),AD9 = \"\"),0,(5/$AN9 +$X9*0.08*$T9+ ($U9+$V9) * 0.001)*Paramètres!$B$2/100)","v":0},{"$f":"IF(OR(ISERROR((10/$AN9+$X9*0.007 + ($U9+$V9) * 0.0005)*Paramètres!$B$2/100),AD9= \"\"),0,(10/$AN9+$X9*0.007 + ($U9+$V9) * 0.0005)*Paramètres!$B$2/100)","v":0},null,1]
[null,null,1,1,null,null,null,{"$f":"SUBSTITUTE(TRIM(CONCATENATE(Tableau3[[#This Row],[Niveau 1]],\" \",Tableau3[[#This Row],[Niveau 2]],\" \",Tableau3[[#This Row],[Niveau 3]],\" \",Tableau3[[#This Row],[Niveau 4]],\" \",Tableau3[[#This Row],[Niveau 5]])),\" \",\".\")","v":"1.1"},{"$f":"IF(COUNTBLANK(Tableau3[[#This Row],[Niveau 1]:[Niveau 5]])=4,\"0\",LEFT(Tableau3[[#This Row],[Niveau]],(LEN(Tableau3[[#This Row],[Niveau]])-LEN(OFFSET(Tableau3[[#This Row],[Niveau 5]],0,(-COUNTBLANK(Tableau3[[#This Row],[Niveau 1]:[Niveau 5]]))))-1)))","v":"1"},20,100,null,84045006,"Nouveau",{"$f":"IF(Tableau3[[#This Row],[Catégorie pièce]]=\"Opérations\",VLOOKUP(M10,'Poste de charge'!A:C,2,FALSE),VLOOKUP(CONCATENATE(M10),[1]ARTRDCL!$A$1:$U$25000,2,FALSE))","v":"FONCET MOBILE LISSE GCHE"},"MODEL04","PI",11,21,{"$f":"IF(N10=\"Nouveau\",MID(Tableau3[[#This Row],[Article produit/ Poste de charge]],2,15),\"\")","v":"4045006"},"N","PL",1,"Fabriquée",{"$f":"IF(Tableau3[[#This Row],[Catégorie pièce]]=\"Opérations\",$M$5/100,VLOOKUP(CONCATENATE(Tableau3[[#This Row],[Article produit/ Poste de charge]]),[1]ARTRDCL!$A$1:$U$65536,15,FALSE))","v":19.690999999999999},{"$f":"SUMPRODUCT($BC$6:$BD$6)","v":0},null,null,null,null,null,null,null,null,null,null,null,null,{"$f":"SUM(AN10:AS10)","v":0},{"$f":"IFERROR(VLOOKUP(CONCATENATE(AC10),Tôles!A:W,10,FALSE)/AA10*(IF(AY10=TRUE,BOM!B10,Tableau3[[#This Row],[surface de la tôle (m²)]])),0)","v":0},{"$f":"IF(AY10=TRUE,Paramètres!$B$13/AX10,0)","v":0},{"$f":"IF(AG10= \"Oui\",$BA10,BB10)","v":0},{"$f":"IF(AI10>0, (40/AX10 +0.4*AI10)*Paramètres!$B$2/100,0)","v":0},{"$f":"IF(AJ10>0,(0.15/$AX10+$AJ10)*Paramètres!$B$2/100,0)","v":0},{"$f":"IF(AK10=\"Oui\",(13/AX10 +AZ10)*Paramètres!$B$2/100,0)","v":0},{"$f":"IFERROR(VLOOKUP(CONCATENATE(AC10),Tôles!A:W,9,FALSE),0)","v":0},{"$f":"AE10/1000*AF10/1000","v":0},{"$f":"IFERROR(AT10/AU10/Paramètres!$B$9,0)","v":0},{"$f":"IFERROR(Paramètres!$B$8/Tableau3[[#This Row],[Surface de la pièce (m²)]]/Paramètres!$B$9,0)","v":0},{"$f":"IF(AB10>0,AB10,AA10)","v":0},{"$f":"AND(IF(AV10>50,TRUE,FALSE),AL10<>\"Oui\")","v":false},{"$f":"MAX(AE10,AF10)/1000 + 0.5","v":0.5},{"$f":"IF(OR(ISERROR((5/$AN10 +$X10*0.08*$T10+ ($U10+$V10) * 0.001)*Paramètres!$B$2/100),AD10 = \"\"),0,(5/$AN10 +$X10*0.08*$T10+ ($U10+$V10) * 0.001)*Paramètres!$B$2/100)","v":0},{"$f":"IF(OR(ISERROR((10/$AN10+$X10*0.007 + ($U10+$V10) * 0.0005)*Paramètres!$B$2/100),AD10= \"\"),0,(10/$AN10+$X10*0.007 + ($U10+$V10) * 0.0005)*Paramètres!$B$2/100)","v":0},1,2]
[null,null,1,1,1,null,null,{"$f":"SUBSTITUTE(TRIM(CONCATENATE(Tableau3[[#This Row],[Niveau 1]],\" \",Tableau3[[#This Row],[Niveau 2]],\" \",Tableau3[[#This Row],[Niveau 3]],\" \",Tableau3[[#This Row],[Niveau 4]],\" \",Tableau3[[#This Row],[Niveau 5]])),\" \",\".\")","v":"1.1.1"},{"$f":"IF(COUNTBLANK(Tableau3[[#This Row],[Niveau 1]:[Niveau 5]])=4,\"0\",LEFT(Tableau3[[#This Row],[Niveau]],(LEN(Tableau3[[#This Row],[Niveau]])-LEN(OFFSET(Tableau3[[#This Row],[Niveau 5]],0,(-COUNTBLANK(Tableau3[[#This Row],[Niveau 1]:[Niveau 5]]))))-1)))","v":"1.1"},5,10,null,11110021,"Composants",{"$f":"IF(Tableau3[[#This Row],[Catégorie pièce]]=\"Opérations\",VLOOKUP(M11,'Poste de charge'!A:C,2,FALSE),VLOOKUP(CONCATENATE(M11),[1]ARTRDCL!$A$1:$U$25000,2,FALSE))","v":"TOLE TC 1250X2500X10/10"},null,null,null,null,{"$f":"IF(N11=\"Nouveau\",MID(Tableau3[[#This Row],[Article produit/ Poste de charge]],2,15),\"\")","v":""},null,null,null,"Achetée",{"$f":"IF(Tableau3[[#This Row],[Catégorie pièce]]=\"Opérations\",$M$5/100,VLOOKUP(CONCATENATE(Tableau3[[#This Row],[Article produit/ Poste de charge]]),[1]ARTRDCL!$A$1:$U$65536,15,FALSE))","v":21.222000000000001},{"$f":"SUMPRODUCT($BC$6:$BD$6)","v":0},{"$f":"ROUNDDOWN(IF($AO11= TRUE,$AM11,$AL11),0)","v":0},{"$f":"Z11*2/25","v":0},null,null,null,null,null,null,null,null,null,null,{"$f":"SUM(AN11:AS11)","v":0},{"$f":"IFERROR(VLOOKUP(CONCATENATE(AC11),Tôles!A:W,10,FALSE)/AA11*(IF(AY11=TRUE,BOM!B11,Tableau3[[#This Row],[surface de la tôle (m²)]])),0)","v":0},{"$f":"IF(AY11=TRUE,Paramètres!$B$13/AX11,0)","v":0},{"$f":"IF(AG11= \"Oui\",$BA11,BB11)","v":0},{"$f":"IF(AI11>0, (40/AX11 +0.4*AI11)*Paramètres!$B$2/100,0)","v":0},{"$f":"IF(AJ11>0,(0.15/$AX11+$AJ11)*Paramètres!$B$2/100,0)","v":0},{"$f":"IF(AK11=\"Oui\",(13/AX11 +AZ11)*Paramètres!$B$2/100,0)","v":0},{"$f":"IFERROR(VLOOKUP(CONCATENATE(AC11),Tôles!A:W,9,FALSE),0)","v":0},{"$f":"AE11/1000*AF11/1000","v":0},{"$f":"IFERROR(AT11/AU11/Paramètres!$B$9,0)","v":0},{"$f":"IFERROR(Paramètres!$B$8/Tableau3[[#This Row],[Surface de la pièce (m²)]]/Paramètres!$B$9,0)","v":0},{"$f":"IF(AB11>0,AB11,AA11)","v":0},{"$f":"AND(IF(AV11>50,TRUE,FALSE),AL11<>\"Oui\")","v":false},{"$f":"MAX(AE11,AF11)/1000 + 0.5","v":0.5},{"$f":"IF(OR(ISERROR((5/$AN11 +$X11*0.08*$T11+ ($U11+$V11) * 0.001)*Paramètres!$B$2/100),AD11 = \"\"),0,(5/$AN11 +$X11*0.08*$T11+ ($U11+$V11) * 0.001)*Paramètres!$B$2/100)","v":0},{"$f":"IF(OR(ISERROR((10/$AN11+$X11*0.007 + ($U11+$V11) * 0.0005)*Paramètres!$B$2/100),AD11= \"\"),0,(10/$AN11+$X11*0.007 + ($U11+$V11) * 0.0005)*Paramètres!$B$2/100)","v":0},1]
[null,null,1,1,2,null,null,{"$f":"SUBSTITUTE(TRIM(CONCATENATE(Tableau3[[#This Row],[Niveau 1]],\" \",Tableau3[[#This Row],[Niveau 2]],\" \",Tableau3[[#This Row],[Niveau 3]],\" \",Tableau3[[#This Row],[Niveau 4]],\" \",Tableau3[[#This Row],[Niveau 5]])),\" \",\".\")","v":"1.1.2"},{"$f":"IF(COUNTBLANK(Tableau3[[#This Row],[Niveau 1]:[Niveau 5]])=4,\"0\",LEFT(Tableau3[[#This Row],[Niveau]],(LEN(Tableau3[[#This Row],[Niveau]])-LEN(OFFSET(Tableau3[[#This Row],[Niveau 5]],0,(-COUNTBLANK(Tableau3[[#This Row],[Niveau 1]:[Niveau 5]]))))-1)))","v":"1.1"},null,10,null,22520,"Opérations",{"$f":"IF(Tableau3[[#This Row],[Catégorie pièce]]=\"Opérations\",VLOOKUP(M12,'Poste de charge'!A:C,2,FALSE),VLOOKUP(CONCATENATE(M12),[1]ARTRDCL!$A$1:$U$25000,2,FALSE))","v":"LASER BYSTRONIC"},null,null,null,null,"PANO-MDPX",null,null,null,"PP",{"$f":"IF(Tableau3[[#This Row],[Catégorie pièce]]=\"Opérations\",$M$5/100,VLOOKUP(CONCATENATE(Tableau3[[#This Row],[Article produit/ Poste de charge]]),[1]ARTRDCL!$A$1:$U$65536,15,FALSE))","v":0.39360799999999996},0,{"$f":"ROUNDDOWN(IF($AO12= TRUE,$AM12,$AL12),0)","v":0},{"$f":"Z12*2/25","v":0},null,null,null,null,null,null,null,null,null,null,{"$f":"SUM(AN12:AS12)","v":0},{"$f":"IFERROR(VLOOKUP(CONCATENATE(AC12),Tôles!A:W,10,FALSE)/AA12*(IF(AY12=TRUE,BOM!B12,Tableau3[[#This Row],[surface de la tôle (m²)]])),0)","v":0},{"$f":"IF(AY12=TRUE,Paramètres!$B$13/AX12,0)","v":0},{"$f":"IF(AG12= \"Oui\",$BA12,BB12)","v":0},{"$f":"IF(AI12>0, (40/AX12 +0.4*AI12)*Paramètres!$B$2/100,0)","v":0},{"$f":"IF(AJ12>0,(0.15/$AX12+$AJ12)*Paramètres!$B$2/100,0)","v":0},{"$f":"IF(AK12=\"Oui\",(13/AX12 +AZ12)*Paramètres!$B$2/100,0)","v":0},{"$f":"IFERROR(VLOOKUP(CONCATENATE(AC12),Tôles!A:W,9,FALSE),0)","v":0},{"$f":"AE12/1000*AF12/1000","v":0},{"$f":"IFERROR(AT12/AU12/Paramètres!$B$9,0)","v":0},{"$f":"IFERROR(Paramètres!$B$8/Tableau3[[#This Row],[Surface de la pièce (m²)]]/Paramètres!$B$9,0)","v":0},{"$f":"IF(AB12>0,AB12,AA12)","v":0},{"$f":"AND(IF(AV12>50,TRUE,FALSE),AL12<>\"Oui\")","v":false},{"$f":"MAX(AE12,AF12)/1000 + 0.5","v":0.5},{"$f":"IF(OR(ISERROR((5/$AN12 +$X12*0.08*$T12+ ($U12+$V12) * 0.001)*Paramètres!$B$2/100),AD12 = \"\"),0,(5/$AN12 +$X12*0.08*$T12+ ($U12+$V12) * 0.001)*Paramètres!$B$2/100)","v":0},{"$f":"IF(OR(ISERROR((10/$AN12+$X12*0.007 + ($U12+$V12) * 0.0005)*Paramètres!$B$2/100),AD12= \"\"),0,(10/$AN12+$X12*0.007 + ($U12+$V12) * 0.0005)*Paramètres!$B$2/100)","v":0},1]
[null,null,1,1,3,null,null,{"$f":"SUBSTITUTE(TRIM(CONCATENATE(Tableau3[[#This Row],[Niveau 1]],\" \",Tableau3[[#This Row],[Niveau 2]],\" \",Tableau3[[#This Row],[Niveau 3]],\" \",Tableau3[[#This Row],[Niveau 4]],\" \",Tableau3[[#This Row],[Niveau 5]])),\" \",\".\")","v":"1.1.3"},{"$f":"IF(COUNTBLANK(Tableau3[[#This Row],[Niveau 1]:[Niveau 5]])=4,\"0\",LEFT(Tableau3[[#This Row],[Niveau]],(LEN(Tableau3[[#This Row],[Niveau]])-LEN(OFFSET(Tableau3[[#This Row],[Niveau 5]],0,(-COUNTBLANK(Tableau3[[#This Row],[Niveau 1]:[Niveau 5]]))))-1)))","v":"1.1"},null,15,null,22630,"Opérations",{"$f":"IF(Tableau3[[#This Row],[Catégorie pièce]]=\"Opérations\",VLOOKUP(M13,'Poste de charge'!A:C,2,FALSE),VLOOKUP(CONCATENATE(M13),[1]ARTRDCL!$A$1:$U$25000,2,FALSE))","v":"PLIEUSES CN 170T"},null,null,null,null,{"$f":"IF(N13=\"Nouveau\",MID(Tableau3[[#This Row],[Article produit/ Poste de charge]],2,15),\"\")","v":""},null,null,null,"PP",{"$f":"IF(Tableau3[[#This Row],[Catégorie pièce]]=\"Opérations\",$M$5/100,VLOOKUP(CONCATENATE(Tableau3[[#This Row],[Article produit/ Poste de charge]]),[1]ARTRDCL!$A$1:$U$65536,15,FALSE))","v":0.39360799999999996},0,{"$f":"ROUNDDOWN(IF($AO13= TRUE,$AM13,$AL13),0)","v":0},{"$f":"Z13*2/25","v":0},null,null,null,null,null,null,null,null,null,null,{"$f":"SUM(AN13:AS13)","v":0},{"$f":"IFERROR(VLOOKUP(CONCATENATE(AC13),Tôles!A:W,10,FALSE)/AA13*(IF(AY13=TRUE,BOM!B13,Tableau3[[#This Row],[surface de la tôle (m²)]])),0)","v":0},{"$f":"IF(AY13=TRUE,Paramètres!$B$13/AX13,0)","v":0},{"$f":"IF(AG13= \"Oui\",$BA13,BB13)","v":0},{"$f":"IF(AI13>0, (40/AX13 +0.4*AI13)*Paramètres!$B$2/100,0)","v":0},{"$f":"IF(AJ13>0,(0.15/$AX13+$AJ13)*Paramètres!$B$2/100,0)","v":0},{"$f":"IF(AK13=\"Oui\",(13/AX13 +AZ13)*Paramètres!$B$2/100,0)","v":0},{"$f":"IFERROR(VLOOKUP(CONCATENATE(AC13),Tôles!A:W,9,FALSE),0)","v":0},{"$f":"AE13/1000*AF13/1000","v":0},{"$f":"IFERROR(AT13/AU13/Paramètres!$B$9,0)","v":0},{"$f":"IFERROR(Paramètres!$B$8/Tableau3[[#This Row],[Surface de la pièce (m²)]]/Paramètres!$B$9,0)","v":0},{"$f":"IF(AB13>0,AB13,AA13)","v":0},{"$f":"AND(IF(AV13>50,TRUE,FALSE),AL13<>\"Oui\")","v":false},{"$f":"MAX(AE13,AF13)/1000 + 0.5","v":0.5},{"$f":"IF(OR(ISERROR((5/$AN13 +$X13*0.08*$T13+ ($U13+$V13) * 0.001)*Paramètres!$B$2/100),AD13 = \"\"),0,(5/$AN13 +$X13*0.08*$T13+ ($U13+$V13) * 0.001)*Paramètres!$B$2/100)","v":0},{"$f":"IF(OR(ISERROR((10/$AN13+$X13*0.007 + ($U13+$V13) * 0.0005)*Paramètres!$B$2/100),AD13= \"\"),0,(10/$AN13+$X13*0.007 + ($U13+$V13) * 0.0005)*Paramètres!$B$2/100)","v":0},1]
[null,null,1,2,null,null,null,{"$f":"SUBSTITUTE(TRIM(CONCATENATE(Tableau3[[#This Row],[Niveau 1]],\" \",Tableau3[[#This Row],[Niveau 2]],\" \",Tableau3[[#This Row],[Niveau 3]],\" \",Tableau3[[#This Row],[Niveau 4]],\" \",Tableau3[[#This Row],[Niveau 5]])),\" \",\".\")","v":"1.2"},{"$f":"IF(COUNTBLANK(Tableau3[[#This Row],[Niveau 1]:[Niveau 5]])=4,\"0\",LEFT(Tableau3[[#This Row],[Niveau]],(LEN(Tableau3[[#This Row],[Niveau]])-LEN(OFFSET(Tableau3[[#This Row],[Niveau 5]],0,(-COUNTBLANK(Tableau3[[#This Row],[Niveau 1]:[Niveau 5]]))))-1)))","v":"1"},25,100,null,84045007,"Nouveau",{"$f":"IF(Tableau3[[#This Row],[Catégorie pièce]]=\"Opérations\",VLOOKUP(M14,'Poste de charge'!A:C,2,FALSE),VLOOKUP(CONCATENATE(M14),[1]ARTRDCL!$A$1:$U$25000,2,FALSE))","v":"FONCET MOBILE LISSE DRT"},"MODEL04Q","PI",10,20,"SP","N","PL",1,"Assemblage",{"$f":"IF(Tableau3[[#This Row],[Catégorie pièce]]=\"Opérations\",$M$5/100,VLOOKUP(CONCATENATE(Tableau3[[#This Row],[Article produit/ Poste de charge]]),[1]ARTRDCL!$A$1:$U$65536,15,FALSE))","v":19.690999999999999},0,null,null,null,null,null,null,null,null,null,null,null,null,0,{"$f":"IFERROR(VLOOKUP(CONCATENATE(AC14),Tôles!A:W,10,FALSE)/AA14*(IF(AY14=TRUE,BOM!B14,Tableau3[[#This Row],[surface de la tôle (m²)]])),0)","v":0},{"$f":"IF(AY14=TRUE,Paramètres!$B$13/AX14,0)","v":0},0,{"$f":"IF(AI14>0, (40/AX14 +0.4*AI14)*Paramètres!$B$2/100,0)","v":0},{"$f":"IF(AJ14>0,(0.15/$AX14+$AJ14)*Paramètres!$B$2/100,0)","v":0},{"$f":"IF(AK14=\"Oui\",(13/AX14 +AZ14)*Paramètres!$B$2/100,0)","v":0},{"$f":"IFERROR(VLOOKUP(CONCATENATE(AC14),Tôles!A:W,9,FALSE),0)","v":0},0,{"$f":"IFERROR(AT14/AU14/Paramètres!$B$9,0)","v":0},{"$f":"IFERROR(Paramètres!$B$8/Tableau3[[#This Row],[Surface de la pièce (m²)]]/Paramètres!$B$9,0)","v":0},0,false,0.5,{"$f":"IF(OR(ISERROR((5/$AN14 +$X14*0.08*$T14+ ($U14+$V14) * 0.001)*Paramètres!$B$2/100),AD14 = \"\"),0,(5/$AN14 +$X14*0.08*$T14+ ($U14+$V14) * 0.001)*Paramètres!$B$2/100)","v":0},{"$f":"IF(OR(ISERROR((10/$AN14+$X14*0.007 + ($U14+$V14) * 0.0005)*Paramètres!$B$2/100),AD14= \"\"),0,(10/$AN14+$X14*0.007 + ($U14+$V14) * 0.0005)*Paramètres!$B$2/100)","v":0},2,3]
[null,null,1,2,1,null,null,{"$f":"SUBSTITUTE(TRIM(CONCATENATE(Tableau3[[#This Row],[Niveau 1]],\" \",Tableau3[[#This Row],[Niveau 2]],\" \",Tableau3[[#This Row],[Niveau 3]],\" \",Tableau3[[#This Row],[Niveau 4]],\" \",Tableau3[[#This Row],[Niveau 5]])),\" \",\".\")","v":"1.2.1"},{"$f":"IF(COUNTBLANK(Tableau3[[#This Row],[Niveau 1]:[Niveau 5]])=4,\"0\",LEFT(Tableau3[[#This Row],[Niveau]],(LEN(Tableau3[[#This Row],[Niveau]])-LEN(OFFSET(Tableau3[[#This Row],[Niveau 5]],0,(-COUNTBLANK(Tableau3[[#This Row],[Niveau 1]:[Niveau 5]]))))-1)))","v":"1.2"},5,10,null,11110021,"Composants",{"$f":"IF(Tableau3[[#This Row],[Catégorie pièce]]=\"Opérations\",VLOOKUP(M15,'Poste de charge'!A:C,2,FALSE),VLOOKUP(CONCATENATE(M15),[1]ARTRDCL!$A$1:$U$25000,2,FALSE))","v":"TOLE TC 1250X2500X10/10"},null,null,null,null,{"$f":"IF(N15=\"Nouveau\",MID(Tableau3[[#This Row],[Article produit/ Poste de charge]],2,15),\"\")","v":""},null,null,null,"Achetée",{"$f":"IF(Tableau3[[#This Row],[Catégorie pièce]]=\"Opérations\",$M$5/100,VLOOKUP(CONCATENATE(Tableau3[[#This Row],[Article produit/ Poste de charge]]),[1]ARTRDCL!$A$1:$U$65536,15,FALSE))","v":21.222000000000001},0,null,null,null,null,null,null,null,null,null,null,null,null,0,{"$f":"IFERROR(VLOOKUP(CONCATENATE(AC15),Tôles!A:W,10,FALSE)/AA15*(IF(AY15=TRUE,BOM!B15,Tableau3[[#This Row],[surface de la tôle (m²)]])),0)","v":0},{"$f":"IF(AY15=TRUE,Paramètres!$B$13/AX15,0)","v":0},0,{"$f":"IF(AI15>0, (40/AX15 +0.4*AI15)*Paramètres!$B$2/100,0)","v":0},{"$f":"IF(AJ15>0,(0.15/$AX15+$AJ15)*Paramètres!$B$2/100,0)","v":0},{"$f":"IF(AK15=\"Oui\",(13/AX15 +AZ15)*Paramètres!$B$2/100,0)","v":0},{"$f":"IFERROR(VLOOKUP(CONCATENATE(AC15),Tôles!A:W,9,FALSE),0)","v":0},0,{"$f":"IFERROR(AT15/AU15/Paramètres!$B$9,0)","v":0},{"$f":"IFERROR(Paramètres!$B$8/Tableau3[[#This Row],[Surface de la pièce (m²)]]/Paramètres!$B$9,0)","v":0},0,false,0.5,{"$f":"IF(OR(ISERROR((5/$AN15 +$X15*0.08*$T15+ ($U15+$V15) * 0.001)*Paramètres!$B$2/100),AD15 = \"\"),0,(5/$AN15 +$X15*0.08*$T15+ ($U15+$V15) * 0.001)*Paramètres!$B$2/100)","v":0},{"$f":"IF(OR(ISERROR((10/$AN15+$X15*0.007 + ($U15+$V15) * 0.0005)*Paramètres!$B$2/100),AD15= \"\"),0,(10/$AN15+$X15*0.007 + ($U15+$V15) * 0.0005)*Paramètres!$B$2/100)","v":0},1]
[null,null,1,2,2,null,null,{"$f":"SUBSTITUTE(TRIM(CONCATENATE(Tableau3[[#This Row],[Niveau 1]],\" \",Tableau3[[#This Row],[Niveau 2]],\" \",Tableau3[[#This Row],[Niveau 3]],\" \",Tableau3[[#This Row],[Niveau 4]],\" \",Tableau3[[#This Row],[Niveau 5]])),\" \",\".\")","v":"1.2.2"},{"$f":"IF(COUNTBLANK(Tableau3[[#This Row],[Niveau 1]:[Niveau 5]])=4,\"0\",LEFT(Tableau3[[#This Row],[Niveau]],(LEN(Tableau3[[#This Row],[Niveau]])-LEN(OFFSET(Tableau3[[#This Row],[Niveau 5]],0,(-COUNTBLANK(Tableau3[[#This Row],[Niveau 1]:[Niveau 5]]))))-1)))","v":"1.2"},null,10,null,22520,"Opérations",{"$f":"IF(Tableau3[[#This Row],[Catégorie pièce]]=\"Opérations\",VLOOKUP(M16,'Poste de charge'!A:C,2,FALSE),VLOOKUP(CONCATENATE(M16),[1]ARTRDCL!$A$1:$U$25000,2,FALSE))","v":"LASER BYSTRONIC"},null,null,null,null,{"$f":"IF(N16=\"Nouveau\",MID(Tableau3[[#This Row],[Article produit/ Poste de charge]],2,15),\"\")","v":""},null,null,null,"PP",{"$f":"IF(Tableau3[[#This Row],[Catégorie pièce]]=\"Opérations\",$M$5/100,VLOOKUP(CONCATENATE(Tableau3[[#This Row],[Article produit/ Poste de charge]]),[1]ARTRDCL!$A$1:$U$65536,15,FALSE))","v":0.39360799999999996},0,null,null,null,null,null,null,null,null,null,null,null,null,0,{"$f":"IFERROR(VLOOKUP(CONCATENATE(AC16),Tôles!A:W,10,FALSE)/AA16*(IF(AY16=TRUE,BOM!B16,Tableau3[[#This Row],[surface de la tôle (m²)]])),0)","v":0},{"$f":"IF(AY16=TRUE,Paramètres!$B$13/AX16,0)","v":0},0,{"$f":"IF(AI16>0, (40/AX16 +0.4*AI16)*Paramètres!$B$2/100,0)","v":0},{"$f":"IF(AJ16>0,(0.15/$AX16+$AJ16)*Paramètres!$B$2/100,0)","v":0},{"$f":"IF(AK16=\"Oui\",(13/AX16 +AZ16)*Paramètres!$B$2/100,0)","v":0},{"$f":"IFERROR(VLOOKUP(CONCATENATE(AC16),Tôles!A:W,9,FALSE),0)","v":0},0,{"$f":"IFERROR(AT16/AU16/Paramètres!$B$9,0)","v":0},{"$f":"IFERROR(Paramètres!$B$8/Tableau3[[#This Row],[Surface de la pièce (m²)]]/Paramètres!$B$9,0)","v":0},0,false,0.5,{"$f":"IF(OR(ISERROR((5/$AN16 +$X16*0.08*$T16+ ($U16+$V16) * 0.001)*Paramètres!$B$2/100),AD16 = \"\"),0,(5/$AN16 +$X16*0.08*$T16+ ($U16+$V16) * 0.001)*Paramètres!$B$2/100)","v":0},{"$f":"IF(OR(ISERROR((10/$AN16+$X16*0.007 + ($U16+$V16) * 0.0005)*Paramètres!$B$2/100),AD16= \"\"),0,(10/$AN16+$X16*0.007 + ($U16+$V16) * 0.0005)*Paramètres!$B$2/100)","v":0},1]
[null,null,1,2,3,null,null,{"$f":"SUBSTITUTE(TRIM(CONCATENATE(Tableau3[[#This Row],[Niveau 1]],\" \",Tableau3[[#This Row],[Niveau 2]],\" \",Tableau3[[#This Row],[Niveau 3]],\" \",Tableau3[[#This Row],[Niveau 4]],\" \",Tableau3[[#This Row],[Niveau 5]])),\" \",\".\")","v":"1.2.3"},{"$f":"IF(COUNTBLANK(Tableau3[[#This Row],[Niveau 1]:[Niveau 5]])=4,\"0\",LEFT(Tableau3[[#This Row],[Niveau]],(LEN(Tableau3[[#This Row],[Niveau]])-LEN(OFFSET(Tableau3[[#This Row],[Niveau 5]],0,(-COUNTBLANK(Tableau3[[#This Row],[Niveau 1]:[Niveau 5]]))))-1)))","v":"1.2"},null,15,null,22630,"Opérations",{"$f":"IF(Tableau3[[#This Row],[Catégorie pièce]]=\"Opérations\",VLOOKUP(M17,'Poste de charge'!A:C,2,FALSE),VLOOKUP(CONCATENATE(M17),[1]ARTRDCL!$A$1:$U$25000,2,FALSE))","v":"PLIEUSES CN 170T"},null,null,null,null,{"$f":"IF(N17=\"Nouveau\",MID(Tableau3[[#This Row],[Article produit/ Poste de charge]],2,15),\"\")","v":""},null,null,null,"PP",{"$f":"IF(Tableau3[[#This Row],[Catégorie pièce]]=\"Opérations\",$M$5/100,VLOOKUP(CONCATENATE(Tableau3[[#This Row],[Article produit/ Poste de charge]]),[1]ARTRDCL!$A$1:$U$65536,15,FALSE))","v":0.39360799999999996},0,{"$f":"ROUNDDOWN(IF($AO17= TRUE,$AM17,$AL17),0)","v":0},{"$f":"Z17*2/25","v":0},null,null,null,null,null,null,null,null,null,null,{"$f":"SUM(AN17:AS17)","v":0},{"$f":"IFERROR(VLOOKUP(CONCATENATE(AC17),Tôles!A:W,10,FALSE)/AA17*(IF(AY17=TRUE,BOM!B17,Tableau3[[#This Row],[surface de la tôle (m²)]])),0)","v":0},{"$f":"IF(AY17=TRUE,Paramètres!$B$13/AX17,0)","v":0},{"$f":"IF(AG17= \"Oui\",$BA17,BB17)","v":0},{"$f":"IF(AI17>0, (40/AX17 +0.4*AI17)*Paramètres!$B$2/100,0)","v":0},{"$f":"IF(AJ17>0,(0.15/$AX17+$AJ17)*Paramètres!$B$2/100,0)","v":0},{"$f":"IF(AK17=\"Oui\",(13/AX17 +AZ17)*Paramètres!$B$2/100,0)","v":0},{"$f":"IFERROR(VLOOKUP(CONCATENATE(AC17),Tôles!A:W,9,FALSE),0)","v":0},{"$f":"AE17/1000*AF17/1000","v":0},{"$f":"IFERROR(AT17/AU17/Paramètres!$B$9,0)","v":0},{"$f":"IFERROR(Paramètres!$B$8/Tableau3[[#This Row],[Surface de la pièce (m²)]]/Paramètres!$B$9,0)","v":0},{"$f":"IF(AB17>0,AB17,AA17)","v":0},{"$f":"AND(IF(AV17>50,TRUE,FALSE),AL17<>\"Oui\")","v":false},{"$f":"MAX(AE17,AF17)/1000 + 0.5","v":0.5},{"$f":"IF(OR(ISERROR((5/$AN17 +$X17*0.08*$T17+ ($U17+$V17) * 0.001)*Paramètres!$B$2/100),AD17 = \"\"),0,(5/$AN17 +$X17*0.08*$T17+ ($U17+$V17) * 0.001)*Paramètres!$B$2/100)","v":0},{"$f":"IF(OR(ISERROR((10/$AN17+$X17*0.007 + ($U17+$V17) * 0.0005)*Paramètres!$B$2/100),AD17= \"\"),0,(10/$AN17+$X17*0.007 + ($U17+$V17) * 0.0005)*Paramètres!$B$2/100)","v":0},1]
[null,null,1,3,null,null,null,{"$f":"SUBSTITUTE(TRIM(CONCATENATE(Tableau3[[#This Row],[Niveau 1]],\" \",Tableau3[[#This Row],[Niveau 2]],\" \",Tableau3[[#This Row],[Niveau 3]],\" \",Tableau3[[#This Row],[Niveau 4]],\" \",Tableau3[[#This Row],[Niveau 5]])),\" \",\".\")","v":"1.3"},{"$f":"IF(COUNTBLANK(Tableau3[[#This Row],[Niveau 1]:[Niveau 5]])=4,\"0\",LEFT(Tableau3[[#This Row],[Niveau]],(LEN(Tableau3[[#This Row],[Niveau]])-LEN(OFFSET(Tableau3[[#This Row],[Niveau 5]],0,(-COUNTBLANK(Tableau3[[#This Row],[Niveau 1]:[Niveau 5]]))))-1)))","v":"1"},null,100,null,26200,"Opérations",{"$f":"IF(Tableau3[[#This Row],[Catégorie pièce]]=\"Opérations\",VLOOKUP(M18,'Poste de charge'!A:C,2,FALSE),VLOOKUP(CONCATENATE(M18),[1]ARTRDCL!$A$1:$U$25000,2,FALSE))","v":"ASSEMBLAGE ESPACE 50C"},null,null,null,null,{"$f":"IF(N18=\"Nouveau\",MID(Tableau3[[#This Row],[Article produit/ Poste de charge]],2,15),\"\")","v":""},null,null,null,"Temps",{"$f":"IF(Tableau3[[#This Row],[Catégorie pièce]]=\"Opérations\",$M$5/100,VLOOKUP(CONCATENATE(Tableau3[[#This Row],[Article produit/ Poste de charge]]),[1]ARTRDCL!$A$1:$U$65536,15,FALSE))","v":0.39360799999999996},0,null,null,null,null,null,null,null,null,null,null,null,null,0,{"$f":"IFERROR(VLOOKUP(CONCATENATE(AC18),Tôles!A:W,10,FALSE)/AA18*(IF(AY18=TRUE,BOM!B18,Tableau3[[#This Row],[surface de la tôle (m²)]])),0)","v":0},{"$f":"IF(AY18=TRUE,Paramètres!$B$13/AX18,0)","v":0},0,{"$f":"IF(AI18>0, (40/AX18 +0.4*AI18)*Paramètres!$B$2/100,0)","v":0},{"$f":"IF(AJ18>0,(0.15/$AX18+$AJ18)*Paramètres!$B$2/100,0)","v":0},{"$f":"IF(AK18=\"Oui\",(13/AX18 +AZ18)*Paramètres!$B$2/100,0)","v":0},{"$f":"IFERROR(VLOOKUP(CONCATENATE(AC18),Tôles!A:W,9,FALSE),0)","v":0},0,{"$f":"IFERROR(AT18/AU18/Paramètres!$B$9,0)","v":0},{"$f":"IFERROR(Paramètres!$B$8/Tableau3[[#This Row],[Surface de la pièce (m²)]]/Paramètres!$B$9,0)","v":0},0,false,0.5,{"$f":"IF(OR(ISERROR((5/$AN18 +$X18*0.08*$T18+ ($U18+$V18) * 0.001)*Paramètres!$B$2/100),AD18 = \"\"),0,(5/$AN18 +$X18*0.08*$T18+ ($U18+$V18) * 0.001)*Paramètres!$B$2/100)","v":0},{"$f":"IF(OR(ISERROR((10/$AN18+$X18*0.007 + ($U18+$V18) * 0.0005)*Paramètres!$B$2/100),AD18= \"\"),0,(10/$AN18+$X18*0.007 + ($U18+$V18) * 0.0005)*Paramètres!$B$2/100)","v":0},50,50]
[null,null,1,4,null,null,null,{"$f":"SUBSTITUTE(TRIM(CONCATENATE(Tableau3[[#This Row],[Niveau 1]],\" \",Tableau3[[#This Row],[Niveau 2]],\" \",Tableau3[[#This Row],[Niveau 3]],\" \",Tableau3[[#This Row],[Niveau 4]],\" \",Tableau3[[#This Row],[Niveau 5]])),\" \",\".\")","v":"1.4"},{"$f":"IF(COUNTBLANK(Tableau3[[#This Row],[Niveau 1]:[Niveau 5]])=4,\"0\",LEFT(Tableau3[[#This Row],[Niveau]],(LEN(Tableau3[[#This Row],[Niveau]])-LEN(OFFSET(Tableau3[[#This Row],[Niveau 5]],0,(-COUNTBLANK(Tableau3[[#This Row],[Niveau 1]:[Niveau 5]]))))-1)))","v":"1"},null,110,null,27540,"Opérations",{"$f":"IF(Tableau3[[#This Row],[Catégorie pièce]]=\"Opérations\",VLOOKUP(M19,'Poste de charge'!A:C,2,FALSE),VLOOKUP(CONCATENATE(M19),[1]ARTRDCL!$A$1:$U$25000,2,FALSE))","v":"CHAINE PEINTURE POUDRE"},null,null,null,null,{"$f":"IF(N19=\"Nouveau\",MID(Tableau3[[#This Row],[Article produit/ Poste de charge]],2,15),\"\")","v":""},null,null,null,"Temps",{"$f":"IF(Tableau3[[#This Row],[Catégorie pièce]]=\"Opérations\",$M$5/100,VLOOKUP(CONCATENATE(Tableau3[[#This Row],[Article produit/ Poste de charge]]),[1]ARTRDCL!$A$1:$U$65536,15,FALSE))","v":0.39360799999999996},0,null,null,null,null,null,null,null,null,null,null,null,null,{"$f":"SUM(AN19:AS19)","v":0},{"$f":"IFERROR(VLOOKUP(CONCATENATE(AC19),Tôles!A:W,10,FALSE)/AA19*(IF(AY19=TRUE,BOM!B19,Tableau3[[#This Row],[surface de la tôle (m²)]])),0)","v":0},{"$f":"IF(AY19=TRUE,Paramètres!$B$13/AX19,0)","v":0},{"$f":"IF(AG19= \"Oui\",$BA19,BB19)","v":0},{"$f":"IF(AI19>0, (40/AX19 +0.4*AI19)*Paramètres!$B$2/100,0)","v":0},{"$f":"IF(AJ19>0,(0.15/$AX19+$AJ19)*Paramètres!$B$2/100,0)","v":0},{"$f":"IF(AK19=\"Oui\",(13/AX19 +AZ19)*Paramètres!$B$2/100,0)","v":0},{"$f":"IFERROR(VLOOKUP(CONCATENATE(AC19),Tôles!A:W,9,FALSE),0)","v":0},{"$f":"AE19/1000*AF19/1000","v":0},{"$f":"IFERROR(AT19/AU19/Paramètres!$B$9,0)","v":0},{"$f":"IFERROR(Paramètres!$B$8/Tableau3[[#This Row],[Surface de la pièce (m²)]]/Paramètres!$B$9,0)","v":0},{"$f":"IF(AB19>0,AB19,AA19)","v":0},{"$f":"AND(IF(AV19>50,TRUE,FALSE),AL19<>\"Oui\")","v":false},{"$f":"MAX(AE19,AF19)/1000 + 0.5","v":0.5},{"$f":"IF(OR(ISERROR((5/$AN19 +$X19*0.08*$T19+ ($U19+$V19) * 0.001)*Paramètres!$B$2/100),AD19 = \"\"),0,(5/$AN19 +$X19*0.08*$T19+ ($U19+$V19) * 0.001)*Paramètres!$B$2/100)","v":0},{"$f":"IF(OR(ISERROR((10/$AN19+$X19*0.007 + ($U19+$V19) * 0.0005)*Paramètres!$B$2/100),AD19= \"\"),0,(10/$AN19+$X19*0.007 + ($U19+$V19) * 0.0005)*Paramètres!$B$2/100)","v":0},50,50]
[null,"P/C",null,null,null,null,null,{"$f":"SUBSTITUTE(TRIM(CONCATENATE(Tableau3[[#This Row],[Niveau 1]],\" \",Tableau3[[#This Row],[Niveau 2]],\" \",Tableau3[[#This Row],[Niveau 3]],\" \",Tableau3[[#This Row],[Niveau 4]],\" \",Tableau3[[#This Row],[Niveau 5]])),\" \",\".\")","v":""},{"$f":"IF(COUNTBLANK(Tableau3[[#This Row],[Niveau 1]:[Niveau 5]])=4,\"0\",LEFT(Tableau3[[#This Row],[Niveau]],(LEN(Tableau3[[#This Row],[Niveau]])-LEN(OFFSET(Tableau3[[#This Row],[Niveau 5]],0,(-COUNTBLANK(Tableau3[[#This Row],[Niveau 1]:[Niveau 5]]))))-1)))","v":{"$error":"#VALUE!"}},null,null,null,null,null,{"$f":"IF(Tableau3[[#This Row],[Catégorie pièce]]=\"Opérations\",VLOOKUP(M20,'Poste de charge'!A:C,2,FALSE),VLOOKUP(CONCATENATE(M20),[1]ARTRDCL!$A$1:$U$25000,2,FALSE))","v":{"$error":"#N/A"}},null,null,null,null,{"$f":"IF(N20=\"Nouveau\",MID(Tableau3[[#This Row],[Article produit/ Poste de charge]],2,15),\"\")","v":""},null,null,null,null,{"$f":"IF(Tableau3[[#This Row],[Catégorie pièce]]=\"Opérations\",$M$5/100,VLOOKUP(CONCATENATE(Tableau3[[#This Row],[Article produit/ Poste de charge]]),[1]ARTRDCL!$A$1:$U$65536,15,FALSE))","v":{"$error":"#N/A"}},null,{"$f":"ROUNDDOWN(IF($AO20= TRUE,$AM20,$AL20),0)","v":0},{"$f":"Z20*2/25","v":0},null,null,null,null,null,null,null,null,null,null,{"$f":"SUM(AN20:AS20)","v":0},{"$f":"IFERROR(VLOOKUP(CONCATENATE(AC20),Tôles!A:W,10,FALSE)/AA20*(IF(AY20=TRUE,BOM!B20,Tableau3[[#This Row],[surface de la tôle (m²)]])),0)","v":0},{"$f":"IF(AY20=TRUE,Paramètres!$B$13/AX20,0)","v":0},{"$f":"IF(AG20= \"Oui\",$BA20,BB20)","v":0},{"$f":"IF(AI20>0, (40/AX20 +0.4*AI20)*Paramètres!$B$2/100,0)","v":0},{"$f":"IF(AJ20>0,(0.15/$AX20+$AJ20)*Paramètres!$B$2/100,0)","v":0},{"$f":"IF(AK20=\"Oui\",(13/AX20 +AZ20)*Paramètres!$B$2/100,0)","v":0},{"$f":"IFERROR(VLOOKUP(CONCATENATE(AC20),Tôles!A:W,9,FALSE),0)","v":0},{"$f":"AE20/1000*AF20/1000","v":0},{"$f":"IFERROR(AT20/AU20/Paramètres!$B$9,0)","v":0},{"$f":"IFERROR(Paramètres!$B$8/Tableau3[[#This Row],[Surface de la pièce (m²)]]/Paramètres!$B$9,0)","v":0},{"$f":"IF(AB20>0,AB20,AA20)","v":0},{"$f":"AND(IF(AV20>50,TRUE,FALSE),AL20<>\"Oui\")","v":false},{"$f":"MAX(AE20,AF20)/1000 + 0.5","v":0.5},{"$f":"IF(OR(ISERROR((5/$AN20 +$X20*0.08*$T20+ ($U20+$V20) * 0.001)*Paramètres!$B$2/100),AD20 = \"\"),0,(5/$AN20 +$X20*0.08*$T20+ ($U20+$V20) * 0.001)*Paramètres!$B$2/100)","v":0},{"$f":"IF(OR(ISERROR((10/$AN20+$X20*0.007 + ($U20+$V20) * 0.0005)*Paramètres!$B$2/100),AD20= \"\"),0,(10/$AN20+$X20*0.007 + ($U20+$V20) * 0.0005)*Paramètres!$B$2/100)","v":0}]
[null,null,null,null,null,null,null,{"$f":"SUBSTITUTE(TRIM(CONCATENATE(Tableau3[[#This Row],[Niveau 1]],\" \",Tableau3[[#This Row],[Niveau 2]],\" \",Tableau3[[#This Row],[Niveau 3]],\" \",Tableau3[[#This Row],[Niveau 4]],\" \",Tableau3[[#This Row],[Niveau 5]])),\" \",\".\")","v":""},{"$f":"IF(COUNTBLANK(Tableau3[[#This Row],[Niveau 1]:[Niveau 5]])=4,\"0\",LEFT(Tableau3[[#This Row],[Niveau]],(LEN(Tableau3[[#This Row],[Niveau]])-LEN(OFFSET(Tableau3[[#This Row],[Niveau 5]],0,(-COUNTBLANK(Tableau3[[#This Row],[Niveau 1]:[Niveau 5]]))))-1)))","v":{"$error":"#VALUE!"}},null,null,null,null,null,{"$f":"IF(Tableau3[[#This Row],[Catégorie pièce]]=\"Opérations\",VLOOKUP(M21,'Poste de charge'!A:C,2,FALSE),VLOOKUP(CONCATENATE(M21),[1]ARTRDCL!$A$1:$U$25000,2,FALSE))","v":{"$error":"#N/A"}},null,null,null,null,{"$f":"IF(N21=\"Nouveau\",MID(Tableau3[[#This Row],[Article produit/ Poste de charge]],2,15),\"\")","v":""},null,null,null,null,{"$f":"IF(Tableau3[[#This Row],[Catégorie pièce]]=\"Opérations\",$M$5/100,VLOOKUP(CONCATENATE(Tableau3[[#This Row],[Article produit/ Poste de charge]]),[1]ARTRDCL!$A$1:$U$65536,15,FALSE))","v":{"$error":"#N/A"}},null,0,0,null,null,null,null,null,null,null,null,null,null,0,{"$f":"IFERROR(VLOOKUP(CONCATENATE(AC21),Tôles!A:W,10,FALSE)/AA21*(IF(AY21=TRUE,BOM!B21,Tableau3[[#This Row],[surface de la tôle (m²)]])),0)","v":0},{"$f":"IF(AY21=TRUE,Paramètres!$B$13/AX21,0)","v":0},0,{"$f":"IF(AI21>0, (40/AX21 +0.4*AI21)*Paramètres!$B$2/100,0)","v":0},{"$f":"IF(AJ21>0,(0.15/$AX21+$AJ21)*Paramètres!$B$2/100,0)","v":0},{"$f":"IF(AK21=\"Oui\",(13/AX21 +AZ21)*Paramètres!$B$2/100,0)","v":0},{"$f":"IFERROR(VLOOKUP(CONCATENATE(AC21),Tôles!A:W,9,FALSE),0)","v":0},0,{"$f":"IFERROR(AT21/AU21/Paramètres!$B$9,0)","v":0},{"$f":"IFERROR(Paramètres!$B$8/Tableau3[[#This Row],[Surface de la pièce (m²)]]/Paramètres!$B$9,0)","v":0},0,false,0.5,{"$f":"IF(OR(ISERROR((5/$AN21 +$X21*0.08*$T21+ ($U21+$V21) * 0.001)*Paramètres!$B$2/100),AD21 = \"\"),0,(5/$AN21 +$X21*0.08*$T21+ ($U21+$V21) * 0.001)*Paramètres!$B$2/100)","v":0},{"$f":"IF(OR(ISERROR((10/$AN21+$X21*0.007 + ($U21+$V21) * 0.0005)*Paramètres!$B$2/100),AD21= \"\"),0,(10/$AN21+$X21*0.007 + ($U21+$V21) * 0.0005)*Paramètres!$B$2/100)","v":0}]
[null,null,null,null,null,null,null,{"$f":"SUBSTITUTE(TRIM(CONCATENATE(Tableau3[[#This Row],[Niveau 1]],\" \",Tableau3[[#This Row],[Niveau 2]],\" \",Tableau3[[#This Row],[Niveau 3]],\" \",Tableau3[[#This Row],[Niveau 4]],\" \",Tableau3[[#This Row],[Niveau 5]])),\" \",\".\")","v":""},{"$f":"IF(COUNTBLANK(Tableau3[[#This Row],[Niveau 1]:[Niveau 5]])=4,\"0\",LEFT(Tableau3[[#This Row],[Niveau]],(LEN(Tableau3[[#This Row],[Niveau]])-LEN(OFFSET(Tableau3[[#This Row],[Niveau 5]],0,(-COUNTBLANK(Tableau3[[#This Row],[Niveau 1]:[Niveau 5]]))))-1)))","v":{"$error":"#VALUE!"}},null,null,null,null,null,{"$f":"IF(Tableau3[[#This Row],[Catégorie pièce]]=\"Opérations\",VLOOKUP(M22,'Poste de charge'!A:C,2,FALSE),VLOOKUP(CONCATENATE(M22),[1]ARTRDCL!$A$1:$U$25000,2,FALSE))","v":{"$error":"#N/A"}},null,null,null,null,{"$f":"IF(N22=\"Nouveau\",MID(Tableau3[[#This Row],[Article produit/ Poste de charge]],2,15),\"\")","v":""},null,null,null,null,{"$f":"IF(Tableau3[[#This Row],[Catégorie pièce]]=\"Opérations\",$M$5/100,VLOOKUP(CONCATENATE(Tableau3[[#This Row],[Article produit/ Poste de charge]]),[1]ARTRDCL!$A$1:$U$65536,15,FALSE))","v":{"$error":"#N/A"}},null,0,0,null,null,null,null,null,null,null,null,null,null,0,{"$f":"IFERROR(VLOOKUP(CONCATENATE(AC22),Tôles!A:W,10,FALSE)/AA22*(IF(AY22=TRUE,BOM!B22,Tableau3[[#This Row],[surface de la tôle (m²)]])),0)","v":0},{"$f":"IF(AY22=TRUE,Paramètres!$B$13/AX22,0)","v":0},0,{"$f":"IF(AI22>0, (40/AX22 +0.4*AI22)*Paramètres!$B$2/100,0)","v":0},{"$f":"IF(AJ22>0,(0.15/$AX22+$AJ22)*Paramètres!$B$2/100,0)","v":0},{"$f":"IF(AK22=\"Oui\",(13/AX22 +AZ22)*Paramètres!$B$2/100,0)","v":0},{"$f":"IFERROR(VLOOKUP(CONCATENATE(AC22),Tôles!A:W,9,FALSE),0)","v":0},0,{"$f":"IFERROR(AT22/AU22/Paramètres!$B$9,0)","v":0},{"$f":"IFERROR(Paramètres!$B$8/Tableau3[[#This Row],[Surface de la pièce (m²)]]/Paramètres!$B$9,0)","v":0},0,false,0.5,{"$f":"IF(OR(ISERROR((5/$AN22 +$X22*0.08*$T22+ ($U22+$V22) * 0.001)*Paramètres!$B$2/100),AD22 = \"\"),0,(5/$AN22 +$X22*0.08*$T22+ ($U22+$V22) * 0.001)*Paramètres!$B$2/100)","v":0},{"$f":"IF(OR(ISERROR((10/$AN22+$X22*0.007 + ($U22+$V22) * 0.0005)*Paramètres!$B$2/100),AD22= \"\"),0,(10/$AN22+$X22*0.007 + ($U22+$V22) * 0.0005)*Paramètres!$B$2/100)","v":0}]
[null,null,null,null,null,null,null,{"$f":"SUBSTITUTE(TRIM(CONCATENATE(Tableau3[[#This Row],[Niveau 1]],\" \",Tableau3[[#This Row],[Niveau 2]],\" \",Tableau3[[#This Row],[Niveau 3]],\" \",Tableau3[[#This Row],[Niveau 4]],\" \",Tableau3[[#This Row],[Niveau 5]])),\" \",\".\")","v":""},{"$f":"IF(COUNTBLANK(Tableau3[[#This Row],[Niveau 1]:[Niveau 5]])=4,\"0\",LEFT(Tableau3[[#This Row],[Niveau]],(LEN(Tableau3[[#This Row],[Niveau]])-LEN(OFFSET(Tableau3[[#This Row],[Niveau 5]],0,(-COUNTBLANK(Tableau3[[#This Row],[Niveau 1]:[Niveau 5]]))))-1)))","v":{"$error":"#VALUE!"}},null,null,null,null,null,{"$f":"IF(Tableau3[[#This Row],[Catégorie pièce]]=\"Opérations\",VLOOKUP(M23,'Poste de charge'!A:C,2,FALSE),VLOOKUP(CONCATENATE(M23),[1]ARTRDCL!$A$1:$U$25000,2,FALSE))","v":{"$error":"#N/A"}},null,null,null,null,{"$f":"IF(N23=\"Nouveau\",MID(Tableau3[[#This Row],[Article produit/ Poste de charge]],2,15),\"\")","v":""},null,null,null,null,{"$f":"IF(Tableau3[[#This Row],[Catégorie pièce]]=\"Opérations\",$M$5/100,VLOOKUP(CONCATENATE(Tableau3[[#This Row],[Article produit/ Poste de charge]]),[1]ARTRDCL!$A$1:$U$65536,15,FALSE))","v":{"$error":"#N/A"}},null,0,0,null,null,null,null,null,null,null,null,null,null,0,{"$f":"IFERROR(VLOOKUP(CONCATENATE(AC23),Tôles!A:W,10,FALSE)/AA23*(IF(AY23=TRUE,BOM!B23,Tableau3[[#This Row],[surface de la tôle (m²)]])),0)","v":0},{"$f":"IF(AY23=TRUE,Paramètres!$B$13/AX23,0)","v":0},0,{"$f":"IF(AI23>0, (40/AX23 +0.4*AI23)*Paramètres!$B$2/100,0)","v":0},{"$f":"IF(AJ23>0,(0.15/$AX23+$AJ23)*Paramètres!$B$2/100,0)","v":0},{"$f":"IF(AK23=\"Oui\",(13/AX23 +AZ23)*Paramètres!$B$2/100,0)","v":0},{"$f":"IFERROR(VLOOKUP(CONCATENATE(AC23),Tôles!A:W,9,FALSE),0)","v":0},0,{"$f":"IFERROR(AT23/AU23/Paramètres!$B$9,0)","v":0},{"$f":"IFERROR(Paramètres!$B$8/Tableau3[[#This Row],[Surface de la pièce (m²)]]/Paramètres!$B$9,0)","v":0},0,false,0.5,{"$f":"IF(OR(ISERROR((5/$AN23 +$X23*0.08*$T23+ ($U23+$V23) * 0.001)*Paramètres!$B$2/100),AD23 = \"\"),0,(5/$AN23 +$X23*0.08*$T23+ ($U23+$V23) * 0.001)*Paramètres!$B$2/100)","v":0},{"$f":"IF(OR(ISERROR((10/$AN23+$X23*0.007 + ($U23+$V23) * 0.0005)*Paramètres!$B$2/100),AD23= \"\"),0,(10/$AN23+$X23*0.007 + ($U23+$V23) * 0.0005)*Paramètres!$B$2/100)","v":0}]
[null,null,null,null,null,null,null,{"$f":"SUBSTITUTE(TRIM(CONCATENATE(Tableau3[[#This Row],[Niveau 1]],\" \",Tableau3[[#This Row],[Niveau 2]],\" \",Tableau3[[#This Row],[Niveau 3]],\" \",Tableau3[[#This Row],[Niveau 4]],\" \",Tableau3[[#This Row],[Niveau 5]])),\" \",\".\")","v":""},{"$f":"IF(COUNTBLANK(Tableau3[[#This Row],[Niveau 1]:[Niveau 5]])=4,\"0\",LEFT(Tableau3[[#This Row],[Niveau]],(LEN(Tableau3[[#This Row],[Niveau]])-LEN(OFFSET(Tableau3[[#This Row],[Niveau 5]],0,(-COUNTBLANK(Tableau3[[#This Row],[Niveau 1]:[Niveau 5]]))))-1)))","v":{"$error":"#VALUE!"}},null,null,null,null,null,{"$f":"IF(Tableau3[[#This Row],[Catégorie pièce]]=\"Opérations\",VLOOKUP(M24,'Poste de charge'!A:C,2,FALSE),VLOOKUP(CONCATENATE(M24),[1]ARTRDCL!$A$1:$U$25000,2,FALSE))","v":{"$error":"#N/A"}},null,null,null,null,{"$f":"IF(N24=\"Nouveau\",MID(Tableau3[[#This Row],[Article produit/ Poste de charge]],2,15),\"\")","v":""},null,null,null,null,{"$f":"IF(Tableau3[[#This Row],[Catégorie pièce]]=\"Opérations\",$M$5/100,VLOOKUP(CONCATENATE(Tableau3[[#This Row],[Article produit/ Poste de charge]]),[1]ARTRDCL!$A$1:$U$65536,15,FALSE))","v":{"$error":"#N/A"}},null,0,0,null,null,null,null,null,null,null,null,null,null,0,{"$f":"IFERROR(VLOOKUP(CONCATENATE(AC24),Tôles!A:W,10,FALSE)/AA24*(IF(AY24=TRUE,BOM!B24,Tableau3[[#This Row],[surface de la tôle (m²)]])),0)","v":0},{"$f":"IF(AY24=TRUE,Paramètres!$B$13/AX24,0)","v":0},0,{"$f":"IF(AI24>0, (40/AX24 +0.4*AI24)*Paramètres!$B$2/100,0)","v":0},{"$f":"IF(AJ24>0,(0.15/$AX24+$AJ24)*Paramètres!$B$2/100,0)","v":0},{"$f":"IF(AK24=\"Oui\",(13/AX24 +AZ24)*Paramètres!$B$2/100,0)","v":0},{"$f":"IFERROR(VLOOKUP(CONCATENATE(AC24),Tôles!A:W,9,FALSE),0)","v":0},0,{"$f":"IFERROR(AT24/AU24/Paramètres!$B$9,0)","v":0},{"$f":"IFERROR(Paramètres!$B$8/Tableau3[[#This Row],[Surface de la pièce (m²)]]/Paramètres!$B$9,0)","v":0},0,false,0.5,{"$f":"IF(OR(ISERROR((5/$AN24 +$X24*0.08*$T24+ ($U24+$V24) * 0.001)*Paramètres!$B$2/100),AD24 = \"\"),0,(5/$AN24 +$X24*0.08*$T24+ ($U24+$V24) * 0.001)*Paramètres!$B$2/100)","v":0},{"$f":"IF(OR(ISERROR((10/$AN24+$X24*0.007 + ($U24+$V24) * 0.0005)*Paramètres!$B$2/100),AD24= \"\"),0,(10/$AN24+$X24*0.007 + ($U24+$V24) * 0.0005)*Paramètres!$B$2/100)","v":0}]
[null,null,null,null,null,null,null,{"$f":"SUBSTITUTE(TRIM(CONCATENATE(Tableau3[[#This Row],[Niveau 1]],\" \",Tableau3[[#This Row],[Niveau 2]],\" \",Tableau3[[#This Row],[Niveau 3]],\" \",Tableau3[[#This Row],[Niveau 4]],\" \",Tableau3[[#This Row],[Niveau 5]])),\" \",\".\")","v":""},{"$f":"IF(COUNTBLANK(Tableau3[[#This Row],[Niveau 1]:[Niveau 5]])=4,\"0\",LEFT(Tableau3[[#This Row],[Niveau]],(LEN(Tableau3[[#This Row],[Niveau]])-LEN(OFFSET(Tableau3[[#This Row],[Niveau 5]],0,(-COUNTBLANK(Tableau3[[#This Row],[Niveau 1]:[Niveau 5]]))))-1)))","v":{"$error":"#VALUE!"}},null,null,null,null,null,{"$f":"IF(Tableau3[[#This Row],[Catégorie pièce]]=\"Opérations\",VLOOKUP(M25,'Poste de charge'!A:C,2,FALSE),VLOOKUP(CONCATENATE(M25),[1]ARTRDCL!$A$1:$U$25000,2,FALSE))","v":{"$error":"#N/A"}},null,null,null,null,{"$f":"IF(N25=\"Nouveau\",MID(Tableau3[[#This Row],[Article produit/ Poste de charge]],2,15),\"\")","v":""},null,null,null,null,{"$f":"IF(Tableau3[[#This Row],[Catégorie pièce]]=\"Opérations\",$M$5/100,VLOOKUP(CONCATENATE(Tableau3[[#This Row],[Article produit/ Poste de charge]]),[1]ARTRDCL!$A$1:$U$65536,15,FALSE))","v":{"$error":"#N/A"}},null,0,0,null,null,null,null,null,null,null,null,null,null,0,{"$f":"IFERROR(VLOOKUP(CONCATENATE(AC25),Tôles!A:W,10,FALSE)/AA25*(IF(AY25=TRUE,BOM!B25,Tableau3[[#This Row],[surface de la tôle (m²)]])),0)","v":0},{"$f":"IF(AY25=TRUE,Paramètres!$B$13/AX25,0)","v":0},0,{"$f":"IF(AI25>0, (40/AX25 +0.4*AI25)*Paramètres!$B$2/100,0)","v":0},{"$f":"IF(AJ25>0,(0.15/$AX25+$AJ25)*Paramètres!$B$2/100,0)","v":0},{"$f":"IF(AK25=\"Oui\",(13/AX25 +AZ25)*Paramètres!$B$2/100,0)","v":0},{"$f":"IFERROR(VLOOKUP(CONCATENATE(AC25),Tôles!A:W,9,FALSE),0)","v":0},0,{"$f":"IFERROR(AT25/AU25/Paramètres!$B$9,0)","v":0},{"$f":"IFERROR(Paramètres!$B$8/Tableau3[[#This Row],[Surface de la pièce (m²)]]/Paramètres!$B$9,0)","v":0},0,false,0.5,{"$f":"IF(OR(ISERROR((5/$AN25 +$X25*0.08*$T25+ ($U25+$V25) * 0.001)*Paramètres!$B$2/100),AD25 = \"\"),0,(5/$AN25 +$X25*0.08*$T25+ ($U25+$V25) * 0.001)*Paramètres!$B$2/100)","v":0},{"$f":"IF(OR(ISERROR((10/$AN25+$X25*0.007 + ($U25+$V25) * 0.0005)*Paramètres!$B$2/100),AD25= \"\"),0,(10/$AN25+$X25*0.007 + ($U25+$V25) * 0.0005)*Paramètres!$B$2/100)","v":0}]
[null,null,null,null,null,null,null,{"$f":"SUBSTITUTE(TRIM(CONCATENATE(Tableau3[[#This Row],[Niveau 1]],\" \",Tableau3[[#This Row],[Niveau 2]],\" \",Tableau3[[#This Row],[Niveau 3]],\" \",Tableau3[[#This Row],[Niveau 4]],\" \",Tableau3[[#This Row],[Niveau 5]])),\" \",\".\")","v":""},{"$f":"IF(COUNTBLANK(Tableau3[[#This Row],[Niveau 1]:[Niveau 5]])=4,\"0\",LEFT(Tableau3[[#This Row],[Niveau]],(LEN(Tableau3[[#This Row],[Niveau]])-LEN(OFFSET(Tableau3[[#This Row],[Niveau 5]],0,(-COUNTBLANK(Tableau3[[#This Row],[Niveau 1]:[Niveau 5]]))))-1)))","v":{"$error":"#VALUE!"}},null,null,null,null,null,{"$f":"IF(Tableau3[[#This Row],[Catégorie pièce]]=\"Opérations\",VLOOKUP(M26,'Poste de charge'!A:C,2,FALSE),VLOOKUP(CONCATENATE(M26),[1]ARTRDCL!$A$1:$U$25000,2,FALSE))","v":{"$error":"#N/A"}},null,null,null,null,{"$f":"IF(N26=\"Nouveau\",MID(Tableau3[[#This Row],[Article produit/ Poste de charge]],2,15),\"\")","v":""},null,null,null,null,{"$f":"IF(Tableau3[[#This Row],[Catégorie pièce]]=\"Opérations\",$M$5/100,VLOOKUP(CONCATENATE(Tableau3[[#This Row],[Article produit/ Poste de charge]]),[1]ARTRDCL!$A$1:$U$65536,15,FALSE))","v":{"$error":"#N/A"}},null,0,0,null,null,null,null,null,null,null,null,null,null,0,{"$f":"IFERROR(VLOOKUP(CONCATENATE(AC26),Tôles!A:W,10,FALSE)/AA26*(IF(AY26=TRUE,BOM!B26,Tableau3[[#This Row],[surface de la tôle (m²)]])),0)","v":0},{"$f":"IF(AY26=TRUE,Paramètres!$B$13/AX26,0)","v":0},0,{"$f":"IF(AI26>0, (40/AX26 +0.4*AI26)*Paramètres!$B$2/100,0)","v":0},{"$f":"IF(AJ26>0,(0.15/$AX26+$AJ26)*Paramètres!$B$2/100,0)","v":0},{"$f":"IF(AK26=\"Oui\",(13/AX26 +AZ26)*Paramètres!$B$2/100,0)","v":0},{"$f":"IFERROR(VLOOKUP(CONCATENATE(AC26),Tôles!A:W,9,FALSE),0)","v":0},0,{"$f":"IFERROR(AT26/AU26/Paramètres!$B$9,0)","v":0},{"$f":"IFERROR(Paramètres!$B$8/Tableau3[[#This Row],[Surface de la pièce (m²)]]/Paramètres!$B$9,0)","v":0},0,false,0.5,{"$f":"IF(OR(ISERROR((5/$AN26 +$X26*0.08*$T26+ ($U26+$V26) * 0.001)*Paramètres!$B$2/100),AD26 = \"\"),0,(5/$AN26 +$X26*0.08*$T26+ ($U26+$V26) * 0.001)*Paramètres!$B$2/100)","v":0},{"$f":"IF(OR(ISERROR((10/$AN26+$X26*0.007 + ($U26+$V26) * 0.0005)*Paramètres!$B$2/100),AD26= \"\"),0,(10/$AN26+$X26*0.007 + ($U26+$V26) * 0.0005)*Paramètres!$B$2/100)","v":0}]
[null,null,null,null,null,null,null,{"$f":"SUBSTITUTE(TRIM(CONCATENATE(Tableau3[[#This Row],[Niveau 1]],\" \",Tableau3[[#This Row],[Niveau 2]],\" \",Tableau3[[#This Row],[Niveau 3]],\" \",Tableau3[[#This Row],[Niveau 4]],\" \",Tableau3[[#This Row],[Niveau 5]])),\" \",\".\")","v":""},{"$f":"IF(COUNTBLANK(Tableau3[[#This Row],[Niveau 1]:[Niveau 5]])=4,\"0\",LEFT(Tableau3[[#This Row],[Niveau]],(LEN(Tableau3[[#This Row],[Niveau]])-LEN(OFFSET(Tableau3[[#This Row],[Niveau 5]],0,(-COUNTBLANK(Tableau3[[#This Row],[Niveau 1]:[Niveau 5]]))))-1)))","v":{"$error":"#VALUE!"}},null,null,null,null,null,{"$f":"IF(Tableau3[[#This Row],[Catégorie pièce]]=\"Opérations\",VLOOKUP(M27,'Poste de charge'!A:C,2,FALSE),VLOOKUP(CONCATENATE(M27),[1]ARTRDCL!$A$1:$U$25000,2,FALSE))","v":{"$error":"#N/A"}},null,null,null,null,{"$f":"IF(N27=\"Nouveau\",MID(Tableau3[[#This Row],[Article produit/ Poste de charge]],2,15),\"\")","v":""},null,null,null,null,{"$f":"IF(Tableau3[[#This Row],[Catégorie pièce]]=\"Opérations\",$M$5/100,VLOOKUP(CONCATENATE(Tableau3[[#This Row],[Article produit/ Poste de charge]]),[1]ARTRDCL!$A$1:$U$65536,15,FALSE))","v":{"$error":"#N/A"}},null,0,0,null,null,null,null,null,null,null,null,null,null,0,{"$f":"IFERROR(VLOOKUP(CONCATENATE(AC27),Tôles!A:W,10,FALSE)/AA27*(IF(AY27=TRUE,BOM!B27,Tableau3[[#This Row],[surface de la tôle (m²)]])),0)","v":0},{"$f":"IF(AY27=TRUE,Paramètres!$B$13/AX27,0)","v":0},0,{"$f":"IF(AI27>0, (40/AX27 +0.4*AI27)*Paramètres!$B$2/100,0)","v":0},{"$f":"IF(AJ27>0,(0.15/$AX27+$AJ27)*Paramètres!$B$2/100,0)","v":0},{"$f":"IF(AK27=\"Oui\",(13/AX27 +AZ27)*Paramètres!$B$2/100,0)","v":0},{"$f":"IFERROR(VLOOKUP(CONCATENATE(AC27),Tôles!A:W,9,FALSE),0)","v":0},0,{"$f":"IFERROR(AT27/AU27/Paramètres!$B$9,0)","v":0},{"$f":"IFERROR(Paramètres!$B$8/Tableau3[[#This Row],[Surface de la pièce (m²)]]/Paramètres!$B$9,0)","v":0},0,false,0.5,{"$f":"IF(OR(ISERROR((5/$AN27 +$X27*0.08*$T27+ ($U27+$V27) * 0.001)*Paramètres!$B$2/100),AD27 = \"\"),0,(5/$AN27 +$X27*0.08*$T27+ ($U27+$V27) * 0.001)*Paramètres!$B$2/100)","v":0},{"$f":"IF(OR(ISERROR((10/$AN27+$X27*0.007 + ($U27+$V27) * 0.0005)*Paramètres!$B$2/100),AD27= \"\"),0,(10/$AN27+$X27*0.007 + ($U27+$V27) * 0.0005)*Paramètres!$B$2/100)","v":0}]
[null,null,null,null,null,null,null,{"$f":"SUBSTITUTE(TRIM(CONCATENATE(Tableau3[[#This Row],[Niveau 1]],\" \",Tableau3[[#This Row],[Niveau 2]],\" \",Tableau3[[#This Row],[Niveau 3]],\" \",Tableau3[[#This Row],[Niveau 4]],\" \",Tableau3[[#This Row],[Niveau 5]])),\" \",\".\")","v":""},{"$f":"IF(COUNTBLANK(Tableau3[[#This Row],[Niveau 1]:[Niveau 5]])=4,\"0\",LEFT(Tableau3[[#This Row],[Niveau]],(LEN(Tableau3[[#This Row],[Niveau]])-LEN(OFFSET(Tableau3[[#This Row],[Niveau 5]],0,(-COUNTBLANK(Tableau3[[#This Row],[Niveau 1]:[Niveau 5]]))))-1)))","v":{"$error":"#VALUE!"}},null,null,null,null,null,{"$f":"IF(Tableau3[[#This Row],[Catégorie pièce]]=\"Opérations\",VLOOKUP(M28,'Poste de charge'!A:C,2,FALSE),VLOOKUP(CONCATENATE(M28),[1]ARTRDCL!$A$1:$U$25000,2,FALSE))","v":{"$error":"#N/A"}},null,null,null,null,{"$f":"IF(N28=\"Nouveau\",MID(Tableau3[[#This Row],[Article produit/ Poste de charge]],2,15),\"\")","v":""},null,null,null,null,{"$f":"IF(Tableau3[[#This Row],[Catégorie pièce]]=\"Opérations\",$M$5/100,VLOOKUP(CONCATENATE(Tableau3[[#This Row],[Article produit/ Poste de charge]]),[1]ARTRDCL!$A$1:$U$65536,15,FALSE))","v":{"$error":"#N/A"}},null,0,0,null,null,null,null,null,null,null,null,null,null,0,{"$f":"IFERROR(VLOOKUP(CONCATENATE(AC28),Tôles!A:W,10,FALSE)/AA28*(IF(AY28=TRUE,BOM!B28,Tableau3[[#This Row],[surface de la tôle (m²)]])),0)","v":0},{"$f":"IF(AY28=TRUE,Paramètres!$B$13/AX28,0)","v":0},0,{"$f":"IF(AI28>0, (40/AX28 +0.4*AI28)*Paramètres!$B$2/100,0)","v":0},{"$f":"IF(AJ28>0,(0.15/$AX28+$AJ28)*Paramètres!$B$2/100,0)","v":0},{"$f":"IF(AK28=\"Oui\",(13/AX28 +AZ28)*Paramètres!$B$2/100,0)","v":0},{"$f":"IFERROR(VLOOKUP(CONCATENATE(AC28),Tôles!A:W,9,FALSE),0)","v":0},0,{"$f":"IFERROR(AT28/AU28/Paramètres!$B$9,0)","v":0},{"$f":"IFERROR(Paramètres!$B$8/Tableau3[[#This Row],[Surface de la pièce (m²)]]/Paramètres!$B$9,0)","v":0},0,false,0.5,{"$f":"IF(OR(ISERROR((5/$AN28 +$X28*0.08*$T28+ ($U28+$V28) * 0.001)*Paramètres!$B$2/100),AD28 = \"\"),0,(5/$AN28 +$X28*0.08*$T28+ ($U28+$V28) * 0.001)*Paramètres!$B$2/100)","v":0},{"$f":"IF(OR(ISERROR((10/$AN28+$X28*0.007 + ($U28+$V28) * 0.0005)*Paramètres!$B$2/100),AD28= \"\"),0,(10/$AN28+$X28*0.007 + ($U28+$V28) * 0.0005)*Paramètres!$B$2/100)","v":0}]
[null,null,null,null,null,null,null,{"$f":"SUBSTITUTE(TRIM(CONCATENATE(Tableau3[[#This Row],[Niveau 1]],\" \",Tableau3[[#This Row],[Niveau 2]],\" \",Tableau3[[#This Row],[Niveau 3]],\" \",Tableau3[[#This Row],[Niveau 4]],\" \",Tableau3[[#This Row],[Niveau 5]])),\" \",\".\")","v":""},{"$f":"IF(COUNTBLANK(Tableau3[[#This Row],[Niveau 1]:[Niveau 5]])=4,\"0\",LEFT(Tableau3[[#This Row],[Niveau]],(LEN(Tableau3[[#This Row],[Niveau]])-LEN(OFFSET(Tableau3[[#This Row],[Niveau 5]],0,(-COUNTBLANK(Tableau3[[#This Row],[Niveau 1]:[Niveau 5]]))))-1)))","v":{"$error":"#VALUE!"}},null,null,null,null,null,{"$f":"IF(Tableau3[[#This Row],[Catégorie pièce]]=\"Opérations\",VLOOKUP(M29,'Poste de charge'!A:C,2,FALSE),VLOOKUP(CONCATENATE(M29),[1]ARTRDCL!$A$1:$U$25000,2,FALSE))","v":{"$error":"#N/A"}},null,null,null,null,{"$f":"IF(N29=\"Nouveau\",MID(Tableau3[[#This Row],[Article produit/ Poste de charge]],2,15),\"\")","v":""},null,null,null,null,{"$f":"IF(Tableau3[[#This Row],[Catégorie pièce]]=\"Opérations\",$M$5/100,VLOOKUP(CONCATENATE(Tableau3[[#This Row],[Article produit/ Poste de charge]]),[1]ARTRDCL!$A$1:$U$65536,15,FALSE))","v":{"$error":"#N/A"}},null,0,0,null,null,null,null,null,null,null,null,null,null,0,{"$f":"IFERROR(VLOOKUP(CONCATENATE(AC29),Tôles!A:W,10,FALSE)/AA29*(IF(AY29=TRUE,BOM!B29,Tableau3[[#This Row],[surface de la tôle (m²)]])),0)","v":0},{"$f":"IF(AY29=TRUE,Paramètres!$B$13/AX29,0)","v":0},0,{"$f":"IF(AI29>0, (40/AX29 +0.4*AI29)*Paramètres!$B$2/100,0)","v":0},{"$f":"IF(AJ29>0,(0.15/$AX29+$AJ29)*Paramètres!$B$2/100,0)","v":0},{"$f":"IF(AK29=\"Oui\",(13/AX29 +AZ29)*Paramètres!$B$2/100,0)","v":0},{"$f":"IFERROR(VLOOKUP(CONCATENATE(AC29),Tôles!A:W,9,FALSE),0)","v":0},0,{"$f":"IFERROR(AT29/AU29/Paramètres!$B$9,0)","v":0},{"$f":"IFERROR(Paramètres!$B$8/Tableau3[[#This Row],[Surface de la pièce (m²)]]/Paramètres!$B$9,0)","v":0},0,false,0.5,{"$f":"IF(OR(ISERROR((5/$AN29 +$X29*0.08*$T29+ ($U29+$V29) * 0.001)*Paramètres!$B$2/100),AD29 = \"\"),0,(5/$AN29 +$X29*0.08*$T29+ ($U29+$V29) * 0.001)*Paramètres!$B$2/100)","v":0},{"$f":"IF(OR(ISERROR((10/$AN29+$X29*0.007 + ($U29+$V29) * 0.0005)*Paramètres!$B$2/100),AD29= \"\"),0,(10/$AN29+$X29*0.007 + ($U29+$V29) * 0.0005)*Paramètres!$B$2/100)","v":0}]
[null,"TRINGLERIE",null,null,null,null,null,{"$f":"SUBSTITUTE(TRIM(CONCATENATE(Tableau3[[#This Row],[Niveau 1]],\" \",Tableau3[[#This Row],[Niveau 2]],\" \",Tableau3[[#This Row],[Niveau 3]],\" \",Tableau3[[#This Row],[Niveau 4]],\" \",Tableau3[[#This Row],[Niveau 5]])),\" \",\".\")","v":""},{"$f":"IF(COUNTBLANK(Tableau3[[#This Row],[Niveau 1]:[Niveau 5]])=4,\"0\",LEFT(Tableau3[[#This Row],[Niveau]],(LEN(Tableau3[[#This Row],[Niveau]])-LEN(OFFSET(Tableau3[[#This Row],[Niveau 5]],0,(-COUNTBLANK(Tableau3[[#This Row],[Niveau 1]:[Niveau 5]]))))-1)))","v":{"$error":"#VALUE!"}},null,null,null,null,null,{"$f":"IF(Tableau3[[#This Row],[Catégorie pièce]]=\"Opérations\",VLOOKUP(M30,'Poste de charge'!A:C,2,FALSE),VLOOKUP(CONCATENATE(M30),[1]ARTRDCL!$A$1:$U$25000,2,FALSE))","v":{"$error":"#N/A"}},null,null,null,null,{"$f":"IF(N30=\"Nouveau\",MID(Tableau3[[#This Row],[Article produit/ Poste de charge]],2,15),\"\")","v":""},null,null,null,null,{"$f":"IF(Tableau3[[#This Row],[Catégorie pièce]]=\"Opérations\",$M$5/100,VLOOKUP(CONCATENATE(Tableau3[[#This Row],[Article produit/ Poste de charge]]),[1]ARTRDCL!$A$1:$U$65536,15,FALSE))","v":{"$error":"#N/A"}},null,0,0,null,null,null,null,null,null,null,null,null,null,0,{"$f":"IFERROR(VLOOKUP(CONCATENATE(AC30),Tôles!A:W,10,FALSE)/AA30*(IF(AY30=TRUE,BOM!B30,Tableau3[[#This Row],[surface de la tôle (m²)]])),0)","v":0},{"$f":"IF(AY30=TRUE,Paramètres!$B$13/AX30,0)","v":0},0,{"$f":"IF(AI30>0, (40/AX30 +0.4*AI30)*Paramètres!$B$2/100,0)","v":0},{"$f":"IF(AJ30>0,(0.15/$AX30+$AJ30)*Paramètres!$B$2/100,0)","v":0},{"$f":"IF(AK30=\"Oui\",(13/AX30 +AZ30)*Paramètres!$B$2/100,0)","v":0},{"$f":"IFERROR(VLOOKUP(CONCATENATE(AC30),Tôles!A:W,9,FALSE),0)","v":0},0,{"$f":"IFERROR(AT30/AU30/Paramètres!$B$9,0)","v":0},{"$f":"IFERROR(Paramètres!$B$8/Tableau3[[#This Row],[Surface de la pièce (m²)]]/Paramètres!$B$9,0)","v":0},0,false,0.5,{"$f":"IF(OR(ISERROR((5/$AN30 +$X30*0.08*$T30+ ($U30+$V30) * 0.001)*Paramètres!$B$2/100),AD30 = \"\"),0,(5/$AN30 +$X30*0.08*$T30+ ($U30+$V30) * 0.001)*Paramètres!$B$2/100)","v":0},{"$f":"IF(OR(ISERROR((10/$AN30+$X30*0.007 + ($U30+$V30) * 0.0005)*Paramètres!$B$2/100),AD30= \"\"),0,(10/$AN30+$X30*0.007 + ($U30+$V30) * 0.0005)*Paramètres!$B$2/100)","v":0}]
[null,null,null,null,null,null,null,{"$f":"SUBSTITUTE(TRIM(CONCATENATE(Tableau3[[#This Row],[Niveau 1]],\" \",Tableau3[[#This Row],[Niveau 2]],\" \",Tableau3[[#This Row],[Niveau 3]],\" \",Tableau3[[#This Row],[Niveau 4]],\" \",Tableau3[[#This Row],[Niveau 5]])),\" \",\".\")","v":""},{"$f":"IF(COUNTBLANK(Tableau3[[#This Row],[Niveau 1]:[Niveau 5]])=4,\"0\",LEFT(Tableau3[[#This Row],[Niveau]],(LEN(Tableau3[[#This Row],[Niveau]])-LEN(OFFSET(Tableau3[[#This Row],[Niveau 5]],0,(-COUNTBLANK(Tableau3[[#This Row],[Niveau 1]:[Niveau 5]]))))-1)))","v":{"$error":"#VALUE!"}},null,null,null,null,null,{"$f":"IF(Tableau3[[#This Row],[Catégorie pièce]]=\"Opérations\",VLOOKUP(M31,'Poste de charge'!A:C,2,FALSE),VLOOKUP(CONCATENATE(M31),[1]ARTRDCL!$A$1:$U$25000,2,FALSE))","v":{"$error":"#N/A"}},null,null,null,null,{"$f":"IF(N31=\"Nouveau\",MID(Tableau3[[#This Row],[Article produit/ Poste de charge]],2,15),\"\")","v":""},null,null,null,null,{"$f":"IF(Tableau3[[#This Row],[Catégorie pièce]]=\"Opérations\",$M$5/100,VLOOKUP(CONCATENATE(Tableau3[[#This Row],[Article produit/ Poste de charge]]),[1]ARTRDCL!$A$1:$U$65536,15,FALSE))","v":{"$error":"#N/A"}},null,0,0,null,null,null,null,null,null,null,null,null,null,0,{"$f":"IFERROR(VLOOKUP(CONCATENATE(AC31),Tôles!A:W,10,FALSE)/AA31*(IF(AY31=TRUE,BOM!B31,Tableau3[[#This Row],[surface de la tôle (m²)]])),0)","v":0},{"$f":"IF(AY31=TRUE,Paramètres!$B$13/AX31,0)","v":0},0,{"$f":"IF(AI31>0, (40/AX31 +0.4*AI31)*Paramètres!$B$2/100,0)","v":0},{"$f":"IF(AJ31>0,(0.15/$AX31+$AJ31)*Paramètres!$B$2/100,0)","v":0},{"$f":"IF(AK31=\"Oui\",(13/AX31 +AZ31)*Paramètres!$B$2/100,0)","v":0},{"$f":"IFERROR(VLOOKUP(CONCATENATE(AC31),Tôles!A:W,9,FALSE),0)","v":0},0,{"$f":"IFERROR(AT31/AU31/Paramètres!$B$9,0)","v":0},{"$f":"IFERROR(Paramètres!$B$8/Tableau3[[#This Row],[Surface de la pièce (m²)]]/Paramètres!$B$9,0)","v":0},0,false,0.5,{"$f":"IF(OR(ISERROR((5/$AN31 +$X31*0.08*$T31+ ($U31+$V31) * 0.001)*Paramètres!$B$2/100),AD31 = \"\"),0,(5/$AN31 +$X31*0.08*$T31+ ($U31+$V31) * 0.001)*Paramètres!$B$2/100)","v":0},{"$f":"IF(OR(ISERROR((10/$AN31+$X31*0.007 + ($U31+$V31) * 0.0005)*Paramètres!$B$2/100),AD31= \"\"),0,(10/$AN31+$X31*0.007 + ($U31+$V31) * 0.0005)*Paramètres!$B$2/100)","v":0}]
[null,null,null,null,null,null,null,{"$f":"SUBSTITUTE(TRIM(CONCATENATE(Tableau3[[#This Row],[Niveau 1]],\" \",Tableau3[[#This Row],[Niveau 2]],\" \",Tableau3[[#This Row],[Niveau 3]],\" \",Tableau3[[#This Row],[Niveau 4]],\" \",Tableau3[[#This Row],[Niveau 5]])),\" \",\".\")","v":""},{"$f":"IF(COUNTBLANK(Tableau3[[#This Row],[Niveau 1]:[Niveau 5]])=4,\"0\",LEFT(Tableau3[[#This Row],[Niveau]],(LEN(Tableau3[[#This Row],[Niveau]])-LEN(OFFSET(Tableau3[[#This Row],[Niveau 5]],0,(-COUNTBLANK(Tableau3[[#This Row],[Niveau 1]:[Niveau 5]]))))-1)))","v":{"$error":"#VALUE!"}},null,null,null,null,null,{"$f":"IF(Tableau3[[#This Row],[Catégorie pièce]]=\"Opérations\",VLOOKUP(M32,'Poste de charge'!A:C,2,FALSE),VLOOKUP(CONCATENATE(M32),[1]ARTRDCL!$A$1:$U$25000,2,FALSE))","v":{"$error":"#N/A"}},null,null,null,null,{"$f":"IF(N32=\"Nouveau\",MID(Tableau3[[#This Row],[Article produit/ Poste de charge]],2,15),\"\")","v":""},null,null,null,null,{"$f":"IF(Tableau3[[#This Row],[Catégorie pièce]]=\"Opérations\",$M$5/100,VLOOKUP(CONCATENATE(Tableau3[[#This Row],[Article produit/ Poste de charge]]),[1]ARTRDCL!$A$1:$U$65536,15,FALSE))","v":{"$error":"#N/A"}},null,0,0,null,null,null,null,null,null,null,null,null,null,0,{"$f":"IFERROR(VLOOKUP(CONCATENATE(AC32),Tôles!A:W,10,FALSE)/AA32*(IF(AY32=TRUE,BOM!B32,Tableau3[[#This Row],[surface de la tôle (m²)]])),0)","v":0},{"$f":"IF(AY32=TRUE,Paramètres!$B$13/AX32,0)","v":0},0,{"$f":"IF(AI32>0, (40/AX32 +0.4*AI32)*Paramètres!$B$2/100,0)","v":0},{"$f":"IF(AJ32>0,(0.15/$AX32+$AJ32)*Paramètres!$B$2/100,0)","v":0},{"$f":"IF(AK32=\"Oui\",(13/AX32 +AZ32)*Paramètres!$B$2/100,0)","v":0},{"$f":"IFERROR(VLOOKUP(CONCATENATE(AC32),Tôles!A:W,9,FALSE),0)","v":0},0,{"$f":"IFERROR(AT32/AU32/Paramètres!$B$9,0)","v":0},{"$f":"IFERROR(Paramètres!$B$8/Tableau3[[#This Row],[Surface de la pièce (m²)]]/Paramètres!$B$9,0)","v":0},0,false,0.5,{"$f":"IF(OR(ISERROR((5/$AN32 +$X32*0.08*$T32+ ($U32+$V32) * 0.001)*Paramètres!$B$2/100),AD32 = \"\"),0,(5/$AN32 +$X32*0.08*$T32+ ($U32+$V32) * 0.001)*Paramètres!$B$2/100)","v":0},{"$f":"IF(OR(ISERROR((10/$AN32+$X32*0.007 + ($U32+$V32) * 0.0005)*Paramètres!$B$2/100),AD32= \"\"),0,(10/$AN32+$X32*0.007 + ($U32+$V32) * 0.0005)*Paramètres!$B$2/100)","v":0}]
[null,null,null,null,null,null,null,{"$f":"SUBSTITUTE(TRIM(CONCATENATE(Tableau3[[#This Row],[Niveau 1]],\" \",Tableau3[[#This Row],[Niveau 2]],\" \",Tableau3[[#This Row],[Niveau 3]],\" \",Tableau3[[#This Row],[Niveau 4]],\" \",Tableau3[[#This Row],[Niveau 5]])),\" \",\".\")","v":""},{"$f":"IF(COUNTBLANK(Tableau3[[#This Row],[Niveau 1]:[Niveau 5]])=4,\"0\",LEFT(Tableau3[[#This Row],[Niveau]],(LEN(Tableau3[[#This Row],[Niveau]])-LEN(OFFSET(Tableau3[[#This Row],[Niveau 5]],0,(-COUNTBLANK(Tableau3[[#This Row],[Niveau 1]:[Niveau 5]]))))-1)))","v":{"$error":"#VALUE!"}},null,null,null,null,null,{"$f":"IF(Tableau3[[#This Row],[Catégorie pièce]]=\"Opérations\",VLOOKUP(M33,'Poste de charge'!A:C,2,FALSE),VLOOKUP(CONCATENATE(M33),[1]ARTRDCL!$A$1:$U$25000,2,FALSE))","v":{"$error":"#N/A"}},null,null,null,null,{"$f":"IF(N33=\"Nouveau\",MID(Tableau3[[#This Row],[Article produit/ Poste de charge]],2,15),\"\")","v":""},null,null,null,null,{"$f":"IF(Tableau3[[#This Row],[Catégorie pièce]]=\"Opérations\",$M$5/100,VLOOKUP(CONCATENATE(Tableau3[[#This Row],[Article produit/ Poste de charge]]),[1]ARTRDCL!$A$1:$U$65536,15,FALSE))","v":{"$error":"#N/A"}},null,0,0,null,null,null,null,null,null,null,null,null,null,0,{"$f":"IFERROR(VLOOKUP(CONCATENATE(AC33),Tôles!A:W,10,FALSE)/AA33*(IF(AY33=TRUE,BOM!B33,Tableau3[[#This Row],[surface de la tôle (m²)]])),0)","v":0},{"$f":"IF(AY33=TRUE,Paramètres!$B$13/AX33,0)","v":0},0,{"$f":"IF(AI33>0, (40/AX33 +0.4*AI33)*Paramètres!$B$2/100,0)","v":0},{"$f":"IF(AJ33>0,(0.15/$AX33+$AJ33)*Paramètres!$B$2/100,0)","v":0},{"$f":"IF(AK33=\"Oui\",(13/AX33 +AZ33)*Paramètres!$B$2/100,0)","v":0},{"$f":"IFERROR(VLOOKUP(CONCATENATE(AC33),Tôles!A:W,9,FALSE),0)","v":0},0,{"$f":"IFERROR(AT33/AU33/Paramètres!$B$9,0)","v":0},{"$f":"IFERROR(Paramètres!$B$8/Tableau3[[#This Row],[Surface de la pièce (m²)]]/Paramètres!$B$9,0)","v":0},0,false,0.5,{"$f":"IF(OR(ISERROR((5/$AN33 +$X33*0.08*$T33+ ($U33+$V33) * 0.001)*Paramètres!$B$2/100),AD33 = \"\"),0,(5/$AN33 +$X33*0.08*$T33+ ($U33+$V33) * 0.001)*Paramètres!$B$2/100)","v":0},{"$f":"IF(OR(ISERROR((10/$AN33+$X33*0.007 + ($U33+$V33) * 0.0005)*Paramètres!$B$2/100),AD33= \"\"),0,(10/$AN33+$X33*0.007 + ($U33+$V33) * 0.0005)*Paramètres!$B$2/100)","v":0}]
[null,null,null,null,null,null,null,{"$f":"SUBSTITUTE(TRIM(CONCATENATE(Tableau3[[#This Row],[Niveau 1]],\" \",Tableau3[[#This Row],[Niveau 2]],\" \",Tableau3[[#This Row],[Niveau 3]],\" \",Tableau3[[#This Row],[Niveau 4]],\" \",Tableau3[[#This Row],[Niveau 5]])),\" \",\".\")","v":""},{"$f":"IF(COUNTBLANK(Tableau3[[#This Row],[Niveau 1]:[Niveau 5]])=4,\"0\",LEFT(Tableau3[[#This Row],[Niveau]],(LEN(Tableau3[[#This Row],[Niveau]])-LEN(OFFSET(Tableau3[[#This Row],[Niveau 5]],0,(-COUNTBLANK(Tableau3[[#This Row],[Niveau 1]:[Niveau 5]]))))-1)))","v":{"$error":"#VALUE!"}},null,null,null,null,null,{"$f":"IF(Tableau3[[#This Row],[Catégorie pièce]]=\"Opérations\",VLOOKUP(M34,'Poste de charge'!A:C,2,FALSE),VLOOKUP(CONCATENATE(M34),[1]ARTRDCL!$A$1:$U$25000,2,FALSE))","v":{"$error":"#N/A"}},null,null,null,null,{"$f":"IF(N34=\"Nouveau\",MID(Tableau3[[#This Row],[Article produit/ Poste de charge]],2,15),\"\")","v":""},null,null,null,null,{"$f":"IF(Tableau3[[#This Row],[Catégorie pièce]]=\"Opérations\",$M$5/100,VLOOKUP(CONCATENATE(Tableau3[[#This Row],[Article produit/ Poste de charge]]),[1]ARTRDCL!$A$1:$U$65536,15,FALSE))","v":{"$error":"#N/A"}},null,0,0,null,null,null,null,null,null,null,null,null,null,0,{"$f":"IFERROR(VLOOKUP(CONCATENATE(AC34),Tôles!A:W,10,FALSE)/AA34*(IF(AY34=TRUE,BOM!B34,Tableau3[[#This Row],[surface de la tôle (m²)]])),0)","v":0},{"$f":"IF(AY34=TRUE,Paramètres!$B$13/AX34,0)","v":0},0,{"$f":"IF(AI34>0, (40/AX34 +0.4*AI34)*Paramètres!$B$2/100,0)","v":0},{"$f":"IF(AJ34>0,(0.15/$AX34+$AJ34)*Paramètres!$B$2/100,0)","v":0},{"$f":"IF(AK34=\"Oui\",(13/AX34 +AZ34)*Paramètres!$B$2/100,0)","v":0},{"$f":"IFERROR(VLOOKUP(CONCATENATE(AC34),Tôles!A:W,9,FALSE),0)","v":0},0,{"$f":"IFERROR(AT34/AU34/Paramètres!$B$9,0)","v":0},{"$f":"IFERROR(Paramètres!$B$8/Tableau3[[#This Row],[Surface de la pièce (m²)]]/Paramètres!$B$9,0)","v":0},0,false,0.5,{"$f":"IF(OR(ISERROR((5/$AN34 +$X34*0.08*$T34+ ($U34+$V34) * 0.001)*Paramètres!$B$2/100),AD34 = \"\"),0,(5/$AN34 +$X34*0.08*$T34+ ($U34+$V34) * 0.001)*Paramètres!$B$2/100)","v":0},{"$f":"IF(OR(ISERROR((10/$AN34+$X34*0.007 + ($U34+$V34) * 0.0005)*Paramètres!$B$2/100),AD34= \"\"),0,(10/$AN34+$X34*0.007 + ($U34+$V34) * 0.0005)*Paramètres!$B$2/100)","v":0}]
[null,null,null,null,null,null,null,{"$f":"SUBSTITUTE(TRIM(CONCATENATE(Tableau3[[#This Row],[Niveau 1]],\" \",Tableau3[[#This Row],[Niveau 2]],\" \",Tableau3[[#This Row],[Niveau 3]],\" \",Tableau3[[#This Row],[Niveau 4]],\" \",Tableau3[[#This Row],[Niveau 5]])),\" \",\".\")","v":""},{"$f":"IF(COUNTBLANK(Tableau3[[#This Row],[Niveau 1]:[Niveau 5]])=4,\"0\",LEFT(Tableau3[[#This Row],[Niveau]],(LEN(Tableau3[[#This Row],[Niveau]])-LEN(OFFSET(Tableau3[[#This Row],[Niveau 5]],0,(-COUNTBLANK(Tableau3[[#This Row],[Niveau 1]:[Niveau 5]]))))-1)))","v":{"$error":"#VALUE!"}},null,null,null,null,null,{"$f":"IF(Tableau3[[#This Row],[Catégorie pièce]]=\"Opérations\",VLOOKUP(M35,'Poste de charge'!A:C,2,FALSE),VLOOKUP(CONCATENATE(M35),[1]ARTRDCL!$A$1:$U$25000,2,FALSE))","v":{"$error":"#N/A"}},null,null,null,null,{"$f":"IF(N35=\"Nouveau\",MID(Tableau3[[#This Row],[Article produit/ Poste de charge]],2,15),\"\")","v":""},null,null,null,null,{"$f":"IF(Tableau3[[#This Row],[Catégorie pièce]]=\"Opérations\",$M$5/100,VLOOKUP(CONCATENATE(Tableau3[[#This Row],[Article produit/ Poste de charge]]),[1]ARTRDCL!$A$1:$U$65536,15,FALSE))","v":{"$error":"#N/A"}},null,0,0,null,null,null,null,null,null,null,null,null,null,0,{"$f":"IFERROR(VLOOKUP(CONCATENATE(AC35),Tôles!A:W,10,FALSE)/AA35*(IF(AY35=TRUE,BOM!B35,Tableau3[[#This Row],[surface de la tôle (m²)]])),0)","v":0},{"$f":"IF(AY35=TRUE,Paramètres!$B$13/AX35,0)","v":0},0,{"$f":"IF(AI35>0, (40/AX35 +0.4*AI35)*Paramètres!$B$2/100,0)","v":0},{"$f":"IF(AJ35>0,(0.15/$AX35+$AJ35)*Paramètres!$B$2/100,0)","v":0},{"$f":"IF(AK35=\"Oui\",(13/AX35 +AZ35)*Paramètres!$B$2/100,0)","v":0},{"$f":"IFERROR(VLOOKUP(CONCATENATE(AC35),Tôles!A:W,9,FALSE),0)","v":0},0,{"$f":"IFERROR(AT35/AU35/Paramètres!$B$9,0)","v":0},{"$f":"IFERROR(Paramètres!$B$8/Tableau3[[#This Row],[Surface de la pièce (m²)]]/Paramètres!$B$9,0)","v":0},0,false,0.5,{"$f":"IF(OR(ISERROR((5/$AN35 +$X35*0.08*$T35+ ($U35+$V35) * 0.001)*Paramètres!$B$2/100),AD35 = \"\"),0,(5/$AN35 +$X35*0.08*$T35+ ($U35+$V35) * 0.001)*Paramètres!$B$2/100)","v":0},{"$f":"IF(OR(ISERROR((10/$AN35+$X35*0.007 + ($U35+$V35) * 0.0005)*Paramètres!$B$2/100),AD35= \"\"),0,(10/$AN35+$X35*0.007 + ($U35+$V35) * 0.0005)*Paramètres!$B$2/100)","v":0}]
[null,null,null,null,null,null,null,{"$f":"SUBSTITUTE(TRIM(CONCATENATE(Tableau3[[#This Row],[Niveau 1]],\" \",Tableau3[[#This Row],[Niveau 2]],\" \",Tableau3[[#This Row],[Niveau 3]],\" \",Tableau3[[#This Row],[Niveau 4]],\" \",Tableau3[[#This Row],[Niveau 5]])),\" \",\".\")","v":""},{"$f":"IF(COUNTBLANK(Tableau3[[#This Row],[Niveau 1]:[Niveau 5]])=4,\"0\",LEFT(Tableau3[[#This Row],[Niveau]],(LEN(Tableau3[[#This Row],[Niveau]])-LEN(OFFSET(Tableau3[[#This Row],[Niveau 5]],0,(-COUNTBLANK(Tableau3[[#This Row],[Niveau 1]:[Niveau 5]]))))-1)))","v":{"$error":"#VALUE!"}},null,null,null,null,null,{"$f":"IF(Tableau3[[#This Row],[Catégorie pièce]]=\"Opérations\",VLOOKUP(M36,'Poste de charge'!A:C,2,FALSE),VLOOKUP(CONCATENATE(M36),[1]ARTRDCL!$A$1:$U$25000,2,FALSE))","v":{"$error":"#N/A"}},null,null,null,null,{"$f":"IF(N36=\"Nouveau\",MID(Tableau3[[#This Row],[Article produit/ Poste de charge]],2,15),\"\")","v":""},null,null,null,null,{"$f":"IF(Tableau3[[#This Row],[Catégorie pièce]]=\"Opérations\",$M$5/100,VLOOKUP(CONCATENATE(Tableau3[[#This Row],[Article produit/ Poste de charge]]),[1]ARTRDCL!$A$1:$U$65536,15,FALSE))","v":{"$error":"#N/A"}},null,0,0,null,null,null,null,null,null,null,null,null,null,0,{"$f":"IFERROR(VLOOKUP(CONCATENATE(AC36),Tôles!A:W,10,FALSE)/AA36*(IF(AY36=TRUE,BOM!B36,Tableau3[[#This Row],[surface de la tôle (m²)]])),0)","v":0},{"$f":"IF(AY36=TRUE,Paramètres!$B$13/AX36,0)","v":0},0,{"$f":"IF(AI36>0, (40/AX36 +0.4*AI36)*Paramètres!$B$2/100,0)","v":0},{"$f":"IF(AJ36>0,(0.15/$AX36+$AJ36)*Paramètres!$B$2/100,0)","v":0},{"$f":"IF(AK36=\"Oui\",(13/AX36 +AZ36)*Paramètres!$B$2/100,0)","v":0},{"$f":"IFERROR(VLOOKUP(CONCATENATE(AC36),Tôles!A:W,9,FALSE),0)","v":0},0,{"$f":"IFERROR(AT36/AU36/Paramètres!$B$9,0)","v":0},{"$f":"IFERROR(Paramètres!$B$8/Tableau3[[#This Row],[Surface de la pièce (m²)]]/Paramètres!$B$9,0)","v":0},0,false,0.5,{"$f":"IF(OR(ISERROR((5/$AN36 +$X36*0.08*$T36+ ($U36+$V36) * 0.001)*Paramètres!$B$2/100),AD36 = \"\"),0,(5/$AN36 +$X36*0.08*$T36+ ($U36+$V36) * 0.001)*Paramètres!$B$2/100)","v":0},{"$f":"IF(OR(ISERROR((10/$AN36+$X36*0.007 + ($U36+$V36) * 0.0005)*Paramètres!$B$2/100),AD36= \"\"),0,(10/$AN36+$X36*0.007 + ($U36+$V36) * 0.0005)*Paramètres!$B$2/100)","v":0}]
[null,null,null,null,null,null,null,{"$f":"SUBSTITUTE(TRIM(CONCATENATE(Tableau3[[#This Row],[Niveau 1]],\" \",Tableau3[[#This Row],[Niveau 2]],\" \",Tableau3[[#This Row],[Niveau 3]],\" \",Tableau3[[#This Row],[Niveau 4]],\" \",Tableau3[[#This Row],[Niveau 5]])),\" \",\".\")","v":""},{"$f":"IF(COUNTBLANK(Tableau3[[#This Row],[Niveau 1]:[Niveau 5]])=4,\"0\",LEFT(Tableau3[[#This Row],[Niveau]],(LEN(Tableau3[[#This Row],[Niveau]])-LEN(OFFSET(Tableau3[[#This Row],[Niveau 5]],0,(-COUNTBLANK(Tableau3[[#This Row],[Niveau 1]:[Niveau 5]]))))-1)))","v":{"$error":"#VALUE!"}},null,null,null,null,null,{"$f":"IF(Tableau3[[#This Row],[Catégorie pièce]]=\"Opérations\",VLOOKUP(M37,'Poste de charge'!A:C,2,FALSE),VLOOKUP(CONCATENATE(M37),[1]ARTRDCL!$A$1:$U$25000,2,FALSE))","v":{"$error":"#N/A"}},null,null,null,null,{"$f":"IF(N37=\"Nouveau\",MID(Tableau3[[#This Row],[Article produit/ Poste de charge]],2,15),\"\")","v":""},null,null,null,null,{"$f":"IF(Tableau3[[#This Row],[Catégorie pièce]]=\"Opérations\",$M$5/100,VLOOKUP(CONCATENATE(Tableau3[[#This Row],[Article produit/ Poste de charge]]),[1]ARTRDCL!$A$1:$U$65536,15,FALSE))","v":{"$error":"#N/A"}},null,0,0,null,null,null,null,null,null,null,null,null,null,0,{"$f":"IFERROR(VLOOKUP(CONCATENATE(AC37),Tôles!A:W,10,FALSE)/AA37*(IF(AY37=TRUE,BOM!B37,Tableau3[[#This Row],[surface de la tôle (m²)]])),0)","v":0},{"$f":"IF(AY37=TRUE,Paramètres!$B$13/AX37,0)","v":0},0,{"$f":"IF(AI37>0, (40/AX37 +0.4*AI37)*Paramètres!$B$2/100,0)","v":0},{"$f":"IF(AJ37>0,(0.15/$AX37+$AJ37)*Paramètres!$B$2/100,0)","v":0},{"$f":"IF(AK37=\"Oui\",(13/AX37 +AZ37)*Paramètres!$B$2/100,0)","v":0},{"$f":"IFERROR(VLOOKUP(CONCATENATE(AC37),Tôles!A:W,9,FALSE),0)","v":0},0,{"$f":"IFERROR(AT37/AU37/Paramètres!$B$9,0)","v":0},{"$f":"IFERROR(Paramètres!$B$8/Tableau3[[#This Row],[Surface de la pièce (m²)]]/Paramètres!$B$9,0)","v":0},0,false,0.5,{"$f":"IF(OR(ISERROR((5/$AN37 +$X37*0.08*$T37+ ($U37+$V37) * 0.001)*Paramètres!$B$2/100),AD37 = \"\"),0,(5/$AN37 +$X37*0.08*$T37+ ($U37+$V37) * 0.001)*Paramètres!$B$2/100)","v":0},{"$f":"IF(OR(ISERROR((10/$AN37+$X37*0.007 + ($U37+$V37) * 0.0005)*Paramètres!$B$2/100),AD37= \"\"),0,(10/$AN37+$X37*0.007 + ($U37+$V37) * 0.0005)*Paramètres!$B$2/100)","v":0}]
[null,null,null,null,null,null,null,{"$f":"SUBSTITUTE(TRIM(CONCATENATE(Tableau3[[#This Row],[Niveau 1]],\" \",Tableau3[[#This Row],[Niveau 2]],\" \",Tableau3[[#This Row],[Niveau 3]],\" \",Tableau3[[#This Row],[Niveau 4]],\" \",Tableau3[[#This Row],[Niveau 5]])),\" \",\".\")","v":""},{"$f":"IF(COUNTBLANK(Tableau3[[#This Row],[Niveau 1]:[Niveau 5]])=4,\"0\",LEFT(Tableau3[[#This Row],[Niveau]],(LEN(Tableau3[[#This Row],[Niveau]])-LEN(OFFSET(Tableau3[[#This Row],[Niveau 5]],0,(-COUNTBLANK(Tableau3[[#This Row],[Niveau 1]:[Niveau 5]]))))-1)))","v":{"$error":"#VALUE!"}},null,null,null,null,null,{"$f":"IF(Tableau3[[#This Row],[Catégorie pièce]]=\"Opérations\",VLOOKUP(M38,'Poste de charge'!A:C,2,FALSE),VLOOKUP(CONCATENATE(M38),[1]ARTRDCL!$A$1:$U$25000,2,FALSE))","v":{"$error":"#N/A"}},null,null,null,null,{"$f":"IF(N38=\"Nouveau\",MID(Tableau3[[#This Row],[Article produit/ Poste de charge]],2,15),\"\")","v":""},null,null,null,null,{"$f":"IF(Tableau3[[#This Row],[Catégorie pièce]]=\"Opérations\",$M$5/100,VLOOKUP(CONCATENATE(Tableau3[[#This Row],[Article produit/ Poste de charge]]),[1]ARTRDCL!$A$1:$U$65536,15,FALSE))","v":{"$error":"#N/A"}},null,0,0,null,null,null,null,null,null,null,null,null,null,0,{"$f":"IFERROR(VLOOKUP(CONCATENATE(AC38),Tôles!A:W,10,FALSE)/AA38*(IF(AY38=TRUE,BOM!B38,Tableau3[[#This Row],[surface de la tôle (m²)]])),0)","v":0},{"$f":"IF(AY38=TRUE,Paramètres!$B$13/AX38,0)","v":0},0,{"$f":"IF(AI38>0, (40/AX38 +0.4*AI38)*Paramètres!$B$2/100,0)","v":0},{"$f":"IF(AJ38>0,(0.15/$AX38+$AJ38)*Paramètres!$B$2/100,0)","v":0},{"$f":"IF(AK38=\"Oui\",(13/AX38 +AZ38)*Paramètres!$B$2/100,0)","v":0},{"$f":"IFERROR(VLOOKUP(CONCATENATE(AC38),Tôles!A:W,9,FALSE),0)","v":0},0,{"$f":"IFERROR(AT38/AU38/Paramètres!$B$9,0)","v":0},{"$f":"IFERROR(Paramètres!$B$8/Tableau3[[#This Row],[Surface de la pièce (m²)]]/Paramètres!$B$9,0)","v":0},0,false,0.5,{"$f":"IF(OR(ISERROR((5/$AN38 +$X38*0.08*$T38+ ($U38+$V38) * 0.001)*Paramètres!$B$2/100),AD38 = \"\"),0,(5/$AN38 +$X38*0.08*$T38+ ($U38+$V38) * 0.001)*Paramètres!$B$2/100)","v":0},{"$f":"IF(OR(ISERROR((10/$AN38+$X38*0.007 + ($U38+$V38) * 0.0005)*Paramètres!$B$2/100),AD38= \"\"),0,(10/$AN38+$X38*0.007 + ($U38+$V38) * 0.0005)*Paramètres!$B$2/100)","v":0}]
[null,null,null,null,null,null,null,{"$f":"SUBSTITUTE(TRIM(CONCATENATE(Tableau3[[#This Row],[Niveau 1]],\" \",Tableau3[[#This Row],[Niveau 2]],\" \",Tableau3[[#This Row],[Niveau 3]],\" \",Tableau3[[#This Row],[Niveau 4]],\" \",Tableau3[[#This Row],[Niveau 5]])),\" \",\".\")","v":""},{"$f":"IF(COUNTBLANK(Tableau3[[#This Row],[Niveau 1]:[Niveau 5]])=4,\"0\",LEFT(Tableau3[[#This Row],[Niveau]],(LEN(Tableau3[[#This Row],[Niveau]])-LEN(OFFSET(Tableau3[[#This Row],[Niveau 5]],0,(-COUNTBLANK(Tableau3[[#This Row],[Niveau 1]:[Niveau 5]]))))-1)))","v":{"$error":"#VALUE!"}},null,null,null,null,null,{"$f":"IF(Tableau3[[#This Row],[Catégorie pièce]]=\"Opérations\",VLOOKUP(M39,'Poste de charge'!A:C,2,FALSE),VLOOKUP(CONCATENATE(M39),[1]ARTRDCL!$A$1:$U$25000,2,FALSE))","v":{"$error":"#N/A"}},null,null,null,null,{"$f":"IF(N39=\"Nouveau\",MID(Tableau3[[#This Row],[Article produit/ Poste de charge]],2,15),\"\")","v":""},null,null,null,null,{"$f":"IF(Tableau3[[#This Row],[Catégorie pièce]]=\"Opérations\",$M$5/100,VLOOKUP(CONCATENATE(Tableau3[[#This Row],[Article produit/ Poste de charge]]),[1]ARTRDCL!$A$1:$U$65536,15,FALSE))","v":{"$error":"#N/A"}},null,0,0,null,null,null,null,null,null,null,null,null,null,0,{"$f":"IFERROR(VLOOKUP(CONCATENATE(AC39),Tôles!A:W,10,FALSE)/AA39*(IF(AY39=TRUE,BOM!B39,Tableau3[[#This Row],[surface de la tôle (m²)]])),0)","v":0},{"$f":"IF(AY39=TRUE,Paramètres!$B$13/AX39,0)","v":0},0,{"$f":"IF(AI39>0, (40/AX39 +0.4*AI39)*Paramètres!$B$2/100,0)","v":0},{"$f":"IF(AJ39>0,(0.15/$AX39+$AJ39)*Paramètres!$B$2/100,0)","v":0},{"$f":"IF(AK39=\"Oui\",(13/AX39 +AZ39)*Paramètres!$B$2/100,0)","v":0},{"$f":"IFERROR(VLOOKUP(CONCATENATE(AC39),Tôles!A:W,9,FALSE),0)","v":0},0,{"$f":"IFERROR(AT39/AU39/Paramètres!$B$9,0)","v":0},{"$f":"IFERROR(Paramètres!$B$8/Tableau3[[#This Row],[Surface de la pièce (m²)]]/Paramètres!$B$9,0)","v":0},0,false,0.5,{"$f":"IF(OR(ISERROR((5/$AN39 +$X39*0.08*$T39+ ($U39+$V39) * 0.001)*Paramètres!$B$2/100),AD39 = \"\"),0,(5/$AN39 +$X39*0.08*$T39+ ($U39+$V39) * 0.001)*Paramètres!$B$2/100)","v":0},{"$f":"IF(OR(ISERROR((10/$AN39+$X39*0.007 + ($U39+$V39) * 0.0005)*Paramètres!$B$2/100),AD39= \"\"),0,(10/$AN39+$X39*0.007 + ($U39+$V39) * 0.0005)*Paramètres!$B$2/100)","v":0}]
[null,null,null,null,null,null,null,{"$f":"SUBSTITUTE(TRIM(CONCATENATE(Tableau3[[#This Row],[Niveau 1]],\" \",Tableau3[[#This Row],[Niveau 2]],\" \",Tableau3[[#This Row],[Niveau 3]],\" \",Tableau3[[#This Row],[Niveau 4]],\" \",Tableau3[[#This Row],[Niveau 5]])),\" \",\".\")","v":""},{"$f":"IF(COUNTBLANK(Tableau3[[#This Row],[Niveau 1]:[Niveau 5]])=4,\"0\",LEFT(Tableau3[[#This Row],[Niveau]],(LEN(Tableau3[[#This Row],[Niveau]])-LEN(OFFSET(Tableau3[[#This Row],[Niveau 5]],0,(-COUNTBLANK(Tableau3[[#This Row],[Niveau 1]:[Niveau 5]]))))-1)))","v":{"$error":"#VALUE!"}},null,null,null,null,null,{"$f":"IF(Tableau3[[#This Row],[Catégorie pièce]]=\"Opérations\",VLOOKUP(M40,'Poste de charge'!A:C,2,FALSE),VLOOKUP(CONCATENATE(M40),[1]ARTRDCL!$A$1:$U$25000,2,FALSE))","v":{"$error":"#N/A"}},null,null,null,null,{"$f":"IF(N40=\"Nouveau\",MID(Tableau3[[#This Row],[Article produit/ Poste de charge]],2,15),\"\")","v":""},null,null,null,null,{"$f":"IF(Tableau3[[#This Row],[Catégorie pièce]]=\"Opérations\",$M$5/100,VLOOKUP(CONCATENATE(Tableau3[[#This Row],[Article produit/ Poste de charge]]),[1]ARTRDCL!$A$1:$U$65536,15,FALSE))","v":{"$error":"#N/A"}},null,0,0,null,null,null,null,null,null,null,null,null,null,0,{"$f":"IFERROR(VLOOKUP(CONCATENATE(AC40),Tôles!A:W,10,FALSE)/AA40*(IF(AY40=TRUE,BOM!B40,Tableau3[[#This Row],[surface de la tôle (m²)]])),0)","v":0},{"$f":"IF(AY40=TRUE,Paramètres!$B$13/AX40,0)","v":0},0,{"$f":"IF(AI40>0, (40/AX40 +0.4*AI40)*Paramètres!$B$2/100,0)","v":0},{"$f":"IF(AJ40>0,(0.15/$AX40+$AJ40)*Paramètres!$B$2/100,0)","v":0},{"$f":"IF(AK40=\"Oui\",(13/AX40 +AZ40)*Paramètres!$B$2/100,0)","v":0},{"$f":"IFERROR(VLOOKUP(CONCATENATE(AC40),Tôles!A:W,9,FALSE),0)","v":0},0,{"$f":"IFERROR(AT40/AU40/Paramètres!$B$9,0)","v":0},{"$f":"IFERROR(Paramètres!$B$8/Tableau3[[#This Row],[Surface de la pièce (m²)]]/Paramètres!$B$9,0)","v":0},0,false,0.5,{"$f":"IF(OR(ISERROR((5/$AN40 +$X40*0.08*$T40+ ($U40+$V40) * 0.001)*Paramètres!$B$2/100),AD40 = \"\"),0,(5/$AN40 +$X40*0.08*$T40+ ($U40+$V40) * 0.001)*Paramètres!$B$2/100)","v":0},{"$f":"IF(OR(ISERROR((10/$AN40+$X40*0.007 + ($U40+$V40) * 0.0005)*Paramètres!$B$2/100),AD40= \"\"),0,(10/$AN40+$X40*0.007 + ($U40+$V40) * 0.0005)*Paramètres!$B$2/100)","v":0}]
[null,null,null,null,null,null,null,{"$f":"SUBSTITUTE(TRIM(CONCATENATE(Tableau3[[#This Row],[Niveau 1]],\" \",Tableau3[[#This Row],[Niveau 2]],\" \",Tableau3[[#This Row],[Niveau 3]],\" \",Tableau3[[#This Row],[Niveau 4]],\" \",Tableau3[[#This Row],[Niveau 5]])),\" \",\".\")","v":""},{"$f":"IF(COUNTBLANK(Tableau3[[#This Row],[Niveau 1]:[Niveau 5]])=4,\"0\",LEFT(Tableau3[[#This Row],[Niveau]],(LEN(Tableau3[[#This Row],[Niveau]])-LEN(OFFSET(Tableau3[[#This Row],[Niveau 5]],0,(-COUNTBLANK(Tableau3[[#This Row],[Niveau 1]:[Niveau 5]]))))-1)))","v":{"$error":"#VALUE!"}},null,null,null,null,null,{"$f":"IF(Tableau3[[#This Row],[Catégorie pièce]]=\"Opérations\",VLOOKUP(M41,'Poste de charge'!A:C,2,FALSE),VLOOKUP(CONCATENATE(M41),[1]ARTRDCL!$A$1:$U$25000,2,FALSE))","v":{"$error":"#N/A"}},null,null,null,null,{"$f":"IF(N41=\"Nouveau\",MID(Tableau3[[#This Row],[Article produit/ Poste de charge]],2,15),\"\")","v":""},null,null,null,null,{"$f":"IF(Tableau3[[#This Row],[Catégorie pièce]]=\"Opérations\",$M$5/100,VLOOKUP(CONCATENATE(Tableau3[[#This Row],[Article produit/ Poste de charge]]),[1]ARTRDCL!$A$1:$U$65536,15,FALSE))","v":{"$error":"#N/A"}},null,0,0,null,null,null,null,null,null,null,null,null,null,0,{"$f":"IFERROR(VLOOKUP(CONCATENATE(AC41),Tôles!A:W,10,FALSE)/AA41*(IF(AY41=TRUE,BOM!B41,Tableau3[[#This Row],[surface de la tôle (m²)]])),0)","v":0},{"$f":"IF(AY41=TRUE,Paramètres!$B$13/AX41,0)","v":0},0,{"$f":"IF(AI41>0, (40/AX41 +0.4*AI41)*Paramètres!$B$2/100,0)","v":0},{"$f":"IF(AJ41>0,(0.15/$AX41+$AJ41)*Paramètres!$B$2/100,0)","v":0},{"$f":"IF(AK41=\"Oui\",(13/AX41 +AZ41)*Paramètres!$B$2/100,0)","v":0},{"$f":"IFERROR(VLOOKUP(CONCATENATE(AC41),Tôles!A:W,9,FALSE),0)","v":0},0,{"$f":"IFERROR(AT41/AU41/Paramètres!$B$9,0)","v":0},{"$f":"IFERROR(Paramètres!$B$8/Tableau3[[#This Row],[Surface de la pièce (m²)]]/Paramètres!$B$9,0)","v":0},0,false,0.5,{"$f":"IF(OR(ISERROR((5/$AN41 +$X41*0.08*$T41+ ($U41+$V41) * 0.001)*Paramètres!$B$2/100),AD41 = \"\"),0,(5/$AN41 +$X41*0.08*$T41+ ($U41+$V41) * 0.001)*Paramètres!$B$2/100)","v":0},{"$f":"IF(OR(ISERROR((10/$AN41+$X41*0.007 + ($U41+$V41) * 0.0005)*Paramètres!$B$2/100),AD41= \"\"),0,(10/$AN41+$X41*0.007 + ($U41+$V41) * 0.0005)*Paramètres!$B$2/100)","v":0}]
[null,null,null,null,null,null,null,{"$f":"SUBSTITUTE(TRIM(CONCATENATE(Tableau3[[#This Row],[Niveau 1]],\" \",Tableau3[[#This Row],[Niveau 2]],\" \",Tableau3[[#This Row],[Niveau 3]],\" \",Tableau3[[#This Row],[Niveau 4]],\" \",Tableau3[[#This Row],[Niveau 5]])),\" \",\".\")","v":""},{"$f":"IF(COUNTBLANK(Tableau3[[#This Row],[Niveau 1]:[Niveau 5]])=4,\"0\",LEFT(Tableau3[[#This Row],[Niveau]],(LEN(Tableau3[[#This Row],[Niveau]])-LEN(OFFSET(Tableau3[[#This Row],[Niveau 5]],0,(-COUNTBLANK(Tableau3[[#This Row],[Niveau 1]:[Niveau 5]]))))-1)))","v":{"$error":"#VALUE!"}},null,null,null,null,null,{"$f":"IF(Tableau3[[#This Row],[Catégorie pièce]]=\"Opérations\",VLOOKUP(M42,'Poste de charge'!A:C,2,FALSE),VLOOKUP(CONCATENATE(M42),[1]ARTRDCL!$A$1:$U$25000,2,FALSE))","v":{"$error":"#N/A"}},null,null,null,null,{"$f":"IF(N42=\"Nouveau\",MID(Tableau3[[#This Row],[Article produit/ Poste de charge]],2,15),\"\")","v":""},null,null,null,null,{"$f":"IF(Tableau3[[#This Row],[Catégorie pièce]]=\"Opérations\",$M$5/100,VLOOKUP(CONCATENATE(Tableau3[[#This Row],[Article produit/ Poste de charge]]),[1]ARTRDCL!$A$1:$U$65536,15,FALSE))","v":{"$error":"#N/A"}},null,0,0,null,null,null,null,null,null,null,null,null,null,0,{"$f":"IFERROR(VLOOKUP(CONCATENATE(AC42),Tôles!A:W,10,FALSE)/AA42*(IF(AY42=TRUE,BOM!B42,Tableau3[[#This Row],[surface de la tôle (m²)]])),0)","v":0},{"$f":"IF(AY42=TRUE,Paramètres!$B$13/AX42,0)","v":0},0,{"$f":"IF(AI42>0, (40/AX42 +0.4*AI42)*Paramètres!$B$2/100,0)","v":0},{"$f":"IF(AJ42>0,(0.15/$AX42+$AJ42)*Paramètres!$B$2/100,0)","v":0},{"$f":"IF(AK42=\"Oui\",(13/AX42 +AZ42)*Paramètres!$B$2/100,0)","v":0},{"$f":"IFERROR(VLOOKUP(CONCATENATE(AC42),Tôles!A:W,9,FALSE),0)","v":0},0,{"$f":"IFERROR(AT42/AU42/Paramètres!$B$9,0)","v":0},{"$f":"IFERROR(Paramètres!$B$8/Tableau3[[#This Row],[Surface de la pièce (m²)]]/Paramètres!$B$9,0)","v":0},0,false,0.5,{"$f":"IF(OR(ISERROR((5/$AN42 +$X42*0.08*$T42+ ($U42+$V42) * 0.001)*Paramètres!$B$2/100),AD42 = \"\"),0,(5/$AN42 +$X42*0.08*$T42+ ($U42+$V42) * 0.001)*Paramètres!$B$2/100)","v":0},{"$f":"IF(OR(ISERROR((10/$AN42+$X42*0.007 + ($U42+$V42) * 0.0005)*Paramètres!$B$2/100),AD42= \"\"),0,(10/$AN42+$X42*0.007 + ($U42+$V42) * 0.0005)*Paramètres!$B$2/100)","v":0}]
[null,null,null,null,null,null,null,{"$f":"SUBSTITUTE(TRIM(CONCATENATE(Tableau3[[#This Row],[Niveau 1]],\" \",Tableau3[[#This Row],[Niveau 2]],\" \",Tableau3[[#This Row],[Niveau 3]],\" \",Tableau3[[#This Row],[Niveau 4]],\" \",Tableau3[[#This Row],[Niveau 5]])),\" \",\".\")","v":""},{"$f":"IF(COUNTBLANK(Tableau3[[#This Row],[Niveau 1]:[Niveau 5]])=4,\"0\",LEFT(Tableau3[[#This Row],[Niveau]],(LEN(Tableau3[[#This Row],[Niveau]])-LEN(OFFSET(Tableau3[[#This Row],[Niveau 5]],0,(-COUNTBLANK(Tableau3[[#This Row],[Niveau 1]:[Niveau 5]]))))-1)))","v":{"$error":"#VALUE!"}},null,null,null,null,null,{"$f":"IF(Tableau3[[#This Row],[Catégorie pièce]]=\"Opérations\",VLOOKUP(M43,'Poste de charge'!A:C,2,FALSE),VLOOKUP(CONCATENATE(M43),[1]ARTRDCL!$A$1:$U$25000,2,FALSE))","v":{"$error":"#N/A"}},null,null,null,null,{"$f":"IF(N43=\"Nouveau\",MID(Tableau3[[#This Row],[Article produit/ Poste de charge]],2,15),\"\")","v":""},null,null,null,null,{"$f":"IF(Tableau3[[#This Row],[Catégorie pièce]]=\"Opérations\",$M$5/100,VLOOKUP(CONCATENATE(Tableau3[[#This Row],[Article produit/ Poste de charge]]),[1]ARTRDCL!$A$1:$U$65536,15,FALSE))","v":{"$error":"#N/A"}},null,0,0,null,null,null,null,null,null,null,null,null,null,0,{"$f":"IFERROR(VLOOKUP(CONCATENATE(AC43),Tôles!A:W,10,FALSE)/AA43*(IF(AY43=TRUE,BOM!B43,Tableau3[[#This Row],[surface de la tôle (m²)]])),0)","v":0},{"$f":"IF(AY43=TRUE,Paramètres!$B$13/AX43,0)","v":0},0,{"$f":"IF(AI43>0, (40/AX43 +0.4*AI43)*Paramètres!$B$2/100,0)","v":0},{"$f":"IF(AJ43>0,(0.15/$AX43+$AJ43)*Paramètres!$B$2/100,0)","v":0},{"$f":"IF(AK43=\"Oui\",(13/AX43 +AZ43)*Paramètres!$B$2/100,0)","v":0},{"$f":"IFERROR(VLOOKUP(CONCATENATE(AC43),Tôles!A:W,9,FALSE),0)","v":0},0,{"$f":"IFERROR(AT43/AU43/Paramètres!$B$9,0)","v":0},{"$f":"IFERROR(Paramètres!$B$8/Tableau3[[#This Row],[Surface de la pièce (m²)]]/Paramètres!$B$9,0)","v":0},0,false,0.5,{"$f":"IF(OR(ISERROR((5/$AN43 +$X43*0.08*$T43+ ($U43+$V43) * 0.001)*Paramètres!$B$2/100),AD43 = \"\"),0,(5/$AN43 +$X43*0.08*$T43+ ($U43+$V43) * 0.001)*Paramètres!$B$2/100)","v":0},{"$f":"IF(OR(ISERROR((10/$AN43+$X43*0.007 + ($U43+$V43) * 0.0005)*Paramètres!$B$2/100),AD43= \"\"),0,(10/$AN43+$X43*0.007 + ($U43+$V43) * 0.0005)*Paramètres!$B$2/100)","v":0}]
[null,null,null,null,null,null,null,{"$f":"SUBSTITUTE(TRIM(CONCATENATE(Tableau3[[#This Row],[Niveau 1]],\" \",Tableau3[[#This Row],[Niveau 2]],\" \",Tableau3[[#This Row],[Niveau 3]],\" \",Tableau3[[#This Row],[Niveau 4]],\" \",Tableau3[[#This Row],[Niveau 5]])),\" \",\".\")","v":""},{"$f":"IF(COUNTBLANK(Tableau3[[#This Row],[Niveau 1]:[Niveau 5]])=4,\"0\",LEFT(Tableau3[[#This Row],[Niveau]],(LEN(Tableau3[[#This Row],[Niveau]])-LEN(OFFSET(Tableau3[[#This Row],[Niveau 5]],0,(-COUNTBLANK(Tableau3[[#This Row],[Niveau 1]:[Niveau 5]]))))-1)))","v":{"$error":"#VALUE!"}},null,null,null,null,null,{"$f":"IF(Tableau3[[#This Row],[Catégorie pièce]]=\"Opérations\",VLOOKUP(M44,'Poste de charge'!A:C,2,FALSE),VLOOKUP(CONCATENATE(M44),[1]ARTRDCL!$A$1:$U$25000,2,FALSE))","v":{"$error":"#N/A"}},null,null,null,null,{"$f":"IF(N44=\"Nouveau\",MID(Tableau3[[#This Row],[Article produit/ Poste de charge]],2,15),\"\")","v":""},null,null,null,null,{"$f":"IF(Tableau3[[#This Row],[Catégorie pièce]]=\"Opérations\",$M$5/100,VLOOKUP(CONCATENATE(Tableau3[[#This Row],[Article produit/ Poste de charge]]),[1]ARTRDCL!$A$1:$U$65536,15,FALSE))","v":{"$error":"#N/A"}},null,0,0,null,null,null,null,null,null,null,null,null,null,0,{"$f":"IFERROR(VLOOKUP(CONCATENATE(AC44),Tôles!A:W,10,FALSE)/AA44*(IF(AY44=TRUE,BOM!B44,Tableau3[[#This Row],[surface de la tôle (m²)]])),0)","v":0},{"$f":"IF(AY44=TRUE,Paramètres!$B$13/AX44,0)","v":0},0,{"$f":"IF(AI44>0, (40/AX44 +0.4*AI44)*Paramètres!$B$2/100,0)","v":0},{"$f":"IF(AJ44>0,(0.15/$AX44+$AJ44)*Paramètres!$B$2/100,0)","v":0},{"$f":"IF(AK44=\"Oui\",(13/AX44 +AZ44)*Paramètres!$B$2/100,0)","v":0},{"$f":"IFERROR(VLOOKUP(CONCATENATE(AC44),Tôles!A:W,9,FALSE),0)","v":0},0,{"$f":"IFERROR(AT44/AU44/Paramètres!$B$9,0)","v":0},{"$f":"IFERROR(Paramètres!$B$8/Tableau3[[#This Row],[Surface de la pièce (m²)]]/Paramètres!$B$9,0)","v":0},0,false,0.5,{"$f":"IF(OR(ISERROR((5/$AN44 +$X44*0.08*$T44+ ($U44+$V44) * 0.001)*Paramètres!$B$2/100),AD44 = \"\"),0,(5/$AN44 +$X44*0.08*$T44+ ($U44+$V44) * 0.001)*Paramètres!$B$2/100)","v":0},{"$f":"IF(OR(ISERROR((10/$AN44+$X44*0.007 + ($U44+$V44) * 0.0005)*Paramètres!$B$2/100),AD44= \"\"),0,(10/$AN44+$X44*0.007 + ($U44+$V44) * 0.0005)*Paramètres!$B$2/100)","v":0}]
[null,null,null,null,null,null,null,{"$f":"SUBSTITUTE(TRIM(CONCATENATE(Tableau3[[#This Row],[Niveau 1]],\" \",Tableau3[[#This Row],[Niveau 2]],\" \",Tableau3[[#This Row],[Niveau 3]],\" \",Tableau3[[#This Row],[Niveau 4]],\" \",Tableau3[[#This Row],[Niveau 5]])),\" \",\".\")","v":""},{"$f":"IF(COUNTBLANK(Tableau3[[#This Row],[Niveau 1]:[Niveau 5]])=4,\"0\",LEFT(Tableau3[[#This Row],[Niveau]],(LEN(Tableau3[[#This Row],[Niveau]])-LEN(OFFSET(Tableau3[[#This Row],[Niveau 5]],0,(-COUNTBLANK(Tableau3[[#This Row],[Niveau 1]:[Niveau 5]]))))-1)))","v":{"$error":"#VALUE!"}},null,null,null,null,null,{"$f":"IF(Tableau3[[#This Row],[Catégorie pièce]]=\"Opérations\",VLOOKUP(M45,'Poste de charge'!A:C,2,FALSE),VLOOKUP(CONCATENATE(M45),[1]ARTRDCL!$A$1:$U$25000,2,FALSE))","v":{"$error":"#N/A"}},null,null,null,null,{"$f":"IF(N45=\"Nouveau\",MID(Tableau3[[#This Row],[Article produit/ Poste de charge]],2,15),\"\")","v":""},null,null,null,null,{"$f":"IF(Tableau3[[#This Row],[Catégorie pièce]]=\"Opérations\",$M$5/100,VLOOKUP(CONCATENATE(Tableau3[[#This Row],[Article produit/ Poste de charge]]),[1]ARTRDCL!$A$1:$U$65536,15,FALSE))","v":{"$error":"#N/A"}},null,0,0,null,null,null,null,null,null,null,null,null,null,0,{"$f":"IFERROR(VLOOKUP(CONCATENATE(AC45),Tôles!A:W,10,FALSE)/AA45*(IF(AY45=TRUE,BOM!B45,Tableau3[[#This Row],[surface de la tôle (m²)]])),0)","v":0},{"$f":"IF(AY45=TRUE,Paramètres!$B$13/AX45,0)","v":0},0,{"$f":"IF(AI45>0, (40/AX45 +0.4*AI45)*Paramètres!$B$2/100,0)","v":0},{"$f":"IF(AJ45>0,(0.15/$AX45+$AJ45)*Paramètres!$B$2/100,0)","v":0},{"$f":"IF(AK45=\"Oui\",(13/AX45 +AZ45)*Paramètres!$B$2/100,0)","v":0},{"$f":"IFERROR(VLOOKUP(CONCATENATE(AC45),Tôles!A:W,9,FALSE),0)","v":0},0,{"$f":"IFERROR(AT45/AU45/Paramètres!$B$9,0)","v":0},{"$f":"IFERROR(Paramètres!$B$8/Tableau3[[#This Row],[Surface de la pièce (m²)]]/Paramètres!$B$9,0)","v":0},0,false,0.5,{"$f":"IF(OR(ISERROR((5/$AN45 +$X45*0.08*$T45+ ($U45+$V45) * 0.001)*Paramètres!$B$2/100),AD45 = \"\"),0,(5/$AN45 +$X45*0.08*$T45+ ($U45+$V45) * 0.001)*Paramètres!$B$2/100)","v":0},{"$f":"IF(OR(ISERROR((10/$AN45+$X45*0.007 + ($U45+$V45) * 0.0005)*Paramètres!$B$2/100),AD45= \"\"),0,(10/$AN45+$X45*0.007 + ($U45+$V45) * 0.0005)*Paramètres!$B$2/100)","v":0}]
[null,null,null,null,null,null,null,{"$f":"SUBSTITUTE(TRIM(CONCATENATE(Tableau3[[#This Row],[Niveau 1]],\" \",Tableau3[[#This Row],[Niveau 2]],\" \",Tableau3[[#This Row],[Niveau 3]],\" \",Tableau3[[#This Row],[Niveau 4]],\" \",Tableau3[[#This Row],[Niveau 5]])),\" \",\".\")","v":""},{"$f":"IF(COUNTBLANK(Tableau3[[#This Row],[Niveau 1]:[Niveau 5]])=4,\"0\",LEFT(Tableau3[[#This Row],[Niveau]],(LEN(Tableau3[[#This Row],[Niveau]])-LEN(OFFSET(Tableau3[[#This Row],[Niveau 5]],0,(-COUNTBLANK(Tableau3[[#This Row],[Niveau 1]:[Niveau 5]]))))-1)))","v":{"$error":"#VALUE!"}},null,null,null,null,null,{"$f":"IF(Tableau3[[#This Row],[Catégorie pièce]]=\"Opérations\",VLOOKUP(M46,'Poste de charge'!A:C,2,FALSE),VLOOKUP(CONCATENATE(M46),[1]ARTRDCL!$A$1:$U$25000,2,FALSE))","v":{"$error":"#N/A"}},null,null,null,null,{"$f":"IF(N46=\"Nouveau\",MID(Tableau3[[#This Row],[Article produit/ Poste de charge]],2,15),\"\")","v":""},null,null,null,null,{"$f":"IF(Tableau3[[#This Row],[Catégorie pièce]]=\"Opérations\",$M$5/100,VLOOKUP(CONCATENATE(Tableau3[[#This Row],[Article produit/ Poste de charge]]),[1]ARTRDCL!$A$1:$U$65536,15,FALSE))","v":{"$error":"#N/A"}},null,0,0,null,null,null,null,null,null,null,null,null,null,0,{"$f":"IFERROR(VLOOKUP(CONCATENATE(AC46),Tôles!A:W,10,FALSE)/AA46*(IF(AY46=TRUE,BOM!B46,Tableau3[[#This Row],[surface de la tôle (m²)]])),0)","v":0},{"$f":"IF(AY46=TRUE,Paramètres!$B$13/AX46,0)","v":0},0,{"$f":"IF(AI46>0, (40/AX46 +0.4*AI46)*Paramètres!$B$2/100,0)","v":0},{"$f":"IF(AJ46>0,(0.15/$AX46+$AJ46)*Paramètres!$B$2/100,0)","v":0},{"$f":"IF(AK46=\"Oui\",(13/AX46 +AZ46)*Paramètres!$B$2/100,0)","v":0},{"$f":"IFERROR(VLOOKUP(CONCATENATE(AC46),Tôles!A:W,9,FALSE),0)","v":0},0,{"$f":"IFERROR(AT46/AU46/Paramètres!$B$9,0)","v":0},{"$f":"IFERROR(Paramètres!$B$8/Tableau3[[#This Row],[Surface de la pièce (m²)]]/Paramètres!$B$9,0)","v":0},0,false,0.5,{"$f":"IF(OR(ISERROR((5/$AN46 +$X46*0.08*$T46+ ($U46+$V46) * 0.001)*Paramètres!$B$2/100),AD46 = \"\"),0,(5/$AN46 +$X46*0.08*$T46+ ($U46+$V46) * 0.001)*Paramètres!$B$2/100)","v":0},{"$f":"IF(OR(ISERROR((10/$AN46+$X46*0.007 + ($U46+$V46) * 0.0005)*Paramètres!$B$2/100),AD46= \"\"),0,(10/$AN46+$X46*0.007 + ($U46+$V46) * 0.0005)*Paramètres!$B$2/100)","v":0}]
[null,null,null,null,null,null,null,{"$f":"SUBSTITUTE(TRIM(CONCATENATE(Tableau3[[#This Row],[Niveau 1]],\" \",Tableau3[[#This Row],[Niveau 2]],\" \",Tableau3[[#This Row],[Niveau 3]],\" \",Tableau3[[#This Row],[Niveau 4]],\" \",Tableau3[[#This Row],[Niveau 5]])),\" \",\".\")","v":""},{"$f":"IF(COUNTBLANK(Tableau3[[#This Row],[Niveau 1]:[Niveau 5]])=4,\"0\",LEFT(Tableau3[[#This Row],[Niveau]],(LEN(Tableau3[[#This Row],[Niveau]])-LEN(OFFSET(Tableau3[[#This Row],[Niveau 5]],0,(-COUNTBLANK(Tableau3[[#This Row],[Niveau 1]:[Niveau 5]]))))-1)))","v":{"$error":"#VALUE!"}},null,null,null,null,null,{"$f":"IF(Tableau3[[#This Row],[Catégorie pièce]]=\"Opérations\",VLOOKUP(M47,'Poste de charge'!A:C,2,FALSE),VLOOKUP(CONCATENATE(M47),[1]ARTRDCL!$A$1:$U$25000,2,FALSE))","v":{"$error":"#N/A"}},null,null,null,null,{"$f":"IF(N47=\"Nouveau\",MID(Tableau3[[#This Row],[Article produit/ Poste de charge]],2,15),\"\")","v":""},null,null,null,null,{"$f":"IF(Tableau3[[#This Row],[Catégorie pièce]]=\"Opérations\",$M$5/100,VLOOKUP(CONCATENATE(Tableau3[[#This Row],[Article produit/ Poste de charge]]),[1]ARTRDCL!$A$1:$U$65536,15,FALSE))","v":{"$error":"#N/A"}},null,0,0,null,null,null,null,null,null,null,null,null,null,0,{"$f":"IFERROR(VLOOKUP(CONCATENATE(AC47),Tôles!A:W,10,FALSE)/AA47*(IF(AY47=TRUE,BOM!B47,Tableau3[[#This Row],[surface de la tôle (m²)]])),0)","v":0},{"$f":"IF(AY47=TRUE,Paramètres!$B$13/AX47,0)","v":0},0,{"$f":"IF(AI47>0, (40/AX47 +0.4*AI47)*Paramètres!$B$2/100,0)","v":0},{"$f":"IF(AJ47>0,(0.15/$AX47+$AJ47)*Paramètres!$B$2/100,0)","v":0},{"$f":"IF(AK47=\"Oui\",(13/AX47 +AZ47)*Paramètres!$B$2/100,0)","v":0},{"$f":"IFERROR(VLOOKUP(CONCATENATE(AC47),Tôles!A:W,9,FALSE),0)","v":0},0,{"$f":"IFERROR(AT47/AU47/Paramètres!$B$9,0)","v":0},{"$f":"IFERROR(Paramètres!$B$8/Tableau3[[#This Row],[Surface de la pièce (m²)]]/Paramètres!$B$9,0)","v":0},0,false,0.5,{"$f":"IF(OR(ISERROR((5/$AN47 +$X47*0.08*$T47+ ($U47+$V47) * 0.001)*Paramètres!$B$2/100),AD47 = \"\"),0,(5/$AN47 +$X47*0.08*$T47+ ($U47+$V47) * 0.001)*Paramètres!$B$2/100)","v":0},{"$f":"IF(OR(ISERROR((10/$AN47+$X47*0.007 + ($U47+$V47) * 0.0005)*Paramètres!$B$2/100),AD47= \"\"),0,(10/$AN47+$X47*0.007 + ($U47+$V47) * 0.0005)*Paramètres!$B$2/100)","v":0}]
[null,null,null,null,null,null,null,{"$f":"SUBSTITUTE(TRIM(CONCATENATE(Tableau3[[#This Row],[Niveau 1]],\" \",Tableau3[[#This Row],[Niveau 2]],\" \",Tableau3[[#This Row],[Niveau 3]],\" \",Tableau3[[#This Row],[Niveau 4]],\" \",Tableau3[[#This Row],[Niveau 5]])),\" \",\".\")","v":""},{"$f":"IF(COUNTBLANK(Tableau3[[#This Row],[Niveau 1]:[Niveau 5]])=4,\"0\",LEFT(Tableau3[[#This Row],[Niveau]],(LEN(Tableau3[[#This Row],[Niveau]])-LEN(OFFSET(Tableau3[[#This Row],[Niveau 5]],0,(-COUNTBLANK(Tableau3[[#This Row],[Niveau 1]:[Niveau 5]]))))-1)))","v":{"$error":"#VALUE!"}},null,null,null,null,null,{"$f":"IF(Tableau3[[#This Row],[Catégorie pièce]]=\"Opérations\",VLOOKUP(M48,'Poste de charge'!A:C,2,FALSE),VLOOKUP(CONCATENATE(M48),[1]ARTRDCL!$A$1:$U$25000,2,FALSE))","v":{"$error":"#N/A"}},null,null,null,null,{"$f":"IF(N48=\"Nouveau\",MID(Tableau3[[#This Row],[Article produit/ Poste de charge]],2,15),\"\")","v":""},null,null,null,null,{"$f":"IF(Tableau3[[#This Row],[Catégorie pièce]]=\"Opérations\",$M$5/100,VLOOKUP(CONCATENATE(Tableau3[[#This Row],[Article produit/ Poste de charge]]),[1]ARTRDCL!$A$1:$U$65536,15,FALSE))","v":{"$error":"#N/A"}},null,0,0,null,null,null,null,null,null,null,null,null,null,0,{"$f":"IFERROR(VLOOKUP(CONCATENATE(AC48),Tôles!A:W,10,FALSE)/AA48*(IF(AY48=TRUE,BOM!B48,Tableau3[[#This Row],[surface de la tôle (m²)]])),0)","v":0},{"$f":"IF(AY48=TRUE,Paramètres!$B$13/AX48,0)","v":0},0,{"$f":"IF(AI48>0, (40/AX48 +0.4*AI48)*Paramètres!$B$2/100,0)","v":0},{"$f":"IF(AJ48>0,(0.15/$AX48+$AJ48)*Paramètres!$B$2/100,0)","v":0},{"$f":"IF(AK48=\"Oui\",(13/AX48 +AZ48)*Paramètres!$B$2/100,0)","v":0},{"$f":"IFERROR(VLOOKUP(CONCATENATE(AC48),Tôles!A:W,9,FALSE),0)","v":0},0,{"$f":"IFERROR(AT48/AU48/Paramètres!$B$9,0)","v":0},{"$f":"IFERROR(Paramètres!$B$8/Tableau3[[#This Row],[Surface de la pièce (m²)]]/Paramètres!$B$9,0)","v":0},0,false,0.5,{"$f":"IF(OR(ISERROR((5/$AN48 +$X48*0.08*$T48+ ($U48+$V48) * 0.001)*Paramètres!$B$2/100),AD48 = \"\"),0,(5/$AN48 +$X48*0.08*$T48+ ($U48+$V48) * 0.001)*Paramètres!$B$2/100)","v":0},{"$f":"IF(OR(ISERROR((10/$AN48+$X48*0.007 + ($U48+$V48) * 0.0005)*Paramètres!$B$2/100),AD48= \"\"),0,(10/$AN48+$X48*0.007 + ($U48+$V48) * 0.0005)*Paramètres!$B$2/100)","v":0}]
[null,null,null,null,null,null,null,{"$f":"SUBSTITUTE(TRIM(CONCATENATE(Tableau3[[#This Row],[Niveau 1]],\" \",Tableau3[[#This Row],[Niveau 2]],\" \",Tableau3[[#This Row],[Niveau 3]],\" \",Tableau3[[#This Row],[Niveau 4]],\" \",Tableau3[[#This Row],[Niveau 5]])),\" \",\".\")","v":""},{"$f":"IF(COUNTBLANK(Tableau3[[#This Row],[Niveau 1]:[Niveau 5]])=4,\"0\",LEFT(Tableau3[[#This Row],[Niveau]],(LEN(Tableau3[[#This Row],[Niveau]])-LEN(OFFSET(Tableau3[[#This Row],[Niveau 5]],0,(-COUNTBLANK(Tableau3[[#This Row],[Niveau 1]:[Niveau 5]]))))-1)))","v":{"$error":"#VALUE!"}},null,null,null,null,null,{"$f":"IF(Tableau3[[#This Row],[Catégorie pièce]]=\"Opérations\",VLOOKUP(M49,'Poste de charge'!A:C,2,FALSE),VLOOKUP(CONCATENATE(M49),[1]ARTRDCL!$A$1:$U$25000,2,FALSE))","v":{"$error":"#N/A"}},null,null,null,null,{"$f":"IF(N49=\"Nouveau\",MID(Tableau3[[#This Row],[Article produit/ Poste de charge]],2,15),\"\")","v":""},null,null,null,null,{"$f":"IF(Tableau3[[#This Row],[Catégorie pièce]]=\"Opérations\",$M$5/100,VLOOKUP(CONCATENATE(Tableau3[[#This Row],[Article produit/ Poste de charge]]),[1]ARTRDCL!$A$1:$U$65536,15,FALSE))","v":{"$error":"#N/A"}},null,0,0,null,null,null,null,null,null,null,null,null,null,0,{"$f":"IFERROR(VLOOKUP(CONCATENATE(AC49),Tôles!A:W,10,FALSE)/AA49*(IF(AY49=TRUE,BOM!B49,Tableau3[[#This Row],[surface de la tôle (m²)]])),0)","v":0},{"$f":"IF(AY49=TRUE,Paramètres!$B$13/AX49,0)","v":0},0,{"$f":"IF(AI49>0, (40/AX49 +0.4*AI49)*Paramètres!$B$2/100,0)","v":0},{"$f":"IF(AJ49>0,(0.15/$AX49+$AJ49)*Paramètres!$B$2/100,0)","v":0},{"$f":"IF(AK49=\"Oui\",(13/AX49 +AZ49)*Paramètres!$B$2/100,0)","v":0},{"$f":"IFERROR(VLOOKUP(CONCATENATE(AC49),Tôles!A:W,9,FALSE),0)","v":0},0,{"$f":"IFERROR(AT49/AU49/Paramètres!$B$9,0)","v":0},{"$f":"IFERROR(Paramètres!$B$8/Tableau3[[#This Row],[Surface de la pièce (m²)]]/Paramètres!$B$9,0)","v":0},0,false,0.5,{"$f":"IF(OR(ISERROR((5/$AN49 +$X49*0.08*$T49+ ($U49+$V49) * 0.001)*Paramètres!$B$2/100),AD49 = \"\"),0,(5/$AN49 +$X49*0.08*$T49+ ($U49+$V49) * 0.001)*Paramètres!$B$2/100)","v":0},{"$f":"IF(OR(ISERROR((10/$AN49+$X49*0.007 + ($U49+$V49) * 0.0005)*Paramètres!$B$2/100),AD49= \"\"),0,(10/$AN49+$X49*0.007 + ($U49+$V49) * 0.0005)*Paramètres!$B$2/100)","v":0}]
[null,null,null,null,null,null,null,{"$f":"SUBSTITUTE(TRIM(CONCATENATE(Tableau3[[#This Row],[Niveau 1]],\" \",Tableau3[[#This Row],[Niveau 2]],\" \",Tableau3[[#This Row],[Niveau 3]],\" \",Tableau3[[#This Row],[Niveau 4]],\" \",Tableau3[[#This Row],[Niveau 5]])),\" \",\".\")","v":""},{"$f":"IF(COUNTBLANK(Tableau3[[#This Row],[Niveau 1]:[Niveau 5]])=4,\"0\",LEFT(Tableau3[[#This Row],[Niveau]],(LEN(Tableau3[[#This Row],[Niveau]])-LEN(OFFSET(Tableau3[[#This Row],[Niveau 5]],0,(-COUNTBLANK(Tableau3[[#This Row],[Niveau 1]:[Niveau 5]]))))-1)))","v":{"$error":"#VALUE!"}},null,null,null,null,null,{"$f":"IF(Tableau3[[#This Row],[Catégorie pièce]]=\"Opérations\",VLOOKUP(M50,'Poste de charge'!A:C,2,FALSE),VLOOKUP(CONCATENATE(M50),[1]ARTRDCL!$A$1:$U$25000,2,FALSE))","v":{"$error":"#N/A"}},null,null,null,null,{"$f":"IF(N50=\"Nouveau\",MID(Tableau3[[#This Row],[Article produit/ Poste de charge]],2,15),\"\")","v":""},null,null,null,null,{"$f":"IF(Tableau3[[#This Row],[Catégorie pièce]]=\"Opérations\",$M$5/100,VLOOKUP(CONCATENATE(Tableau3[[#This Row],[Article produit/ Poste de charge]]),[1]ARTRDCL!$A$1:$U$65536,15,FALSE))","v":{"$error":"#N/A"}},null,0,0,null,null,null,null,null,null,null,null,null,null,0,{"$f":"IFERROR(VLOOKUP(CONCATENATE(AC50),Tôles!A:W,10,FALSE)/AA50*(IF(AY50=TRUE,BOM!B50,Tableau3[[#This Row],[surface de la tôle (m²)]])),0)","v":0},{"$f":"IF(AY50=TRUE,Paramètres!$B$13/AX50,0)","v":0},0,{"$f":"IF(AI50>0, (40/AX50 +0.4*AI50)*Paramètres!$B$2/100,0)","v":0},{"$f":"IF(AJ50>0,(0.15/$AX50+$AJ50)*Paramètres!$B$2/100,0)","v":0},{"$f":"IF(AK50=\"Oui\",(13/AX50 +AZ50)*Paramètres!$B$2/100,0)","v":0},{"$f":"IFERROR(VLOOKUP(CONCATENATE(AC50),Tôles!A:W,9,FALSE),0)","v":0},0,{"$f":"IFERROR(AT50/AU50/Paramètres!$B$9,0)","v":0},{"$f":"IFERROR(Paramètres!$B$8/Tableau3[[#This Row],[Surface de la pièce (m²)]]/Paramètres!$B$9,0)","v":0},0,false,0.5,{"$f":"IF(OR(ISERROR((5/$AN50 +$X50*0.08*$T50+ ($U50+$V50) * 0.001)*Paramètres!$B$2/100),AD50 = \"\"),0,(5/$AN50 +$X50*0.08*$T50+ ($U50+$V50) * 0.001)*Paramètres!$B$2/100)","v":0},{"$f":"IF(OR(ISERROR((10/$AN50+$X50*0.007 + ($U50+$V50) * 0.0005)*Paramètres!$B$2/100),AD50= \"\"),0,(10/$AN50+$X50*0.007 + ($U50+$V50) * 0.0005)*Paramètres!$B$2/100)","v":0}]
[null,null,null,null,null,null,null,{"$f":"SUBSTITUTE(TRIM(CONCATENATE(Tableau3[[#This Row],[Niveau 1]],\" \",Tableau3[[#This Row],[Niveau 2]],\" \",Tableau3[[#This Row],[Niveau 3]],\" \",Tableau3[[#This Row],[Niveau 4]],\" \",Tableau3[[#This Row],[Niveau 5]])),\" \",\".\")","v":""},{"$f":"IF(COUNTBLANK(Tableau3[[#This Row],[Niveau 1]:[Niveau 5]])=4,\"0\",LEFT(Tableau3[[#This Row],[Niveau]],(LEN(Tableau3[[#This Row],[Niveau]])-LEN(OFFSET(Tableau3[[#This Row],[Niveau 5]],0,(-COUNTBLANK(Tableau3[[#This Row],[Niveau 1]:[Niveau 5]]))))-1)))","v":{"$error":"#VALUE!"}},null,null,null,null,null,{"$f":"IF(Tableau3[[#This Row],[Catégorie pièce]]=\"Opérations\",VLOOKUP(M51,'Poste de charge'!A:C,2,FALSE),VLOOKUP(CONCATENATE(M51),[1]ARTRDCL!$A$1:$U$25000,2,FALSE))","v":{"$error":"#N/A"}},null,null,null,null,{"$f":"IF(N51=\"Nouveau\",MID(Tableau3[[#This Row],[Article produit/ Poste de charge]],2,15),\"\")","v":""},null,null,null,null,{"$f":"IF(Tableau3[[#This Row],[Catégorie pièce]]=\"Opérations\",$M$5/100,VLOOKUP(CONCATENATE(Tableau3[[#This Row],[Article produit/ Poste de charge]]),[1]ARTRDCL!$A$1:$U$65536,15,FALSE))","v":{"$error":"#N/A"}},null,0,0,null,null,null,null,null,null,null,null,null,null,0,{"$f":"IFERROR(VLOOKUP(CONCATENATE(AC51),Tôles!A:W,10,FALSE)/AA51*(IF(AY51=TRUE,BOM!B51,Tableau3[[#This Row],[surface de la tôle (m²)]])),0)","v":0},{"$f":"IF(AY51=TRUE,Paramètres!$B$13/AX51,0)","v":0},0,{"$f":"IF(AI51>0, (40/AX51 +0.4*AI51)*Paramètres!$B$2/100,0)","v":0},{"$f":"IF(AJ51>0,(0.15/$AX51+$AJ51)*Paramètres!$B$2/100,0)","v":0},{"$f":"IF(AK51=\"Oui\",(13/AX51 +AZ51)*Paramètres!$B$2/100,0)","v":0},{"$f":"IFERROR(VLOOKUP(CONCATENATE(AC51),Tôles!A:W,9,FALSE),0)","v":0},0,{"$f":"IFERROR(AT51/AU51/Paramètres!$B$9,0)","v":0},{"$f":"IFERROR(Paramètres!$B$8/Tableau3[[#This Row],[Surface de la pièce (m²)]]/Paramètres!$B$9,0)","v":0},0,false,0.5,{"$f":"IF(OR(ISERROR((5/$AN51 +$X51*0.08*$T51+ ($U51+$V51) * 0.001)*Paramètres!$B$2/100),AD51 = \"\"),0,(5/$AN51 +$X51*0.08*$T51+ ($U51+$V51) * 0.001)*Paramètres!$B$2/100)","v":0},{"$f":"IF(OR(ISERROR((10/$AN51+$X51*0.007 + ($U51+$V51) * 0.0005)*Paramètres!$B$2/100),AD51= \"\"),0,(10/$AN51+$X51*0.007 + ($U51+$V51) * 0.0005)*Paramètres!$B$2/100)","v":0}]
[null,null,null,null,null,null,null,{"$f":"SUBSTITUTE(TRIM(CONCATENATE(Tableau3[[#This Row],[Niveau 1]],\" \",Tableau3[[#This Row],[Niveau 2]],\" \",Tableau3[[#This Row],[Niveau 3]],\" \",Tableau3[[#This Row],[Niveau 4]],\" \",Tableau3[[#This Row],[Niveau 5]])),\" \",\".\")","v":""},{"$f":"IF(COUNTBLANK(Tableau3[[#This Row],[Niveau 1]:[Niveau 5]])=4,\"0\",LEFT(Tableau3[[#This Row],[Niveau]],(LEN(Tableau3[[#This Row],[Niveau]])-LEN(OFFSET(Tableau3[[#This Row],[Niveau 5]],0,(-COUNTBLANK(Tableau3[[#This Row],[Niveau 1]:[Niveau 5]]))))-1)))","v":{"$error":"#VALUE!"}},null,null,null,null,null,{"$f":"IF(Tableau3[[#This Row],[Catégorie pièce]]=\"Opérations\",VLOOKUP(M52,'Poste de charge'!A:C,2,FALSE),VLOOKUP(CONCATENATE(M52),[1]ARTRDCL!$A$1:$U$25000,2,FALSE))","v":{"$error":"#N/A"}},null,null,null,null,{"$f":"IF(N52=\"Nouveau\",MID(Tableau3[[#This Row],[Article produit/ Poste de charge]],2,15),\"\")","v":""},null,null,null,null,{"$f":"IF(Tableau3[[#This Row],[Catégorie pièce]]=\"Opération\",$M$5/100,VLOOKUP(CONCATENATE(Tableau3[[#This Row],[Article produit/ Poste de charge]]),[1]ARTRDCL!$A$1:$U$65536,15,FALSE))","v":{"$error":"#N/A"}},null,{"$f":"ROUNDDOWN(IF($AO52= TRUE,$AM52,$AL52),0)","v":0},{"$f":"Z52*2/25","v":0},null,null,null,null,null,null,null,null,null,null,{"$f":"SUM(AN52:AS52)","v":0},{"$f":"IFERROR(VLOOKUP(CONCATENATE(AC52),Tôles!A:W,10,FALSE)/AA52*(IF(AY52=TRUE,BOM!B52,Tableau3[[#This Row],[surface de la tôle (m²)]])),0)","v":0},{"$f":"IF(AY52=TRUE,Paramètres!$B$13/AX52,0)","v":0},{"$f":"IF(AG52= \"Oui\",$BA52,BB52)","v":0},{"$f":"IF(AI52>0, (40/AX52 +0.4*AI52)*Paramètres!$B$2/100,0)","v":0},{"$f":"IF(AJ52>0,(0.15/$AX52+$AJ52)*Paramètres!$B$2/100,0)","v":0},{"$f":"IF(AK52=\"Oui\",(13/AX52 +AZ52)*Paramètres!$B$2/100,0)","v":0},{"$f":"IFERROR(VLOOKUP(CONCATENATE(AC52),Tôles!A:W,9,FALSE),0)","v":0},{"$f":"AE52/1000*AF52/1000","v":0},{"$f":"IFERROR(AT52/AU52/Paramètres!$B$9,0)","v":0},{"$f":"IFERROR(Paramètres!$B$8/Tableau3[[#This Row],[Surface de la pièce (m²)]]/Paramètres!$B$9,0)","v":0},{"$f":"IF(AB52>0,AB52,AA52)","v":0},{"$f":"AND(IF(AV52>50,TRUE,FALSE),AL52<>\"Oui\")","v":false},{"$f":"MAX(AE52,AF52)/1000 + 0.5","v":0.5},{"$f":"IF(OR(ISERROR((5/$AN52 +$X52*0.08*$T52+ ($U52+$V52) * 0.001)*Paramètres!$B$2/100),AD52 = \"\"),0,(5/$AN52 +$X52*0.08*$T52+ ($U52+$V52) * 0.001)*Paramètres!$B$2/100)","v":0},{"$f":"IF(OR(ISERROR((10/$AN52+$X52*0.007 + ($U52+$V52) * 0.0005)*Paramètres!$B$2/100),AD52= \"\"),0,(10/$AN52+$X52*0.007 + ($U52+$V52) * 0.0005)*Paramètres!$B$2/100)","v":0}]
[null,"Emballage",null,null,null,null,null,{"$f":"SUBSTITUTE(TRIM(CONCATENATE(Tableau3[[#This Row],[Niveau 1]],\" \",Tableau3[[#This Row],[Niveau 2]],\" \",Tableau3[[#This Row],[Niveau 3]],\" \",Tableau3[[#This Row],[Niveau 4]],\" \",Tableau3[[#This Row],[Niveau 5]])),\" \",\".\")","v":""},{"$f":"IF(COUNTBLANK(Tableau3[[#This Row],[Niveau 1]:[Niveau 5]])=4,\"0\",LEFT(Tableau3[[#This Row],[Niveau]],(LEN(Tableau3[[#This Row],[Niveau]])-LEN(OFFSET(Tableau3[[#This Row],[Niveau 5]],0,(-COUNTBLANK(Tableau3[[#This Row],[Niveau 1]:[Niveau 5]]))))-1)))","v":{"$error":"#VALUE!"}},null,null,null,null,null,{"$f":"IF(Tableau3[[#This Row],[Catégorie pièce]]=\"Opérations\",VLOOKUP(M53,'Poste de charge'!A:C,2,FALSE),VLOOKUP(CONCATENATE(M53),[1]ARTRDCL!$A$1:$U$25000,2,FALSE))","v":{"$error":"#N/A"}},null,null,null,null,{"$f":"IF(N53=\"Nouveau\",MID(Tableau3[[#This Row],[Article produit/ Poste de charge]],2,15),\"\")","v":""},null,null,null,null,{"$f":"IF(Tableau3[[#This Row],[Catégorie pièce]]=\"Opération\",$M$5/100,VLOOKUP(CONCATENATE(Tableau3[[#This Row],[Article produit/ Poste de charge]]),[1]ARTRDCL!$A$1:$U$65536,15,FALSE))","v":{"$error":"#N/A"}},null,0,0,null,null,null,null,null,null,null,null,null,null,0,{"$f":"IFERROR(VLOOKUP(CONCATENATE(AC53),Tôles!A:W,10,FALSE)/AA53*(IF(AY53=TRUE,BOM!B53,Tableau3[[#This Row],[surface de la tôle (m²)]])),0)","v":0},{"$f":"IF(AY53=TRUE,Paramètres!$B$13/AX53,0)","v":0},0,{"$f":"IF(AI53>0, (40/AX53 +0.4*AI53)*Paramètres!$B$2/100,0)","v":0},{"$f":"IF(AJ53>0,(0.15/$AX53+$AJ53)*Paramètres!$B$2/100,0)","v":0},{"$f":"IF(AK53=\"Oui\",(13/AX53 +AZ53)*Paramètres!$B$2/100,0)","v":0},{"$f":"IFERROR(VLOOKUP(CONCATENATE(AC53),Tôles!A:W,9,FALSE),0)","v":0},0,{"$f":"IFERROR(AT53/AU53/Paramètres!$B$9,0)","v":0},{"$f":"IFERROR(Paramètres!$B$8/Tableau3[[#This Row],[Surface de la pièce (m²)]]/Paramètres!$B$9,0)","v":0},0,false,0.5,{"$f":"IF(OR(ISERROR((5/$AN53 +$X53*0.08*$T53+ ($U53+$V53) * 0.001)*Paramètres!$B$2/100),AD53 = \"\"),0,(5/$AN53 +$X53*0.08*$T53+ ($U53+$V53) * 0.001)*Paramètres!$B$2/100)","v":0},{"$f":"IF(OR(ISERROR((10/$AN53+$X53*0.007 + ($U53+$V53) * 0.0005)*Paramètres!$B$2/100),AD53= \"\"),0,(10/$AN53+$X53*0.007 + ($U53+$V53) * 0.0005)*Paramètres!$B$2/100)","v":0}]
[null,null,null,null,null,null,null,{"$f":"SUBSTITUTE(TRIM(CONCATENATE(Tableau3[[#This Row],[Niveau 1]],\" \",Tableau3[[#This Row],[Niveau 2]],\" \",Tableau3[[#This Row],[Niveau 3]],\" \",Tableau3[[#This Row],[Niveau 4]],\" \",Tableau3[[#This Row],[Niveau 5]])),\" \",\".\")","v":""},{"$f":"IF(COUNTBLANK(Tableau3[[#This Row],[Niveau 1]:[Niveau 5]])=4,\"0\",LEFT(Tableau3[[#This Row],[Niveau]],(LEN(Tableau3[[#This Row],[Niveau]])-LEN(OFFSET(Tableau3[[#This Row],[Niveau 5]],0,(-COUNTBLANK(Tableau3[[#This Row],[Niveau 1]:[Niveau 5]]))))-1)))","v":{"$error":"#VALUE!"}},null,null,null,null,null,{"$f":"IF(Tableau3[[#This Row],[Catégorie pièce]]=\"Opérations\",VLOOKUP(M54,'Poste de charge'!A:C,2,FALSE),VLOOKUP(CONCATENATE(M54),[1]ARTRDCL!$A$1:$U$25000,2,FALSE))","v":{"$error":"#N/A"}},null,null,null,null,{"$f":"IF(N54=\"Nouveau\",MID(Tableau3[[#This Row],[Article produit/ Poste de charge]],2,15),\"\")","v":""},null,null,null,null,{"$f":"IF(Tableau3[[#This Row],[Catégorie pièce]]=\"Opération\",$M$5/100,VLOOKUP(CONCATENATE(Tableau3[[#This Row],[Article produit/ Poste de charge]]),[1]ARTRDCL!$A$1:$U$65536,15,FALSE))","v":{"$error":"#N/A"}},null,0,0,null,null,null,null,null,null,null,null,null,null,0,{"$f":"IFERROR(VLOOKUP(CONCATENATE(AC54),Tôles!A:W,10,FALSE)/AA54*(IF(AY54=TRUE,BOM!B54,Tableau3[[#This Row],[surface de la tôle (m²)]])),0)","v":0},{"$f":"IF(AY54=TRUE,Paramètres!$B$13/AX54,0)","v":0},0,{"$f":"IF(AI54>0, (40/AX54 +0.4*AI54)*Paramètres!$B$2/100,0)","v":0},{"$f":"IF(AJ54>0,(0.15/$AX54+$AJ54)*Paramètres!$B$2/100,0)","v":0},{"$f":"IF(AK54=\"Oui\",(13/AX54 +AZ54)*Paramètres!$B$2/100,0)","v":0},{"$f":"IFERROR(VLOOKUP(CONCATENATE(AC54),Tôles!A:W,9,FALSE),0)","v":0},0,{"$f":"IFERROR(AT54/AU54/Paramètres!$B$9,0)","v":0},{"$f":"IFERROR(Paramètres!$B$8/Tableau3[[#This Row],[Surface de la pièce (m²)]]/Paramètres!$B$9,0)","v":0},0,false,0.5,{"$f":"IF(OR(ISERROR((5/$AN54 +$X54*0.08*$T54+ ($U54+$V54) * 0.001)*Paramètres!$B$2/100),AD54 = \"\"),0,(5/$AN54 +$X54*0.08*$T54+ ($U54+$V54) * 0.001)*Paramètres!$B$2/100)","v":0},{"$f":"IF(OR(ISERROR((10/$AN54+$X54*0.007 + ($U54+$V54) * 0.0005)*Paramètres!$B$2/100),AD54= \"\"),0,(10/$AN54+$X54*0.007 + ($U54+$V54) * 0.0005)*Paramètres!$B$2/100)","v":0}]
[null,null,null,null,null,null,null,{"$f":"SUBSTITUTE(TRIM(CONCATENATE(Tableau3[[#This Row],[Niveau 1]],\" \",Tableau3[[#This Row],[Niveau 2]],\" \",Tableau3[[#This Row],[Niveau 3]],\" \",Tableau3[[#This Row],[Niveau 4]],\" \",Tableau3[[#This Row],[Niveau 5]])),\" \",\".\")","v":""},{"$f":"IF(COUNTBLANK(Tableau3[[#This Row],[Niveau 1]:[Niveau 5]])=4,\"0\",LEFT(Tableau3[[#This Row],[Niveau]],(LEN(Tableau3[[#This Row],[Niveau]])-LEN(OFFSET(Tableau3[[#This Row],[Niveau 5]],0,(-COUNTBLANK(Tableau3[[#This Row],[Niveau 1]:[Niveau 5]]))))-1)))","v":{"$error":"#VALUE!"}},null,null,null,null,null,{"$f":"IF(Tableau3[[#This Row],[Catégorie pièce]]=\"Opérations\",VLOOKUP(M55,'Poste de charge'!A:C,2,FALSE),VLOOKUP(CONCATENATE(M55),[1]ARTRDCL!$A$1:$U$25000,2,FALSE))","v":{"$error":"#N/A"}},null,null,null,null,{"$f":"IF(N55=\"Nouveau\",MID(Tableau3[[#This Row],[Article produit/ Poste de charge]],2,15),\"\")","v":""},null,null,null,null,{"$f":"IF(Tableau3[[#This Row],[Catégorie pièce]]=\"Opération\",$M$5/100,VLOOKUP(CONCATENATE(Tableau3[[#This Row],[Article produit/ Poste de charge]]),[1]ARTRDCL!$A$1:$U$65536,15,FALSE))","v":{"$error":"#N/A"}},null,0,0,null,null,null,null,null,null,null,null,null,null,0,{"$f":"IFERROR(VLOOKUP(CONCATENATE(AC55),Tôles!A:W,10,FALSE)/AA55*(IF(AY55=TRUE,BOM!B55,Tableau3[[#This Row],[surface de la tôle (m²)]])),0)","v":0},{"$f":"IF(AY55=TRUE,Paramètres!$B$13/AX55,0)","v":0},0,{"$f":"IF(AI55>0, (40/AX55 +0.4*AI55)*Paramètres!$B$2/100,0)","v":0},{"$f":"IF(AJ55>0,(0.15/$AX55+$AJ55)*Paramètres!$B$2/100,0)","v":0},{"$f":"IF(AK55=\"Oui\",(13/AX55 +AZ55)*Paramètres!$B$2/100,0)","v":0},{"$f":"IFERROR(VLOOKUP(CONCATENATE(AC55),Tôles!A:W,9,FALSE),0)","v":0},0,{"$f":"IFERROR(AT55/AU55/Paramètres!$B$9,0)","v":0},{"$f":"IFERROR(Paramètres!$B$8/Tableau3[[#This Row],[Surface de la pièce (m²)]]/Paramètres!$B$9,0)","v":0},0,false,0.5,{"$f":"IF(OR(ISERROR((5/$AN55 +$X55*0.08*$T55+ ($U55+$V55) * 0.001)*Paramètres!$B$2/100),AD55 = \"\"),0,(5/$AN55 +$X55*0.08*$T55+ ($U55+$V55) * 0.001)*Paramètres!$B$2/100)","v":0},{"$f":"IF(OR(ISERROR((10/$AN55+$X55*0.007 + ($U55+$V55) * 0.0005)*Paramètres!$B$2/100),AD55= \"\"),0,(10/$AN55+$X55*0.007 + ($U55+$V55) * 0.0005)*Paramètres!$B$2/100)","v":0}]
[null,null,null,null,null,null,null,{"$f":"SUBSTITUTE(TRIM(CONCATENATE(Tableau3[[#This Row],[Niveau 1]],\" \",Tableau3[[#This Row],[Niveau 2]],\" \",Tableau3[[#This Row],[Niveau 3]],\" \",Tableau3[[#This Row],[Niveau 4]],\" \",Tableau3[[#This Row],[Niveau 5]])),\" \",\".\")","v":""},{"$f":"IF(COUNTBLANK(Tableau3[[#This Row],[Niveau 1]:[Niveau 5]])=4,\"0\",LEFT(Tableau3[[#This Row],[Niveau]],(LEN(Tableau3[[#This Row],[Niveau]])-LEN(OFFSET(Tableau3[[#This Row],[Niveau 5]],0,(-COUNTBLANK(Tableau3[[#This Row],[Niveau 1]:[Niveau 5]]))))-1)))","v":{"$error":"#VALUE!"}},null,null,null,null,null,{"$f":"IF(Tableau3[[#This Row],[Catégorie pièce]]=\"Opérations\",VLOOKUP(M56,'Poste de charge'!A:C,2,FALSE),VLOOKUP(CONCATENATE(M56),[1]ARTRDCL!$A$1:$U$25000,2,FALSE))","v":{"$error":"#N/A"}},null,null,null,null,{"$f":"IF(N56=\"Nouveau\",MID(Tableau3[[#This Row],[Article produit/ Poste de charge]],2,15),\"\")","v":""},null,null,null,null,{"$f":"IF(Tableau3[[#This Row],[Catégorie pièce]]=\"Opération\",$M$5/100,VLOOKUP(CONCATENATE(Tableau3[[#This Row],[Article produit/ Poste de charge]]),[1]ARTRDCL!$A$1:$U$65536,15,FALSE))","v":{"$error":"#N/A"}},null,0,0,null,null,null,null,null,null,null,null,null,null,0,{"$f":"IFERROR(VLOOKUP(CONCATENATE(AC56),Tôles!A:W,10,FALSE)/AA56*(IF(AY56=TRUE,BOM!B56,Tableau3[[#This Row],[surface de la tôle (m²)]])),0)","v":0},{"$f":"IF(AY56=TRUE,Paramètres!$B$13/AX56,0)","v":0},0,{"$f":"IF(AI56>0, (40/AX56 +0.4*AI56)*Paramètres!$B$2/100,0)","v":0},{"$f":"IF(AJ56>0,(0.15/$AX56+$AJ56)*Paramètres!$B$2/100,0)","v":0},{"$f":"IF(AK56=\"Oui\",(13/AX56 +AZ56)*Paramètres!$B$2/100,0)","v":0},{"$f":"IFERROR(VLOOKUP(CONCATENATE(AC56),Tôles!A:W,9,FALSE),0)","v":0},0,{"$f":"IFERROR(AT56/AU56/Paramètres!$B$9,0)","v":0},{"$f":"IFERROR(Paramètres!$B$8/Tableau3[[#This Row],[Surface de la pièce (m²)]]/Paramètres!$B$9,0)","v":0},0,false,0.5,{"$f":"IF(OR(ISERROR((5/$AN56 +$X56*0.08*$T56+ ($U56+$V56) * 0.001)*Paramètres!$B$2/100),AD56 = \"\"),0,(5/$AN56 +$X56*0.08*$T56+ ($U56+$V56) * 0.001)*Paramètres!$B$2/100)","v":0},{"$f":"IF(OR(ISERROR((10/$AN56+$X56*0.007 + ($U56+$V56) * 0.0005)*Paramètres!$B$2/100),AD56= \"\"),0,(10/$AN56+$X56*0.007 + ($U56+$V56) * 0.0005)*Paramètres!$B$2/100)","v":0}]
[null,null,null,null,null,null,null,{"$f":"SUBSTITUTE(TRIM(CONCATENATE(Tableau3[[#This Row],[Niveau 1]],\" \",Tableau3[[#This Row],[Niveau 2]],\" \",Tableau3[[#This Row],[Niveau 3]],\" \",Tableau3[[#This Row],[Niveau 4]],\" \",Tableau3[[#This Row],[Niveau 5]])),\" \",\".\")","v":""},{"$f":"IF(COUNTBLANK(Tableau3[[#This Row],[Niveau 1]:[Niveau 5]])=4,\"0\",LEFT(Tableau3[[#This Row],[Niveau]],(LEN(Tableau3[[#This Row],[Niveau]])-LEN(OFFSET(Tableau3[[#This Row],[Niveau 5]],0,(-COUNTBLANK(Tableau3[[#This Row],[Niveau 1]:[Niveau 5]]))))-1)))","v":{"$error":"#VALUE!"}},null,null,null,null,null,{"$f":"IF(Tableau3[[#This Row],[Catégorie pièce]]=\"Opérations\",VLOOKUP(M57,'Poste de charge'!A:C,2,FALSE),VLOOKUP(CONCATENATE(M57),[1]ARTRDCL!$A$1:$U$25000,2,FALSE))","v":{"$error":"#N/A"}},null,null,null,null,{"$f":"IF(N57=\"Nouveau\",MID(Tableau3[[#This Row],[Article produit/ Poste de charge]],2,15),\"\")","v":""},null,null,null,null,{"$f":"IF(Tableau3[[#This Row],[Catégorie pièce]]=\"Opération\",$M$5/100,VLOOKUP(CONCATENATE(Tableau3[[#This Row],[Article produit/ Poste de charge]]),[1]ARTRDCL!$A$1:$U$65536,15,FALSE))","v":{"$error":"#N/A"}},null,0,0,null,null,null,null,null,null,null,null,null,null,0,{"$f":"IFERROR(VLOOKUP(CONCATENATE(AC57),Tôles!A:W,10,FALSE)/AA57*(IF(AY57=TRUE,BOM!B57,Tableau3[[#This Row],[surface de la tôle (m²)]])),0)","v":0},{"$f":"IF(AY57=TRUE,Paramètres!$B$13/AX57,0)","v":0},0,{"$f":"IF(AI57>0, (40/AX57 +0.4*AI57)*Paramètres!$B$2/100,0)","v":0},{"$f":"IF(AJ57>0,(0.15/$AX57+$AJ57)*Paramètres!$B$2/100,0)","v":0},{"$f":"IF(AK57=\"Oui\",(13/AX57 +AZ57)*Paramètres!$B$2/100,0)","v":0},{"$f":"IFERROR(VLOOKUP(CONCATENATE(AC57),Tôles!A:W,9,FALSE),0)","v":0},0,{"$f":"IFERROR(AT57/AU57/Paramètres!$B$9,0)","v":0},{"$f":"IFERROR(Paramètres!$B$8/Tableau3[[#This Row],[Surface de la pièce (m²)]]/Paramètres!$B$9,0)","v":0},0,false,0.5,{"$f":"IF(OR(ISERROR((5/$AN57 +$X57*0.08*$T57+ ($U57+$V57) * 0.001)*Paramètres!$B$2/100),AD57 = \"\"),0,(5/$AN57 +$X57*0.08*$T57+ ($U57+$V57) * 0.001)*Paramètres!$B$2/100)","v":0},{"$f":"IF(OR(ISERROR((10/$AN57+$X57*0.007 + ($U57+$V57) * 0.0005)*Paramètres!$B$2/100),AD57= \"\"),0,(10/$AN57+$X57*0.007 + ($U57+$V57) * 0.0005)*Paramètres!$B$2/100)","v":0}]
[null,null,null,null,null,null,null,{"$f":"SUBSTITUTE(TRIM(CONCATENATE(Tableau3[[#This Row],[Niveau 1]],\" \",Tableau3[[#This Row],[Niveau 2]],\" \",Tableau3[[#This Row],[Niveau 3]],\" \",Tableau3[[#This Row],[Niveau 4]],\" \",Tableau3[[#This Row],[Niveau 5]])),\" \",\".\")","v":""},{"$f":"IF(COUNTBLANK(Tableau3[[#This Row],[Niveau 1]:[Niveau 5]])=4,\"0\",LEFT(Tableau3[[#This Row],[Niveau]],(LEN(Tableau3[[#This Row],[Niveau]])-LEN(OFFSET(Tableau3[[#This Row],[Niveau 5]],0,(-COUNTBLANK(Tableau3[[#This Row],[Niveau 1]:[Niveau 5]]))))-1)))","v":{"$error":"#VALUE!"}},null,null,null,null,null,{"$f":"IF(Tableau3[[#This Row],[Catégorie pièce]]=\"Opérations\",VLOOKUP(M58,'Poste de charge'!A:C,2,FALSE),VLOOKUP(CONCATENATE(M58),[1]ARTRDCL!$A$1:$U$25000,2,FALSE))","v":{"$error":"#N/A"}},null,null,null,null,{"$f":"IF(N58=\"Nouveau\",MID(Tableau3[[#This Row],[Article produit/ Poste de charge]],2,15),\"\")","v":""},null,null,null,null,{"$f":"IF(Tableau3[[#This Row],[Catégorie pièce]]=\"Opération\",$M$5/100,VLOOKUP(CONCATENATE(Tableau3[[#This Row],[Article produit/ Poste de charge]]),[1]ARTRDCL!$A$1:$U$65536,15,FALSE))","v":{"$error":"#N/A"}},null,0,0,null,null,null,null,null,null,null,null,null,null,0,{"$f":"IFERROR(VLOOKUP(CONCATENATE(AC58),Tôles!A:W,10,FALSE)/AA58*(IF(AY58=TRUE,BOM!B58,Tableau3[[#This Row],[surface de la tôle (m²)]])),0)","v":0},{"$f":"IF(AY58=TRUE,Paramètres!$B$13/AX58,0)","v":0},0,{"$f":"IF(AI58>0, (40/AX58 +0.4*AI58)*Paramètres!$B$2/100,0)","v":0},{"$f":"IF(AJ58>0,(0.15/$AX58+$AJ58)*Paramètres!$B$2/100,0)","v":0},{"$f":"IF(AK58=\"Oui\",(13/AX58 +AZ58)*Paramètres!$B$2/100,0)","v":0},{"$f":"IFERROR(VLOOKUP(CONCATENATE(AC58),Tôles!A:W,9,FALSE),0)","v":0},0,{"$f":"IFERROR(AT58/AU58/Paramètres!$B$9,0)","v":0},{"$f":"IFERROR(Paramètres!$B$8/Tableau3[[#This Row],[Surface de la pièce (m²)]]/Paramètres!$B$9,0)","v":0},0,false,0.5,{"$f":"IF(OR(ISERROR((5/$AN58 +$X58*0.08*$T58+ ($U58+$V58) * 0.001)*Paramètres!$B$2/100),AD58 = \"\"),0,(5/$AN58 +$X58*0.08*$T58+ ($U58+$V58) * 0.001)*Paramètres!$B$2/100)","v":0},{"$f":"IF(OR(ISERROR((10/$AN58+$X58*0.007 + ($U58+$V58) * 0.0005)*Paramètres!$B$2/100),AD58= \"\"),0,(10/$AN58+$X58*0.007 + ($U58+$V58) * 0.0005)*Paramètres!$B$2/100)","v":0}]
[null,null,null,null,null,null,null,{"$f":"SUBSTITUTE(TRIM(CONCATENATE(Tableau3[[#This Row],[Niveau 1]],\" \",Tableau3[[#This Row],[Niveau 2]],\" \",Tableau3[[#This Row],[Niveau 3]],\" \",Tableau3[[#This Row],[Niveau 4]],\" \",Tableau3[[#This Row],[Niveau 5]])),\" \",\".\")","v":""},{"$f":"IF(COUNTBLANK(Tableau3[[#This Row],[Niveau 1]:[Niveau 5]])=4,\"0\",LEFT(Tableau3[[#This Row],[Niveau]],(LEN(Tableau3[[#This Row],[Niveau]])-LEN(OFFSET(Tableau3[[#This Row],[Niveau 5]],0,(-COUNTBLANK(Tableau3[[#This Row],[Niveau 1]:[Niveau 5]]))))-1)))","v":{"$error":"#VALUE!"}},null,null,null,null,null,{"$f":"IF(Tableau3[[#This Row],[Catégorie pièce]]=\"Opérations\",VLOOKUP(M59,'Poste de charge'!A:C,2,FALSE),VLOOKUP(CONCATENATE(M59),[1]ARTRDCL!$A$1:$U$25000,2,FALSE))","v":{"$error":"#N/A"}},null,null,null,null,{"$f":"IF(N59=\"Nouveau\",MID(Tableau3[[#This Row],[Article produit/ Poste de charge]],2,15),\"\")","v":""},null,null,null,null,{"$f":"IF(Tableau3[[#This Row],[Catégorie pièce]]=\"Opération\",$M$5/100,VLOOKUP(CONCATENATE(Tableau3[[#This Row],[Article produit/ Poste de charge]]),[1]ARTRDCL!$A$1:$U$65536,15,FALSE))","v":{"$error":"#N/A"}},null,0,0,null,null,null,null,null,null,null,null,null,null,0,{"$f":"IFERROR(VLOOKUP(CONCATENATE(AC59),Tôles!A:W,10,FALSE)/AA59*(IF(AY59=TRUE,BOM!B59,Tableau3[[#This Row],[surface de la tôle (m²)]])),0)","v":0},{"$f":"IF(AY59=TRUE,Paramètres!$B$13/AX59,0)","v":0},0,{"$f":"IF(AI59>0, (40/AX59 +0.4*AI59)*Paramètres!$B$2/100,0)","v":0},{"$f":"IF(AJ59>0,(0.15/$AX59+$AJ59)*Paramètres!$B$2/100,0)","v":0},{"$f":"IF(AK59=\"Oui\",(13/AX59 +AZ59)*Paramètres!$B$2/100,0)","v":0},{"$f":"IFERROR(VLOOKUP(CONCATENATE(AC59),Tôles!A:W,9,FALSE),0)","v":0},0,{"$f":"IFERROR(AT59/AU59/Paramètres!$B$9,0)","v":0},{"$f":"IFERROR(Paramètres!$B$8/Tableau3[[#This Row],[Surface de la pièce (m²)]]/Paramètres!$B$9,0)","v":0},0,false,0.5,{"$f":"IF(OR(ISERROR((5/$AN59 +$X59*0.08*$T59+ ($U59+$V59) * 0.001)*Paramètres!$B$2/100),AD59 = \"\"),0,(5/$AN59 +$X59*0.08*$T59+ ($U59+$V59) * 0.001)*Paramètres!$B$2/100)","v":0},{"$f":"IF(OR(ISERROR((10/$AN59+$X59*0.007 + ($U59+$V59) * 0.0005)*Paramètres!$B$2/100),AD59= \"\"),0,(10/$AN59+$X59*0.007 + ($U59+$V59) * 0.0005)*Paramètres!$B$2/100)","v":0}]
[null,null,null,null,null,null,null,{"$f":"SUBSTITUTE(TRIM(CONCATENATE(Tableau3[[#This Row],[Niveau 1]],\" \",Tableau3[[#This Row],[Niveau 2]],\" \",Tableau3[[#This Row],[Niveau 3]],\" \",Tableau3[[#This Row],[Niveau 4]],\" \",Tableau3[[#This Row],[Niveau 5]])),\" \",\".\")","v":""},{"$f":"IF(COUNTBLANK(Tableau3[[#This Row],[Niveau 1]:[Niveau 5]])=4,\"0\",LEFT(Tableau3[[#This Row],[Niveau]],(LEN(Tableau3[[#This Row],[Niveau]])-LEN(OFFSET(Tableau3[[#This Row],[Niveau 5]],0,(-COUNTBLANK(Tableau3[[#This Row],[Niveau 1]:[Niveau 5]]))))-1)))","v":{"$error":"#VALUE!"}},null,null,null,null,null,{"$f":"IF(Tableau3[[#This Row],[Catégorie pièce]]=\"Opérations\",VLOOKUP(M60,'Poste de charge'!A:C,2,FALSE),VLOOKUP(CONCATENATE(M60),[1]ARTRDCL!$A$1:$U$25000,2,FALSE))","v":{"$error":"#N/A"}},null,null,null,null,{"$f":"IF(N60=\"Nouveau\",MID(Tableau3[[#This Row],[Article produit/ Poste de charge]],2,15),\"\")","v":""},null,null,null,null,{"$f":"IF(Tableau3[[#This Row],[Catégorie pièce]]=\"Opération\",$M$5/100,VLOOKUP(CONCATENATE(Tableau3[[#This Row],[Article produit/ Poste de charge]]),[1]ARTRDCL!$A$1:$U$65536,15,FALSE))","v":{"$error":"#N/A"}},null,0,0,null,null,null,null,null,null,null,null,null,null,0,{"$f":"IFERROR(VLOOKUP(CONCATENATE(AC60),Tôles!A:W,10,FALSE)/AA60*(IF(AY60=TRUE,BOM!B60,Tableau3[[#This Row],[surface de la tôle (m²)]])),0)","v":0},{"$f":"IF(AY60=TRUE,Paramètres!$B$13/AX60,0)","v":0},0,{"$f":"IF(AI60>0, (40/AX60 +0.4*AI60)*Paramètres!$B$2/100,0)","v":0},{"$f":"IF(AJ60>0,(0.15/$AX60+$AJ60)*Paramètres!$B$2/100,0)","v":0},{"$f":"IF(AK60=\"Oui\",(13/AX60 +AZ60)*Paramètres!$B$2/100,0)","v":0},{"$f":"IFERROR(VLOOKUP(CONCATENATE(AC60),Tôles!A:W,9,FALSE),0)","v":0},0,{"$f":"IFERROR(AT60/AU60/Paramètres!$B$9,0)","v":0},{"$f":"IFERROR(Paramètres!$B$8/Tableau3[[#This Row],[Surface de la pièce (m²)]]/Paramètres!$B$9,0)","v":0},0,false,0.5,{"$f":"IF(OR(ISERROR((5/$AN60 +$X60*0.08*$T60+ ($U60+$V60) * 0.001)*Paramètres!$B$2/100),AD60 = \"\"),0,(5/$AN60 +$X60*0.08*$T60+ ($U60+$V60) * 0.001)*Paramètres!$B$2/100)","v":0},{"$f":"IF(OR(ISERROR((10/$AN60+$X60*0.007 + ($U60+$V60) * 0.0005)*Paramètres!$B$2/100),AD60= \"\"),0,(10/$AN60+$X60*0.007 + ($U60+$V60) * 0.0005)*Paramètres!$B$2/100)","v":0}]
[null,null,null,null,null,null,null,{"$f":"SUBSTITUTE(TRIM(CONCATENATE(Tableau3[[#This Row],[Niveau 1]],\" \",Tableau3[[#This Row],[Niveau 2]],\" \",Tableau3[[#This Row],[Niveau 3]],\" \",Tableau3[[#This Row],[Niveau 4]],\" \",Tableau3[[#This Row],[Niveau 5]])),\" \",\".\")","v":""},{"$f":"IF(COUNTBLANK(Tableau3[[#This Row],[Niveau 1]:[Niveau 5]])=4,\"0\",LEFT(Tableau3[[#This Row],[Niveau]],(LEN(Tableau3[[#This Row],[Niveau]])-LEN(OFFSET(Tableau3[[#This Row],[Niveau 5]],0,(-COUNTBLANK(Tableau3[[#This Row],[Niveau 1]:[Niveau 5]]))))-1)))","v":{"$error":"#VALUE!"}},null,null,null,null,null,{"$f":"IF(Tableau3[[#This Row],[Catégorie pièce]]=\"Opérations\",VLOOKUP(M61,'Poste de charge'!A:C,2,FALSE),VLOOKUP(CONCATENATE(M61),[1]ARTRDCL!$A$1:$U$25000,2,FALSE))","v":{"$error":"#N/A"}},null,null,null,null,{"$f":"IF(N61=\"Nouveau\",MID(Tableau3[[#This Row],[Article produit/ Poste de charge]],2,15),\"\")","v":""},null,null,null,null,{"$f":"IF(Tableau3[[#This Row],[Catégorie pièce]]=\"Opération\",$M$5/100,VLOOKUP(CONCATENATE(Tableau3[[#This Row],[Article produit/ Poste de charge]]),[1]ARTRDCL!$A$1:$U$65536,15,FALSE))","v":{"$error":"#N/A"}},null,0,0,null,null,null,null,null,null,null,null,null,null,0,{"$f":"IFERROR(VLOOKUP(CONCATENATE(AC61),Tôles!A:W,10,FALSE)/AA61*(IF(AY61=TRUE,BOM!B61,Tableau3[[#This Row],[surface de la tôle (m²)]])),0)","v":0},{"$f":"IF(AY61=TRUE,Paramètres!$B$13/AX61,0)","v":0},0,{"$f":"IF(AI61>0, (40/AX61 +0.4*AI61)*Paramètres!$B$2/100,0)","v":0},{"$f":"IF(AJ61>0,(0.15/$AX61+$AJ61)*Paramètres!$B$2/100,0)","v":0},{"$f":"IF(AK61=\"Oui\",(13/AX61 +AZ61)*Paramètres!$B$2/100,0)","v":0},{"$f":"IFERROR(VLOOKUP(CONCATENATE(AC61),Tôles!A:W,9,FALSE),0)","v":0},0,{"$f":"IFERROR(AT61/AU61/Paramètres!$B$9,0)","v":0},{"$f":"IFERROR(Paramètres!$B$8/Tableau3[[#This Row],[Surface de la pièce (m²)]]/Paramètres!$B$9,0)","v":0},0,false,0.5,{"$f":"IF(OR(ISERROR((5/$AN61 +$X61*0.08*$T61+ ($U61+$V61) * 0.001)*Paramètres!$B$2/100),AD61 = \"\"),0,(5/$AN61 +$X61*0.08*$T61+ ($U61+$V61) * 0.001)*Paramètres!$B$2/100)","v":0},{"$f":"IF(OR(ISERROR((10/$AN61+$X61*0.007 + ($U61+$V61) * 0.0005)*Paramètres!$B$2/100),AD61= \"\"),0,(10/$AN61+$X61*0.007 + ($U61+$V61) * 0.0005)*Paramètres!$B$2/100)","v":0}]
[null,null,null,null,null,null,null,{"$f":"SUBSTITUTE(TRIM(CONCATENATE(Tableau3[[#This Row],[Niveau 1]],\" \",Tableau3[[#This Row],[Niveau 2]],\" \",Tableau3[[#This Row],[Niveau 3]],\" \",Tableau3[[#This Row],[Niveau 4]],\" \",Tableau3[[#This Row],[Niveau 5]])),\" \",\".\")","v":""},{"$f":"IF(COUNTBLANK(Tableau3[[#This Row],[Niveau 1]:[Niveau 5]])=4,\"0\",LEFT(Tableau3[[#This Row],[Niveau]],(LEN(Tableau3[[#This Row],[Niveau]])-LEN(OFFSET(Tableau3[[#This Row],[Niveau 5]],0,(-COUNTBLANK(Tableau3[[#This Row],[Niveau 1]:[Niveau 5]]))))-1)))","v":{"$error":"#VALUE!"}},null,null,null,null,null,{"$f":"IF(Tableau3[[#This Row],[Catégorie pièce]]=\"Opérations\",VLOOKUP(M62,'Poste de charge'!A:C,2,FALSE),VLOOKUP(CONCATENATE(M62),[1]ARTRDCL!$A$1:$U$25000,2,FALSE))","v":{"$error":"#N/A"}},null,null,null,null,{"$f":"IF(N62=\"Nouveau\",MID(Tableau3[[#This Row],[Article produit/ Poste de charge]],2,15),\"\")","v":""},null,null,null,null,{"$f":"IF(Tableau3[[#This Row],[Catégorie pièce]]=\"Opérations\",$M$5/100,VLOOKUP(CONCATENATE(Tableau3[[#This Row],[Article produit/ Poste de charge]]),[1]ARTRDCL!$A$1:$U$65536,15,FALSE))","v":{"$error":"#N/A"}},null,0,0,null,null,null,null,null,null,null,null,null,null,0,{"$f":"IFERROR(VLOOKUP(CONCATENATE(AC62),Tôles!A:W,10,FALSE)/AA62*(IF(AY62=TRUE,BOM!B62,Tableau3[[#This Row],[surface de la tôle (m²)]])),0)","v":0},{"$f":"IF(AY62=TRUE,Paramètres!$B$13/AX62,0)","v":0},0,{"$f":"IF(AI62>0, (40/AX62 +0.4*AI62)*Paramètres!$B$2/100,0)","v":0},{"$f":"IF(AJ62>0,(0.15/$AX62+$AJ62)*Paramètres!$B$2/100,0)","v":0},{"$f":"IF(AK62=\"Oui\",(13/AX62 +AZ62)*Paramètres!$B$2/100,0)","v":0},{"$f":"IFERROR(VLOOKUP(CONCATENATE(AC62),Tôles!A:W,9,FALSE),0)","v":0},0,{"$f":"IFERROR(AT62/AU62/Paramètres!$B$9,0)","v":0},{"$f":"IFERROR(Paramètres!$B$8/Tableau3[[#This Row],[Surface de la pièce (m²)]]/Paramètres!$B$9,0)","v":0},0,false,0.5,{"$f":"IF(OR(ISERROR((5/$AN62 +$X62*0.08*$T62+ ($U62+$V62) * 0.001)*Paramètres!$B$2/100),AD62 = \"\"),0,(5/$AN62 +$X62*0.08*$T62+ ($U62+$V62) * 0.001)*Paramètres!$B$2/100)","v":0},{"$f":"IF(OR(ISERROR((10/$AN62+$X62*0.007 + ($U62+$V62) * 0.0005)*Paramètres!$B$2/100),AD62= \"\"),0,(10/$AN62+$X62*0.007 + ($U62+$V62) * 0.0005)*Paramètres!$B$2/100)","v":0}]
[]
[]
[]
[]
[]
[]
[]
[]
[]
[]
[]
[]
[]
[]
[]
[]
[]
[]
[]
[]
[]
[]
[]
[]
[]
[]
[]
[null,null,null,null,null,null,null,null,null,null,null,null,null,null,null,null,null,null,null,null,null,null,null,null,null,null,null,null,null,null,null,null,null,null,null,null,null,null,null,null,null,null,null,null,null,null,null,null,null,null,null,null,null,null,{"$f":"SUMPRODUCT($Y8:$Y62,BC8:BC62)","v":{"$error":"#N/A"}},{"$f":"SUMPRODUCT($Y8:$Y62,BD8:BD62)","v":{"$error":"#N/A"}}]
[null,null,null,null,null,null,null,null,null,null,null,null,null,null,null,null,null,null,null,null,null,null,null,null,null,1.6217999999999999,null,null,null,null,null,null,null,null,null,null,null,null,null,null,null,null,null,null,null,null,null,null,null,null,null,null,null,null,{"$f":"BC90*$Z91","v":{"$error":"#N/A"}},{"$f":"BD90*$Z91","v":{"$error":"#N/A"}}]
[null,null,null,null,null,null,null,null,null,null,null,null,null,null,null,null,null,null,null,null,null,null,null,null,null,null,null,null,{"$f":"#REF!","v":{"$error":"#REF!"}}]
[null,null,null,null,null,null,null,null,null,null,null,null,null,null,null,null,null,null,null,null,null,null,null,null,null,null,null,null,{"$f":"#REF!","v":{"$error":"#REF!"}}]
[null,null,null,null,null,null,null,null,null,null,null,null,null,null,null,null,null,null,null,null,null,null,null,null,null,null,null,null,{"$f":"#REF!","v":{"$error":"#REF!"}}]
[null,null,null,null,null,null,null,null,null,null,null,null,null,null,null,null,null,null,null,null,null,null,null,null,null,null,null,null,{"$f":"#REF!","v":{"$error":"#REF!"}}]
[null,null,null,null,null,null,null,null,null,null,null,null,null,null,null,null,null,null,null,null,null,null,null,null,null,null,null,null,{"$f":"#REF!","v":{"$error":"#REF!"}}]
[null,null,null,null,null,null,null,null,null,null,null,null,null,null,null,null,null,null,null,null,null,null,null,null,null,null,null,null,{"$f":"#REF!","v":{"$error":"#REF!"}}]
[null,null,null,null,null,null,null,null,null,null,null,null,null,null,null,null,null,null,null,null,null,null,null,null,null,null,null,null,null,"Total VCOGS"]
[null,null,null,null,null,null,null,null,null,null,null,null,null,null,null,null,null,null,null,null,null,null,null,null,null,null,null,null,null,"TOTAL TP"]

{"sheet":"MMS","index":1,"n_rows":10,"n_cols":36,"rows_kept":10,"cut":false,"hidden":false,"merged":[[1,2,1,19],[1,21,1,31],[2,2,2,13],[2,14,2,15],[2,16,2,19],[2,21,2,27],[2,28,2,29],[2,30,2,31]]}
[]
[null,null,"MMS001",null,null,null,null,null,null,null,null,null,null,null,null,null,null,null,null,null,null,"MMS002",null,null,null,null,null,null,null,null,null,null,"MMS003"]
[null,null,"MMS001/E",null,null,null,null,null,null,null,null,null,null,null,"MMS001/F",null,"MMS001/G",null,null,null,"MMS001/H","MMS002/E",null,null,null,null,null,null,"MMS002/F",null,"MMS002/G"]
[null,"Article Produit","Désignation","Numéro\n de plan","Type\n article","Groupe\n article","Groupe produit","Mét.val.\nstock","U/M\n de Base","Resp. article","Code fab./achat","Groupe approvis","Mét. gestion/lot","Mét.\nnumérot.\nlot","Poids\n Brut","Poids\n net","Code configurat","Catégorie Article","Modèle","Matricule\n O/N","Type/volume","Code\nacquisit","Type\nordre","Périodes\nplanif","Polit.\n planif","Délai\n sécurité.","Borne plan.dde.","Borne de planif","Série économique","Pol.\nlotissement","Emplacement","Mét sortie OF","Dél. administra","Modèle"]
[null,12345678,{"$f":"+VLOOKUP(B5,BOM!$M:$O,3,FALSE)","v":{"$error":"#N/A"}},{"$f":"VLOOKUP(B5,BOM!$M:$W,8,FALSE)","v":{"$error":"#N/A"}},{"$f":"IF($AH5='Modèles+listes'!$B$5,'Modèles+listes'!D$5,IF($AH5='Modèles+listes'!$B$6,'Modèles+listes'!D$6,IF($AH5='Modèles+listes'!$B$7,'Modèles+listes'!D$7,IF($AH5='Modèles+listes'!$B$8,'Modèles+listes'!D$8,IF($AH5='Modèles+listes'!$B$9,'Modèles+listes'!D$9,IF($AH5='Modèles+listes'!$B$10,'Modèles+listes'!D$10,IF($AH5='Modèles+listes'!$B$11,'Modèles+listes'!D$11,IF($AH5='Modèles+listes'!$B$12,'Modèles+listes'!D$12,IF($AH5='Modèles+listes'!$B$13,'Modèles+listes'!D$13,IF($AH5='Modèles+listes'!$B$14,'Modèles+listes'!D$14,IF($AH5='Modèles+listes'!$B$15,'Modèles+listes'!D$15,IF($AH5='Modèles+listes'!$B$16,'Modèles+listes'!D$16,IF($AH5='Modèles+listes'!$B$17,'Modèles+listes'!D$17,IF($AH5='Modèles+listes'!$B$18,'Modèles+listes'!D$18,IF($AH5='Modèles+listes'!$B$19,'Modèles+listes'!D$19,IF($AH5='Modèles+listes'!$B$20,'Modèles+listes'!D$20,FALSE))))))))))))))))","v":{"$error":"#N/A"}},{"$f":"BOM!$R$4","v":1506},{"$f":"BOM!$R$5","v":"04090"},{"$f":"IF($AH5='Modèles+listes'!$B$5,'Modèles+listes'!E$5,IF($AH5='Modèles+listes'!$B$6,'Modèles+listes'!E$6,IF($AH5='Modèles+listes'!$B$7,'Modèles+listes'!E$7,IF($AH5='Modèles+listes'!$B$8,'Modèles+listes'!E$8,IF($AH5='Modèles+listes'!$B$9,'Modèles+listes'!E$9,IF($AH5='Modèles+listes'!$B$10,'Modèles+listes'!E$10,IF($AH5='Modèles+listes'!$B$11,'Modèles+listes'!E$11,IF($AH5='Modèles+listes'!$B$12,'Modèles+listes'!E$12,IF($AH5='Modèles+listes'!$B$13,'Modèles+listes'!E$13,IF($AH5='Modèles+listes'!$B$14,'Modèles+listes'!E$14,IF($AH5='Modèles+listes'!$B$15,'Modèles+listes'!E$15,IF($AH5='Modèles+listes'!$B$16,'Modèles+listes'!E$16,IF($AH5='Modèles+listes'!$B$17,'Modèles+listes'!E$17,IF($AH5='Modèles+listes'!$B$18,'Modèles+listes'!E$18,IF($AH5='Modèles+listes'!$B$19,'Modèles+listes'!E$19,IF($AH5='Modèles+listes'!$B$20,'Modèles+listes'!E$20,FALSE))))))))))))))))","v":{"$error":"#N/A"}},{"$f":"+VLOOKUP($B5,BOM!$M:$BB,5,FALSE)","v":{"$error":"#N/A"}},{"$f":"+IF(E5<>\"04\",BOM!$R$3,BOM!$R$2)","v":{"$error":"#N/A"}},{"$f":"IF($AH5='Modèles+listes'!$B$5,'Modèles+listes'!F$5,IF($AH5='Modèles+listes'!$B$6,'Modèles+listes'!F$6,IF($AH5='Modèles+listes'!$B$7,'Modèles+listes'!F$7,IF($AH5='Modèles+listes'!$B$8,'Modèles+listes'!F$8,IF($AH5='Modèles+listes'!$B$9,'Modèles+listes'!F$9,IF($AH5='Modèles+listes'!$B$10,'Modèles+listes'!F$10,IF($AH5='Modèles+listes'!$B$11,'Modèles+listes'!F$11,IF($AH5='Modèles+listes'!$B$12,'Modèles+listes'!F$12,IF($AH5='Modèles+listes'!$B$13,'Modèles+listes'!F$13,IF($AH5='Modèles+listes'!$B$14,'Modèles+listes'!F$14,IF($AH5='Modèles+listes'!$B$15,'Modèles+listes'!F$15,IF($AH5='Modèles+listes'!$B$16,'Modèles+listes'!F$16,IF($AH5='Modèles+listes'!$B$17,'Modèles+listes'!F$17,IF($AH5='Modèles+listes'!$B$18,'Modèles+listes'!F$18,IF($AH5='Modèles+listes'!$B$19,'Modèles+listes'!F$19,IF($AH5='Modèles+listes'!$B$20,'Modèles+listes'!F$20,FALSE))))))))))))))))","v":{"$error":"#N/A"}},{"$f":"IF($AH5='Modèles+listes'!$B$5,'Modèles+listes'!G$5,IF($AH5='Modèles+listes'!$B$6,'Modèles+listes'!G$6,IF($AH5='Modèles+listes'!$B$7,'Modèles+listes'!G$7,IF($AH5='Modèles+listes'!$B$8,'Modèles+listes'!G$8,IF($AH5='Modèles+listes'!$B$9,'Modèles+listes'!G$9,IF($AH5='Modèles+listes'!$B$10,'Modèles+listes'!G$10,IF($AH5='Modèles+listes'!$B$11,'Modèles+listes'!G$11,IF($AH5='Modèles+listes'!$B$12,'Modèles+listes'!G$12,IF($AH5='Modèles+listes'!$B$13,'Modèles+listes'!G$13,IF($AH5='Modèles+listes'!$B$14,'Modèles+listes'!G$14,IF($AH5='Modèles+listes'!$B$15,'Modèles+listes'!G$15,IF($AH5='Modèles+listes'!$B$16,'Modèles+listes'!G$16,IF($AH5='Modèles+listes'!$B$17,'Modèles+listes'!G$17,IF($AH5='Modèles+listes'!$B$18,'Modèles+listes'!G$18,IF($AH5='Modèles+listes'!$B$19,'Modèles+listes'!G$19,IF($AH5='Modèles+listes'!$B$20,'Modèles+listes'!G$20,FALSE))))))))))))))))","v":{"$error":"#N/A"}},{"$f":"IF($AH5='Modèles+listes'!$B$5,'Modèles+listes'!H$5,IF($AH5='Modèles+listes'!$B$6,'Modèles+listes'!H$6,IF($AH5='Modèles+listes'!$B$7,'Modèles+listes'!H$7,IF($AH5='Modèles+listes'!$B$8,'Modèles+listes'!H$8,IF($AH5='Modèles+listes'!$B$9,'Modèles+listes'!H$9,IF($AH5='Modèles+listes'!$B$10,'Modèles+listes'!H$10,IF($AH5='Modèles+listes'!$B$11,'Modèles+listes'!H$11,IF($AH5='Modèles+listes'!$B$12,'Modèles+listes'!H$12,IF($AH5='Modèles+listes'!$B$13,'Modèles+listes'!H$13,IF($AH5='Modèles+listes'!$B$14,'Modèles+listes'!H$14,IF($AH5='Modèles+listes'!$B$15,'Modèles+listes'!H$15,IF($AH5='Modèles+listes'!$B$16,'Modèles+listes'!H$16,IF($AH5='Modèles+listes'!$B$17,'Modèles+listes'!H$17,IF($AH5='Modèles+listes'!$B$18,'Modèles+listes'!H$18,IF($AH5='Modèles+listes'!$B$19,'Modèles+listes'!H$19,IF($AH5='Modèles+listes'!$B$20,'Modèles+listes'!H$20,FALSE))))))))))))))))","v":{"$error":"#N/A"}},{"$f":"IF($AH5='Modèles+listes'!$B$5,'Modèles+listes'!I$5,IF($AH5='Modèles+listes'!$B$6,'Modèles+listes'!I$6,IF($AH5='Modèles+listes'!$B$7,'Modèles+listes'!I$7,IF($AH5='Modèles+listes'!$B$8,'Modèles+listes'!I$8,IF($AH5='Modèles+listes'!$B$9,'Modèles+listes'!I$9,IF($AH5='Modèles+listes'!$B$10,'Modèles+listes'!I$10,IF($AH5='Modèles+listes'!$B$11,'Modèles+listes'!I$11,IF($AH5='Modèles+listes'!$B$12,'Modèles+listes'!I$12,IF($AH5='Modèles+listes'!$B$13,'Modèles+listes'!I$13,IF($AH5='Modèles+listes'!$B$14,'Modèles+listes'!I$14,IF($AH5='Modèles+listes'!$B$15,'Modèles+listes'!I$15,IF($AH5='Modèles+listes'!$B$16,'Modèles+listes'!I$16,IF($AH5='Modèles+listes'!$B$17,'Modèles+listes'!I$17,IF($AH5='Modèles+listes'!$B$18,'Modèles+listes'!I$18,IF($AH5='Modèles+listes'!$B$19,'Modèles+listes'!I$19,IF($AH5='Modèles+listes'!$B$20,'Modèles+listes'!I$20,FALSE))))))))))))))))","v":{"$error":"#N/A"}},{"$f":"+VLOOKUP(B5,BOM!$M:$W,6,FALSE)","v":{"$error":"#N/A"}},{"$f":"+VLOOKUP($B5,BOM!$M:$W,7,FALSE)","v":{"$error":"#N/A"}},{"$f":"IF($AH5='Modèles+listes'!$B$5,'Modèles+listes'!J$5,IF($AH5='Modèles+listes'!$B$6,'Modèles+listes'!J$6,IF($AH5='Modèles+listes'!$B$7,'Modèles+listes'!J$7,IF($AH5='Modèles+listes'!$B$8,'Modèles+listes'!J$8,IF($AH5='Modèles+listes'!$B$9,'Modèles+listes'!J$9,IF($AH5='Modèles+listes'!$B$10,'Modèles+listes'!J$10,IF($AH5='Modèles+listes'!$B$11,'Modèles+listes'!J$11,IF($AH5='Modèles+listes'!$B$12,'Modèles+listes'!J$12,IF($AH5='Modèles+listes'!$B$13,'Modèles+listes'!J$13,IF($AH5='Modèles+listes'!$B$14,'Modèles+listes'!J$14,IF($AH5='Modèles+listes'!$B$15,'Modèles+listes'!J$15,IF($AH5='Modèles+listes'!$B$16,'Modèles+listes'!J$16,IF($AH5='Modèles+listes'!$B$17,'Modèles+listes'!J$17,IF($AH5='Modèles+listes'!$B$18,'Modèles+listes'!J$18,IF($AH5='Modèles+listes'!$B$19,'Modèles+listes'!J$19,IF($AH5='Modèles+listes'!$B$20,'Modèles+listes'!J$20,FALSE))))))))))))))))","v":{"$error":"#N/A"}},{"$f":"IF($AH5='Modèles+listes'!$B$5,'Modèles+listes'!K$5,IF($AH5='Modèles+listes'!$B$6,'Modèles+listes'!K$6,IF($AH5='Modèles+listes'!$B$7,'Modèles+listes'!K$7,IF($AH5='Modèles+listes'!$B$8,'Modèles+listes'!K$8,IF($AH5='Modèles+listes'!$B$9,'Modèles+listes'!K$9,IF($AH5='Modèles+listes'!$B$10,'Modèles+listes'!K$10,IF($AH5='Modèles+listes'!$B$11,'Modèles+listes'!K$11,IF($AH5='Modèles+listes'!$B$12,'Modèles+listes'!K$12,IF($AH5='Modèles+listes'!$B$13,'Modèles+listes'!K$13,IF($AH5='Modèles+listes'!$B$14,'Modèles+listes'!K$14,IF($AH5='Modèles+listes'!$B$15,'Modèles+listes'!K$15,IF($AH5='Modèles+listes'!$B$16,'Modèles+listes'!K$16,IF($AH5='Modèles+listes'!$B$17,'Modèles+listes'!K$17,IF($AH5='Modèles+listes'!$B$18,'Modèles+listes'!K$18,IF($AH5='Modèles+listes'!$B$19,'Modèles+listes'!K$19,IF($AH5='Modèles+listes'!$B$20,'Modèles+listes'!K$20,FALSE))))))))))))))))","v":{"$error":"#N/A"}},null,{"$f":"VLOOKUP(B5,BOM!$M:$W,9,FALSE)","v":{"$error":"#N/A"}},null,{"$f":"IF($AH5='Modèles+listes'!$B$5,'Modèles+listes'!L$5,IF($AH5='Modèles+listes'!$B$6,'Modèles+listes'!L$6,IF($AH5='Modèles+listes'!$B$7,'Modèles+listes'!L$7,IF($AH5='Modèles+listes'!$B$8,'Modèles+listes'!L$8,IF($AH5='Modèles+listes'!$B$9,'Modèles+listes'!L$9,IF($AH5='Modèles+listes'!$B$10,'Modèles+listes'!L$10,IF($AH5='Modèles+listes'!$B$11,'Modèles+listes'!L$11,IF($AH5='Modèles+listes'!$B$12,'Modèles+listes'!L$12,IF($AH5='Modèles+listes'!$B$13,'Modèles+listes'!L$13,IF($AH5='Modèles+listes'!$B$14,'Modèles+listes'!L$14,IF($AH5='Modèles+listes'!$B$15,'Modèles+listes'!L$15,IF($AH5='Modèles+listes'!$B$16,'Modèles+listes'!L$16,IF($AH5='Modèles+listes'!$B$17,'Modèles+listes'!L$17,IF($AH5='Modèles+listes'!$B$18,'Modèles+listes'!L$18,IF($AH5='Modèles+listes'!$B$19,'Modèles+listes'!L$19,IF($AH5='Modèles+listes'!$B$20,'Modèles+listes'!L$20,FALSE))))))))))))))))","v":{"$error":"#N/A"}},{"$f":"IF($AH5='Modèles+listes'!$B$5,'Modèles+listes'!M$5,IF($AH5='Modèles+listes'!$B$6,'Modèles+listes'!M$6,IF($AH5='Modèles+listes'!$B$7,'Modèles+listes'!M$7,IF($AH5='Modèles+listes'!$B$8,'Modèles+listes'!M$8,IF($AH5='Modèles+listes'!$B$9,'Modèles+listes'!M$9,IF($AH5='Modèles+listes'!$B$10,'Modèles+listes'!M$10,IF($AH5='Modèles+listes'!$B$11,'Modèles+listes'!M$11,IF($AH5='Modèles+listes'!$B$12,'Modèles+listes'!M$12,IF($AH5='Modèles+listes'!$B$13,'Modèles+listes'!M$13,IF($AH5='Modèles+listes'!$B$14,'Modèles+listes'!M$14,IF($AH5='Modèles+listes'!$B$15,'Modèles+listes'!M$15,IF($AH5='Modèles+listes'!$B$16,'Modèles+listes'!M$16,IF($AH5='Modèles+listes'!$B$17,'Modèles+listes'!M$17,IF($AH5='Modèles+listes'!$B$18,'Modèles+listes'!M$18,IF($AH5='Modèles+listes'!$B$19,'Modèles+listes'!M$19,IF($AH5='Modèles+listes'!$B$20,'Modèles+listes'!M$20,FALSE))))))))))))))))","v":{"$error":"#N/A"}},{"$f":"IF($AH5='Modèles+listes'!$B$5,'Modèles+listes'!N$5,IF($AH5='Modèles+listes'!$B$6,'Modèles+listes'!N$6,IF($AH5='Modèles+listes'!$B$7,'Modèles+listes'!N$7,IF($AH5='Modèles+listes'!$B$8,'Modèles+listes'!N$8,IF($AH5='Modèles+listes'!$B$9,'Modèles+listes'!N$9,IF($AH5='Modèles+listes'!$B$10,'Modèles+listes'!N$10,IF($AH5='Modèles+listes'!$B$11,'Modèles+listes'!N$11,IF($AH5='Modèles+listes'!$B$12,'Modèles+listes'!N$12,IF($AH5='Modèles+listes'!$B$13,'Modèles+listes'!N$13,IF($AH5='Modèles+listes'!$B$14,'Modèles+listes'!N$14,IF($AH5='Modèles+listes'!$B$15,'Modèles+listes'!N$15,IF($AH5='Modèles+listes'!$B$16,'Modèles+listes'!N$16,IF($AH5='Modèles+listes'!$B$17,'Modèles+listes'!N$17,IF($AH5='Modèles+listes'!$B$18,'Modèles+listes'!N$18,IF($AH5='Modèles+listes'!$B$19,'Modèles+listes'!N$19,IF($AH5='Modèles+listes'!$B$20,'Modèles+listes'!N$20,FALSE))))))))))))))))","v":{"$error":"#N/A"}},{"$f":"IF($AH5='Modèles+listes'!$B$5,'Modèles+listes'!O$5,IF($AH5='Modèles+listes'!$B$6,'Modèles+listes'!O$6,IF($AH5='Modèles+listes'!$B$7,'Modèles+listes'!O$7,IF($AH5='Modèles+listes'!$B$8,'Modèles+listes'!O$8,IF($AH5='Modèles+listes'!$B$9,'Modèles+listes'!O$9,IF($AH5='Modèles+listes'!$B$10,'Modèles+listes'!O$10,IF($AH5='Modèles+listes'!$B$11,'Modèles+listes'!O$11,IF($AH5='Modèles+listes'!$B$12,'Modèles+listes'!O$12,IF($AH5='Modèles+listes'!$B$13,'Modèles+listes'!O$13,IF($AH5='Modèles+listes'!$B$14,'Modèles+listes'!O$14,IF($AH5='Modèles+listes'!$B$15,'Modèles+listes'!O$15,IF($AH5='Modèles+listes'!$B$16,'Modèles+listes'!O$16,IF($AH5='Modèles+listes'!$B$17,'Modèles+listes'!O$17,IF($AH5='Modèles+listes'!$B$18,'Modèles+listes'!O$18,IF($AH5='Modèles+listes'!$B$19,'Modèles+listes'!O$19,IF($AH5='Modèles+listes'!$B$20,'Modèles+listes'!O$20,FALSE))))))))))))))))","v":{"$error":"#N/A"}},{"$f":"IF($AH5='Modèles+listes'!$B$5,'Modèles+listes'!P$5,IF($AH5='Modèles+listes'!$B$6,'Modèles+listes'!P$6,IF($AH5='Modèles+listes'!$B$7,'Modèles+listes'!P$7,IF($AH5='Modèles+listes'!$B$8,'Modèles+listes'!P$8,IF($AH5='Modèles+listes'!$B$9,'Modèles+listes'!P$9,IF($AH5='Modèles+listes'!$B$10,'Modèles+listes'!P$10,IF($AH5='Modèles+listes'!$B$11,'Modèles+listes'!P$11,IF($AH5='Modèles+listes'!$B$12,'Modèles+listes'!P$12,IF($AH5='Modèles+listes'!$B$13,'Modèles+listes'!P$13,IF($AH5='Modèles+listes'!$B$14,'Modèles+listes'!P$14,IF($AH5='Modèles+listes'!$B$15,'Modèles+listes'!P$15,IF($AH5='Modèles+listes'!$B$16,'Modèles+listes'!P$16,IF($AH5='Modèles+listes'!$B$17,'Modèles+listes'!P$17,IF($AH5='Modèles+listes'!$B$18,'Modèles+listes'!P$18,IF($AH5='Modèles+listes'!$B$19,'Modèles+listes'!P$19,IF($AH5='Modèles+listes'!$B$20,'Modèles+listes'!P$20,FALSE))))))))))))))))","v":{"$error":"#N/A"}},{"$f":"IF($AH5='Modèles+listes'!$B$5,'Modèles+listes'!Q$5,IF($AH5='Modèles+listes'!$B$6,'Modèles+listes'!Q$6,IF($AH5='Modèles+listes'!$B$7,'Modèles+listes'!Q$7,IF($AH5='Modèles+listes'!$B$8,'Modèles+listes'!Q$8,IF($AH5='Modèles+listes'!$B$9,'Modèles+listes'!Q$9,IF($AH5='Modèles+listes'!$B$10,'Modèles+listes'!Q$10,IF($AH5='Modèles+listes'!$B$11,'Modèles+listes'!Q$11,IF($AH5='Modèles+listes'!$B$12,'Modèles+listes'!Q$12,IF($AH5='Modèles+listes'!$B$13,'Modèles+listes'!Q$13,IF($AH5='Modèles+listes'!$B$14,'Modèles+listes'!Q$14,IF($AH5='Modèles+listes'!$B$15,'Modèles+listes'!Q$15,IF($AH5='Modèles+listes'!$B$16,'Modèles+listes'!Q$16,IF($AH5='Modèles+listes'!$B$17,'Modèles+listes'!Q$17,IF($AH5='Modèles+listes'!$B$18,'Modèles+listes'!Q$18,IF($AH5='Modèles+listes'!$B$19,'Modèles+listes'!Q$19,IF($AH5='Modèles+listes'!$B$20,'Modèles+listes'!Q$20,FALSE))))))))))))))))","v":{"$error":"#N/A"}},{"$f":"IF($AH5='Modèles+listes'!$B$5,'Modèles+listes'!R$5,IF($AH5='Modèles+listes'!$B$6,'Modèles+listes'!R$6,IF($AH5='Modèles+listes'!$B$7,'Modèles+listes'!R$7,IF($AH5='Modèles+listes'!$B$8,'Modèles+listes'!R$8,IF($AH5='Modèles+listes'!$B$9,'Modèles+listes'!R$9,IF($AH5='Modèles+listes'!$B$10,'Modèles+listes'!R$10,IF($AH5='Modèles+listes'!$B$11,'Modèles+listes'!R$11,IF($AH5='Modèles+listes'!$B$12,'Modèles+listes'!R$12,IF($AH5='Modèles+listes'!$B$13,'Modèles+listes'!R$13,IF($AH5='Modèles+listes'!$B$14,'Modèles+listes'!R$14,IF($AH5='Modèles+listes'!$B$15,'Modèles+listes'!R$15,IF($AH5='Modèles+listes'!$B$16,'Modèles+listes'!R$16,IF($AH5='Modèles+listes'!$B$17,'Modèles+listes'!R$17,IF($AH5='Modèles+listes'!$B$18,'Modèles+listes'!R$18,IF($AH5='Modèles+listes'!$B$19,'Modèles+listes'!R$19,IF($AH5='Modèles+listes'!$B$20,'Modèles+listes'!R$20,FALSE))))))))))))))))","v":{"$error":"#N/A"}},{"$f":"+VLOOKUP(B5,BOM!$M:$W,11,FALSE)","v":{"$error":"#N/A"}},{"$f":"IF($AH5='Modèles+listes'!$B$5,'Modèles+listes'!T$5,IF($AH5='Modèles+listes'!$B$6,'Modèles+listes'!T$6,IF($AH5='Modèles+listes'!$B$7,'Modèles+listes'!T$7,IF($AH5='Modèles+listes'!$B$8,'Modèles+listes'!T$8,IF($AH5='Modèles+listes'!$B$9,'Modèles+listes'!T$9,IF($AH5='Modèles+listes'!$B$10,'Modèles+listes'!T$10,IF($AH5='Modèles+listes'!$B$11,'Modèles+listes'!T$11,IF($AH5='Modèles+listes'!$B$12,'Modèles+listes'!T$12,IF($AH5='Modèles+listes'!$B$13,'Modèles+listes'!T$13,IF($AH5='Modèles+listes'!$B$14,'Modèles+listes'!T$14,IF($AH5='Modèles+listes'!$B$15,'Modèles+listes'!T$15,IF($AH5='Modèles+listes'!$B$16,'Modèles+listes'!T$16,IF($AH5='Modèles+listes'!$B$17,'Modèles+listes'!T$17,IF($AH5='Modèles+listes'!$B$18,'Modèles+listes'!T$18,IF($AH5='Modèles+listes'!$B$19,'Modèles+listes'!T$19,IF($AH5='Modèles+listes'!$B$20,'Modèles+listes'!T$20,FALSE))))))))))))))))","v":{"$error":"#N/A"}},{"$f":"IF($AH5='Modèles+listes'!$B$5,'Modèles+listes'!U$5,IF($AH5='Modèles+listes'!$B$6,'Modèles+listes'!U$6,IF($AH5='Modèles+listes'!$B$7,'Modèles+listes'!U$7,IF($AH5='Modèles+listes'!$B$8,'Modèles+listes'!U$8,IF($AH5='Modèles+listes'!$B$9,'Modèles+listes'!U$9,IF($AH5='Modèles+listes'!$B$10,'Modèles+listes'!U$10,IF($AH5='Modèles+listes'!$B$11,'Modèles+listes'!U$11,IF($AH5='Modèles+listes'!$B$12,'Modèles+listes'!U$12,IF($AH5='Modèles+listes'!$B$13,'Modèles+listes'!U$13,IF($AH5='Modèles+listes'!$B$14,'Modèles+listes'!U$14,IF($AH5='Modèles+listes'!$B$15,'Modèles+listes'!U$15,IF($AH5='Modèles+listes'!$B$16,'Modèles+listes'!U$16,IF($AH5='Modèles+listes'!$B$17,'Modèles+listes'!U$17,IF($AH5='Modèles+listes'!$B$18,'Modèles+listes'!U$18,IF($AH5='Modèles+listes'!$B$19,'Modèles+listes'!U$19,IF($AH5='Modèles+listes'!$B$20,'Modèles+listes'!U$20,FALSE))))))))))))))))","v":{"$error":"#N/A"}},{"$f":"IF($AH5='Modèles+listes'!$B$5,'Modèles+listes'!V$5,IF($AH5='Modèles+listes'!$B$6,'Modèles+listes'!V$6,IF($AH5='Modèles+listes'!$B$7,'Modèles+listes'!V$7,IF($AH5='Modèles+listes'!$B$8,'Modèles+listes'!V$8,IF($AH5='Modèles+listes'!$B$9,'Modèles+listes'!V$9,IF($AH5='Modèles+listes'!$B$10,'Modèles+listes'!V$10,IF($AH5='Modèles+listes'!$B$11,'Modèles+listes'!V$11,IF($AH5='Modèles+listes'!$B$12,'Modèles+listes'!V$12,IF($AH5='Modèles+listes'!$B$13,'Modèles+listes'!V$13,IF($AH5='Modèles+listes'!$B$14,'Modèles+listes'!V$14,IF($AH5='Modèles+listes'!$B$15,'Modèles+listes'!V$15,IF($AH5='Modèles+listes'!$B$16,'Modèles+listes'!V$16,IF($AH5='Modèles+listes'!$B$17,'Modèles+listes'!V$17,IF($AH5='Modèles+listes'!$B$18,'Modèles+listes'!V$18,IF($AH5='Modèles+listes'!$B$19,'Modèles+listes'!V$19,IF($AH5='Modèles+listes'!$B$20,'Modèles+listes'!V$20,FALSE))))))))))))))))","v":{"$error":"#N/A"}},{"$f":"IF($AH5='Modèles+listes'!$B$5,'Modèles+listes'!W$5,IF($AH5='Modèles+listes'!$B$6,'Modèles+listes'!W$6,IF($AH5='Modèles+listes'!$B$7,'Modèles+listes'!W$7,IF($AH5='Modèles+listes'!$B$8,'Modèles+listes'!W$8,IF($AH5='Modèles+listes'!$B$9,'Modèles+listes'!W$9,IF($AH5='Modèles+listes'!$B$10,'Modèles+listes'!W$10,IF($AH5='Modèles+listes'!$B$11,'Modèles+listes'!W$11,IF($AH5='Modèles+listes'!$B$12,'Modèles+listes'!W$12,IF($AH5='Modèles+listes'!$B$13,'Modèles+listes'!W$13,IF($AH5='Modèles+listes'!$B$14,'Modèles+listes'!W$14,IF($AH5='Modèles+listes'!$B$15,'Modèles+listes'!W$15,IF($AH5='Modèles+listes'!$B$16,'Modèles+listes'!W$16,IF($AH5='Modèles+listes'!$B$17,'Modèles+listes'!W$17,IF($AH5='Modèles+listes'!$B$18,'Modèles+listes'!W$18,IF($AH5='Modèles+listes'!$B$19,'Modèles+listes'!W$19,IF($AH5='Modèles+listes'!$B$20,'Modèles+listes'!W$20,FALSE))))))))))))))))","v":{"$error":"#N/A"}},{"$f":"+VLOOKUP(B5,BOM!$M:$W,4,FALSE)","v":{"$error":"#N/A"}}]
[null,"MMITNO","MMITDS","MMDWNO","MMITTY","MMITGR","MMITCL","MMSTCD","MMUNMS","MMRESP","MMMABU","MMPRGP","MMINDI","MMBACD","MMGRWE","MMNEWE","MMCHCD","MMTPCD","MMCFI1","MMCFI5","MMFRE3","MBPUIT","MBORTY","MBDPID","MBPLCD","MBSATD","MBDMFN","MBPFTM","MBEOQT","MBEOQM","MBWHSL","MBSPMT","M9LEA4",null,null,"modèle formule ne pas suprimer"]
[null,84045006,{"$f":"+VLOOKUP(B7,BOM!$M:$O,3,FALSE)","v":"FONCET MOBILE LISSE GCHE"},{"$f":"VLOOKUP(B7,BOM!$M:$W,8,FALSE)","v":"4045006"},{"$f":"IF($AH7='Modèles+listes'!$B$5,'Modèles+listes'!D$5,IF($AH7='Modèles+listes'!$B$6,'Modèles+listes'!D$6,IF($AH7='Modèles+listes'!$B$7,'Modèles+listes'!D$7,IF($AH7='Modèles+listes'!$B$8,'Modèles+listes'!D$8,IF($AH7='Modèles+listes'!$B$9,'Modèles+listes'!D$9,IF($AH7='Modèles+listes'!$B$10,'Modèles+listes'!D$10,IF($AH7='Modèles+listes'!$B$11,'Modèles+listes'!D$11,IF($AH7='Modèles+listes'!$B$12,'Modèles+listes'!D$12,IF($AH7='Modèles+listes'!$B$13,'Modèles+listes'!D$13,IF($AH7='Modèles+listes'!$B$14,'Modèles+listes'!D$14,IF($AH7='Modèles+listes'!$B$15,'Modèles+listes'!D$15,IF($AH7='Modèles+listes'!$B$16,'Modèles+listes'!D$16,IF($AH7='Modèles+listes'!$B$17,'Modèles+listes'!D$17,IF($AH7='Modèles+listes'!$B$18,'Modèles+listes'!D$18,IF($AH7='Modèles+listes'!$B$19,'Modèles+listes'!D$19,IF($AH7='Modèles+listes'!$B$20,'Modèles+listes'!D$20,FALSE))))))))))))))))","v":"04"},{"$f":"BOM!$R$4","v":1506},{"$f":"BOM!$R$5","v":"04090"},{"$f":"IF($AH7='Modèles+listes'!$B$5,'Modèles+listes'!E$5,IF($AH7='Modèles+listes'!$B$6,'Modèles+listes'!E$6,IF($AH7='Modèles+listes'!$B$7,'Modèles+listes'!E$7,IF($AH7='Modèles+listes'!$B$8,'Modèles+listes'!E$8,IF($AH7='Modèles+listes'!$B$9,'Modèles+listes'!E$9,IF($AH7='Modèles+listes'!$B$10,'Modèles+listes'!E$10,IF($AH7='Modèles+listes'!$B$11,'Modèles+listes'!E$11,IF($AH7='Modèles+listes'!$B$12,'Modèles+listes'!E$12,IF($AH7='Modèles+listes'!$B$13,'Modèles+listes'!E$13,IF($AH7='Modèles+listes'!$B$14,'Modèles+listes'!E$14,IF($AH7='Modèles+listes'!$B$15,'Modèles+listes'!E$15,IF($AH7='Modèles+listes'!$B$16,'Modèles+listes'!E$16,IF($AH7='Modèles+listes'!$B$17,'Modèles+listes'!E$17,IF($AH7='Modèles+listes'!$B$18,'Modèles+listes'!E$18,IF($AH7='Modèles+listes'!$B$19,'Modèles+listes'!E$19,IF($AH7='Modèles+listes'!$B$20,'Modèles+listes'!E$20,FALSE))))))))))))))))","v":1},{"$f":"+VLOOKUP($B7,BOM!$M:$BB,5,FALSE)","v":"PI"},{"$f":"+IF(E7<>\"04\",BOM!$R$3,BOM!$R$2)","v":"JACOB"},{"$f":"IF($AH7='Modèles+listes'!$B$5,'Modèles+listes'!F$5,IF($AH7='Modèles+listes'!$B$6,'Modèles+listes'!F$6,IF($AH7='Modèles+listes'!$B$7,'Modèles+listes'!F$7,IF($AH7='Modèles+listes'!$B$8,'Modèles+listes'!F$8,IF($AH7='Modèles+listes'!$B$9,'Modèles+listes'!F$9,IF($AH7='Modèles+listes'!$B$10,'Modèles+listes'!F$10,IF($AH7='Modèles+listes'!$B$11,'Modèles+listes'!F$11,IF($AH7='Modèles+listes'!$B$12,'Modèles+listes'!F$12,IF($AH7='Modèles+listes'!$B$13,'Modèles+listes'!F$13,IF($AH7='Modèles+listes'!$B$14,'Modèles+listes'!F$14,IF($AH7='Modèles+listes'!$B$15,'Modèles+listes'!F$15,IF($AH7='Modèles+listes'!$B$16,'Modèles+listes'!F$16,IF($AH7='Modèles+listes'!$B$17,'Modèles+listes'!F$17,IF($AH7='Modèles+listes'!$B$18,'Modèles+listes'!F$18,IF($AH7='Modèles+listes'!$B$19,'Modèles+listes'!F$19,IF($AH7='Modèles+listes'!$B$20,'Modèles+listes'!F$20,FALSE))))))))))))))))","v":2},{"$f":"IF($AH7='Modèles+listes'!$B$5,'Modèles+listes'!G$5,IF($AH7='Modèles+listes'!$B$6,'Modèles+listes'!G$6,IF($AH7='Modèles+listes'!$B$7,'Modèles+listes'!G$7,IF($AH7='Modèles+listes'!$B$8,'Modèles+listes'!G$8,IF($AH7='Modèles+listes'!$B$9,'Modèles+listes'!G$9,IF($AH7='Modèles+listes'!$B$10,'Modèles+listes'!G$10,IF($AH7='Modèles+listes'!$B$11,'Modèles+listes'!G$11,IF($AH7='Modèles+listes'!$B$12,'Modèles+listes'!G$12,IF($AH7='Modèles+listes'!$B$13,'Modèles+listes'!G$13,IF($AH7='Modèles+listes'!$B$14,'Modèles+listes'!G$14,IF($AH7='Modèles+listes'!$B$15,'Modèles+listes'!G$15,IF($AH7='Modèles+listes'!$B$16,'Modèles+listes'!G$16,IF($AH7='Modèles+listes'!$B$17,'Modèles+listes'!G$17,IF($AH7='Modèles+listes'!$B$18,'Modèles+listes'!G$18,IF($AH7='Modèles+listes'!$B$19,'Modèles+listes'!G$19,IF($AH7='Modèles+listes'!$B$20,'Modèles+listes'!G$20,FALSE))))))))))))))))","v":"?"},{"$f":"IF($AH7='Modèles+listes'!$B$5,'Modèles+listes'!H$5,IF($AH7='Modèles+listes'!$B$6,'Modèles+listes'!H$6,IF($AH7='Modèles+listes'!$B$7,'Modèles+listes'!H$7,IF($AH7='Modèles+listes'!$B$8,'Modèles+listes'!H$8,IF($AH7='Modèles+listes'!$B$9,'Modèles+listes'!H$9,IF($AH7='Modèles+listes'!$B$10,'Modèles+listes'!H$10,IF($AH7='Modèles+listes'!$B$11,'Modèles+listes'!H$11,IF($AH7='Modèles+listes'!$B$12,'Modèles+listes'!H$12,IF($AH7='Modèles+listes'!$B$13,'Modèles+listes'!H$13,IF($AH7='Modèles+listes'!$B$14,'Modèles+listes'!H$14,IF($AH7='Modèles+listes'!$B$15,'Modèles+listes'!H$15,IF($AH7='Modèles+listes'!$B$16,'Modèles+listes'!H$16,IF($AH7='Modèles+listes'!$B$17,'Modèles+listes'!H$17,IF($AH7='Modèles+listes'!$B$18,'Modèles+listes'!H$18,IF($AH7='Modèles+listes'!$B$19,'Modèles+listes'!H$19,IF($AH7='Modèles+listes'!$B$20,'Modèles+listes'!H$20,FALSE))))))))))))))))","v":0},{"$f":"IF($AH7='Modèles+listes'!$B$5,'Modèles+listes'!I$5,IF($AH7='Modèles+listes'!$B$6,'Modèles+listes'!I$6,IF($AH7='Modèles+listes'!$B$7,'Modèles+listes'!I$7,IF($AH7='Modèles+listes'!$B$8,'Modèles+listes'!I$8,IF($AH7='Modèles+listes'!$B$9,'Modèles+listes'!I$9,IF($AH7='Modèles+listes'!$B$10,'Modèles+listes'!I$10,IF($AH7='Modèles+listes'!$B$11,'Modèles+listes'!I$11,IF($AH7='Modèles+listes'!$B$12,'Modèles+listes'!I$12,IF($AH7='Modèles+listes'!$B$13,'Modèles+listes'!I$13,IF($AH7='Modèles+listes'!$B$14,'Modèles+listes'!I$14,IF($AH7='Modèles+listes'!$B$15,'Modèles+listes'!I$15,IF($AH7='Modèles+listes'!$B$16,'Modèles+listes'!I$16,IF($AH7='Modèles+listes'!$B$17,'Modèles+listes'!I$17,IF($AH7='Modèles+listes'!$B$18,'Modèles+listes'!I$18,IF($AH7='Modèles+listes'!$B$19,'Modèles+listes'!I$19,IF($AH7='Modèles+listes'!$B$20,'Modèles+listes'!I$20,FALSE))))))))))))))))","v":0},{"$f":"+VLOOKUP(B7,BOM!$M:$W,6,FALSE)","v":11},{"$f":"+VLOOKUP($B7,BOM!$M:$W,7,FALSE)","v":21},{"$f":"IF($AH7='Modèles+listes'!$B$5,'Modèles+listes'!J$5,IF($AH7='Modèles+listes'!$B$6,'Modèles+listes'!J$6,IF($AH7='Modèles+listes'!$B$7,'Modèles+listes'!J$7,IF($AH7='Modèles+listes'!$B$8,'Modèles+listes'!J$8,IF($AH7='Modèles+listes'!$B$9,'Modèles+listes'!J$9,IF($AH7='Modèles+listes'!$B$10,'Modèles+listes'!J$10,IF($AH7='Modèles+listes'!$B$11,'Modèles+listes'!J$11,IF($AH7='Modèles+listes'!$B$12,'Modèles+listes'!J$12,IF($AH7='Modèles+listes'!$B$13,'Modèles+listes'!J$13,IF($AH7='Modèles+listes'!$B$14,'Modèles+listes'!J$14,IF($AH7='Modèles+listes'!$B$15,'Modèles+listes'!J$15,IF($AH7='Modèles+listes'!$B$16,'Modèles+listes'!J$16,IF($AH7='Modèles+listes'!$B$17,'Modèles+listes'!J$17,IF($AH7='Modèles+listes'!$B$18,'Modèles+listes'!J$18,IF($AH7='Modèles+listes'!$B$19,'Modèles+listes'!J$19,IF($AH7='Modèles+listes'!$B$20,'Modèles+listes'!J$20,FALSE))))))))))))))))","v":0},{"$f":"IF($AH7='Modèles+listes'!$B$5,'Modèles+listes'!K$5,IF($AH7='Modèles+listes'!$B$6,'Modèles+listes'!K$6,IF($AH7='Modèles+listes'!$B$7,'Modèles+listes'!K$7,IF($AH7='Modèles+listes'!$B$8,'Modèles+listes'!K$8,IF($AH7='Modèles+listes'!$B$9,'Modèles+listes'!K$9,IF($AH7='Modèles+listes'!$B$10,'Modèles+listes'!K$10,IF($AH7='Modèles+listes'!$B$11,'Modèles+listes'!K$11,IF($AH7='Modèles+listes'!$B$12,'Modèles+listes'!K$12,IF($AH7='Modèles+listes'!$B$13,'Modèles+listes'!K$13,IF($AH7='Modèles+listes'!$B$14,'Modèles+listes'!K$14,IF($AH7='Modèles+listes'!$B$15,'Modèles+listes'!K$15,IF($AH7='Modèles+listes'!$B$16,'Modèles+listes'!K$16,IF($AH7='Modèles+listes'!$B$17,'Modèles+listes'!K$17,IF($AH7='Modèles+listes'!$B$18,'Modèles+listes'!K$18,IF($AH7='Modèles+listes'!$B$19,'Modèles+listes'!K$19,IF($AH7='Modèles+listes'!$B$20,'Modèles+listes'!K$20,FALSE))))))))))))))))","v":0},null,{"$f":"VLOOKUP(B7,BOM!$M:$W,9,FALSE)","v":"N"},null,{"$f":"IF($AH7='Modèles+listes'!$B$5,'Modèles+listes'!L$5,IF($AH7='Modèles+listes'!$B$6,'Modèles+listes'!L$6,IF($AH7='Modèles+listes'!$B$7,'Modèles+listes'!L$7,IF($AH7='Modèles+listes'!$B$8,'Modèles+listes'!L$8,IF($AH7='Modèles+listes'!$B$9,'Modèles+listes'!L$9,IF($AH7='Modèles+listes'!$B$10,'Modèles+listes'!L$10,IF($AH7='Modèles+listes'!$B$11,'Modèles+listes'!L$11,IF($AH7='Modèles+listes'!$B$12,'Modèles+listes'!L$12,IF($AH7='Modèles+listes'!$B$13,'Modèles+listes'!L$13,IF($AH7='Modèles+listes'!$B$14,'Modèles+listes'!L$14,IF($AH7='Modèles+listes'!$B$15,'Modèles+listes'!L$15,IF($AH7='Modèles+listes'!$B$16,'Modèles+listes'!L$16,IF($AH7='Modèles+listes'!$B$17,'Modèles+listes'!L$17,IF($AH7='Modèles+listes'!$B$18,'Modèles+listes'!L$18,IF($AH7='Modèles+listes'!$B$19,'Modèles+listes'!L$19,IF($AH7='Modèles+listes'!$B$20,'Modèles+listes'!L$20,FALSE))))))))))))))))","v":2},{"$f":"IF($AH7='Modèles+listes'!$B$5,'Modèles+listes'!M$5,IF($AH7='Modèles+listes'!$B$6,'Modèles+listes'!M$6,IF($AH7='Modèles+listes'!$B$7,'Modèles+listes'!M$7,IF($AH7='Modèles+listes'!$B$8,'Modèles+listes'!M$8,IF($AH7='Modèles+listes'!$B$9,'Modèles+listes'!M$9,IF($AH7='Modèles+listes'!$B$10,'Modèles+listes'!M$10,IF($AH7='Modèles+listes'!$B$11,'Modèles+listes'!M$11,IF($AH7='Modèles+listes'!$B$12,'Modèles+listes'!M$12,IF($AH7='Modèles+listes'!$B$13,'Modèles+listes'!M$13,IF($AH7='Modèles+listes'!$B$14,'Modèles+listes'!M$14,IF($AH7='Modèles+listes'!$B$15,'Modèles+listes'!M$15,IF($AH7='Modèles+listes'!$B$16,'Modèles+listes'!M$16,IF($AH7='Modèles+listes'!$B$17,'Modèles+listes'!M$17,IF($AH7='Modèles+listes'!$B$18,'Modèles+listes'!M$18,IF($AH7='Modèles+listes'!$B$19,'Modèles+listes'!M$19,IF($AH7='Modèles+listes'!$B$20,'Modèles+listes'!M$20,FALSE))))))))))))))))","v":30},{"$f":"IF($AH7='Modèles+listes'!$B$5,'Modèles+listes'!N$5,IF($AH7='Modèles+listes'!$B$6,'Modèles+listes'!N$6,IF($AH7='Modèles+listes'!$B$7,'Modèles+listes'!N$7,IF($AH7='Modèles+listes'!$B$8,'Modèles+listes'!N$8,IF($AH7='Modèles+listes'!$B$9,'Modèles+listes'!N$9,IF($AH7='Modèles+listes'!$B$10,'Modèles+listes'!N$10,IF($AH7='Modèles+listes'!$B$11,'Modèles+listes'!N$11,IF($AH7='Modèles+listes'!$B$12,'Modèles+listes'!N$12,IF($AH7='Modèles+listes'!$B$13,'Modèles+listes'!N$13,IF($AH7='Modèles+listes'!$B$14,'Modèles+listes'!N$14,IF($AH7='Modèles+listes'!$B$15,'Modèles+listes'!N$15,IF($AH7='Modèles+listes'!$B$16,'Modèles+listes'!N$16,IF($AH7='Modèles+listes'!$B$17,'Modèles+listes'!N$17,IF($AH7='Modèles+listes'!$B$18,'Modèles+listes'!N$18,IF($AH7='Modèles+listes'!$B$19,'Modèles+listes'!N$19,IF($AH7='Modèles+listes'!$B$20,'Modèles+listes'!N$20,FALSE))))))))))))))))","v":12},{"$f":"IF($AH7='Modèles+listes'!$B$5,'Modèles+listes'!O$5,IF($AH7='Modèles+listes'!$B$6,'Modèles+listes'!O$6,IF($AH7='Modèles+listes'!$B$7,'Modèles+listes'!O$7,IF($AH7='Modèles+listes'!$B$8,'Modèles+listes'!O$8,IF($AH7='Modèles+listes'!$B$9,'Modèles+listes'!O$9,IF($AH7='Modèles+listes'!$B$10,'Modèles+listes'!O$10,IF($AH7='Modèles+listes'!$B$11,'Modèles+listes'!O$11,IF($AH7='Modèles+listes'!$B$12,'Modèles+listes'!O$12,IF($AH7='Modèles+listes'!$B$13,'Modèles+listes'!O$13,IF($AH7='Modèles+listes'!$B$14,'Modèles+listes'!O$14,IF($AH7='Modèles+listes'!$B$15,'Modèles+listes'!O$15,IF($AH7='Modèles+listes'!$B$16,'Modèles+listes'!O$16,IF($AH7='Modèles+listes'!$B$17,'Modèles+listes'!O$17,IF($AH7='Modèles+listes'!$B$18,'Modèles+listes'!O$18,IF($AH7='Modèles+listes'!$B$19,'Modèles+listes'!O$19,IF($AH7='Modèles+listes'!$B$20,'Modèles+listes'!O$20,FALSE))))))))))))))))","v":"01"},{"$f":"IF($AH7='Modèles+listes'!$B$5,'Modèles+listes'!P$5,IF($AH7='Modèles+listes'!$B$6,'Modèles+listes'!P$6,IF($AH7='Modèles+listes'!$B$7,'Modèles+listes'!P$7,IF($AH7='Modèles+listes'!$B$8,'Modèles+listes'!P$8,IF($AH7='Modèles+listes'!$B$9,'Modèles+listes'!P$9,IF($AH7='Modèles+listes'!$B$10,'Modèles+listes'!P$10,IF($AH7='Modèles+listes'!$B$11,'Modèles+listes'!P$11,IF($AH7='Modèles+listes'!$B$12,'Modèles+listes'!P$12,IF($AH7='Modèles+listes'!$B$13,'Modèles+listes'!P$13,IF($AH7='Modèles+listes'!$B$14,'Modèles+listes'!P$14,IF($AH7='Modèles+listes'!$B$15,'Modèles+listes'!P$15,IF($AH7='Modèles+listes'!$B$16,'Modèles+listes'!P$16,IF($AH7='Modèles+listes'!$B$17,'Modèles+listes'!P$17,IF($AH7='Modèles+listes'!$B$18,'Modèles+listes'!P$18,IF($AH7='Modèles+listes'!$B$19,'Modèles+listes'!P$19,IF($AH7='Modèles+listes'!$B$20,'Modèles+listes'!P$20,FALSE))))))))))))))))","v":5},{"$f":"IF($AH7='Modèles+listes'!$B$5,'Modèles+listes'!Q$5,IF($AH7='Modèles+listes'!$B$6,'Modèles+listes'!Q$6,IF($AH7='Modèles+listes'!$B$7,'Modèles+listes'!Q$7,IF($AH7='Modèles+listes'!$B$8,'Modèles+listes'!Q$8,IF($AH7='Modèles+listes'!$B$9,'Modèles+listes'!Q$9,IF($AH7='Modèles+listes'!$B$10,'Modèles+listes'!Q$10,IF($AH7='Modèles+listes'!$B$11,'Modèles+listes'!Q$11,IF($AH7='Modèles+listes'!$B$12,'Modèles+listes'!Q$12,IF($AH7='Modèles+listes'!$B$13,'Modèles+listes'!Q$13,IF($AH7='Modèles+listes'!$B$14,'Modèles+listes'!Q$14,IF($AH7='Modèles+listes'!$B$15,'Modèles+listes'!Q$15,IF($AH7='Modèles+listes'!$B$16,'Modèles+listes'!Q$16,IF($AH7='Modèles+listes'!$B$17,'Modèles+listes'!Q$17,IF($AH7='Modèles+listes'!$B$18,'Modèles+listes'!Q$18,IF($AH7='Modèles+listes'!$B$19,'Modèles+listes'!Q$19,IF($AH7='Modèles+listes'!$B$20,'Modèles+listes'!Q$20,FALSE))))))))))))))))","v":0},{"$f":"IF($AH7='Modèles+listes'!$B$5,'Modèles+listes'!R$5,IF($AH7='Modèles+listes'!$B$6,'Modèles+listes'!R$6,IF($AH7='Modèles+listes'!$B$7,'Modèles+listes'!R$7,IF($AH7='Modèles+listes'!$B$8,'Modèles+listes'!R$8,IF($AH7='Modèles+listes'!$B$9,'Modèles+listes'!R$9,IF($AH7='Modèles+listes'!$B$10,'Modèles+listes'!R$10,IF($AH7='Modèles+listes'!$B$11,'Modèles+listes'!R$11,IF($AH7='Modèles+listes'!$B$12,'Modèles+listes'!R$12,IF($AH7='Modèles+listes'!$B$13,'Modèles+listes'!R$13,IF($AH7='Modèles+listes'!$B$14,'Modèles+listes'!R$14,IF($AH7='Modèles+listes'!$B$15,'Modèles+listes'!R$15,IF($AH7='Modèles+listes'!$B$16,'Modèles+listes'!R$16,IF($AH7='Modèles+listes'!$B$17,'Modèles+listes'!R$17,IF($AH7='Modèles+listes'!$B$18,'Modèles+listes'!R$18,IF($AH7='Modèles+listes'!$B$19,'Modèles+listes'!R$19,IF($AH7='Modèles+listes'!$B$20,'Modèles+listes'!R$20,FALSE))))))))))))))))","v":0},{"$f":"+VLOOKUP(B7,BOM!$M:$W,11,FALSE)","v":1},{"$f":"IF($AH7='Modèles+listes'!$B$5,'Modèles+listes'!T$5,IF($AH7='Modèles+listes'!$B$6,'Modèles+listes'!T$6,IF($AH7='Modèles+listes'!$B$7,'Modèles+listes'!T$7,IF($AH7='Modèles+listes'!$B$8,'Modèles+listes'!T$8,IF($AH7='Modèles+listes'!$B$9,'Modèles+listes'!T$9,IF($AH7='Modèles+listes'!$B$10,'Modèles+listes'!T$10,IF($AH7='Modèles+listes'!$B$11,'Modèles+listes'!T$11,IF($AH7='Modèles+listes'!$B$12,'Modèles+listes'!T$12,IF($AH7='Modèles+listes'!$B$13,'Modèles+listes'!T$13,IF($AH7='Modèles+listes'!$B$14,'Modèles+listes'!T$14,IF($AH7='Modèles+listes'!$B$15,'Modèles+listes'!T$15,IF($AH7='Modèles+listes'!$B$16,'Modèles+listes'!T$16,IF($AH7='Modèles+listes'!$B$17,'Modèles+listes'!T$17,IF($AH7='Modèles+listes'!$B$18,'Modèles+listes'!T$18,IF($AH7='Modèles+listes'!$B$19,'Modèles+listes'!T$19,IF($AH7='Modèles+listes'!$B$20,'Modèles+listes'!T$20,FALSE))))))))))))))))","v":12},{"$f":"IF($AH7='Modèles+listes'!$B$5,'Modèles+listes'!U$5,IF($AH7='Modèles+listes'!$B$6,'Modèles+listes'!U$6,IF($AH7='Modèles+listes'!$B$7,'Modèles+listes'!U$7,IF($AH7='Modèles+listes'!$B$8,'Modèles+listes'!U$8,IF($AH7='Modèles+listes'!$B$9,'Modèles+listes'!U$9,IF($AH7='Modèles+listes'!$B$10,'Modèles+listes'!U$10,IF($AH7='Modèles+listes'!$B$11,'Modèles+listes'!U$11,IF($AH7='Modèles+listes'!$B$12,'Modèles+listes'!U$12,IF($AH7='Modèles+listes'!$B$13,'Modèles+listes'!U$13,IF($AH7='Modèles+listes'!$B$14,'Modèles+listes'!U$14,IF($AH7='Modèles+listes'!$B$15,'Modèles+listes'!U$15,IF($AH7='Modèles+listes'!$B$16,'Modèles+listes'!U$16,IF($AH7='Modèles+listes'!$B$17,'Modèles+listes'!U$17,IF($AH7='Modèles+listes'!$B$18,'Modèles+listes'!U$18,IF($AH7='Modèles+listes'!$B$19,'Modèles+listes'!U$19,IF($AH7='Modèles+listes'!$B$20,'Modèles+listes'!U$20,FALSE))))))))))))))))","v":14},{"$f":"IF($AH7='Modèles+listes'!$B$5,'Modèles+listes'!V$5,IF($AH7='Modèles+listes'!$B$6,'Modèles+listes'!V$6,IF($AH7='Modèles+listes'!$B$7,'Modèles+listes'!V$7,IF($AH7='Modèles+listes'!$B$8,'Modèles+listes'!V$8,IF($AH7='Modèles+listes'!$B$9,'Modèles+listes'!V$9,IF($AH7='Modèles+listes'!$B$10,'Modèles+listes'!V$10,IF($AH7='Modèles+listes'!$B$11,'Modèles+listes'!V$11,IF($AH7='Modèles+listes'!$B$12,'Modèles+listes'!V$12,IF($AH7='Modèles+listes'!$B$13,'Modèles+listes'!V$13,IF($AH7='Modèles+listes'!$B$14,'Modèles+listes'!V$14,IF($AH7='Modèles+listes'!$B$15,'Modèles+listes'!V$15,IF($AH7='Modèles+listes'!$B$16,'Modèles+listes'!V$16,IF($AH7='Modèles+listes'!$B$17,'Modèles+listes'!V$17,IF($AH7='Modèles+listes'!$B$18,'Modèles+listes'!V$18,IF($AH7='Modèles+listes'!$B$19,'Modèles+listes'!V$19,IF($AH7='Modèles+listes'!$B$20,'Modèles+listes'!V$20,FALSE))))))))))))))))","v":6},{"$f":"IF($AH7='Modèles+listes'!$B$5,'Modèles+listes'!W$5,IF($AH7='Modèles+listes'!$B$6,'Modèles+listes'!W$6,IF($AH7='Modèles+listes'!$B$7,'Modèles+listes'!W$7,IF($AH7='Modèles+listes'!$B$8,'Modèles+listes'!W$8,IF($AH7='Modèles+listes'!$B$9,'Modèles+listes'!W$9,IF($AH7='Modèles+listes'!$B$10,'Modèles+listes'!W$10,IF($AH7='Modèles+listes'!$B$11,'Modèles+listes'!W$11,IF($AH7='Modèles+listes'!$B$12,'Modèles+listes'!W$12,IF($AH7='Modèles+listes'!$B$13,'Modèles+listes'!W$13,IF($AH7='Modèles+listes'!$B$14,'Modèles+listes'!W$14,IF($AH7='Modèles+listes'!$B$15,'Modèles+listes'!W$15,IF($AH7='Modèles+listes'!$B$16,'Modèles+listes'!W$16,IF($AH7='Modèles+listes'!$B$17,'Modèles+listes'!W$17,IF($AH7='Modèles+listes'!$B$18,'Modèles+listes'!W$18,IF($AH7='Modèles+listes'!$B$19,'Modèles+listes'!W$19,IF($AH7='Modèles+listes'!$B$20,'Modèles+listes'!W$20,FALSE))))))))))))))))","v":5},{"$f":"+VLOOKUP(B7,BOM!$M:$W,4,FALSE)","v":"MODEL04"}]
[null,84045007,{"$f":"+VLOOKUP(B8,BOM!$M:$O,3,FALSE)","v":"FONCET MOBILE LISSE DRT"},{"$f":"VLOOKUP(B8,BOM!$M:$W,8,FALSE)","v":"SP"},{"$f":"IF($AH8='Modèles+listes'!$B$5,'Modèles+listes'!D$5,IF($AH8='Modèles+listes'!$B$6,'Modèles+listes'!D$6,IF($AH8='Modèles+listes'!$B$7,'Modèles+listes'!D$7,IF($AH8='Modèles+listes'!$B$8,'Modèles+listes'!D$8,IF($AH8='Modèles+listes'!$B$9,'Modèles+listes'!D$9,IF($AH8='Modèles+listes'!$B$10,'Modèles+listes'!D$10,IF($AH8='Modèles+listes'!$B$11,'Modèles+listes'!D$11,IF($AH8='Modèles+listes'!$B$12,'Modèles+listes'!D$12,IF($AH8='Modèles+listes'!$B$13,'Modèles+listes'!D$13,IF($AH8='Modèles+listes'!$B$14,'Modèles+listes'!D$14,IF($AH8='Modèles+listes'!$B$15,'Modèles+listes'!D$15,IF($AH8='Modèles+listes'!$B$16,'Modèles+listes'!D$16,IF($AH8='Modèles+listes'!$B$17,'Modèles+listes'!D$17,IF($AH8='Modèles+listes'!$B$18,'Modèles+listes'!D$18,IF($AH8='Modèles+listes'!$B$19,'Modèles+listes'!D$19,IF($AH8='Modèles+listes'!$B$20,'Modèles+listes'!D$20,FALSE))))))))))))))))","v":"04"},{"$f":"BOM!$R$4","v":1506},{"$f":"BOM!$R$5","v":"04090"},{"$f":"IF($AH8='Modèles+listes'!$B$5,'Modèles+listes'!E$5,IF($AH8='Modèles+listes'!$B$6,'Modèles+listes'!E$6,IF($AH8='Modèles+listes'!$B$7,'Modèles+listes'!E$7,IF($AH8='Modèles+listes'!$B$8,'Modèles+listes'!E$8,IF($AH8='Modèles+listes'!$B$9,'Modèles+listes'!E$9,IF($AH8='Modèles+listes'!$B$10,'Modèles+listes'!E$10,IF($AH8='Modèles+listes'!$B$11,'Modèles+listes'!E$11,IF($AH8='Modèles+listes'!$B$12,'Modèles+listes'!E$12,IF($AH8='Modèles+listes'!$B$13,'Modèles+listes'!E$13,IF($AH8='Modèles+listes'!$B$14,'Modèles+listes'!E$14,IF($AH8='Modèles+listes'!$B$15,'Modèles+listes'!E$15,IF($AH8='Modèles+listes'!$B$16,'Modèles+listes'!E$16,IF($AH8='Modèles+listes'!$B$17,'Modèles+listes'!E$17,IF($AH8='Modèles+listes'!$B$18,'Modèles+listes'!E$18,IF($AH8='Modèles+listes'!$B$19,'Modèles+listes'!E$19,IF($AH8='Modèles+listes'!$B$20,'Modèles+listes'!E$20,FALSE))))))))))))))))","v":1},{"$f":"+VLOOKUP($B8,BOM!$M:$BB,5,FALSE)","v":"PI"},{"$f":"+IF(E8<>\"04\",BOM!$R$3,BOM!$R$2)","v":"JACOB"},{"$f":"IF($AH8='Modèles+listes'!$B$5,'Modèles+listes'!F$5,IF($AH8='Modèles+listes'!$B$6,'Modèles+listes'!F$6,IF($AH8='Modèles+listes'!$B$7,'Modèles+listes'!F$7,IF($AH8='Modèles+listes'!$B$8,'Modèles+listes'!F$8,IF($AH8='Modèles+listes'!$B$9,'Modèles+listes'!F$9,IF($AH8='Modèles+listes'!$B$10,'Modèles+listes'!F$10,IF($AH8='Modèles+listes'!$B$11,'Modèles+listes'!F$11,IF($AH8='Modèles+listes'!$B$12,'Modèles+listes'!F$12,IF($AH8='Modèles+listes'!$B$13,'Modèles+listes'!F$13,IF($AH8='Modèles+listes'!$B$14,'Modèles+listes'!F$14,IF($AH8='Modèles+listes'!$B$15,'Modèles+listes'!F$15,IF($AH8='Modèles+listes'!$B$16,'Modèles+listes'!F$16,IF($AH8='Modèles+listes'!$B$17,'Modèles+listes'!F$17,IF($AH8='Modèles+listes'!$B$18,'Modèles+listes'!F$18,IF($AH8='Modèles+listes'!$B$19,'Modèles+listes'!F$19,IF($AH8='Modèles+listes'!$B$20,'Modèles+listes'!F$20,FALSE))))))))))))))))","v":2},{"$f":"IF($AH8='Modèles+listes'!$B$5,'Modèles+listes'!G$5,IF($AH8='Modèles+listes'!$B$6,'Modèles+listes'!G$6,IF($AH8='Modèles+listes'!$B$7,'Modèles+listes'!G$7,IF($AH8='Modèles+listes'!$B$8,'Modèles+listes'!G$8,IF($AH8='Modèles+listes'!$B$9,'Modèles+listes'!G$9,IF($AH8='Modèles+listes'!$B$10,'Modèles+listes'!G$10,IF($AH8='Modèles+listes'!$B$11,'Modèles+listes'!G$11,IF($AH8='Modèles+listes'!$B$12,'Modèles+listes'!G$12,IF($AH8='Modèles+listes'!$B$13,'Modèles+listes'!G$13,IF($AH8='Modèles+listes'!$B$14,'Modèles+listes'!G$14,IF($AH8='Modèles+listes'!$B$15,'Modèles+listes'!G$15,IF($AH8='Modèles+listes'!$B$16,'Modèles+listes'!G$16,IF($AH8='Modèles+listes'!$B$17,'Modèles+listes'!G$17,IF($AH8='Modèles+listes'!$B$18,'Modèles+listes'!G$18,IF($AH8='Modèles+listes'!$B$19,'Modèles+listes'!G$19,IF($AH8='Modèles+listes'!$B$20,'Modèles+listes'!G$20,FALSE))))))))))))))))","v":"?"},{"$f":"IF($AH8='Modèles+listes'!$B$5,'Modèles+listes'!H$5,IF($AH8='Modèles+listes'!$B$6,'Modèles+listes'!H$6,IF($AH8='Modèles+listes'!$B$7,'Modèles+listes'!H$7,IF($AH8='Modèles+listes'!$B$8,'Modèles+listes'!H$8,IF($AH8='Modèles+listes'!$B$9,'Modèles+listes'!H$9,IF($AH8='Modèles+listes'!$B$10,'Modèles+listes'!H$10,IF($AH8='Modèles+listes'!$B$11,'Modèles+listes'!H$11,IF($AH8='Modèles+listes'!$B$12,'Modèles+listes'!H$12,IF($AH8='Modèles+listes'!$B$13,'Modèles+listes'!H$13,IF($AH8='Modèles+listes'!$B$14,'Modèles+listes'!H$14,IF($AH8='Modèles+listes'!$B$15,'Modèles+listes'!H$15,IF($AH8='Modèles+listes'!$B$16,'Modèles+listes'!H$16,IF($AH8='Modèles+listes'!$B$17,'Modèles+listes'!H$17,IF($AH8='Modèles+listes'!$B$18,'Modèles+listes'!H$18,IF($AH8='Modèles+listes'!$B$19,'Modèles+listes'!H$19,IF($AH8='Modèles+listes'!$B$20,'Modèles+listes'!H$20,FALSE))))))))))))))))","v":0},{"$f":"IF($AH8='Modèles+listes'!$B$5,'Modèles+listes'!I$5,IF($AH8='Modèles+listes'!$B$6,'Modèles+listes'!I$6,IF($AH8='Modèles+listes'!$B$7,'Modèles+listes'!I$7,IF($AH8='Modèles+listes'!$B$8,'Modèles+listes'!I$8,IF($AH8='Modèles+listes'!$B$9,'Modèles+listes'!I$9,IF($AH8='Modèles+listes'!$B$10,'Modèles+listes'!I$10,IF($AH8='Modèles+listes'!$B$11,'Modèles+listes'!I$11,IF($AH8='Modèles+listes'!$B$12,'Modèles+listes'!I$12,IF($AH8='Modèles+listes'!$B$13,'Modèles+listes'!I$13,IF($AH8='Modèles+listes'!$B$14,'Modèles+listes'!I$14,IF($AH8='Modèles+listes'!$B$15,'Modèles+listes'!I$15,IF($AH8='Modèles+listes'!$B$16,'Modèles+listes'!I$16,IF($AH8='Modèles+listes'!$B$17,'Modèles+listes'!I$17,IF($AH8='Modèles+listes'!$B$18,'Modèles+listes'!I$18,IF($AH8='Modèles+listes'!$B$19,'Modèles+listes'!I$19,IF($AH8='Modèles+listes'!$B$20,'Modèles+listes'!I$20,FALSE))))))))))))))))","v":0},{"$f":"+VLOOKUP(B8,BOM!$M:$W,6,FALSE)","v":10},{"$f":"+VLOOKUP($B8,BOM!$M:$W,7,FALSE)","v":20},{"$f":"IF($AH8='Modèles+listes'!$B$5,'Modèles+listes'!J$5,IF($AH8='Modèles+listes'!$B$6,'Modèles+listes'!J$6,IF($AH8='Modèles+listes'!$B$7,'Modèles+listes'!J$7,IF($AH8='Modèles+listes'!$B$8,'Modèles+listes'!J$8,IF($AH8='Modèles+listes'!$B$9,'Modèles+listes'!J$9,IF($AH8='Modèles+listes'!$B$10,'Modèles+listes'!J$10,IF($AH8='Modèles+listes'!$B$11,'Modèles+listes'!J$11,IF($AH8='Modèles+listes'!$B$12,'Modèles+listes'!J$12,IF($AH8='Modèles+listes'!$B$13,'Modèles+listes'!J$13,IF($AH8='Modèles+listes'!$B$14,'Modèles+listes'!J$14,IF($AH8='Modèles+listes'!$B$15,'Modèles+listes'!J$15,IF($AH8='Modèles+listes'!$B$16,'Modèles+listes'!J$16,IF($AH8='Modèles+listes'!$B$17,'Modèles+listes'!J$17,IF($AH8='Modèles+listes'!$B$18,'Modèles+listes'!J$18,IF($AH8='Modèles+listes'!$B$19,'Modèles+listes'!J$19,IF($AH8='Modèles+listes'!$B$20,'Modèles+listes'!J$20,FALSE))))))))))))))))","v":0},{"$f":"IF($AH8='Modèles+listes'!$B$5,'Modèles+listes'!K$5,IF($AH8='Modèles+listes'!$B$6,'Modèles+listes'!K$6,IF($AH8='Modèles+listes'!$B$7,'Modèles+listes'!K$7,IF($AH8='Modèles+listes'!$B$8,'Modèles+listes'!K$8,IF($AH8='Modèles+listes'!$B$9,'Modèles+listes'!K$9,IF($AH8='Modèles+listes'!$B$10,'Modèles+listes'!K$10,IF($AH8='Modèles+listes'!$B$11,'Modèles+listes'!K$11,IF($AH8='Modèles+listes'!$B$12,'Modèles+listes'!K$12,IF($AH8='Modèles+listes'!$B$13,'Modèles+listes'!K$13,IF($AH8='Modèles+listes'!$B$14,'Modèles+listes'!K$14,IF($AH8='Modèles+listes'!$B$15,'Modèles+listes'!K$15,IF($AH8='Modèles+listes'!$B$16,'Modèles+listes'!K$16,IF($AH8='Modèles+listes'!$B$17,'Modèles+listes'!K$17,IF($AH8='Modèles+listes'!$B$18,'Modèles+listes'!K$18,IF($AH8='Modèles+listes'!$B$19,'Modèles+listes'!K$19,IF($AH8='Modèles+listes'!$B$20,'Modèles+listes'!K$20,FALSE))))))))))))))))","v":0},null,{"$f":"VLOOKUP(B8,BOM!$M:$W,9,FALSE)","v":"N"},null,{"$f":"IF($AH8='Modèles+listes'!$B$5,'Modèles+listes'!L$5,IF($AH8='Modèles+listes'!$B$6,'Modèles+listes'!L$6,IF($AH8='Modèles+listes'!$B$7,'Modèles+listes'!L$7,IF($AH8='Modèles+listes'!$B$8,'Modèles+listes'!L$8,IF($AH8='Modèles+listes'!$B$9,'Modèles+listes'!L$9,IF($AH8='Modèles+listes'!$B$10,'Modèles+listes'!L$10,IF($AH8='Modèles+listes'!$B$11,'Modèles+listes'!L$11,IF($AH8='Modèles+listes'!$B$12,'Modèles+listes'!L$12,IF($AH8='Modèles+listes'!$B$13,'Modèles+listes'!L$13,IF($AH8='Modèles+listes'!$B$14,'Modèles+listes'!L$14,IF($AH8='Modèles+listes'!$B$15,'Modèles+listes'!L$15,IF($AH8='Modèles+listes'!$B$16,'Modèles+listes'!L$16,IF($AH8='Modèles+listes'!$B$17,'Modèles+listes'!L$17,IF($AH8='Modèles+listes'!$B$18,'Modèles+listes'!L$18,IF($AH8='Modèles+listes'!$B$19,'Modèles+listes'!L$19,IF($AH8='Modèles+listes'!$B$20,'Modèles+listes'!L$20,FALSE))))))))))))))))","v":2},{"$f":"IF($AH8='Modèles+listes'!$B$5,'Modèles+listes'!M$5,IF($AH8='Modèles+listes'!$B$6,'Modèles+listes'!M$6,IF($AH8='Modèles+listes'!$B$7,'Modèles+listes'!M$7,IF($AH8='Modèles+listes'!$B$8,'Modèles+listes'!M$8,IF($AH8='Modèles+listes'!$B$9,'Modèles+listes'!M$9,IF($AH8='Modèles+listes'!$B$10,'Modèles+listes'!M$10,IF($AH8='Modèles+listes'!$B$11,'Modèles+listes'!M$11,IF($AH8='Modèles+listes'!$B$12,'Modèles+listes'!M$12,IF($AH8='Modèles+listes'!$B$13,'Modèles+listes'!M$13,IF($AH8='Modèles+listes'!$B$14,'Modèles+listes'!M$14,IF($AH8='Modèles+listes'!$B$15,'Modèles+listes'!M$15,IF($AH8='Modèles+listes'!$B$16,'Modèles+listes'!M$16,IF($AH8='Modèles+listes'!$B$17,'Modèles+listes'!M$17,IF($AH8='Modèles+listes'!$B$18,'Modèles+listes'!M$18,IF($AH8='Modèles+listes'!$B$19,'Modèles+listes'!M$19,IF($AH8='Modèles+listes'!$B$20,'Modèles+listes'!M$20,FALSE))))))))))))))))","v":30},{"$f":"IF($AH8='Modèles+listes'!$B$5,'Modèles+listes'!N$5,IF($AH8='Modèles+listes'!$B$6,'Modèles+listes'!N$6,IF($AH8='Modèles+listes'!$B$7,'Modèles+listes'!N$7,IF($AH8='Modèles+listes'!$B$8,'Modèles+listes'!N$8,IF($AH8='Modèles+listes'!$B$9,'Modèles+listes'!N$9,IF($AH8='Modèles+listes'!$B$10,'Modèles+listes'!N$10,IF($AH8='Modèles+listes'!$B$11,'Modèles+listes'!N$11,IF($AH8='Modèles+listes'!$B$12,'Modèles+listes'!N$12,IF($AH8='Modèles+listes'!$B$13,'Modèles+listes'!N$13,IF($AH8='Modèles+listes'!$B$14,'Modèles+listes'!N$14,IF($AH8='Modèles+listes'!$B$15,'Modèles+listes'!N$15,IF($AH8='Modèles+listes'!$B$16,'Modèles+listes'!N$16,IF($AH8='Modèles+listes'!$B$17,'Modèles+listes'!N$17,IF($AH8='Modèles+listes'!$B$18,'Modèles+listes'!N$18,IF($AH8='Modèles+listes'!$B$19,'Modèles+listes'!N$19,IF($AH8='Modèles+listes'!$B$20,'Modèles+listes'!N$20,FALSE))))))))))))))))","v":12},{"$f":"IF($AH8='Modèles+listes'!$B$5,'Modèles+listes'!O$5,IF($AH8='Modèles+listes'!$B$6,'Modèles+listes'!O$6,IF($AH8='Modèles+listes'!$B$7,'Modèles+listes'!O$7,IF($AH8='Modèles+listes'!$B$8,'Modèles+listes'!O$8,IF($AH8='Modèles+listes'!$B$9,'Modèles+listes'!O$9,IF($AH8='Modèles+listes'!$B$10,'Modèles+listes'!O$10,IF($AH8='Modèles+listes'!$B$11,'Modèles+listes'!O$11,IF($AH8='Modèles+listes'!$B$12,'Modèles+listes'!O$12,IF($AH8='Modèles+listes'!$B$13,'Modèles+listes'!O$13,IF($AH8='Modèles+listes'!$B$14,'Modèles+listes'!O$14,IF($AH8='Modèles+listes'!$B$15,'Modèles+listes'!O$15,IF($AH8='Modèles+listes'!$B$16,'Modèles+listes'!O$16,IF($AH8='Modèles+listes'!$B$17,'Modèles+listes'!O$17,IF($AH8='Modèles+listes'!$B$18,'Modèles+listes'!O$18,IF($AH8='Modèles+listes'!$B$19,'Modèles+listes'!O$19,IF($AH8='Modèles+listes'!$B$20,'Modèles+listes'!O$20,FALSE))))))))))))))))","v":"01"},{"$f":"IF($AH8='Modèles+listes'!$B$5,'Modèles+listes'!P$5,IF($AH8='Modèles+listes'!$B$6,'Modèles+listes'!P$6,IF($AH8='Modèles+listes'!$B$7,'Modèles+listes'!P$7,IF($AH8='Modèles+listes'!$B$8,'Modèles+listes'!P$8,IF($AH8='Modèles+listes'!$B$9,'Modèles+listes'!P$9,IF($AH8='Modèles+listes'!$B$10,'Modèles+listes'!P$10,IF($AH8='Modèles+listes'!$B$11,'Modèles+listes'!P$11,IF($AH8='Modèles+listes'!$B$12,'Modèles+listes'!P$12,IF($AH8='Modèles+listes'!$B$13,'Modèles+listes'!P$13,IF($AH8='Modèles+listes'!$B$14,'Modèles+listes'!P$14,IF($AH8='Modèles+listes'!$B$15,'Modèles+listes'!P$15,IF($AH8='Modèles+listes'!$B$16,'Modèles+listes'!P$16,IF($AH8='Modèles+listes'!$B$17,'Modèles+listes'!P$17,IF($AH8='Modèles+listes'!$B$18,'Modèles+listes'!P$18,IF($AH8='Modèles+listes'!$B$19,'Modèles+listes'!P$19,IF($AH8='Modèles+listes'!$B$20,'Modèles+listes'!P$20,FALSE))))))))))))))))","v":0},{"$f":"IF($AH8='Modèles+listes'!$B$5,'Modèles+listes'!Q$5,IF($AH8='Modèles+listes'!$B$6,'Modèles+listes'!Q$6,IF($AH8='Modèles+listes'!$B$7,'Modèles+listes'!Q$7,IF($AH8='Modèles+listes'!$B$8,'Modèles+listes'!Q$8,IF($AH8='Modèles+listes'!$B$9,'Modèles+listes'!Q$9,IF($AH8='Modèles+listes'!$B$10,'Modèles+listes'!Q$10,IF($AH8='Modèles+listes'!$B$11,'Modèles+listes'!Q$11,IF($AH8='Modèles+listes'!$B$12,'Modèles+listes'!Q$12,IF($AH8='Modèles+listes'!$B$13,'Modèles+listes'!Q$13,IF($AH8='Modèles+listes'!$B$14,'Modèles+listes'!Q$14,IF($AH8='Modèles+listes'!$B$15,'Modèles+listes'!Q$15,IF($AH8='Modèles+listes'!$B$16,'Modèles+listes'!Q$16,IF($AH8='Modèles+listes'!$B$17,'Modèles+listes'!Q$17,IF($AH8='Modèles+listes'!$B$18,'Modèles+listes'!Q$18,IF($AH8='Modèles+listes'!$B$19,'Modèles+listes'!Q$19,IF($AH8='Modèles+listes'!$B$20,'Modèles+listes'!Q$20,FALSE))))))))))))))))","v":0},{"$f":"IF($AH8='Modèles+listes'!$B$5,'Modèles+listes'!R$5,IF($AH8='Modèles+listes'!$B$6,'Modèles+listes'!R$6,IF($AH8='Modèles+listes'!$B$7,'Modèles+listes'!R$7,IF($AH8='Modèles+listes'!$B$8,'Modèles+listes'!R$8,IF($AH8='Modèles+listes'!$B$9,'Modèles+listes'!R$9,IF($AH8='Modèles+listes'!$B$10,'Modèles+listes'!R$10,IF($AH8='Modèles+listes'!$B$11,'Modèles+listes'!R$11,IF($AH8='Modèles+listes'!$B$12,'Modèles+listes'!R$12,IF($AH8='Modèles+listes'!$B$13,'Modèles+listes'!R$13,IF($AH8='Modèles+listes'!$B$14,'Modèles+listes'!R$14,IF($AH8='Modèles+listes'!$B$15,'Modèles+listes'!R$15,IF($AH8='Modèles+listes'!$B$16,'Modèles+listes'!R$16,IF($AH8='Modèles+listes'!$B$17,'Modèles+listes'!R$17,IF($AH8='Modèles+listes'!$B$18,'Modèles+listes'!R$18,IF($AH8='Modèles+listes'!$B$19,'Modèles+listes'!R$19,IF($AH8='Modèles+listes'!$B$20,'Modèles+listes'!R$20,FALSE))))))))))))))))","v":0},{"$f":"+VLOOKUP(B8,BOM!$M:$W,11,FALSE)","v":1},{"$f":"IF($AH8='Modèles+listes'!$B$5,'Modèles+listes'!T$5,IF($AH8='Modèles+listes'!$B$6,'Modèles+listes'!T$6,IF($AH8='Modèles+listes'!$B$7,'Modèles+listes'!T$7,IF($AH8='Modèles+listes'!$B$8,'Modèles+listes'!T$8,IF($AH8='Modèles+listes'!$B$9,'Modèles+listes'!T$9,IF($AH8='Modèles+listes'!$B$10,'Modèles+listes'!T$10,IF($AH8='Modèles+listes'!$B$11,'Modèles+listes'!T$11,IF($AH8='Modèles+listes'!$B$12,'Modèles+listes'!T$12,IF($AH8='Modèles+listes'!$B$13,'Modèles+listes'!T$13,IF($AH8='Modèles+listes'!$B$14,'Modèles+listes'!T$14,IF($AH8='Modèles+listes'!$B$15,'Modèles+listes'!T$15,IF($AH8='Modèles+listes'!$B$16,'Modèles+listes'!T$16,IF($AH8='Modèles+listes'!$B$17,'Modèles+listes'!T$17,IF($AH8='Modèles+listes'!$B$18,'Modèles+listes'!T$18,IF($AH8='Modèles+listes'!$B$19,'Modèles+listes'!T$19,IF($AH8='Modèles+listes'!$B$20,'Modèles+listes'!T$20,FALSE))))))))))))))))","v":12},{"$f":"IF($AH8='Modèles+listes'!$B$5,'Modèles+listes'!U$5,IF($AH8='Modèles+listes'!$B$6,'Modèles+listes'!U$6,IF($AH8='Modèles+listes'!$B$7,'Modèles+listes'!U$7,IF($AH8='Modèles+listes'!$B$8,'Modèles+listes'!U$8,IF($AH8='Modèles+listes'!$B$9,'Modèles+listes'!U$9,IF($AH8='Modèles+listes'!$B$10,'Modèles+listes'!U$10,IF($AH8='Modèles+listes'!$B$11,'Modèles+listes'!U$11,IF($AH8='Modèles+listes'!$B$12,'Modèles+listes'!U$12,IF($AH8='Modèles+listes'!$B$13,'Modèles+listes'!U$13,IF($AH8='Modèles+listes'!$B$14,'Modèles+listes'!U$14,IF($AH8='Modèles+listes'!$B$15,'Modèles+listes'!U$15,IF($AH8='Modèles+listes'!$B$16,'Modèles+listes'!U$16,IF($AH8='Modèles+listes'!$B$17,'Modèles+listes'!U$17,IF($AH8='Modèles+listes'!$B$18,'Modèles+listes'!U$18,IF($AH8='Modèles+listes'!$B$19,'Modèles+listes'!U$19,IF($AH8='Modèles+listes'!$B$20,'Modèles+listes'!U$20,FALSE))))))))))))))))","v":"?"},{"$f":"IF($AH8='Modèles+listes'!$B$5,'Modèles+listes'!V$5,IF($AH8='Modèles+listes'!$B$6,'Modèles+listes'!V$6,IF($AH8='Modèles+listes'!$B$7,'Modèles+listes'!V$7,IF($AH8='Modèles+listes'!$B$8,'Modèles+listes'!V$8,IF($AH8='Modèles+listes'!$B$9,'Modèles+listes'!V$9,IF($AH8='Modèles+listes'!$B$10,'Modèles+listes'!V$10,IF($AH8='Modèles+listes'!$B$11,'Modèles+listes'!V$11,IF($AH8='Modèles+listes'!$B$12,'Modèles+listes'!V$12,IF($AH8='Modèles+listes'!$B$13,'Modèles+listes'!V$13,IF($AH8='Modèles+listes'!$B$14,'Modèles+listes'!V$14,IF($AH8='Modèles+listes'!$B$15,'Modèles+listes'!V$15,IF($AH8='Modèles+listes'!$B$16,'Modèles+listes'!V$16,IF($AH8='Modèles+listes'!$B$17,'Modèles+listes'!V$17,IF($AH8='Modèles+listes'!$B$18,'Modèles+listes'!V$18,IF($AH8='Modèles+listes'!$B$19,'Modèles+listes'!V$19,IF($AH8='Modèles+listes'!$B$20,'Modèles+listes'!V$20,FALSE))))))))))))))))","v":4},{"$f":"IF($AH8='Modèles+listes'!$B$5,'Modèles+listes'!W$5,IF($AH8='Modèles+listes'!$B$6,'Modèles+listes'!W$6,IF($AH8='Modèles+listes'!$B$7,'Modèles+listes'!W$7,IF($AH8='Modèles+listes'!$B$8,'Modèles+listes'!W$8,IF($AH8='Modèles+listes'!$B$9,'Modèles+listes'!W$9,IF($AH8='Modèles+listes'!$B$10,'Modèles+listes'!W$10,IF($AH8='Modèles+listes'!$B$11,'Modèles+listes'!W$11,IF($AH8='Modèles+listes'!$B$12,'Modèles+listes'!W$12,IF($AH8='Modèles+listes'!$B$13,'Modèles+listes'!W$13,IF($AH8='Modèles+listes'!$B$14,'Modèles+listes'!W$14,IF($AH8='Modèles+listes'!$B$15,'Modèles+listes'!W$15,IF($AH8='Modèles+listes'!$B$16,'Modèles+listes'!W$16,IF($AH8='Modèles+listes'!$B$17,'Modèles+listes'!W$17,IF($AH8='Modèles+listes'!$B$18,'Modèles+listes'!W$18,IF($AH8='Modèles+listes'!$B$19,'Modèles+listes'!W$19,IF($AH8='Modèles+listes'!$B$20,'Modèles+listes'!W$20,FALSE))))))))))))))))","v":5},{"$f":"+VLOOKUP(B8,BOM!$M:$W,4,FALSE)","v":"MODEL04Q"}]
[null,94098701,{"$f":"+VLOOKUP(B9,BOM!$M:$O,3,FALSE)","v":"P/C CR4 700 SENS A"},{"$f":"VLOOKUP(B9,BOM!$M:$W,8,FALSE)","v":"4098701"},{"$f":"IF($AH9='Modèles+listes'!$B$5,'Modèles+listes'!D$5,IF($AH9='Modèles+listes'!$B$6,'Modèles+listes'!D$6,IF($AH9='Modèles+listes'!$B$7,'Modèles+listes'!D$7,IF($AH9='Modèles+listes'!$B$8,'Modèles+listes'!D$8,IF($AH9='Modèles+listes'!$B$9,'Modèles+listes'!D$9,IF($AH9='Modèles+listes'!$B$10,'Modèles+listes'!D$10,IF($AH9='Modèles+listes'!$B$11,'Modèles+listes'!D$11,IF($AH9='Modèles+listes'!$B$12,'Modèles+listes'!D$12,IF($AH9='Modèles+listes'!$B$13,'Modèles+listes'!D$13,IF($AH9='Modèles+listes'!$B$14,'Modèles+listes'!D$14,IF($AH9='Modèles+listes'!$B$15,'Modèles+listes'!D$15,IF($AH9='Modèles+listes'!$B$16,'Modèles+listes'!D$16,IF($AH9='Modèles+listes'!$B$17,'Modèles+listes'!D$17,IF($AH9='Modèles+listes'!$B$18,'Modèles+listes'!D$18,IF($AH9='Modèles+listes'!$B$19,'Modèles+listes'!D$19,IF($AH9='Modèles+listes'!$B$20,'Modèles+listes'!D$20,FALSE))))))))))))))))","v":"09"},{"$f":"BOM!$R$4","v":1506},{"$f":"BOM!$R$5","v":"04090"},{"$f":"IF($AH9='Modèles+listes'!$B$5,'Modèles+listes'!E$5,IF($AH9='Modèles+listes'!$B$6,'Modèles+listes'!E$6,IF($AH9='Modèles+listes'!$B$7,'Modèles+listes'!E$7,IF($AH9='Modèles+listes'!$B$8,'Modèles+listes'!E$8,IF($AH9='Modèles+listes'!$B$9,'Modèles+listes'!E$9,IF($AH9='Modèles+listes'!$B$10,'Modèles+listes'!E$10,IF($AH9='Modèles+listes'!$B$11,'Modèles+listes'!E$11,IF($AH9='Modèles+listes'!$B$12,'Modèles+listes'!E$12,IF($AH9='Modèles+listes'!$B$13,'Modèles+listes'!E$13,IF($AH9='Modèles+listes'!$B$14,'Modèles+listes'!E$14,IF($AH9='Modèles+listes'!$B$15,'Modèles+listes'!E$15,IF($AH9='Modèles+listes'!$B$16,'Modèles+listes'!E$16,IF($AH9='Modèles+listes'!$B$17,'Modèles+listes'!E$17,IF($AH9='Modèles+listes'!$B$18,'Modèles+listes'!E$18,IF($AH9='Modèles+listes'!$B$19,'Modèles+listes'!E$19,IF($AH9='Modèles+listes'!$B$20,'Modèles+listes'!E$20,FALSE))))))))))))))))","v":0},{"$f":"+VLOOKUP($B9,BOM!$M:$BB,5,FALSE)","v":"PI"},{"$f":"+IF(E9<>\"04\",BOM!$R$3,BOM!$R$2)","v":"SALPETIER"},{"$f":"IF($AH9='Modèles+listes'!$B$5,'Modèles+listes'!F$5,IF($AH9='Modèles+listes'!$B$6,'Modèles+listes'!F$6,IF($AH9='Modèles+listes'!$B$7,'Modèles+listes'!F$7,IF($AH9='Modèles+listes'!$B$8,'Modèles+listes'!F$8,IF($AH9='Modèles+listes'!$B$9,'Modèles+listes'!F$9,IF($AH9='Modèles+listes'!$B$10,'Modèles+listes'!F$10,IF($AH9='Modèles+listes'!$B$11,'Modèles+listes'!F$11,IF($AH9='Modèles+listes'!$B$12,'Modèles+listes'!F$12,IF($AH9='Modèles+listes'!$B$13,'Modèles+listes'!F$13,IF($AH9='Modèles+listes'!$B$14,'Modèles+listes'!F$14,IF($AH9='Modèles+listes'!$B$15,'Modèles+listes'!F$15,IF($AH9='Modèles+listes'!$B$16,'Modèles+listes'!F$16,IF($AH9='Modèles+listes'!$B$17,'Modèles+listes'!F$17,IF($AH9='Modèles+listes'!$B$18,'Modèles+listes'!F$18,IF($AH9='Modèles+listes'!$B$19,'Modèles+listes'!F$19,IF($AH9='Modèles+listes'!$B$20,'Modèles+listes'!F$20,FALSE))))))))))))))))","v":1},{"$f":"IF($AH9='Modèles+listes'!$B$5,'Modèles+listes'!G$5,IF($AH9='Modèles+listes'!$B$6,'Modèles+listes'!G$6,IF($AH9='Modèles+listes'!$B$7,'Modèles+listes'!G$7,IF($AH9='Modèles+listes'!$B$8,'Modèles+listes'!G$8,IF($AH9='Modèles+listes'!$B$9,'Modèles+listes'!G$9,IF($AH9='Modèles+listes'!$B$10,'Modèles+listes'!G$10,IF($AH9='Modèles+listes'!$B$11,'Modèles+listes'!G$11,IF($AH9='Modèles+listes'!$B$12,'Modèles+listes'!G$12,IF($AH9='Modèles+listes'!$B$13,'Modèles+listes'!G$13,IF($AH9='Modèles+listes'!$B$14,'Modèles+listes'!G$14,IF($AH9='Modèles+listes'!$B$15,'Modèles+listes'!G$15,IF($AH9='Modèles+listes'!$B$16,'Modèles+listes'!G$16,IF($AH9='Modèles+listes'!$B$17,'Modèles+listes'!G$17,IF($AH9='Modèles+listes'!$B$18,'Modèles+listes'!G$18,IF($AH9='Modèles+listes'!$B$19,'Modèles+listes'!G$19,IF($AH9='Modèles+listes'!$B$20,'Modèles+listes'!G$20,FALSE))))))))))))))))","v":"FAB"},{"$f":"IF($AH9='Modèles+listes'!$B$5,'Modèles+listes'!H$5,IF($AH9='Modèles+listes'!$B$6,'Modèles+listes'!H$6,IF($AH9='Modèles+listes'!$B$7,'Modèles+listes'!H$7,IF($AH9='Modèles+listes'!$B$8,'Modèles+listes'!H$8,IF($AH9='Modèles+listes'!$B$9,'Modèles+listes'!H$9,IF($AH9='Modèles+listes'!$B$10,'Modèles+listes'!H$10,IF($AH9='Modèles+listes'!$B$11,'Modèles+listes'!H$11,IF($AH9='Modèles+listes'!$B$12,'Modèles+listes'!H$12,IF($AH9='Modèles+listes'!$B$13,'Modèles+listes'!H$13,IF($AH9='Modèles+listes'!$B$14,'Modèles+listes'!H$14,IF($AH9='Modèles+listes'!$B$15,'Modèles+listes'!H$15,IF($AH9='Modèles+listes'!$B$16,'Modèles+listes'!H$16,IF($AH9='Modèles+listes'!$B$17,'Modèles+listes'!H$17,IF($AH9='Modèles+listes'!$B$18,'Modèles+listes'!H$18,IF($AH9='Modèles+listes'!$B$19,'Modèles+listes'!H$19,IF($AH9='Modèles+listes'!$B$20,'Modèles+listes'!H$20,FALSE))))))))))))))))","v":0},{"$f":"IF($AH9='Modèles+listes'!$B$5,'Modèles+listes'!I$5,IF($AH9='Modèles+listes'!$B$6,'Modèles+listes'!I$6,IF($AH9='Modèles+listes'!$B$7,'Modèles+listes'!I$7,IF($AH9='Modèles+listes'!$B$8,'Modèles+listes'!I$8,IF($AH9='Modèles+listes'!$B$9,'Modèles+listes'!I$9,IF($AH9='Modèles+listes'!$B$10,'Modèles+listes'!I$10,IF($AH9='Modèles+listes'!$B$11,'Modèles+listes'!I$11,IF($AH9='Modèles+listes'!$B$12,'Modèles+listes'!I$12,IF($AH9='Modèles+listes'!$B$13,'Modèles+listes'!I$13,IF($AH9='Modèles+listes'!$B$14,'Modèles+listes'!I$14,IF($AH9='Modèles+listes'!$B$15,'Modèles+listes'!I$15,IF($AH9='Modèles+listes'!$B$16,'Modèles+listes'!I$16,IF($AH9='Modèles+listes'!$B$17,'Modèles+listes'!I$17,IF($AH9='Modèles+listes'!$B$18,'Modèles+listes'!I$18,IF($AH9='Modèles+listes'!$B$19,'Modèles+listes'!I$19,IF($AH9='Modèles+listes'!$B$20,'Modèles+listes'!I$20,FALSE))))))))))))))))","v":0},{"$f":"+VLOOKUP(B9,BOM!$M:$W,6,FALSE)","v":10},{"$f":"+VLOOKUP($B9,BOM!$M:$W,7,FALSE)","v":20},{"$f":"IF($AH9='Modèles+listes'!$B$5,'Modèles+listes'!J$5,IF($AH9='Modèles+listes'!$B$6,'Modèles+listes'!J$6,IF($AH9='Modèles+listes'!$B$7,'Modèles+listes'!J$7,IF($AH9='Modèles+listes'!$B$8,'Modèles+listes'!J$8,IF($AH9='Modèles+listes'!$B$9,'Modèles+listes'!J$9,IF($AH9='Modèles+listes'!$B$10,'Modèles+listes'!J$10,IF($AH9='Modèles+listes'!$B$11,'Modèles+listes'!J$11,IF($AH9='Modèles+listes'!$B$12,'Modèles+listes'!J$12,IF($AH9='Modèles+listes'!$B$13,'Modèles+listes'!J$13,IF($AH9='Modèles+listes'!$B$14,'Modèles+listes'!J$14,IF($AH9='Modèles+listes'!$B$15,'Modèles+listes'!J$15,IF($AH9='Modèles+listes'!$B$16,'Modèles+listes'!J$16,IF($AH9='Modèles+listes'!$B$17,'Modèles+listes'!J$17,IF($AH9='Modèles+listes'!$B$18,'Modèles+listes'!J$18,IF($AH9='Modèles+listes'!$B$19,'Modèles+listes'!J$19,IF($AH9='Modèles+listes'!$B$20,'Modèles+listes'!J$20,FALSE))))))))))))))))","v":0},{"$f":"IF($AH9='Modèles+listes'!$B$5,'Modèles+listes'!K$5,IF($AH9='Modèles+listes'!$B$6,'Modèles+listes'!K$6,IF($AH9='Modèles+listes'!$B$7,'Modèles+listes'!K$7,IF($AH9='Modèles+listes'!$B$8,'Modèles+listes'!K$8,IF($AH9='Modèles+listes'!$B$9,'Modèles+listes'!K$9,IF($AH9='Modèles+listes'!$B$10,'Modèles+listes'!K$10,IF($AH9='Modèles+listes'!$B$11,'Modèles+listes'!K$11,IF($AH9='Modèles+listes'!$B$12,'Modèles+listes'!K$12,IF($AH9='Modèles+listes'!$B$13,'Modèles+listes'!K$13,IF($AH9='Modèles+listes'!$B$14,'Modèles+listes'!K$14,IF($AH9='Modèles+listes'!$B$15,'Modèles+listes'!K$15,IF($AH9='Modèles+listes'!$B$16,'Modèles+listes'!K$16,IF($AH9='Modèles+listes'!$B$17,'Modèles+listes'!K$17,IF($AH9='Modèles+listes'!$B$18,'Modèles+listes'!K$18,IF($AH9='Modèles+listes'!$B$19,'Modèles+listes'!K$19,IF($AH9='Modèles+listes'!$B$20,'Modèles+listes'!K$20,FALSE))))))))))))))))","v":2},null,{"$f":"VLOOKUP(B9,BOM!$M:$W,9,FALSE)","v":"N"},null,{"$f":"IF($AH9='Modèles+listes'!$B$5,'Modèles+listes'!L$5,IF($AH9='Modèles+listes'!$B$6,'Modèles+listes'!L$6,IF($AH9='Modèles+listes'!$B$7,'Modèles+listes'!L$7,IF($AH9='Modèles+listes'!$B$8,'Modèles+listes'!L$8,IF($AH9='Modèles+listes'!$B$9,'Modèles+listes'!L$9,IF($AH9='Modèles+listes'!$B$10,'Modèles+listes'!L$10,IF($AH9='Modèles+listes'!$B$11,'Modèles+listes'!L$11,IF($AH9='Modèles+listes'!$B$12,'Modèles+listes'!L$12,IF($AH9='Modèles+listes'!$B$13,'Modèles+listes'!L$13,IF($AH9='Modèles+listes'!$B$14,'Modèles+listes'!L$14,IF($AH9='Modèles+listes'!$B$15,'Modèles+listes'!L$15,IF($AH9='Modèles+listes'!$B$16,'Modèles+listes'!L$16,IF($AH9='Modèles+listes'!$B$17,'Modèles+listes'!L$17,IF($AH9='Modèles+listes'!$B$18,'Modèles+listes'!L$18,IF($AH9='Modèles+listes'!$B$19,'Modèles+listes'!L$19,IF($AH9='Modèles+listes'!$B$20,'Modèles+listes'!L$20,FALSE))))))))))))))))","v":1},{"$f":"IF($AH9='Modèles+listes'!$B$5,'Modèles+listes'!M$5,IF($AH9='Modèles+listes'!$B$6,'Modèles+listes'!M$6,IF($AH9='Modèles+listes'!$B$7,'Modèles+listes'!M$7,IF($AH9='Modèles+listes'!$B$8,'Modèles+listes'!M$8,IF($AH9='Modèles+listes'!$B$9,'Modèles+listes'!M$9,IF($AH9='Modèles+listes'!$B$10,'Modèles+listes'!M$10,IF($AH9='Modèles+listes'!$B$11,'Modèles+listes'!M$11,IF($AH9='Modèles+listes'!$B$12,'Modèles+listes'!M$12,IF($AH9='Modèles+listes'!$B$13,'Modèles+listes'!M$13,IF($AH9='Modèles+listes'!$B$14,'Modèles+listes'!M$14,IF($AH9='Modèles+listes'!$B$15,'Modèles+listes'!M$15,IF($AH9='Modèles+listes'!$B$16,'Modèles+listes'!M$16,IF($AH9='Modèles+listes'!$B$17,'Modèles+listes'!M$17,IF($AH9='Modèles+listes'!$B$18,'Modèles+listes'!M$18,IF($AH9='Modèles+listes'!$B$19,'Modèles+listes'!M$19,IF($AH9='Modèles+listes'!$B$20,'Modèles+listes'!M$20,FALSE))))))))))))))))","v":"01"},{"$f":"IF($AH9='Modèles+listes'!$B$5,'Modèles+listes'!N$5,IF($AH9='Modèles+listes'!$B$6,'Modèles+listes'!N$6,IF($AH9='Modèles+listes'!$B$7,'Modèles+listes'!N$7,IF($AH9='Modèles+listes'!$B$8,'Modèles+listes'!N$8,IF($AH9='Modèles+listes'!$B$9,'Modèles+listes'!N$9,IF($AH9='Modèles+listes'!$B$10,'Modèles+listes'!N$10,IF($AH9='Modèles+listes'!$B$11,'Modèles+listes'!N$11,IF($AH9='Modèles+listes'!$B$12,'Modèles+listes'!N$12,IF($AH9='Modèles+listes'!$B$13,'Modèles+listes'!N$13,IF($AH9='Modèles+listes'!$B$14,'Modèles+listes'!N$14,IF($AH9='Modèles+listes'!$B$15,'Modèles+listes'!N$15,IF($AH9='Modèles+listes'!$B$16,'Modèles+listes'!N$16,IF($AH9='Modèles+listes'!$B$17,'Modèles+listes'!N$17,IF($AH9='Modèles+listes'!$B$18,'Modèles+listes'!N$18,IF($AH9='Modèles+listes'!$B$19,'Modèles+listes'!N$19,IF($AH9='Modèles+listes'!$B$20,'Modèles+listes'!N$20,FALSE))))))))))))))))","v":1},{"$f":"IF($AH9='Modèles+listes'!$B$5,'Modèles+listes'!O$5,IF($AH9='Modèles+listes'!$B$6,'Modèles+listes'!O$6,IF($AH9='Modèles+listes'!$B$7,'Modèles+listes'!O$7,IF($AH9='Modèles+listes'!$B$8,'Modèles+listes'!O$8,IF($AH9='Modèles+listes'!$B$9,'Modèles+listes'!O$9,IF($AH9='Modèles+listes'!$B$10,'Modèles+listes'!O$10,IF($AH9='Modèles+listes'!$B$11,'Modèles+listes'!O$11,IF($AH9='Modèles+listes'!$B$12,'Modèles+listes'!O$12,IF($AH9='Modèles+listes'!$B$13,'Modèles+listes'!O$13,IF($AH9='Modèles+listes'!$B$14,'Modèles+listes'!O$14,IF($AH9='Modèles+listes'!$B$15,'Modèles+listes'!O$15,IF($AH9='Modèles+listes'!$B$16,'Modèles+listes'!O$16,IF($AH9='Modèles+listes'!$B$17,'Modèles+listes'!O$17,IF($AH9='Modèles+listes'!$B$18,'Modèles+listes'!O$18,IF($AH9='Modèles+listes'!$B$19,'Modèles+listes'!O$19,IF($AH9='Modèles+listes'!$B$20,'Modèles+listes'!O$20,FALSE))))))))))))))))","v":"03"},{"$f":"IF($AH9='Modèles+listes'!$B$5,'Modèles+listes'!P$5,IF($AH9='Modèles+listes'!$B$6,'Modèles+listes'!P$6,IF($AH9='Modèles+listes'!$B$7,'Modèles+listes'!P$7,IF($AH9='Modèles+listes'!$B$8,'Modèles+listes'!P$8,IF($AH9='Modèles+listes'!$B$9,'Modèles+listes'!P$9,IF($AH9='Modèles+listes'!$B$10,'Modèles+listes'!P$10,IF($AH9='Modèles+listes'!$B$11,'Modèles+listes'!P$11,IF($AH9='Modèles+listes'!$B$12,'Modèles+listes'!P$12,IF($AH9='Modèles+listes'!$B$13,'Modèles+listes'!P$13,IF($AH9='Modèles+listes'!$B$14,'Modèles+listes'!P$14,IF($AH9='Modèles+listes'!$B$15,'Modèles+listes'!P$15,IF($AH9='Modèles+listes'!$B$16,'Modèles+listes'!P$16,IF($AH9='Modèles+listes'!$B$17,'Modèles+listes'!P$17,IF($AH9='Modèles+listes'!$B$18,'Modèles+listes'!P$18,IF($AH9='Modèles+listes'!$B$19,'Modèles+listes'!P$19,IF($AH9='Modèles+listes'!$B$20,'Modèles+listes'!P$20,FALSE))))))))))))))))","v":0},{"$f":"IF($AH9='Modèles+listes'!$B$5,'Modèles+listes'!Q$5,IF($AH9='Modèles+listes'!$B$6,'Modèles+listes'!Q$6,IF($AH9='Modèles+listes'!$B$7,'Modèles+listes'!Q$7,IF($AH9='Modèles+listes'!$B$8,'Modèles+listes'!Q$8,IF($AH9='Modèles+listes'!$B$9,'Modèles+listes'!Q$9,IF($AH9='Modèles+listes'!$B$10,'Modèles+listes'!Q$10,IF($AH9='Modèles+listes'!$B$11,'Modèles+listes'!Q$11,IF($AH9='Modèles+listes'!$B$12,'Modèles+listes'!Q$12,IF($AH9='Modèles+listes'!$B$13,'Modèles+listes'!Q$13,IF($AH9='Modèles+listes'!$B$14,'Modèles+listes'!Q$14,IF($AH9='Modèles+listes'!$B$15,'Modèles+listes'!Q$15,IF($AH9='Modèles+listes'!$B$16,'Modèles+listes'!Q$16,IF($AH9='Modèles+listes'!$B$17,'Modèles+listes'!Q$17,IF($AH9='Modèles+listes'!$B$18,'Modèles+listes'!Q$18,IF($AH9='Modèles+listes'!$B$19,'Modèles+listes'!Q$19,IF($AH9='Modèles+listes'!$B$20,'Modèles+listes'!Q$20,FALSE))))))))))))))))","v":5},{"$f":"IF($AH9='Modèles+listes'!$B$5,'Modèles+listes'!R$5,IF($AH9='Modèles+listes'!$B$6,'Modèles+listes'!R$6,IF($AH9='Modèles+listes'!$B$7,'Modèles+listes'!R$7,IF($AH9='Modèles+listes'!$B$8,'Modèles+listes'!R$8,IF($AH9='Modèles+listes'!$B$9,'Modèles+listes'!R$9,IF($AH9='Modèles+listes'!$B$10,'Modèles+listes'!R$10,IF($AH9='Modèles+listes'!$B$11,'Modèles+listes'!R$11,IF($AH9='Modèles+listes'!$B$12,'Modèles+listes'!R$12,IF($AH9='Modèles+listes'!$B$13,'Modèles+listes'!R$13,IF($AH9='Modèles+listes'!$B$14,'Modèles+listes'!R$14,IF($AH9='Modèles+listes'!$B$15,'Modèles+listes'!R$15,IF($AH9='Modèles+listes'!$B$16,'Modèles+listes'!R$16,IF($AH9='Modèles+listes'!$B$17,'Modèles+listes'!R$17,IF($AH9='Modèles+listes'!$B$18,'Modèles+listes'!R$18,IF($AH9='Modèles+listes'!$B$19,'Modèles+listes'!R$19,IF($AH9='Modèles+listes'!$B$20,'Modèles+listes'!R$20,FALSE))))))))))))))))","v":10},{"$f":"+VLOOKUP(B9,BOM!$M:$W,11,FALSE)","v":1},{"$f":"IF($AH9='Modèles+listes'!$B$5,'Modèles+listes'!T$5,IF($AH9='Modèles+listes'!$B$6,'Modèles+listes'!T$6,IF($AH9='Modèles+listes'!$B$7,'Modèles+listes'!T$7,IF($AH9='Modèles+listes'!$B$8,'Modèles+listes'!T$8,IF($AH9='Modèles+listes'!$B$9,'Modèles+listes'!T$9,IF($AH9='Modèles+listes'!$B$10,'Modèles+listes'!T$10,IF($AH9='Modèles+listes'!$B$11,'Modèles+listes'!T$11,IF($AH9='Modèles+listes'!$B$12,'Modèles+listes'!T$12,IF($AH9='Modèles+listes'!$B$13,'Modèles+listes'!T$13,IF($AH9='Modèles+listes'!$B$14,'Modèles+listes'!T$14,IF($AH9='Modèles+listes'!$B$15,'Modèles+listes'!T$15,IF($AH9='Modèles+listes'!$B$16,'Modèles+listes'!T$16,IF($AH9='Modèles+listes'!$B$17,'Modèles+listes'!T$17,IF($AH9='Modèles+listes'!$B$18,'Modèles+listes'!T$18,IF($AH9='Modèles+listes'!$B$19,'Modèles+listes'!T$19,IF($AH9='Modèles+listes'!$B$20,'Modèles+listes'!T$20,FALSE))))))))))))))))","v":12},{"$f":"IF($AH9='Modèles+listes'!$B$5,'Modèles+listes'!U$5,IF($AH9='Modèles+listes'!$B$6,'Modèles+listes'!U$6,IF($AH9='Modèles+listes'!$B$7,'Modèles+listes'!U$7,IF($AH9='Modèles+listes'!$B$8,'Modèles+listes'!U$8,IF($AH9='Modèles+listes'!$B$9,'Modèles+listes'!U$9,IF($AH9='Modèles+listes'!$B$10,'Modèles+listes'!U$10,IF($AH9='Modèles+listes'!$B$11,'Modèles+listes'!U$11,IF($AH9='Modèles+listes'!$B$12,'Modèles+listes'!U$12,IF($AH9='Modèles+listes'!$B$13,'Modèles+listes'!U$13,IF($AH9='Modèles+listes'!$B$14,'Modèles+listes'!U$14,IF($AH9='Modèles+listes'!$B$15,'Modèles+listes'!U$15,IF($AH9='Modèles+listes'!$B$16,'Modèles+listes'!U$16,IF($AH9='Modèles+listes'!$B$17,'Modèles+listes'!U$17,IF($AH9='Modèles+listes'!$B$18,'Modèles+listes'!U$18,IF($AH9='Modèles+listes'!$B$19,'Modèles+listes'!U$19,IF($AH9='Modèles+listes'!$B$20,'Modèles+listes'!U$20,FALSE))))))))))))))))","v":"?"},{"$f":"IF($AH9='Modèles+listes'!$B$5,'Modèles+listes'!V$5,IF($AH9='Modèles+listes'!$B$6,'Modèles+listes'!V$6,IF($AH9='Modèles+listes'!$B$7,'Modèles+listes'!V$7,IF($AH9='Modèles+listes'!$B$8,'Modèles+listes'!V$8,IF($AH9='Modèles+listes'!$B$9,'Modèles+listes'!V$9,IF($AH9='Modèles+listes'!$B$10,'Modèles+listes'!V$10,IF($AH9='Modèles+listes'!$B$11,'Modèles+listes'!V$11,IF($AH9='Modèles+listes'!$B$12,'Modèles+listes'!V$12,IF($AH9='Modèles+listes'!$B$13,'Modèles+listes'!V$13,IF($AH9='Modèles+listes'!$B$14,'Modèles+listes'!V$14,IF($AH9='Modèles+listes'!$B$15,'Modèles+listes'!V$15,IF($AH9='Modèles+listes'!$B$16,'Modèles+listes'!V$16,IF($AH9='Modèles+listes'!$B$17,'Modèles+listes'!V$17,IF($AH9='Modèles+listes'!$B$18,'Modèles+listes'!V$18,IF($AH9='Modèles+listes'!$B$19,'Modèles+listes'!V$19,IF($AH9='Modèles+listes'!$B$20,'Modèles+listes'!V$20,FALSE))))))))))))))))","v":4},{"$f":"IF($AH9='Modèles+listes'!$B$5,'Modèles+listes'!W$5,IF($AH9='Modèles+listes'!$B$6,'Modèles+listes'!W$6,IF($AH9='Modèles+listes'!$B$7,'Modèles+listes'!W$7,IF($AH9='Modèles+listes'!$B$8,'Modèles+listes'!W$8,IF($AH9='Modèles+listes'!$B$9,'Modèles+listes'!W$9,IF($AH9='Modèles+listes'!$B$10,'Modèles+listes'!W$10,IF($AH9='Modèles+listes'!$B$11,'Modèles+listes'!W$11,IF($AH9='Modèles+listes'!$B$12,'Modèles+listes'!W$12,IF($AH9='Modèles+listes'!$B$13,'Modèles+listes'!W$13,IF($AH9='Modèles+listes'!$B$14,'Modèles+listes'!W$14,IF($AH9='Modèles+listes'!$B$15,'Modèles+listes'!W$15,IF($AH9='Modèles+listes'!$B$16,'Modèles+listes'!W$16,IF($AH9='Modèles+listes'!$B$17,'Modèles+listes'!W$17,IF($AH9='Modèles+listes'!$B$18,'Modèles+listes'!W$18,IF($AH9='Modèles+listes'!$B$19,'Modèles+listes'!W$19,IF($AH9='Modèles+listes'!$B$20,'Modèles+listes'!W$20,FALSE))))))))))))))))","v":0},{"$f":"+VLOOKUP(B9,BOM!$M:$W,4,FALSE)","v":"MODEL09"}]
[null,94098702,{"$f":"+VLOOKUP(B10,BOM!$M:$O,3,FALSE)","v":"P/C CR4 700 SENS D"},{"$f":"VLOOKUP(B10,BOM!$M:$W,8,FALSE)","v":"4098702"},{"$f":"IF($AH10='Modèles+listes'!$B$5,'Modèles+listes'!D$5,IF($AH10='Modèles+listes'!$B$6,'Modèles+listes'!D$6,IF($AH10='Modèles+listes'!$B$7,'Modèles+listes'!D$7,IF($AH10='Modèles+listes'!$B$8,'Modèles+listes'!D$8,IF($AH10='Modèles+listes'!$B$9,'Modèles+listes'!D$9,IF($AH10='Modèles+listes'!$B$10,'Modèles+listes'!D$10,IF($AH10='Modèles+listes'!$B$11,'Modèles+listes'!D$11,IF($AH10='Modèles+listes'!$B$12,'Modèles+listes'!D$12,IF($AH10='Modèles+listes'!$B$13,'Modèles+listes'!D$13,IF($AH10='Modèles+listes'!$B$14,'Modèles+listes'!D$14,IF($AH10='Modèles+listes'!$B$15,'Modèles+listes'!D$15,IF($AH10='Modèles+listes'!$B$16,'Modèles+listes'!D$16,IF($AH10='Modèles+listes'!$B$17,'Modèles+listes'!D$17,IF($AH10='Modèles+listes'!$B$18,'Modèles+listes'!D$18,IF($AH10='Modèles+listes'!$B$19,'Modèles+listes'!D$19,IF($AH10='Modèles+listes'!$B$20,'Modèles+listes'!D$20,FALSE))))))))))))))))","v":"03"},{"$f":"BOM!$R$4","v":1506},{"$f":"BOM!$R$5","v":"04090"},{"$f":"IF($AH10='Modèles+listes'!$B$5,'Modèles+listes'!E$5,IF($AH10='Modèles+listes'!$B$6,'Modèles+listes'!E$6,IF($AH10='Modèles+listes'!$B$7,'Modèles+listes'!E$7,IF($AH10='Modèles+listes'!$B$8,'Modèles+listes'!E$8,IF($AH10='Modèles+listes'!$B$9,'Modèles+listes'!E$9,IF($AH10='Modèles+listes'!$B$10,'Modèles+listes'!E$10,IF($AH10='Modèles+listes'!$B$11,'Modèles+listes'!E$11,IF($AH10='Modèles+listes'!$B$12,'Modèles+listes'!E$12,IF($AH10='Modèles+listes'!$B$13,'Modèles+listes'!E$13,IF($AH10='Modèles+listes'!$B$14,'Modèles+listes'!E$14,IF($AH10='Modèles+listes'!$B$15,'Modèles+listes'!E$15,IF($AH10='Modèles+listes'!$B$16,'Modèles+listes'!E$16,IF($AH10='Modèles+listes'!$B$17,'Modèles+listes'!E$17,IF($AH10='Modèles+listes'!$B$18,'Modèles+listes'!E$18,IF($AH10='Modèles+listes'!$B$19,'Modèles+listes'!E$19,IF($AH10='Modèles+listes'!$B$20,'Modèles+listes'!E$20,FALSE))))))))))))))))","v":1},{"$f":"+VLOOKUP($B10,BOM!$M:$BB,5,FALSE)","v":"PI"},{"$f":"+IF(E10<>\"04\",BOM!$R$3,BOM!$R$2)","v":"SALPETIER"},{"$f":"IF($AH10='Modèles+listes'!$B$5,'Modèles+listes'!F$5,IF($AH10='Modèles+listes'!$B$6,'Modèles+listes'!F$6,IF($AH10='Modèles+listes'!$B$7,'Modèles+listes'!F$7,IF($AH10='Modèles+listes'!$B$8,'Modèles+listes'!F$8,IF($AH10='Modèles+listes'!$B$9,'Modèles+listes'!F$9,IF($AH10='Modèles+listes'!$B$10,'Modèles+listes'!F$10,IF($AH10='Modèles+listes'!$B$11,'Modèles+listes'!F$11,IF($AH10='Modèles+listes'!$B$12,'Modèles+listes'!F$12,IF($AH10='Modèles+listes'!$B$13,'Modèles+listes'!F$13,IF($AH10='Modèles+listes'!$B$14,'Modèles+listes'!F$14,IF($AH10='Modèles+listes'!$B$15,'Modèles+listes'!F$15,IF($AH10='Modèles+listes'!$B$16,'Modèles+listes'!F$16,IF($AH10='Modèles+listes'!$B$17,'Modèles+listes'!F$17,IF($AH10='Modèles+listes'!$B$18,'Modèles+listes'!F$18,IF($AH10='Modèles+listes'!$B$19,'Modèles+listes'!F$19,IF($AH10='Modèles+listes'!$B$20,'Modèles+listes'!F$20,FALSE))))))))))))))))","v":2},{"$f":"IF($AH10='Modèles+listes'!$B$5,'Modèles+listes'!G$5,IF($AH10='Modèles+listes'!$B$6,'Modèles+listes'!G$6,IF($AH10='Modèles+listes'!$B$7,'Modèles+listes'!G$7,IF($AH10='Modèles+listes'!$B$8,'Modèles+listes'!G$8,IF($AH10='Modèles+listes'!$B$9,'Modèles+listes'!G$9,IF($AH10='Modèles+listes'!$B$10,'Modèles+listes'!G$10,IF($AH10='Modèles+listes'!$B$11,'Modèles+listes'!G$11,IF($AH10='Modèles+listes'!$B$12,'Modèles+listes'!G$12,IF($AH10='Modèles+listes'!$B$13,'Modèles+listes'!G$13,IF($AH10='Modèles+listes'!$B$14,'Modèles+listes'!G$14,IF($AH10='Modèles+listes'!$B$15,'Modèles+listes'!G$15,IF($AH10='Modèles+listes'!$B$16,'Modèles+listes'!G$16,IF($AH10='Modèles+listes'!$B$17,'Modèles+listes'!G$17,IF($AH10='Modèles+listes'!$B$18,'Modèles+listes'!G$18,IF($AH10='Modèles+listes'!$B$19,'Modèles+listes'!G$19,IF($AH10='Modèles+listes'!$B$20,'Modèles+listes'!G$20,FALSE))))))))))))))))","v":"?"},{"$f":"IF($AH10='Modèles+listes'!$B$5,'Modèles+listes'!H$5,IF($AH10='Modèles+listes'!$B$6,'Modèles+listes'!H$6,IF($AH10='Modèles+listes'!$B$7,'Modèles+listes'!H$7,IF($AH10='Modèles+listes'!$B$8,'Modèles+listes'!H$8,IF($AH10='Modèles+listes'!$B$9,'Modèles+listes'!H$9,IF($AH10='Modèles+listes'!$B$10,'Modèles+listes'!H$10,IF($AH10='Modèles+listes'!$B$11,'Modèles+listes'!H$11,IF($AH10='Modèles+listes'!$B$12,'Modèles+listes'!H$12,IF($AH10='Modèles+listes'!$B$13,'Modèles+listes'!H$13,IF($AH10='Modèles+listes'!$B$14,'Modèles+listes'!H$14,IF($AH10='Modèles+listes'!$B$15,'Modèles+listes'!H$15,IF($AH10='Modèles+listes'!$B$16,'Modèles+listes'!H$16,IF($AH10='Modèles+listes'!$B$17,'Modèles+listes'!H$17,IF($AH10='Modèles+listes'!$B$18,'Modèles+listes'!H$18,IF($AH10='Modèles+listes'!$B$19,'Modèles+listes'!H$19,IF($AH10='Modèles+listes'!$B$20,'Modèles+listes'!H$20,FALSE))))))))))))))))","v":0},{"$f":"IF($AH10='Modèles+listes'!$B$5,'Modèles+listes'!I$5,IF($AH10='Modèles+listes'!$B$6,'Modèles+listes'!I$6,IF($AH10='Modèles+listes'!$B$7,'Modèles+listes'!I$7,IF($AH10='Modèles+listes'!$B$8,'Modèles+listes'!I$8,IF($AH10='Modèles+listes'!$B$9,'Modèles+listes'!I$9,IF($AH10='Modèles+listes'!$B$10,'Modèles+listes'!I$10,IF($AH10='Modèles+listes'!$B$11,'Modèles+listes'!I$11,IF($AH10='Modèles+listes'!$B$12,'Modèles+listes'!I$12,IF($AH10='Modèles+listes'!$B$13,'Modèles+listes'!I$13,IF($AH10='Modèles+listes'!$B$14,'Modèles+listes'!I$14,IF($AH10='Modèles+listes'!$B$15,'Modèles+listes'!I$15,IF($AH10='Modèles+listes'!$B$16,'Modèles+listes'!I$16,IF($AH10='Modèles+listes'!$B$17,'Modèles+listes'!I$17,IF($AH10='Modèles+listes'!$B$18,'Modèles+listes'!I$18,IF($AH10='Modèles+listes'!$B$19,'Modèles+listes'!I$19,IF($AH10='Modèles+listes'!$B$20,'Modèles+listes'!I$20,FALSE))))))))))))))))","v":0},{"$f":"+VLOOKUP(B10,BOM!$M:$W,6,FALSE)","v":0},{"$f":"+VLOOKUP($B10,BOM!$M:$W,7,FALSE)","v":0},{"$f":"IF($AH10='Modèles+listes'!$B$5,'Modèles+listes'!J$5,IF($AH10='Modèles+listes'!$B$6,'Modèles+listes'!J$6,IF($AH10='Modèles+listes'!$B$7,'Modèles+listes'!J$7,IF($AH10='Modèles+listes'!$B$8,'Modèles+listes'!J$8,IF($AH10='Modèles+listes'!$B$9,'Modèles+listes'!J$9,IF($AH10='Modèles+listes'!$B$10,'Modèles+listes'!J$10,IF($AH10='Modèles+listes'!$B$11,'Modèles+listes'!J$11,IF($AH10='Modèles+listes'!$B$12,'Modèles+listes'!J$12,IF($AH10='Modèles+listes'!$B$13,'Modèles+listes'!J$13,IF($AH10='Modèles+listes'!$B$14,'Modèles+listes'!J$14,IF($AH10='Modèles+listes'!$B$15,'Modèles+listes'!J$15,IF($AH10='Modèles+listes'!$B$16,'Modèles+listes'!J$16,IF($AH10='Modèles+listes'!$B$17,'Modèles+listes'!J$17,IF($AH10='Modèles+listes'!$B$18,'Modèles+listes'!J$18,IF($AH10='Modèles+listes'!$B$19,'Modèles+listes'!J$19,IF($AH10='Modèles+listes'!$B$20,'Modèles+listes'!J$20,FALSE))))))))))))))))","v":0},{"$f":"IF($AH10='Modèles+listes'!$B$5,'Modèles+listes'!K$5,IF($AH10='Modèles+listes'!$B$6,'Modèles+listes'!K$6,IF($AH10='Modèles+listes'!$B$7,'Modèles+listes'!K$7,IF($AH10='Modèles+listes'!$B$8,'Modèles+listes'!K$8,IF($AH10='Modèles+listes'!$B$9,'Modèles+listes'!K$9,IF($AH10='Modèles+listes'!$B$10,'Modèles+listes'!K$10,IF($AH10='Modèles+listes'!$B$11,'Modèles+listes'!K$11,IF($AH10='Modèles+listes'!$B$12,'Modèles+listes'!K$12,IF($AH10='Modèles+listes'!$B$13,'Modèles+listes'!K$13,IF($AH10='Modèles+listes'!$B$14,'Modèles+listes'!K$14,IF($AH10='Modèles+listes'!$B$15,'Modèles+listes'!K$15,IF($AH10='Modèles+listes'!$B$16,'Modèles+listes'!K$16,IF($AH10='Modèles+listes'!$B$17,'Modèles+listes'!K$17,IF($AH10='Modèles+listes'!$B$18,'Modèles+listes'!K$18,IF($AH10='Modèles+listes'!$B$19,'Modèles+listes'!K$19,IF($AH10='Modèles+listes'!$B$20,'Modèles+listes'!K$20,FALSE))))))))))))))))","v":0},null,{"$f":"VLOOKUP(B10,BOM!$M:$W,9,FALSE)","v":"N"},null,{"$f":"IF($AH10='Modèles+listes'!$B$5,'Modèles+listes'!L$5,IF($AH10='Modèles+listes'!$B$6,'Modèles+listes'!L$6,IF($AH10='Modèles+listes'!$B$7,'Modèles+listes'!L$7,IF($AH10='Modèles+listes'!$B$8,'Modèles+listes'!L$8,IF($AH10='Modèles+listes'!$B$9,'Modèles+listes'!L$9,IF($AH10='Modèles+listes'!$B$10,'Modèles+listes'!L$10,IF($AH10='Modèles+listes'!$B$11,'Modèles+listes'!L$11,IF($AH10='Modèles+listes'!$B$12,'Modèles+listes'!L$12,IF($AH10='Modèles+listes'!$B$13,'Modèles+listes'!L$13,IF($AH10='Modèles+listes'!$B$14,'Modèles+listes'!L$14,IF($AH10='Modèles+listes'!$B$15,'Modèles+listes'!L$15,IF($AH10='Modèles+listes'!$B$16,'Modèles+listes'!L$16,IF($AH10='Modèles+listes'!$B$17,'Modèles+listes'!L$17,IF($AH10='Modèles+listes'!$B$18,'Modèles+listes'!L$18,IF($AH10='Modèles+listes'!$B$19,'Modèles+listes'!L$19,IF($AH10='Modèles+listes'!$B$20,'Modèles+listes'!L$20,FALSE))))))))))))))))","v":2},{"$f":"IF($AH10='Modèles+listes'!$B$5,'Modèles+listes'!M$5,IF($AH10='Modèles+listes'!$B$6,'Modèles+listes'!M$6,IF($AH10='Modèles+listes'!$B$7,'Modèles+listes'!M$7,IF($AH10='Modèles+listes'!$B$8,'Modèles+listes'!M$8,IF($AH10='Modèles+listes'!$B$9,'Modèles+listes'!M$9,IF($AH10='Modèles+listes'!$B$10,'Modèles+listes'!M$10,IF($AH10='Modèles+listes'!$B$11,'Modèles+listes'!M$11,IF($AH10='Modèles+listes'!$B$12,'Modèles+listes'!M$12,IF($AH10='Modèles+listes'!$B$13,'Modèles+listes'!M$13,IF($AH10='Modèles+listes'!$B$14,'Modèles+listes'!M$14,IF($AH10='Modèles+listes'!$B$15,'Modèles+listes'!M$15,IF($AH10='Modèles+listes'!$B$16,'Modèles+listes'!M$16,IF($AH10='Modèles+listes'!$B$17,'Modèles+listes'!M$17,IF($AH10='Modèles+listes'!$B$18,'Modèles+listes'!M$18,IF($AH10='Modèles+listes'!$B$19,'Modèles+listes'!M$19,IF($AH10='Modèles+listes'!$B$20,'Modèles+listes'!M$20,FALSE))))))))))))))))","v":30},{"$f":"IF($AH10='Modèles+listes'!$B$5,'Modèles+listes'!N$5,IF($AH10='Modèles+listes'!$B$6,'Modèles+listes'!N$6,IF($AH10='Modèles+listes'!$B$7,'Modèles+listes'!N$7,IF($AH10='Modèles+listes'!$B$8,'Modèles+listes'!N$8,IF($AH10='Modèles+listes'!$B$9,'Modèles+listes'!N$9,IF($AH10='Modèles+listes'!$B$10,'Modèles+listes'!N$10,IF($AH10='Modèles+listes'!$B$11,'Modèles+listes'!N$11,IF($AH10='Modèles+listes'!$B$12,'Modèles+listes'!N$12,IF($AH10='Modèles+listes'!$B$13,'Modèles+listes'!N$13,IF($AH10='Modèles+listes'!$B$14,'Modèles+listes'!N$14,IF($AH10='Modèles+listes'!$B$15,'Modèles+listes'!N$15,IF($AH10='Modèles+listes'!$B$16,'Modèles+listes'!N$16,IF($AH10='Modèles+listes'!$B$17,'Modèles+listes'!N$17,IF($AH10='Modèles+listes'!$B$18,'Modèles+listes'!N$18,IF($AH10='Modèles+listes'!$B$19,'Modèles+listes'!N$19,IF($AH10='Modèles+listes'!$B$20,'Modèles+listes'!N$20,FALSE))))))))))))))))","v":1},{"$f":"IF($AH10='Modèles+listes'!$B$5,'Modèles+listes'!O$5,IF($AH10='Modèles+listes'!$B$6,'Modèles+listes'!O$6,IF($AH10='Modèles+listes'!$B$7,'Modèles+listes'!O$7,IF($AH10='Modèles+listes'!$B$8,'Modèles+listes'!O$8,IF($AH10='Modèles+listes'!$B$9,'Modèles+listes'!O$9,IF($AH10='Modèles+listes'!$B$10,'Modèles+listes'!O$10,IF($AH10='Modèles+listes'!$B$11,'Modèles+listes'!O$11,IF($AH10='Modèles+listes'!$B$12,'Modèles+listes'!O$12,IF($AH10='Modèles+listes'!$B$13,'Modèles+listes'!O$13,IF($AH10='Modèles+listes'!$B$14,'Modèles+listes'!O$14,IF($AH10='Modèles+listes'!$B$15,'Modèles+listes'!O$15,IF($AH10='Modèles+listes'!$B$16,'Modèles+listes'!O$16,IF($AH10='Modèles+listes'!$B$17,'Modèles+listes'!O$17,IF($AH10='Modèles+listes'!$B$18,'Modèles+listes'!O$18,IF($AH10='Modèles+listes'!$B$19,'Modèles+listes'!O$19,IF($AH10='Modèles+listes'!$B$20,'Modèles+listes'!O$20,FALSE))))))))))))))))","v":"01"},{"$f":"IF($AH10='Modèles+listes'!$B$5,'Modèles+listes'!P$5,IF($AH10='Modèles+listes'!$B$6,'Modèles+listes'!P$6,IF($AH10='Modèles+listes'!$B$7,'Modèles+listes'!P$7,IF($AH10='Modèles+listes'!$B$8,'Modèles+listes'!P$8,IF($AH10='Modèles+listes'!$B$9,'Modèles+listes'!P$9,IF($AH10='Modèles+listes'!$B$10,'Modèles+listes'!P$10,IF($AH10='Modèles+listes'!$B$11,'Modèles+listes'!P$11,IF($AH10='Modèles+listes'!$B$12,'Modèles+listes'!P$12,IF($AH10='Modèles+listes'!$B$13,'Modèles+listes'!P$13,IF($AH10='Modèles+listes'!$B$14,'Modèles+listes'!P$14,IF($AH10='Modèles+listes'!$B$15,'Modèles+listes'!P$15,IF($AH10='Modèles+listes'!$B$16,'Modèles+listes'!P$16,IF($AH10='Modèles+listes'!$B$17,'Modèles+listes'!P$17,IF($AH10='Modèles+listes'!$B$18,'Modèles+listes'!P$18,IF($AH10='Modèles+listes'!$B$19,'Modèles+listes'!P$19,IF($AH10='Modèles+listes'!$B$20,'Modèles+listes'!P$20,FALSE))))))))))))))))","v":0},{"$f":"IF($AH10='Modèles+listes'!$B$5,'Modèles+listes'!Q$5,IF($AH10='Modèles+listes'!$B$6,'Modèles+listes'!Q$6,IF($AH10='Modèles+listes'!$B$7,'Modèles+listes'!Q$7,IF($AH10='Modèles+listes'!$B$8,'Modèles+listes'!Q$8,IF($AH10='Modèles+listes'!$B$9,'Modèles+listes'!Q$9,IF($AH10='Modèles+listes'!$B$10,'Modèles+listes'!Q$10,IF($AH10='Modèles+listes'!$B$11,'Modèles+listes'!Q$11,IF($AH10='Modèles+listes'!$B$12,'Modèles+listes'!Q$12,IF($AH10='Modèles+listes'!$B$13,'Modèles+listes'!Q$13,IF($AH10='Modèles+listes'!$B$14,'Modèles+listes'!Q$14,IF($AH10='Modèles+listes'!$B$15,'Modèles+listes'!Q$15,IF($AH10='Modèles+listes'!$B$16,'Modèles+listes'!Q$16,IF($AH10='Modèles+listes'!$B$17,'Modèles+listes'!Q$17,IF($AH10='Modèles+listes'!$B$18,'Modèles+listes'!Q$18,IF($AH10='Modèles+listes'!$B$19,'Modèles+listes'!Q$19,IF($AH10='Modèles+listes'!$B$20,'Modèles+listes'!Q$20,FALSE))))))))))))))))","v":0},{"$f":"IF($AH10='Modèles+listes'!$B$5,'Modèles+listes'!R$5,IF($AH10='Modèles+listes'!$B$6,'Modèles+listes'!R$6,IF($AH10='Modèles+listes'!$B$7,'Modèles+listes'!R$7,IF($AH10='Modèles+listes'!$B$8,'Modèles+listes'!R$8,IF($AH10='Modèles+listes'!$B$9,'Modèles+listes'!R$9,IF($AH10='Modèles+listes'!$B$10,'Modèles+listes'!R$10,IF($AH10='Modèles+listes'!$B$11,'Modèles+listes'!R$11,IF($AH10='Modèles+listes'!$B$12,'Modèles+listes'!R$12,IF($AH10='Modèles+listes'!$B$13,'Modèles+listes'!R$13,IF($AH10='Modèles+listes'!$B$14,'Modèles+listes'!R$14,IF($AH10='Modèles+listes'!$B$15,'Modèles+listes'!R$15,IF($AH10='Modèles+listes'!$B$16,'Modèles+listes'!R$16,IF($AH10='Modèles+listes'!$B$17,'Modèles+listes'!R$17,IF($AH10='Modèles+listes'!$B$18,'Modèles+listes'!R$18,IF($AH10='Modèles+listes'!$B$19,'Modèles+listes'!R$19,IF($AH10='Modèles+listes'!$B$20,'Modèles+listes'!R$20,FALSE))))))))))))))))","v":0},{"$f":"+VLOOKUP(B10,BOM!$M:$W,11,FALSE)","v":1},{"$f":"IF($AH10='Modèles+listes'!$B$5,'Modèles+listes'!T$5,IF($AH10='Modèles+listes'!$B$6,'Modèles+listes'!T$6,IF($AH10='Modèles+listes'!$B$7,'Modèles+listes'!T$7,IF($AH10='Modèles+listes'!$B$8,'Modèles+listes'!T$8,IF($AH10='Modèles+listes'!$B$9,'Modèles+listes'!T$9,IF($AH10='Modèles+listes'!$B$10,'Modèles+listes'!T$10,IF($AH10='Modèles+listes'!$B$11,'Modèles+listes'!T$11,IF($AH10='Modèles+listes'!$B$12,'Modèles+listes'!T$12,IF($AH10='Modèles+listes'!$B$13,'Modèles+listes'!T$13,IF($AH10='Modèles+listes'!$B$14,'Modèles+listes'!T$14,IF($AH10='Modèles+listes'!$B$15,'Modèles+listes'!T$15,IF($AH10='Modèles+listes'!$B$16,'Modèles+listes'!T$16,IF($AH10='Modèles+listes'!$B$17,'Modèles+listes'!T$17,IF($AH10='Modèles+listes'!$B$18,'Modèles+listes'!T$18,IF($AH10='Modèles+listes'!$B$19,'Modèles+listes'!T$19,IF($AH10='Modèles+listes'!$B$20,'Modèles+listes'!T$20,FALSE))))))))))))))))","v":12},{"$f":"IF($AH10='Modèles+listes'!$B$5,'Modèles+listes'!U$5,IF($AH10='Modèles+listes'!$B$6,'Modèles+listes'!U$6,IF($AH10='Modèles+listes'!$B$7,'Modèles+listes'!U$7,IF($AH10='Modèles+listes'!$B$8,'Modèles+listes'!U$8,IF($AH10='Modèles+listes'!$B$9,'Modèles+listes'!U$9,IF($AH10='Modèles+listes'!$B$10,'Modèles+listes'!U$10,IF($AH10='Modèles+listes'!$B$11,'Modèles+listes'!U$11,IF($AH10='Modèles+listes'!$B$12,'Modèles+listes'!U$12,IF($AH10='Modèles+listes'!$B$13,'Modèles+listes'!U$13,IF($AH10='Modèles+listes'!$B$14,'Modèles+listes'!U$14,IF($AH10='Modèles+listes'!$B$15,'Modèles+listes'!U$15,IF($AH10='Modèles+listes'!$B$16,'Modèles+listes'!U$16,IF($AH10='Modèles+listes'!$B$17,'Modèles+listes'!U$17,IF($AH10='Modèles+listes'!$B$18,'Modèles+listes'!U$18,IF($AH10='Modèles+listes'!$B$19,'Modèles+listes'!U$19,IF($AH10='Modèles+listes'!$B$20,'Modèles+listes'!U$20,FALSE))))))))))))))))","v":"?"},{"$f":"IF($AH10='Modèles+listes'!$B$5,'Modèles+listes'!V$5,IF($AH10='Modèles+listes'!$B$6,'Modèles+listes'!V$6,IF($AH10='Modèles+listes'!$B$7,'Modèles+listes'!V$7,IF($AH10='Modèles+listes'!$B$8,'Modèles+listes'!V$8,IF($AH10='Modèles+listes'!$B$9,'Modèles+listes'!V$9,IF($AH10='Modèles+listes'!$B$10,'Modèles+listes'!V$10,IF($AH10='Modèles+listes'!$B$11,'Modèles+listes'!V$11,IF($AH10='Modèles+listes'!$B$12,'Modèles+listes'!V$12,IF($AH10='Modèles+listes'!$B$13,'Modèles+listes'!V$13,IF($AH10='Modèles+listes'!$B$14,'Modèles+listes'!V$14,IF($AH10='Modèles+listes'!$B$15,'Modèles+listes'!V$15,IF($AH10='Modèles+listes'!$B$16,'Modèles+listes'!V$16,IF($AH10='Modèles+listes'!$B$17,'Modèles+listes'!V$17,IF($AH10='Modèles+listes'!$B$18,'Modèles+listes'!V$18,IF($AH10='Modèles+listes'!$B$19,'Modèles+listes'!V$19,IF($AH10='Modèles+listes'!$B$20,'Modèles+listes'!V$20,FALSE))))))))))))))))","v":4},{"$f":"IF($AH10='Modèles+listes'!$B$5,'Modèles+listes'!W$5,IF($AH10='Modèles+listes'!$B$6,'Modèles+listes'!W$6,IF($AH10='Modèles+listes'!$B$7,'Modèles+listes'!W$7,IF($AH10='Modèles+listes'!$B$8,'Modèles+listes'!W$8,IF($AH10='Modèles+listes'!$B$9,'Modèles+listes'!W$9,IF($AH10='Modèles+listes'!$B$10,'Modèles+listes'!W$10,IF($AH10='Modèles+listes'!$B$11,'Modèles+listes'!W$11,IF($AH10='Modèles+listes'!$B$12,'Modèles+listes'!W$12,IF($AH10='Modèles+listes'!$B$13,'Modèles+listes'!W$13,IF($AH10='Modèles+listes'!$B$14,'Modèles+listes'!W$14,IF($AH10='Modèles+listes'!$B$15,'Modèles+listes'!W$15,IF($AH10='Modèles+listes'!$B$16,'Modèles+listes'!W$16,IF($AH10='Modèles+listes'!$B$17,'Modèles+listes'!W$17,IF($AH10='Modèles+listes'!$B$18,'Modèles+listes'!W$18,IF($AH10='Modèles+listes'!$B$19,'Modèles+listes'!W$19,IF($AH10='Modèles+listes'!$B$20,'Modèles+listes'!W$20,FALSE))))))))))))))))","v":5},{"$f":"+VLOOKUP(B10,BOM!$M:$W,4,FALSE)","v":"MODEL03"}]

{"sheet":"CRS230","index":2,"n_rows":9,"n_cols":6,"rows_kept":9,"cut":false,"hidden":false,"merged":[[1,1,1,4],[2,1,2,4],[4,5,4,8]]}
[]
[null,"CRS230"]
[null,"CRS230/E"]
["Article Produit","No document","Nom","Type document","Responsable"]
[12456006,{"$f":"MID(A5,2,8)","v":"2456006"},{"$f":"+VLOOKUP(A5,BOM!M:O,3,FALSE)","v":{"$error":"#N/A"}},"PL",{"$f":"+VLOOKUP(A5,MMS!B:AH,9,FALSE)","v":{"$error":"#N/A"}},"modèle formule ne pas suprimer"]
["Article Produit","DODOID","DODODE","DODOTY","DORESP"]
[84045006,4045006,"FONCET MOBILE LISSE GCHE","PL",{"$f":"+VLOOKUP(A7,MMS!B:AH,9,FALSE)","v":"JACOB"}]
[94098701,4098701,"P/C CR4 700 SENS A","PL",{"$f":"+VLOOKUP(A8,MMS!B:AH,9,FALSE)","v":"SALPETIER"}]
[94098702,4098702,"P/C CR4 700 SENS D","PL",{"$f":"+VLOOKUP(A9,MMS!B:AH,9,FALSE)","v":"SALPETIER"}]

{"sheet":"ECS411","index":3,"n_rows":6,"n_cols":4,"rows_kept":6,"cut":false,"hidden":false,"merged":[[0,1,0,3],[1,1,1,3],[2,1,2,3]]}
[null,"PAGE A REMPLIR MANUELLEMENT"]
[null,"ECS411"]
[null,"ECS411/B"]
[null,"No document","Sous-document","Remarques"]
[null,"DLDOID","DLSUID","DLREMK"]
[null,null,4045006,"FONCET MOBILE LISSE GCHE"]

{"sheet":"PDS021 Article","index":4,"n_rows":10,"n_cols":3,"rows_kept":10,"cut":false,"hidden":false,"merged":[[1,1,2,2]]}
[]
[null,"PDS021 Création NOUVEAU CODE"]
[]
[null,"Article Produit","Responsable"]
[null,"XXXXXXXXX",{"$f":"BOM!$R$3","v":"SALPETIER"}]
[null,"PHPRNO","PHRESP"]
[null,84045006,{"$f":"BOM!$R$3","v":"SALPETIER"}]
[null,84045007,{"$f":"BOM!$R$3","v":"SALPETIER"}]
[null,94098701,{"$f":"BOM!$R$3","v":"SALPETIER"}]
[null,94098702,{"$f":"BOM!$R$3","v":"SALPETIER"}]

{"sheet":"PDS021 Opérations","index":5,"n_rows":13,"n_cols":9,"rows_kept":13,"cut":false,"hidden":false,"merged":[[1,1,1,4]]}
[null,"exemple",null,22380,null,{"$f":"VLOOKUP(D1,'Poste de charge'!A:C,3,FALSE)","v":0.15}]
[null,"PDS021 Opérations"]
[null,"identification article. 15 caractères maxi.               Obligatoire","indique l'ordre dans lequel les opérations seront réalisées","Poste de Charge sur lequel l'opération est effectuée","Libellé de l'opération","Temps expérimé en heure","temps exprimé en centième d'heure, Est défini par défaut sur le PDC mais peut être renseignée","Doit exister dans CRS230"]
[null,"Article Produit","n° opération","PDC","Désignation opération","Temps préparation","Temps exécution","n° document"]
[null,"POPRNO","POOPNO","POPLGR","POOPDS","POSETI","POPITI","PODOID"]
[null,84045006,10,22520,"LASER BYSTRONIC","0,05",1,"PANO-MDPX","Opérations"]
[null,84045006,15,22630,"PLIEUSES CN 170T","0,4",1,null,"Opérations"]
[null,84045007,10,22520,"LASER BYSTRONIC","0,05",1,null,"Opérations"]
[null,84045007,15,22630,"PLIEUSES CN 170T","0,4",1,null,"Opérations"]
[null,94098701,100,26200,"ASSEMBLAGE ESPACE 50C",0,50,null,"Opérations"]
[null,94098701,110,27540,"CHAINE PEINTURE POUDRE","0,13",50,null,"Opérations"]
[null,94098702,100,26200,"ASSEMBLAGE ESPACE 50C",0,50,null,"Opérations"]
[null,94098702,110,27540,"CHAINE PEINTURE POUDRE","0,13",50,null,"Opérations"]

{"sheet":"PDS021 Composants","index":6,"n_rows":11,"n_cols":9,"rows_kept":11,"cut":false,"hidden":false,"merged":[[1,1,1,4]]}
[null,null,null,null,null,null,0]
[null,"PDS021 Composants"]
[null,"Doit exister dans MOVEX ou dans le fichier de création ","Ordre dans lequel les composants doivent apparaitre dans la structure","Doit exister \ndans le fichier opérations ","Doit exister ds MOVEX ou ds le fichier\n de création ","Coefficient d'assemblage, Toujours positif","Préciser 1 si le composant est à réintégrer (lien négatif)"]
[null,"Article Produit","séquence","n° opération","composant","quantité","Code SS/Co Prod"]
[null,"PMPRNO","PMMSEQ","PMOPNO","PMMTNO","PMCNQT","PMBYPR"]
[null,94098701,20,100,84045006,1,0,null,"Nouveau"]
[null,84045006,5,10,11110021,1,0,null,"Composants"]
[null,94098701,null,100,84045007,2,1,null,"Nouveau"]
[null,84045007,5,10,11110021,1,0,null,"Opérations"]
[null,94098702,20,100,84045006,2,0,null,"Nouveau"]
[null,94098702,25,100,84045007,3,0,null,"Nouveau"]

{"sheet":"Modèles+listes","index":7,"n_rows":57,"n_cols":23,"rows_kept":57,"cut":false,"hidden":true,"merged":[[1,3,1,10],[1,11,1,21],[2,3,2,8],[2,9,2,10],[2,11,2,18],[2,20,2,21]]}
[]
[null,null,null,"MMS001",null,null,null,null,null,null,null,"MMS002",null,null,null,null,null,null,null,null,null,null,"MMS003"]
[null,null,null,"MMS001/E",null,null,null,null,null,"MMS001/G",null,"MMS002/E",null,null,null,null,null,null,null,"MMS002/F","MMS002/G"]
[null,"MODEL ","DESIGNATION","Type article","Mét.val.stock","Code fab./achat","Groupe approvis","Mét. gestion/lot","Mét.numérot.lot","Code configurat","Catégorie Article","Code acquisit","Type ordre","Périodes planif","Polit. planif","Délai sécurité.","Borne plan.dde.","Borne de planif","Fournisseur","Pol.lotissement","Emplacement","Mét sortie OF","Dél.administra"]
[null,"MODEL","FABRIQUE,NON GERE,LOT","02",1,1,"FAB",0,0,0,0,1,"01",1,"03",1,5,10,"XX",12,"?",4,2]
[null,"MODELHA","ACHAT SUR INVEST, NON STOCKE","HA",0,2,"?",0,0,0,0,2,50,1,"ST",0,5,10,"XX",0,"?",4,0]
[null,"MODEL01","PF FAB CONFIG,IMMA = STANDARD","01",3,1,"FAB",5,5,2,0,1,"01",1,"02",0,5,0,"XX",11,"14EXP",4,2]
[null,"MODEL01A","PF FAB NON CONFIG,IMMA","01",1,1,"FAB",5,5,0,0,1,"01",1,"02",0,5,15,"XX",11,"14EXP",4,2]
[null,"MODEL01C","PF NON CONFIG,NON IMMA=ACCESS","01",1,1,"FAB",0,0,0,0,1,"01",1,"02",0,5,15,"XX",11,"14EXP",4,2]
[null,"MODEL01F","PF CONFIG,NON IMMA = EV'HORA","01",3,1,"FAB",5,5,2,0,1,"01",1,"02",0,5,15,"XX",11,"14EXP",4,2]
[null,"MODEL02","SF FAB = P/C","02",1,1,"FAB",1,5,0,0,1,"01",1,"03",1,5,15,"XX",12,"?",1,2]
[null,"MODEL02J","SF FAB ASSEMBLAGE OU OPTION","02",1,1,"FAB",0,0,0,0,1,"01",1,"03",1,5,15,"XX",12,"?",4,2]
[null,"MODEL02P","PIECE PRIMAIRE","PP",1,1,"FAB",0,0,0,0,1,"01",1,12,1,9,10,"XX",12,"?",4,6]
[null,"MODEL03","MATIERE PREMIERE","03",1,2,"?",0,0,0,0,2,30,1,"01",0,0,0,"XX",12,"?",4,5]
[null,"MODEL04","PIECE ACHETEE","04",1,2,"?",0,0,0,0,2,30,12,"01",5,0,0,"XX",12,14,6,5]
[null,"MODEL04Q","PIECES ACH.= VIS,COLLE,...","04",1,2,"?",0,0,0,0,2,30,12,"01",0,0,0,"XX",12,"?",4,5]
[null,"MODEL05","SF NON GERE/LOT, SS-TRAITANCE","05",1,1,"?",0,0,0,0,1,"01",12,"05",5,0,0,"XX",12,14,6,0]
[null,"MODEL06","KIT EXPEDITION, SAV","01",1,1,"FAB",0,0,0,0,1,"01",1,"02",0,5,10,"XX",11,"14EXP",4,0]
[null,"MODEL06A","PORTE DE RECHANGE","01",1,1,"FAB",0,0,0,0,1,"01",1,"02",0,5,10,"XX",11,"14EXP",4,2]
[null,"MODEL09","FANTOME","09",0,1,"FAB",0,0,0,2,1,"01",1,"03",0,5,10,"XX",12,"?",4,0]
[]
[null,"Unité","Désignation"]
[null,"PI","Pièce "]
[null,"KG","Kilogramme"]
[null,"MT","Mètre"]
[null,"LT","Litre"]
[null,"M2","Surface en M²"]
[]
[null,"Matricule O/N"]
[null,"O"]
[null,"N"]
[]
[null,"Responsable article"]
[null,"SALPETIER"]
[null,"MAHUT"]
[null,"LANZETTI"]
[null,"JACOB"]
[null,"BARON"]
[null,"JOSEPH"]
[]
[]
[null,"Type de document","Designation"]
[null,"PL","Plan"]
[null,"GR","Groupement de plans"]
[]
[null,"Code nouveau ou existant"]
[null,"Nouveau"]
[null,"Existant"]
[]
[null,"Catégorie pièce","Type de pièces"]
[null,"Nouveau","Achetée"]
[null,"Existant","Fabriquée"]
[null,"Composants","Assemblage"]
[null,"Opérations","Lot de pièces (FICT)"]
[null,null,"PP"]
[null,null,"Temps"]
[null,null,"Panoplie"]

{"sheet":"Poste de charge","index":8,"n_rows":117,"n_cols":3,"rows_kept":117,"cut":false,"hidden":false,"merged":[]}
["PPPLGR","PPPLNM","Tps prepa"]
[10101,"DECL. KITTING COFFRE",0]
[10102,"DECL. PORTE",0]
[10103,"DECL. CAISSE",0]
[10104,"DECL. BETON",0]
["10104F","DECL. BETON IGNIFUGE (FEU)",0]
[10105,"DECL. PORTE/CAISSE",0]
[10106,"DECL. PEINTURE",0]
[10107,"DECL. MONTAGE SERRURE",0]
[10108,"EXPEDITION SOUS-TRAITANCE",0]
["10108C","RECEPTION SOUS-TRAITANCE",0]
["10108L","RECEPTION SOUS-TRAIT LAQUE",0]
[10109,"DECL. FIN DE GAMME",0]
["10109MG","DECL. FIN DE GAMME, dest:MAG",0]
["1010E","DECL. EMBALL STANDARD",0]
[10206,"DECL. PEINTURE",0]
[10500,"SERVICE TECHNIQUE SPECIAL",0]
[14001,"MAIN D'OEUVRE MAGASIN",0.08]
[14100,"TRAVAUX MENUISERIE",0]
[14200,"ASSEMBLAGE CAISSE MARITIME",0]
[14999,"MANUTENTION MAGASIN",0.05]
[18001,"TRAVAUX/GAMMES",0.15]
[18003,"CENTRE D'USINAGE SABRE",0.5]
[18100,"TRAVAUX LABORATOIRE",0]
[19800,"REPRISE MONT SERR STOCK ABC",0]
[19999,"MANUTENTION REMONTAGE SERRURE",0]
[20310,"ASSEMBLAGE 4.5.6.",0]
[20330,"ASSEMBLAGE COFFRE K",0]
[20350,"ASS MILLIUM III et IV (540Là1235L)",0]
[20410,"PORTE/CAISSE COFFRE K,MT,EUROREVO",0]
[20620,"MONTAGE SERRURE COFFRE K",0]
[20999,"MANUTENTION COFFRE K",0]
[21320,"ASSEMBLAGE PRODUITS MTi",0]
[21330,"ASSEMBLAGE PRODUITS COMPLICE",0]
[21340,"ASSEMBLAGE PRODUITS MARCHES",0]
[21355,"ROBOT SOUDURE SDF",0.05]
[21400,"ASS ARMOIRE IGNIFUGES",0]
[21500,"PORTE/CAISSE IGNIFUGES",0]
[21800,"MONTAGE SERRURE IGNIFUGES",0]
[21900,"MONTAGE SERRURE COMPLICES",0]
[21999,"MANUTENTION MARCHE",0]
[22100,"DECOUPE GRILLAGE",0.16]
[22110,"PANNEAUTEUSE FINN POWER",0.15]
[22150,"PLIEUSE FAVRIN CARENA MILLIUM",0.25]
[22220,"CISAILLE EHT",0.38]
[22305,"PRESSE VERSON",0.4]
[22380,"POINC CN FINN POWER SG",0.15]
[22385,"POINC CN SALVAGNINI",0.15]
[22520,"LASER BYSTRONIC",0.05]
[22630,"PLIEUSES CN 170T",0.4]
[22998,"MANUT LIGNE ACCESSOIRES",0.05]
[22999,"MANUTENTION PIECES PRIMAIRES",0.1]
[24050,"PREPARATION SERRURERIE",0.35]
[24306,"ASS POMPES M2B/M3B/MpX",0.11]
[24601,"ASS BLOC SERRURE",0.11]
[24706,"ASS COMBINAISON MONEO/MC4",0.25]
[24800,"DIVERS SERRURERIE",0.08]
[24920,"CABLAGE ELECTRONIQUE",0.25]
[24999,"MANUTENTION SERRURERIE",0.1]
[26105,"ASS PF OPTEMA OPTURA",0]
[26200,"ASSEMBLAGE ESPACE 50C",0]
[26301,"MONTAGE SERRURE PF OPTEMA OPTURA",0]
[26305,"MONTAGE SERRURE PORTE E50",0]
[26310,"PEINT MONT SERR PANNEAUX GVX",0]
[26999,"MANUTENTION BANQUE",0.05]
[27010,"TRONCONNEUSE KALTENBACH et AMADA",0.15]
[27200,"ASSEMBLAGE AUTOMATION CLX,ADX",0]
[27205,"ASSEMBLAGE SAC DE DEPOT",0]
[27301,"ASSEMBLAGE COLONNES COMPARTIMENTS",0.15]
[27305,"SOUDURE PORTES COMPARTIMENTS",0.05]
[27320,"SOUDURE LANGUEPIN E30",0.11]
[27410,"USINAGE PRODUITS BANQUE",0.25]
[27470,"TAILLAGE CLEFS SERCAO varilock",0.11]
[27475,"GRAVURES TOUS TYPES & RIVETAGE",0.45]
[27540,"CHAINE PEINTURE POUDRE",0.13]
[27599,"MANUTENTION COMPARTIMENTS",0]
[27605,"ASSEMBLAGE COMPTS 530",0]
[27630,"ASSEMBLAGE COMPTS E30",0.11]
[27999,"MANUTENTION CHAINE DE POUDRAGE",0.05]
[28200,"ASSEMBLAGE CADRE CARENA",0]
[28300,"ASSEMBLAGE PALATRE CARENA",0]
[28400,"ASSEMBLAGE CAISSE CARENA",0]
[28425,"COFFRAGE CAISSE CARENA",0]
[28450,"COFFRAGE PORTE CARENA",0]
[28600,"PORTE / CAISSE CARENA",0]
[28800,"MONTAGE SERRURE CARENA",0]
[28999,"MANUTENTION CARENA",0]
[29540,"CHAINE PEINTURE LAQUE",0]
[29999,"MANUTENTION PEINTURE LAQUE",0]
[30300,"SOUDURE PANNEAUX",0]
[30400,"SOUDURE PANNEAUX GVX",0]
[30910,"BETON VOL",0]
[30920,"CENTRALE PCM IGNIFUGE",0]
[30930,"BETON IGNIFUGES",0]
[30940,"SOUDURE FONDS / CAISSE",0]
[30999,"MANUTENTION COMPOSITES",0]
[31100,"ASSEMBLAGE AUTOMATION",0]
[31999,"MANUTENTION AUTOMATION",0.1]
[40500,"ACCESSOIRES SANS BETON",0.15]
[41300,"ASSEMBLAGE AF ENIGMA",0]
[41800,"MONTAGE SERRURE AF ENIGMA",0]
[41999,"MANUT ASS SOUD AF ENIGMA",0]
[43120,"EMBALLAGE",0]
[43125,"IMMATRICULATION",0]
[43998,"MANUTENTION EMBALLAGE BOB",0.05]
[43999,"MANUTENTION EMBALLAGE",0]
[76000,"ASSEMBLAGE HSDS",0]
[77001,"PREPA PIECES POUR ASSEMBL 4.5.6.",0]
[77002,"PREPA PIECES POUR ASSEMBL COFFRE K",0]
[77003,"PREPA PIECES POUR ASSEMBL CAR/MIL",0]
[99100,"S/T APF",0]
[99150,"FABRICATION",0]
[99400,"ZINGAGE BLANC",0]
[99600,"NICKELAGE",0]
[99800,"DORURE",0]
[99910,"BRUNISSAGE + VERNISSAGE",0]
[99999,"SOUS-TRAIT",0]

{"sheet":"Tôles","index":9,"n_rows":38,"n_cols":23,"rows_kept":38,"cut":false,"hidden":true,"merged":[]}
["ID","ART","STATUT","DESIGNAT","Matière","Epaisseur","Largeur","Longueur","Surface (m²)","CVP(M²)","DATECREAT","DTDERNSORT","CONSOAN","TYPECOUT","DIRECTMAT","DIRECTMO","CVP","CTP","CC","GRPAPPRO","FNR","NOM","PAYS"]
[{"$f":"CONCATENATE(E2,\"_\",F2)","v":"TC_1"},"11110021",{"$f":"VLOOKUP(CONCATENATE($B2),[1]ARTRDCL!$A$1:$U$65536,3,FALSE)","v":"20"},{"$f":"VLOOKUP(CONCATENATE($B2),[1]ARTRDCL!$A$1:$U$65536,2,FALSE)","v":"TOLE TC 1250X2500X10/10"},"TC",1,1250,2500,{"$f":"G2/1000*H2/1000","v":3.125},{"$f":"Q2/I2","v":6.7910400000000006},19981106,20141222,3008.11,"1",{"$f":"VLOOKUP(CONCATENATE($B2),[1]ARTRDCL!$A$1:$U$65536,13,FALSE)","v":21.222000000000001},0,{"$f":"VLOOKUP(CONCATENATE($B2),[1]ARTRDCL!$A$1:$U$65536,15,FALSE)","v":21.222000000000001},23.606000000000002,25.683,"1CA","999456","EISEN STAHL GmbH","ALLEMAGNE"]
[{"$f":"CONCATENATE(E3,\"_\",F3)","v":"TC_1,2"},"11112012",{"$f":"VLOOKUP(CONCATENATE($B3),[1]ARTRDCL!$A$1:$U$65536,3,FALSE)","v":"20"},{"$f":"VLOOKUP(CONCATENATE($B3),[1]ARTRDCL!$A$1:$U$65536,2,FALSE)","v":"TOLE TC 1500X2200X12/10"},"TC",1.2,1500,2200,{"$f":"G3/1000*H3/1000","v":3.3},{"$f":"Q3/I3","v":8.1493939393939403},19981106,20141217,1356.7729999999999,"1",{"$f":"VLOOKUP(CONCATENATE($B3),[1]ARTRDCL!$A$1:$U$65536,13,FALSE)","v":26.893000000000001},0,{"$f":"VLOOKUP(CONCATENATE($B3),[1]ARTRDCL!$A$1:$U$65536,15,FALSE)","v":26.893000000000001},29.911999999999999,32.543999999999997,"1CA","999456","EISEN STAHL GmbH","ALLEMAGNE"]
["TC_1,5","11115015",{"$f":"VLOOKUP(CONCATENATE($B4),[1]ARTRDCL!$A$1:$U$65536,3,FALSE)","v":"20"},{"$f":"VLOOKUP(CONCATENATE($B4),[1]ARTRDCL!$A$1:$U$65536,2,FALSE)","v":"TOLE TC 1250X2500X15/10"},"TC",1.5,1250,2500,3.125,9.2160000000000011,19981106,20141222,4871.6220000000003,"1",{"$f":"VLOOKUP(CONCATENATE($B4),[1]ARTRDCL!$A$1:$U$65536,13,FALSE)","v":28.8},0,{"$f":"VLOOKUP(CONCATENATE($B4),[1]ARTRDCL!$A$1:$U$65536,15,FALSE)","v":28.8},31.425000000000001,34.19,"1CA","999456","EISEN STAHL GmbH","ALLEMAGNE"]
["TC_2","11120025",{"$f":"VLOOKUP(CONCATENATE($B5),[1]ARTRDCL!$A$1:$U$65536,3,FALSE)","v":"20"},{"$f":"VLOOKUP(CONCATENATE($B5),[1]ARTRDCL!$A$1:$U$65536,2,FALSE)","v":"TOLE TC 1250X2500X20/10"},"TC",2,1250,2500,3.125,11.78144,19981106,20141222,3691.8359999999998,"1",{"$f":"VLOOKUP(CONCATENATE($B5),[1]ARTRDCL!$A$1:$U$65536,13,FALSE)","v":36.817},0,{"$f":"VLOOKUP(CONCATENATE($B5),[1]ARTRDCL!$A$1:$U$65536,15,FALSE)","v":36.817},41.012999999999998,44.622,"1CA","999456","EISEN STAHL GmbH","ALLEMAGNE"]
[{"$f":"CONCATENATE(E6,\"_\",F6)","v":"TC_2,5"},"11125024",{"$f":"VLOOKUP(CONCATENATE($B6),[1]ARTRDCL!$A$1:$U$65536,3,FALSE)","v":"20"},{"$f":"VLOOKUP(CONCATENATE($B6),[1]ARTRDCL!$A$1:$U$65536,2,FALSE)","v":"TOLE TC 1250X2200X25/10"},"TC",2.5,1250,2200,2.75,14.656363636363636,20070622,20141222,1015.5839999999999,"1",{"$f":"VLOOKUP(CONCATENATE($B6),[1]ARTRDCL!$A$1:$U$65536,13,FALSE)","v":40.305},0,{"$f":"VLOOKUP(CONCATENATE($B6),[1]ARTRDCL!$A$1:$U$65536,15,FALSE)","v":40.305},44.872,48.820999999999998,"1CA","999456","EISEN STAHL GmbH","ALLEMAGNE"]
[{"$f":"CONCATENATE(E7,\"_\",F7)","v":"TC_3"},"11130051",{"$f":"VLOOKUP(CONCATENATE($B7),[1]ARTRDCL!$A$1:$U$65536,3,FALSE)","v":"20"},{"$f":"VLOOKUP(CONCATENATE($B7),[1]ARTRDCL!$A$1:$U$65536,2,FALSE)","v":"TOLE TC 1250X2500X30/10"},"TC",3,1250,2500,3.125,17.133119999999998,19981106,20141222,7132.3339999999998,"1",{"$f":"VLOOKUP(CONCATENATE($B7),[1]ARTRDCL!$A$1:$U$65536,13,FALSE)","v":53.540999999999997},0,{"$f":"VLOOKUP(CONCATENATE($B7),[1]ARTRDCL!$A$1:$U$65536,15,FALSE)","v":53.540999999999997},59.481000000000002,64.715000000000003,"1CA","999456","EISEN STAHL GmbH","ALLEMAGNE"]
["_","11130053",{"$f":"VLOOKUP(CONCATENATE($B8),[1]ARTRDCL!$A$1:$U$65536,3,FALSE)","v":"20"},{"$f":"VLOOKUP(CONCATENATE($B8),[1]ARTRDCL!$A$1:$U$65536,2,FALSE)","v":"TOLE 3MM HB500 2000 X 1000"},null,null,null,null,0,{"$error":"#DIV/0!"},20110214,20121219,0,"1",{"$f":"VLOOKUP(CONCATENATE($B8),[1]ARTRDCL!$A$1:$U$65536,13,FALSE)","v":115.303},0,{"$f":"VLOOKUP(CONCATENATE($B8),[1]ARTRDCL!$A$1:$U$65536,15,FALSE)","v":115.303},152.96100000000001,166.422,"1CD","999456","EISEN STAHL GmbH","ALLEMAGNE"]
["_4","11340010",{"$f":"VLOOKUP(CONCATENATE($B9),[1]ARTRDCL!$A$1:$U$65536,3,FALSE)","v":"20"},{"$f":"VLOOKUP(CONCATENATE($B9),[1]ARTRDCL!$A$1:$U$65536,2,FALSE)","v":"1250X2500X4M/M   203246"},null,4,1250,2500,3.125,23.074879999999997,19981106,20141222,2045.7090000000001,"1",{"$f":"VLOOKUP(CONCATENATE($B9),[1]ARTRDCL!$A$1:$U$65536,13,FALSE)","v":72.108999999999995},0,{"$f":"VLOOKUP(CONCATENATE($B9),[1]ARTRDCL!$A$1:$U$65536,15,FALSE)","v":72.108999999999995},80.108999999999995,87.159000000000006,"1CA","999456","EISEN STAHL GmbH","ALLEMAGNE"]
["_4","11340015",{"$f":"VLOOKUP(CONCATENATE($B10),[1]ARTRDCL!$A$1:$U$65536,3,FALSE)","v":"20"},{"$f":"VLOOKUP(CONCATENATE($B10),[1]ARTRDCL!$A$1:$U$65536,2,FALSE)","v":"1500X3000X4M/M   203250"},null,4,1500,3000,4.5,22.754222222222225,19981106,20141219,432.20699999999999,"1",{"$f":"VLOOKUP(CONCATENATE($B10),[1]ARTRDCL!$A$1:$U$65536,13,FALSE)","v":102.39400000000001},0,{"$f":"VLOOKUP(CONCATENATE($B10),[1]ARTRDCL!$A$1:$U$65536,15,FALSE)","v":102.39400000000001},113.756,123.767,"1CA","999456","EISEN STAHL GmbH","ALLEMAGNE"]
["_","11350022",{"$f":"VLOOKUP(CONCATENATE($B11),[1]ARTRDCL!$A$1:$U$65536,3,FALSE)","v":"20"},{"$f":"VLOOKUP(CONCATENATE($B11),[1]ARTRDCL!$A$1:$U$65536,2,FALSE)","v":"TOLE TC 2100x1000x50/10"},null,null,null,null,0,{"$error":"#DIV/0!"},20011120,20141219,334.59899999999999,"1",{"$f":"VLOOKUP(CONCATENATE($B11),[1]ARTRDCL!$A$1:$U$65536,13,FALSE)","v":61.064},0,{"$f":"VLOOKUP(CONCATENATE($B11),[1]ARTRDCL!$A$1:$U$65536,15,FALSE)","v":61.064},67.911000000000001,73.887,"1CA","999456","EISEN STAHL GmbH","ALLEMAGNE"]
["_","11360010",{"$f":"VLOOKUP(CONCATENATE($B12),[1]ARTRDCL!$A$1:$U$65536,3,FALSE)","v":"20"},{"$f":"VLOOKUP(CONCATENATE($B12),[1]ARTRDCL!$A$1:$U$65536,2,FALSE)","v":"1250X2500X6M/M   203288"},null,null,1250,2500,3.125,36.582079999999998,19981106,20141217,68.900000000000006,"1",{"$f":"VLOOKUP(CONCATENATE($B12),[1]ARTRDCL!$A$1:$U$65536,13,FALSE)","v":114.319},0,{"$f":"VLOOKUP(CONCATENATE($B12),[1]ARTRDCL!$A$1:$U$65536,15,FALSE)","v":114.319},127.90900000000001,139.16499999999999,"1CA","999456","EISEN STAHL GmbH","ALLEMAGNE"]
["_","11380001",{"$f":"VLOOKUP(CONCATENATE($B13),[1]ARTRDCL!$A$1:$U$65536,3,FALSE)","v":"20"},{"$f":"VLOOKUP(CONCATENATE($B13),[1]ARTRDCL!$A$1:$U$65536,2,FALSE)","v":"1250X2500X8M/M   203307"},null,null,1250,2500,3.125,51.027200000000001,19981106,20141222,70.888000000000005,"1",{"$f":"VLOOKUP(CONCATENATE($B13),[1]ARTRDCL!$A$1:$U$65536,13,FALSE)","v":159.46},0,{"$f":"VLOOKUP(CONCATENATE($B13),[1]ARTRDCL!$A$1:$U$65536,15,FALSE)","v":159.46},180.87299999999999,196.79,"1CA","999456","EISEN STAHL GmbH","ALLEMAGNE"]
["_","11380011",{"$f":"VLOOKUP(CONCATENATE($B14),[1]ARTRDCL!$A$1:$U$65536,3,FALSE)","v":"20"},{"$f":"VLOOKUP(CONCATENATE($B14),[1]ARTRDCL!$A$1:$U$65536,2,FALSE)","v":"BANDE TOLE 286X2500X8"},null,null,null,null,0,{"$error":"#DIV/0!"},19981106,20141223,73303.199999999997,"1",{"$f":"VLOOKUP(CONCATENATE($B14),[1]ARTRDCL!$A$1:$U$65536,13,FALSE)","v":0.371},0,{"$f":"VLOOKUP(CONCATENATE($B14),[1]ARTRDCL!$A$1:$U$65536,15,FALSE)","v":0.371},0.41299999999999998,0.44900000000000001,"1CA","017708","AMSP FRANCE","FRANCE"]
["_","11399005",{"$f":"VLOOKUP(CONCATENATE($B15),[1]ARTRDCL!$A$1:$U$65536,3,FALSE)","v":"20"},{"$f":"VLOOKUP(CONCATENATE($B15),[1]ARTRDCL!$A$1:$U$65536,2,FALSE)","v":"1000X2000X10M/M"},null,null,null,null,0,{"$error":"#DIV/0!"},19981106,20141217,5.6310000000000002,"1",{"$f":"VLOOKUP(CONCATENATE($B15),[1]ARTRDCL!$A$1:$U$65536,13,FALSE)","v":164.52500000000001},0,{"$f":"VLOOKUP(CONCATENATE($B15),[1]ARTRDCL!$A$1:$U$65536,15,FALSE)","v":164.52500000000001},200.643,218.3,"1CA","999456","EISEN STAHL GmbH","ALLEMAGNE"]
["Inox_1,5","11610005",{"$f":"VLOOKUP(CONCATENATE($B16),[1]ARTRDCL!$A$1:$U$65536,3,FALSE)","v":"20"},{"$f":"VLOOKUP(CONCATENATE($B16),[1]ARTRDCL!$A$1:$U$65536,2,FALSE)","v":"INOX 1,5 1250X2500 430"},"Inox",1.5,1250,2500,3.125,31.530880000000003,19981106,20141222,116,"1",{"$f":"VLOOKUP(CONCATENATE($B16),[1]ARTRDCL!$A$1:$U$65536,13,FALSE)","v":98.534000000000006},0,{"$f":"VLOOKUP(CONCATENATE($B16),[1]ARTRDCL!$A$1:$U$65536,15,FALSE)","v":98.534000000000006},157.04300000000001,170.863,"1CE","016708","ARCELORMITTAL DISTRIBUTION SOLUTIONS","FRANCE"]
["Inox 304L_2","11620007",{"$f":"VLOOKUP(CONCATENATE($B17),[1]ARTRDCL!$A$1:$U$65536,3,FALSE)","v":"20"},{"$f":"VLOOKUP(CONCATENATE($B17),[1]ARTRDCL!$A$1:$U$65536,2,FALSE)","v":"INOX 2MM  304L GRAIN 80"},"Inox 304L",2,null,null,0,{"$error":"#DIV/0!"},19981106,20141127,3.028,"1",{"$f":"VLOOKUP(CONCATENATE($B17),[1]ARTRDCL!$A$1:$U$65536,13,FALSE)","v":315.98899999999998},0,{"$f":"VLOOKUP(CONCATENATE($B17),[1]ARTRDCL!$A$1:$U$65536,15,FALSE)","v":315.98899999999998},397.59699999999998,432.58600000000001,"1CE","016708","ARCELORMITTAL DISTRIBUTION SOLUTIONS","FRANCE"]
["Inox 304L_3",11620009,{"$f":"VLOOKUP(CONCATENATE($B18),[1]ARTRDCL!$A$1:$U$65536,3,FALSE)","v":"20"},{"$f":"VLOOKUP(CONCATENATE($B18),[1]ARTRDCL!$A$1:$U$65536,2,FALSE)","v":"INOX304L 1250X2500X30/10 GR 80"},"Inox 304L",3,1250,2500,3.125,151.67456000000001,19981106,20140930,7.53,"1",{"$f":"VLOOKUP(CONCATENATE($B18),[1]ARTRDCL!$A$1:$U$65536,13,FALSE)","v":473.983},0,{"$f":"VLOOKUP(CONCATENATE($B18),[1]ARTRDCL!$A$1:$U$65536,15,FALSE)","v":473.983},596.39400000000001,648.87699999999995,"1CE","016708","ARCELORMITTAL DISTRIBUTION SOLUTIONS","FRANCE"]
["Inox 304L_1,2","11630003",{"$f":"VLOOKUP(CONCATENATE($B19),[1]ARTRDCL!$A$1:$U$65536,3,FALSE)","v":"20"},{"$f":"VLOOKUP(CONCATENATE($B19),[1]ARTRDCL!$A$1:$U$65536,2,FALSE)","v":"INOX304PD1,22X2,5X12/10"},"Inox 304L",1.2,1220,2500,3.05,65.160327868852463,19981106,20140828,1.115,"1",{"$f":"VLOOKUP(CONCATENATE($B19),[1]ARTRDCL!$A$1:$U$65536,13,FALSE)","v":198.739},0,{"$f":"VLOOKUP(CONCATENATE($B19),[1]ARTRDCL!$A$1:$U$65536,15,FALSE)","v":198.739},250.065,272.07100000000003,"1CE","016708","ARCELORMITTAL DISTRIBUTION SOLUTIONS","FRANCE"]
["Inox 304L_1","11630009",{"$f":"VLOOKUP(CONCATENATE($B20),[1]ARTRDCL!$A$1:$U$65536,3,FALSE)","v":"20"},{"$f":"VLOOKUP(CONCATENATE($B20),[1]ARTRDCL!$A$1:$U$65536,2,FALSE)","v":"INOX 304 BROSSE(1250X2500X1)"},"Inox 304L",1,1250,2500,3.125,37.332480000000004,19981106,20141218,127.929,"1",{"$f":"VLOOKUP(CONCATENATE($B20),[1]ARTRDCL!$A$1:$U$65536,13,FALSE)","v":116.664},0,{"$f":"VLOOKUP(CONCATENATE($B20),[1]ARTRDCL!$A$1:$U$65536,15,FALSE)","v":116.664},198.798,216.292,"1CE","016708","ARCELORMITTAL DISTRIBUTION SOLUTIONS","FRANCE"]
["Inox_4","11640000",{"$f":"VLOOKUP(CONCATENATE($B21),[1]ARTRDCL!$A$1:$U$65536,3,FALSE)","v":"20"},{"$f":"VLOOKUP(CONCATENATE($B21),[1]ARTRDCL!$A$1:$U$65536,2,FALSE)","v":"TOLE INOX 1250X2500X4M/M"},"Inox",4,1250,2500,3.125,81.30592,20010201,20141222,492.64400000000001,"1",{"$f":"VLOOKUP(CONCATENATE($B21),[1]ARTRDCL!$A$1:$U$65536,13,FALSE)","v":254.08099999999999},0,{"$f":"VLOOKUP(CONCATENATE($B21),[1]ARTRDCL!$A$1:$U$65536,15,FALSE)","v":254.08099999999999},319.7,347.834,"1CE","999456","EISEN STAHL GmbH","ALLEMAGNE"]
["_","12111047",{"$f":"VLOOKUP(CONCATENATE($B22),[1]ARTRDCL!$A$1:$U$65536,3,FALSE)","v":"20"},{"$f":"VLOOKUP(CONCATENATE($B22),[1]ARTRDCL!$A$1:$U$65536,2,FALSE)","v":"ETIRE 20X10"},null,null,null,null,0,{"$error":"#DIV/0!"},20070507,20141219,9.68,"1",{"$f":"VLOOKUP(CONCATENATE($B22),[1]ARTRDCL!$A$1:$U$65536,13,FALSE)","v":5.5339999999999998},0,{"$f":"VLOOKUP(CONCATENATE($B22),[1]ARTRDCL!$A$1:$U$65536,15,FALSE)","v":5.5339999999999998},2.7330000000000001,2.9740000000000002,"1CA","006420","SMH","FRANCE"]
["_","12121102",{"$f":"VLOOKUP(CONCATENATE($B23),[1]ARTRDCL!$A$1:$U$65536,3,FALSE)","v":"20"},{"$f":"VLOOKUP(CONCATENATE($B23),[1]ARTRDCL!$A$1:$U$65536,2,FALSE)","v":"ETIRE PLAT 32X20 204023"},null,null,null,null,0,{"$error":"#DIV/0!"},19981106,20141223,216,"1",{"$f":"VLOOKUP(CONCATENATE($B23),[1]ARTRDCL!$A$1:$U$65536,13,FALSE)","v":12.503},0,{"$f":"VLOOKUP(CONCATENATE($B23),[1]ARTRDCL!$A$1:$U$65536,15,FALSE)","v":12.503},15.731999999999999,17.116,"1CA","006420","SMH","FRANCE"]
["_","12121165",{"$f":"VLOOKUP(CONCATENATE($B24),[1]ARTRDCL!$A$1:$U$65536,3,FALSE)","v":"20"},{"$f":"VLOOKUP(CONCATENATE($B24),[1]ARTRDCL!$A$1:$U$65536,2,FALSE)","v":"ETIRE PLAT 50X3  204069"},null,null,null,null,0,{"$error":"#DIV/0!"},19981106,20141223,624,"1",{"$f":"VLOOKUP(CONCATENATE($B24),[1]ARTRDCL!$A$1:$U$65536,13,FALSE)","v":3.7},0,{"$f":"VLOOKUP(CONCATENATE($B24),[1]ARTRDCL!$A$1:$U$65536,15,FALSE)","v":3.7},4.6559999999999997,5.0659999999999998,"1CA","006420","SMH","FRANCE"]
["_","12121175",{"$f":"VLOOKUP(CONCATENATE($B25),[1]ARTRDCL!$A$1:$U$65536,3,FALSE)","v":"20"},{"$f":"VLOOKUP(CONCATENATE($B25),[1]ARTRDCL!$A$1:$U$65536,2,FALSE)","v":"ETIRE PLAT 50X6  204071"},null,null,null,null,0,{"$error":"#DIV/0!"},19981106,20141223,991,"1",{"$f":"VLOOKUP(CONCATENATE($B25),[1]ARTRDCL!$A$1:$U$65536,13,FALSE)","v":6.2130000000000001},0,{"$f":"VLOOKUP(CONCATENATE($B25),[1]ARTRDCL!$A$1:$U$65536,15,FALSE)","v":6.2130000000000001},7.8179999999999996,8.5060000000000002,"1CA","006420","SMH","FRANCE"]
["_","12121265",{"$f":"VLOOKUP(CONCATENATE($B26),[1]ARTRDCL!$A$1:$U$65536,3,FALSE)","v":"20"},{"$f":"VLOOKUP(CONCATENATE($B26),[1]ARTRDCL!$A$1:$U$65536,2,FALSE)","v":"ETIRE PLAT 40x6"},null,null,null,null,0,{"$error":"#DIV/0!"},20081107,20140403,58.74,"1",{"$f":"VLOOKUP(CONCATENATE($B26),[1]ARTRDCL!$A$1:$U$65536,13,FALSE)","v":4.3730000000000002},0,{"$f":"VLOOKUP(CONCATENATE($B26),[1]ARTRDCL!$A$1:$U$65536,15,FALSE)","v":4.3730000000000002},5.5030000000000001,5.9870000000000001,"1CA","006420","SMH","FRANCE"]
["_","12121301",{"$f":"VLOOKUP(CONCATENATE($B27),[1]ARTRDCL!$A$1:$U$65536,3,FALSE)","v":"20"},{"$f":"VLOOKUP(CONCATENATE($B27),[1]ARTRDCL!$A$1:$U$65536,2,FALSE)","v":"ETIRE PLAT 20 X 8"},null,null,null,null,0,{"$error":"#DIV/0!"},20111026,20141203,25.2,"1",{"$f":"VLOOKUP(CONCATENATE($B27),[1]ARTRDCL!$A$1:$U$65536,13,FALSE)","v":3.1419999999999999},0,{"$f":"VLOOKUP(CONCATENATE($B27),[1]ARTRDCL!$A$1:$U$65536,15,FALSE)","v":3.1419999999999999},0,0,"1CE","","",""]
["ALU_1,5","14110061",{"$f":"VLOOKUP(CONCATENATE($B28),[1]ARTRDCL!$A$1:$U$65536,3,FALSE)","v":"20"},{"$f":"VLOOKUP(CONCATENATE($B28),[1]ARTRDCL!$A$1:$U$65536,2,FALSE)","v":"ALUMINIUM 15/10 1250x2500-5754"},"ALU",1.5,1250,2500,3.125,18.535039999999999,20081106,20141204,30.006,"1",{"$f":"VLOOKUP(CONCATENATE($B28),[1]ARTRDCL!$A$1:$U$65536,13,FALSE)","v":57.921999999999997},0,{"$f":"VLOOKUP(CONCATENATE($B28),[1]ARTRDCL!$A$1:$U$65536,15,FALSE)","v":57.921999999999997},72.881,79.295000000000002,"1BA","016708","ARCELORMITTAL DISTRIBUTION SOLUTIONS","FRANCE"]
["EZ_2","14540005",{"$f":"VLOOKUP(CONCATENATE($B29),[1]ARTRDCL!$A$1:$U$65536,3,FALSE)","v":"20"},{"$f":"VLOOKUP(CONCATENATE($B29),[1]ARTRDCL!$A$1:$U$65536,2,FALSE)","v":"TOLE EZ 1250X2500X20/10"},"EZ",2,1250,2500,3.125,15.945920000000001,19981106,20141219,748.69899999999996,"1",{"$f":"VLOOKUP(CONCATENATE($B29),[1]ARTRDCL!$A$1:$U$65536,13,FALSE)","v":49.831000000000003},0,{"$f":"VLOOKUP(CONCATENATE($B29),[1]ARTRDCL!$A$1:$U$65536,15,FALSE)","v":49.831000000000003},50.677,55.137,"1CA","999456","EISEN STAHL GmbH","ALLEMAGNE"]
["EZ_0,6","14540009",{"$f":"VLOOKUP(CONCATENATE($B30),[1]ARTRDCL!$A$1:$U$65536,3,FALSE)","v":"20"},{"$f":"VLOOKUP(CONCATENATE($B30),[1]ARTRDCL!$A$1:$U$65536,2,FALSE)","v":"TOLE EZ 1000X3000X6/10"},"EZ",0.6,1000,3000,3,5.2676666666666669,20080923,20141222,244.166,"1",{"$f":"VLOOKUP(CONCATENATE($B30),[1]ARTRDCL!$A$1:$U$65536,13,FALSE)","v":15.803000000000001},0,{"$f":"VLOOKUP(CONCATENATE($B30),[1]ARTRDCL!$A$1:$U$65536,15,FALSE)","v":15.803000000000001},16.507000000000001,17.96,"1CA","999456","EISEN STAHL GmbH","ALLEMAGNE"]
["EZ_1,5","14540015",{"$f":"VLOOKUP(CONCATENATE($B31),[1]ARTRDCL!$A$1:$U$65536,3,FALSE)","v":"20"},{"$f":"VLOOKUP(CONCATENATE($B31),[1]ARTRDCL!$A$1:$U$65536,2,FALSE)","v":"TOLE EZ 1500X3000X15/10"},"EZ",1.5,1500,3000,4.5,12.114222222222223,19981106,20141216,702.84,"1",{"$f":"VLOOKUP(CONCATENATE($B31),[1]ARTRDCL!$A$1:$U$65536,13,FALSE)","v":54.514000000000003},0,{"$f":"VLOOKUP(CONCATENATE($B31),[1]ARTRDCL!$A$1:$U$65536,15,FALSE)","v":54.514000000000003},55.924999999999997,60.845999999999997,"1CA","999456","EISEN STAHL GmbH","ALLEMAGNE"]
["EZ_2,5",14540040,{"$f":"VLOOKUP(CONCATENATE($B32),[1]ARTRDCL!$A$1:$U$65536,3,FALSE)","v":"20"},{"$f":"VLOOKUP(CONCATENATE($B32),[1]ARTRDCL!$A$1:$U$65536,2,FALSE)","v":"TOLE EZ 1250X2500X25/10"},"EZ",2.5,1250,2500,3.125,19.889279999999999,20110718,20141216,34.680999999999997,"1",{"$f":"VLOOKUP(CONCATENATE($B32),[1]ARTRDCL!$A$1:$U$65536,13,FALSE)","v":62.154000000000003},0,{"$f":"VLOOKUP(CONCATENATE($B32),[1]ARTRDCL!$A$1:$U$65536,15,FALSE)","v":62.154000000000003},63.661999999999999,69.263999999999996,"1CA","999456","EISEN STAHL GmbH","ALLEMAGNE"]
["EZ_1","14540043",{"$f":"VLOOKUP(CONCATENATE($B33),[1]ARTRDCL!$A$1:$U$65536,3,FALSE)","v":"20"},{"$f":"VLOOKUP(CONCATENATE($B33),[1]ARTRDCL!$A$1:$U$65536,2,FALSE)","v":"TOLE EZ 1250X2500X10/10"},"EZ",1,1250,2500,3.125,8.0198400000000003,19981106,20141222,151.15799999999999,"1",{"$f":"VLOOKUP(CONCATENATE($B33),[1]ARTRDCL!$A$1:$U$65536,13,FALSE)","v":25.062000000000001},0,{"$f":"VLOOKUP(CONCATENATE($B33),[1]ARTRDCL!$A$1:$U$65536,15,FALSE)","v":25.062000000000001},25.670999999999999,27.93,"1CA","999456","EISEN STAHL GmbH","ALLEMAGNE"]
["EZ_3","14540045",{"$f":"VLOOKUP(CONCATENATE($B34),[1]ARTRDCL!$A$1:$U$65536,3,FALSE)","v":"20"},{"$f":"VLOOKUP(CONCATENATE($B34),[1]ARTRDCL!$A$1:$U$65536,2,FALSE)","v":"TOLE EZ 1250X2500X30/10"},"EZ",3,1250,2500,3.125,23.8064,19981106,20141222,630.78800000000001,"1",{"$f":"VLOOKUP(CONCATENATE($B34),[1]ARTRDCL!$A$1:$U$65536,13,FALSE)","v":74.394999999999996},0,{"$f":"VLOOKUP(CONCATENATE($B34),[1]ARTRDCL!$A$1:$U$65536,15,FALSE)","v":74.394999999999996},76.016000000000005,82.704999999999998,"1CA","999456","EISEN STAHL GmbH","ALLEMAGNE"]
["Galva_1","14540055",{"$f":"VLOOKUP(CONCATENATE($B35),[1]ARTRDCL!$A$1:$U$65536,3,FALSE)","v":"20"},{"$f":"VLOOKUP(CONCATENATE($B35),[1]ARTRDCL!$A$1:$U$65536,2,FALSE)","v":"TOLE GALVA 1500X2200X10/10"},"Galva",1,1500,2200,3.3,8.5263636363636373,20100303,20141218,1936.587,"1",{"$f":"VLOOKUP(CONCATENATE($B35),[1]ARTRDCL!$A$1:$U$65536,13,FALSE)","v":28.137},0,{"$f":"VLOOKUP(CONCATENATE($B35),[1]ARTRDCL!$A$1:$U$65536,15,FALSE)","v":28.137},32.716999999999999,35.595999999999997,"1CA","999456","EISEN STAHL GmbH","ALLEMAGNE"]
["Galva_1,5","14540060",{"$f":"VLOOKUP(CONCATENATE($B36),[1]ARTRDCL!$A$1:$U$65536,3,FALSE)","v":"20"},{"$f":"VLOOKUP(CONCATENATE($B36),[1]ARTRDCL!$A$1:$U$65536,2,FALSE)","v":"TOLE GALVA 1500X2200X15/10"},"Galva",1.5,1500,2200,3.3,12.789696969696971,20100303,20141218,884.50400000000002,"1",{"$f":"VLOOKUP(CONCATENATE($B36),[1]ARTRDCL!$A$1:$U$65536,13,FALSE)","v":42.206000000000003},0,{"$f":"VLOOKUP(CONCATENATE($B36),[1]ARTRDCL!$A$1:$U$65536,15,FALSE)","v":42.206000000000003},49.075000000000003,53.393999999999998,"1CA","999456","EISEN STAHL GmbH","ALLEMAGNE"]
["MG_1,5","15615001",{"$f":"VLOOKUP(CONCATENATE($B37),[1]ARTRDCL!$A$1:$U$65536,3,FALSE)","v":"20"},{"$f":"VLOOKUP(CONCATENATE($B37),[1]ARTRDCL!$A$1:$U$65536,2,FALSE)","v":"1000X2000X1,5 MA 203423"},"MG",1.5,1000,2000,2,87.656000000000006,19981106,20141222,180.417,"1",{"$f":"VLOOKUP(CONCATENATE($B37),[1]ARTRDCL!$A$1:$U$65536,13,FALSE)","v":175.31200000000001},0,{"$f":"VLOOKUP(CONCATENATE($B37),[1]ARTRDCL!$A$1:$U$65536,15,FALSE)","v":175.31200000000001},223.06800000000001,242.69800000000001,"1CD","002508","THYSSEN","FRANCE"]
["MG_3","15630001",{"$f":"VLOOKUP(CONCATENATE($B38),[1]ARTRDCL!$A$1:$U$65536,3,FALSE)","v":"20"},{"$f":"VLOOKUP(CONCATENATE($B38),[1]ARTRDCL!$A$1:$U$65536,2,FALSE)","v":"1000X2000X3 MANG 203430"},"MG",3,1000,2000,2,105.52500000000001,19981106,20141023,706,"1",{"$f":"VLOOKUP(CONCATENATE($B38),[1]ARTRDCL!$A$1:$U$65536,13,FALSE)","v":211.05},0,{"$f":"VLOOKUP(CONCATENATE($B38),[1]ARTRDCL!$A$1:$U$65536,15,FALSE)","v":211.05},265.55599999999998,288.92500000000001,"1CD","999456","EISEN STAHL GmbH","ALLEMAGNE"]

{"sheet":"Paramètres","index":10,"n_rows":13,"n_cols":4,"rows_kept":13,"cut":false,"hidden":true,"merged":[]}
["Référence de simulation"]
["Coût CH ",{"$f":"BOM!$M$5","v":39.360799999999998}]
["Format de Tôle 11115015 (mm)"]
["Surface de la tôle 11115015 (m²)"]
["Tarif CVP  tôle"]
["Tarif M3 Tôle"]
["Format de Tôle cisaillée",460,980,1.5]
["Surface de la tôle 11115015 (m²)",{"$f":"B7/1000*C7/1000","v":0.45080000000000003}]
["Taux chute",1.18]
["List de réponse","Oui"]
[null,"Non"]
[]
["Cout cisaillage",5]